Workbook

Sheet Start
A1: Last game day
A2: 2023-08-31 | I2: Team Legends
I3: Team 1 | J3: ='Bad Pitches'!D1 -> Bad Pitches
I4: Team 2 | J4: =BCBC!D1 -> BCBC
I5: Team 3 | J5: ='Ghetto Bombers'!D1 -> Ghetto Bombers
I6: Team 4 | J6: ='Thunder Ducks'!D1 -> Thunder Ducks
I7: Team 5 | J7: ='X Team'!D1 -> X Team
I8: Team 6 | J8: ='XXX Team'!D1 -> XXX Team
I9: Team 7 | J9: ='YY Team'!D1 -> YY Team
I10: Team 8 | J10: ='XX Team'!D1 -> XX Team

Sheet Bad Pitches
C1: Team Name | D1: Bad Pitches | I1: Score | J1: 21 | K1: 9 | L1: 15 | M1: 7
I2: Opponents Score | J2: 22 | K2: 11 | L2: 11 | M2: 0
D3: Wins | F3: =SUM(J6:AA6) -> 2 | I3: W or L | J3: =IF(SUM(J1,J2)=0,"",IF(J1<J2,"L","W")) -> L | K3: =IF(SUM(K1,K2)=0,"",IF(K1<K2,"L","W")) -> L | L3: W | M3: W | T3: =IF(SUM(T1,T2)=0,"",IF(T1<T2,"L","W")) -> 
D4: Losses | F4: =SUM(J7:AA7) -> 2 | H4: Forfeit | I4: FW or FL | M4: FW
E5: games played excluding Forfeit Wins | J5: =IF(J3="","",IF(J4="FW","",1)) -> 1 | K5: =IF(K3="","",IF(K4="FW","",1)) -> 1 | L5: 1 | Y5: =IF(Y3="","",IF(Y4="FW","",1)) ->  | Z5: =IF(Z3="","",IF(Z4="FW","",1)) ->  | AA5: =IF(AA3="","",IF(AA4="FW","",1)) -> 
H6: =IF(H4="w",1,"") ->  | I6: win | J6: =IF(J3="w",1,"") ->  | K6: =IF(K3="w",1,"") ->  | L6: 1 | M6: 1 | Y6: =IF(Y3="w",1,"") ->  | Z6: =IF(Z3="w",1,"") ->  | AA6: =IF(AA3="w",1,"") -> 
H7: =IF(H4="l",1,"") ->  | I7: loss | J7: =IF(J3="l",1,"") -> 1 | K7: =IF(K3="l",1,"") -> 1 | Y7: =IF(Y3="l",1,"") ->  | Z7: =IF(Z3="l",1,"") ->  | AA7: =IF(AA3="l",1,"") -> 
D8: Games Played Excluding Forfeit Wins | F8: =SUM(J5:AA5) -> 3 | H8: Opponents Team Name | J8: Thunder Ducks | K8: BCBC | L8: Ghetto Bombers | M8: Thunderducks
D9: League Run Diff | F9: =SUM(J9:AA9) -> 8 | I9: Game Run Diff | J9: =IF(J1="","",J1-J2) -> -1 | K9: =IF(K1="","",K1-K2) -> -2 | L9: 4 | M9: 7 | U9: =IF(U1="","",U1-U2) -> 
D10: Team Batting Avg | F10: =$H$115 -> 0.4765625 | I10: Game Date | J10: 2023-08-10 | K10: 2023-08-17 | L10: 2023-08-24 | M10: 2023-08-31 | N10: 2023-09-07
H12: STATS | J12: 1 | K12: 2 | L12: 3 | M12: 4 | N12: 5 | O12: 6 | P12: 7 | Q12: 8 | R12: 9 | S12: 10 | T12: 11 | U12: 12 | V12: 13 | W12: 14 | X12: 15 | Y12: 16 | Z12: 17 | AA12: 18
A13: 1 | B13: =$D$1 -> Bad Pitches | C13: L-Name | D13: Harrison | F13: # of AB's | H13: =SUM(J13:AA13) -> 14 | I13: AB's | J13: 5 | K13: 4 | L13: 5
C14: F-Name | D14: Van Dyke | F14: # of Hits | H14: =SUM(J14:AA14) -> 10 | I14: Hits | J14: 3 | K14: 4 | L14: 3
F15: # of PA | H15: =SUM(J15:AA15) -> 15 | I15: PA | J15: 6 | K15: 4 | L15: 5
D16: m | F16: Avg | H16: =IF(H13=0,"",(H14/H13)) -> 0.7142857143 | I16: Avg | J16: =IF(J13="","",J14/J13) -> 0.6 | K16: 1 | L16: 0.6 | T16: =IF(T13="","",T14/T13) -> 
A17: 2 | B17: =$D$1 -> Bad Pitches | C17: L-Name | D17: Paige | F17: # of AB's | H17: =SUM(J17:AA17) -> 10 | I17: AB's | J17: 6 | L17: 4
C18: F-Name | D18: Reynolds | F18: # of Hits | H18: =SUM(J18:AA18) -> 3 | I18: Hits | J18: 2 | L18: 1
F19: # of PA | H19: =SUM(J19:AA19) -> 10 | I19: PA | J19: 6 | L19: 4
D20: f | F20: Avg | H20: =IF(H17=0,"",H18/H17) -> 0.3 | I20: Avg | J20: =IF(J17="","",J18/J17) -> 0.3333333333 | L20: 0.25 | T20: =IF(T17="","",T18/T17) -> 
A21: 3 | B21: =$D$1 -> Bad Pitches | C21: L-Name | D21: Ryan | F21: # of AB's | H21: =SUM(J21:AA21) -> 14 | I21: AB's | J21: 6 | K21: 4 | L21: 4
C22: F-Name | D22: Watt | F22: # of Hits | H22: =SUM(J22:AA22) -> 10 | I22: Hits | J22: 4 | K22: 2 | L22: 4
F23: # of PA | H23: =SUM(J23:AA23) -> 14 | I23: PA | J23: 6 | K23: 4 | L23: 4
D24: m | F24: Avg | H24: =IF(H21=0,"",H22/H21) -> 0.7142857143 | I24: Avg | J24: =IF(J21="","",J22/J21) -> 0.6666666667 | K24: 0.5 | T24: =IF(T21="","",T22/T21) -> 
A25: 4 | B25: =$D$1 -> Bad Pitches | C25: L-Name | D25: Tanzie | F25: # of AB's | H25: =SUM(J25:AA25) -> 14 | I25: AB's | J25: 6 | K25: 4 | L25: 4
C26: F-Name | D26: Gasu | F26: # of Hits | H26: =SUM(J26:AA26) -> 7 | I26: Hits | J26: 3 | K26: 2 | L26: 2
F27: # of PA | H27: =SUM(J27:AA27) -> 14 | I27: PA | J27: 6 | K27: 4 | L27: 4
D28: f | F28: Avg | H28: =IF(H25=0,"",H26/H25) -> 0.5 | I28: Avg | J28: =IF(J25="","",J26/J25) -> 0.5 | K28: 0.5 | L28: 0.5 | T28: =IF(T25="","",T26/T25) -> 
A29: 5 | B29: =$D$1 -> Bad Pitches | C29: L-Name | D29: Parker | F29: # of AB's | H29: =SUM(J29:AA29) -> 6 | I29: AB's | J29: 6
C30: F-Name | D30: Van Dyke | F30: # of Hits | H30: =SUM(J30:AA30) -> 2 | I30: Hits | J30: 2
F31: # of PA | H31: =SUM(J31:AA31) -> 6 | I31: PA | J31: 6
D32: m | F32: Avg | H32: =IF(H29=0,"",H30/H29) -> 0.3333333333 | I32: Avg | J32: =IF(J29="","",J30/J29) -> 0.3333333333 | T32: =IF(T29="","",T30/T29) -> 
A33: 6 | B33: =$D$1 -> Bad Pitches | C33: C | D33: Callianne | F33: # of AB's | H33: =SUM(J33:AA33) -> 9 | I33: AB's | J33: 5 | K33: 4
C34: F-Name | D34: Hodson | F34: # of Hits | H34: =SUM(J34:AA34) -> 3 | I34: Hits | J34: 3 | K34: 0
F35: # of PA | H35: =SUM(J35:AA35) -> 9 | I35: PA | J35: 5 | K35: 4
D36: f | F36: Avg | H36: =IF(H33=0,"",H34/H33) -> 0.3333333333 | I36: Avg | J36: =IF(J33="","",J34/J33) -> 0.6 | K36: 0
A37: 7 | B37: =$D$1 -> Bad Pitches | C37: L-Name | D37: Jeff | F37: # of AB's | H37: =SUM(J37:AA37) -> 7 | I37: AB's | J37: 4 | K37: 3
C38: F-Name | D38: Cagle | F38: # of Hits | H38: =SUM(J38:AA38) -> 5 | I38: Hits | J38: 3 | K38: 2
F39: # of PA | H39: =SUM(J39:AA39) -> 8 | I39: PA | J39: 5 | K39: 3
D40: m | F40: Avg | H40: =IF(H37=0,"",H38/H37) -> 0.7142857143 | I40: Avg | J40: =IF(J37="","",J38/J37) -> 0.75 | K40: 0.6666666667 | T40: =IF(T37="","",T38/T37) -> 
A41: 8 | B41: =$D$1 -> Bad Pitches | C41: L-Name | D41: Janae | F41: # of AB's | H41: =SUM(J41:AA41) -> 7 | I41: AB's | J41: 5 | K41: 2
C42: F-Name | D42: Cook | F42: # of Hits | H42: =SUM(J42:AA42) -> 1 | I42: Hits | J42: 1 | K42: 0
F43: # of PA | H43: =SUM(J43:AA43) -> 8 | I43: PA | J43: 5 | K43: 3
D44: f | F44: Avg | H44: =IF(H41=0,"",H42/H41) -> 0.1428571429 | I44: Avg | J44: =IF(J41="","",J42/J41) -> 0.2 | K44: 0 | T44: =IF(T41="","",T42/T41) -> 
A45: 9 | B45: =$D$1 -> Bad Pitches | C45: L-Name | D45: Aaron | F45: # of AB's | H45: =SUM(J45:AA45) -> 12 | I45: AB's | J45: 5 | K45: 3 | L45: 4
C46: F-Name | D46: Montgomery | F46: # of Hits | H46: =SUM(J46:AA46) -> 5 | I46: Hits | J46: 2 | K46: 2 | L46: 1
F47: # of PA | H47: =SUM(J47:AA47) -> 12 | I47: PA | J47: 5 | K47: 3 | L47: 4
D48: m | F48: Avg | H48: =IF(H45=0,"",H46/H45) -> 0.4166666667 | I48: Avg | J48: =IF(J45="","",J46/J45) -> 0.4 | K48: 0.6666666667 | L48: 0.25 | T48: =IF(T45="","",T46/T45) -> 
A49: 10 | B49: =$D$1 -> Bad Pitches | C49: L-Name | D49: Megan | F49: # of AB's | H49: =SUM(J49:AA49) -> 9 | I49: AB's | J49: 5 | L49: 4
C50: F-Name | D50: Timpson | F50: # of Hits | H50: =SUM(J50:AA50) -> 4 | I50: Hits | J50: 3 | L50: 1
F51: # of PA | H51: =SUM(J51:AA51) -> 9 | I51: PA | J51: 5 | L51: 4
D52: f | F52: Avg | H52: =IF(H49=0,"",H50/H49) -> 0.4444444444 | I52: Avg | J52: =IF(J49="","",J50/J49) -> 0.6 | L52: 0.25 | T52: =IF(T49="","",T50/T49) -> 
A53: 11 | B53: =$D$1 -> Bad Pitches | C53: L-Name | D53: Vincente | F53: # of AB's | H53: =SUM(J53:AA53) -> 8 | I53: AB's | K53: 4 | L53: 4
C54: F-Name | D54: Herrera | F54: # of Hits | H54: =SUM(J54:AA54) -> 2 | I54: Hits | K54: 1 | L54: 1
F55: # of PA | H55: =SUM(J55:AA55) -> 8 | I55: PA | K55: 4 | L55: 4
D56: m | F56: Avg | H56: =IF(H53=0,"",H54/H53) -> 0.25 | I56: Avg | J56: =IF(J53="","",J54/J53) ->  | K56: 0.25 | L56: 0.25 | T56: =IF(T53="","",T54/T53) -> 
A57: 12 | B57: =$D$1 -> Bad Pitches | C57: L-Name | D57: Teya | F57: # of AB's | H57: =SUM(J57:AA57) -> 7 | I57: AB's | K57: 3 | L57: 4
C58: F-Name | D58: Gasu | F58: # of Hits | H58: =SUM(J58:AA58) -> 2 | I58: Hits | K58: 1 | L58: 1
F59: # of PA | H59: =SUM(J59:AA59) -> 8 | I59: PA | K59: 4 | L59: 4
D60: f | F60: Avg | H60: =IF(H57=0,"",H58/H57) -> 0.2857142857 | I60: Avg | J60: =IF(J57="","",J58/J57) ->  | K60: 0.3333333333 | L60: 0.25 | T60: =IF(T57="","",T58/T57) -> 
A61: 13 | B61: =$D$1 -> Bad Pitches | C61: B | D61: Karson | F61: # of AB's | H61: =SUM(J61:AA61) -> 7 | I61: AB's | K61: 3 | L61: 4
C62: F-Name | D62: Vanderver | F62: # of Hits | H62: =SUM(J62:AA62) -> 5 | I62: Hits | K62: 1 | L62: 4
F63: # of PA | H63: =SUM(J63:AA63) -> 7 | I63: PA | K63: 3 | L63: 4
D64: f | F64: Avg | H64: =IF(H61=0,"",H62/H61) -> 0.7142857143 | I64: Avg | J64: =IF(J61="","",J62/J61) ->  | K64: 0.3333333333 | L64: 1 | T64: =IF(T61="","",T62/T61) -> 
A65: 14 | B65: =$D$1 -> Bad Pitches | C65: L-Name | D65: Britton | F65: # of AB's | H65: =SUM(J65:AA65) -> 4 | I65: AB's | L65: 4
C66: F-Name | D66: Lund | F66: # of Hits | H66: =SUM(J66:AA66) -> 2 | I66: Hits | L66: 2
F67: # of PA | H67: =SUM(J67:AA67) -> 4 | I67: PA | L67: 4
D68: m | F68: Avg | H68: =IF(H65=0,"",H66/H65) -> 0.5 | I68: Avg | J68: =IF(J65="","",J66/J65) ->  | L68: 0.5 | T68: =IF(T65="","",T66/T65) -> 
A69: 15 | B69: =$D$1 -> Bad Pitches | C69: L-Name | F69: # of AB's | H69: =SUM(J69:AA69) -> 0 | I69: AB's
C70: F-Name | F70: # of Hits | H70: =SUM(J70:AA70) -> 0 | I70: Hits
F71: # of PA | H71: =SUM(J71:AA71) -> 0 | I71: PA
D72: f | F72: Avg | H72: =IF(H69=0,"",H70/H69) ->  | I72: Avg | J72: =IF(J69="","",J70/J69) ->  | T72: =IF(T69="","",T70/T69) -> 
A73: 16 | B73: =$D$1 -> Bad Pitches | C73: R | F73: # of AB's | H73: =SUM(J73:AA73) -> 0 | I73: AB's
C74: F-Name | F74: # of Hits | H74: =SUM(J74:AA74) -> 0 | I74: Hits
F75: # of PA | H75: =SUM(J75:AA75) -> 0 | I75: PA
D76: f | F76: Avg | H76: =IF(H73=0,"",H74/H73) ->  | I76: Avg | J76: =IF(J73="","",J74/J73) ->  | T76: =IF(T73="","",T74/T73) -> 
A77: 17 | B77: =$D$1 -> Bad Pitches | C77: L-Name | F77: # of AB's | H77: =SUM(J77:AA77) -> 0 | I77: AB's
C78: F-Name | F78: # of Hits | H78: =SUM(J78:AA78) -> 0 | I78: Hits
F79: # of PA | H79: =SUM(J79:AA79) -> 0 | I79: PA
D80: f | F80: Avg | H80: =IF(H77=0,"",H78/H77) ->  | I80: Avg | J80: =IF(J77="","",J78/J77) ->  | T80: =IF(T77="","",T78/T77) -> 
A81: 18 | B81: =$D$1 -> Bad Pitches | C81: L-Name | F81: # of AB's | H81: =SUM(J81:AA81) -> 0 | I81: AB's
C82: F-Name | F82: # of Hits | H82: =SUM(J82:AA82) -> 0 | I82: Hits
F83: # of PA | H83: =SUM(J83:AA83) -> 0 | I83: PA
D84: m | F84: Avg | H84: =IF(H81=0,"",H82/H81) ->  | I84: Avg | J84: =IF(J81="","",J82/J81) ->  | T84: =IF(T81="","",T82/T81) -> 
A85: 19 | B85: =$D$1 -> Bad Pitches | C85: L-Name | F85: # of AB's | H85: =SUM(J85:AA85) -> 0 | I85: AB's
C86: F-Name | F86: # of Hits | H86: =SUM(J86:AA86) -> 0 | I86: Hits
F87: # of PA | H87: =SUM(J87:AA87) -> 0 | I87: PA
D88: m | F88: Avg | H88: =IF(H85=0,"",H86/H85) ->  | I88: Avg | J88: =IF(J85="","",J86/J85) ->  | T88: =IF(T85="","",T86/T85) -> 
A89: 20 | B89: =$D$1 -> Bad Pitches | C89: L-Name | F89: # of AB's | H89: =SUM(J89:AA89) -> 0 | I89: AB's
C90: F-Name | F90: # of Hits | H90: =SUM(J90:AA90) -> 0 | I90: Hits
F91: # of PA | H91: =SUM(J91:AA91) -> 0 | I91: PA
D92: f | F92: Avg | H92: =IF(H89=0,"",H90/H89) ->  | I92: Avg | J92: =IF(J89="","",J90/J89) ->  | T92: =IF(T89="","",T90/T89) -> 
A93: 21 | B93: =$D$1 -> Bad Pitches | C93: L-Name | F93: # of AB's | H93: =SUM(J93:AA93) -> 0 | I93: AB's
C94: F-Name | F94: # of Hits | H94: =SUM(J94:AA94) -> 0 | I94: Hits
F95: # of PA | H95: =SUM(J95:AA95) -> 0 | I95: PA
D96: f | F96: Avg | H96: =IF(H93=0,"",H94/H93) ->  | I96: Avg | J96: =IF(J93="","",J94/J93) ->  | T96: =IF(T93="","",T94/T93) -> 
A97: 22 | B97: =$D$1 -> Bad Pitches | C97: L-Name | F97: # of AB's | H97: =SUM(J97:AA97) -> 0 | I97: AB's
C98: F-Name | F98: # of Hits | H98: =SUM(J98:AA98) -> 0 | I98: Hits
F99: # of PA | H99: =SUM(J99:AA99) -> 0 | I99: PA
D100: f | F100: Avg | H100: =IF(H97=0,"",H98/H97) ->  | I100: Avg | J100: =IF(J97="","",J98/J97) ->  | T100: =IF(T97="","",T98/T97) -> 
A101: 23 | B101: =$D$1 -> Bad Pitches | C101: L-Name | F101: # of AB's | H101: =SUM(J101:AA101) -> 0 | I101: AB's
C102: F-Name | F102: # of Hits | H102: =SUM(J102:AA102) -> 0 | I102: Hits
F103: # of PA | H103: =SUM(J103:AA103) -> 0 | I103: PA
D104: f | F104: Avg | H104: =IF(H101=0,"",H102/H101) ->  | I104: Avg | J104: =IF(J101="","",J102/J101) ->  | T104: =IF(T101="","",T102/T101) -> 
A105: 24 | B105: =$D$1 -> Bad Pitches | C105: L-Name | F105: # of AB's | H105: =SUM(J105:AA105) -> 0 | I105: AB's
C106: F-Name | F106: # of Hits | H106: =SUM(J106:AA106) -> 0 | I106: Hits
F107: # of PA | H107: =SUM(J107:AA107) -> 0 | I107: PA
D108: f | F108: Avg | H108: =IF(H105=0,"",H106/H105) ->  | I108: Avg | J108: =IF(J105="","",J106/J105) ->  | T108: =IF(T105="","",T106/T105) -> 
A109: 25 | B109: =$D$1 -> Bad Pitches | C109: L-Name | F109: # of AB's | H109: =SUM(J109:AA109) -> 0 | I109: AB's
C110: F-Name | F110: # of Hits | H110: =SUM(J110:AA110) -> 0 | I110: Hits
F111: # of PA | H111: =SUM(J111:AA111) -> 0 | I111: PA
D112: f | F112: Avg | H112: =IF(H109=0,"",H110/H109) ->  | I112: Avg | J112: =IF(J109="","",J110/J109) ->  | T112: =IF(T109="","",T110/T109) -> 
B113: =$D$1 -> Bad Pitches | D113: TEAM | F113: # of AB's | H113: =SUM(J113:AA113) -> 128 | I113: AB's | J113: =IF(SUM(J109,J105,J101,J97,J93,J89,J85,J81,J77,J73,J69,J65,J61,J57,J53,J49,J45,J41,J37,J33,J29,J25,J21,J17,J13)=0,"",SUM(J13,J17,J21,J25,J29,J33,J37,J41,J45,J49,J53,J57,J61,J65,J69,J73,J77,J81,J85,J89,J93,J97,J101,J105,J109)) -> 53 | K113: 34 | L113: 41
D114: Summary | F114: # of Hits | H114: =SUM(J114:AA114) -> 61 | I114: Hits | J114: =IF(SUM(J110,J106,J102,J98,J94,J90,J86,J82,J78,J74,J70,J66,J62,J58,J54,J50,J46,J42,J38,J34,J30,J26,J22,J18,J14)=0,"",SUM(J14,J18,J22,J26,J30,J34,J38,J42,J46,J50,J54,J58,J62,J66,J70,J74,J78,J82,J86,J90,J94,J98,J102,J106,J110)) -> 26 | K114: 15 | L114: 20
F115: Avg | H115: =IF(H113=0,"N/A",H114/H113) -> 0.4765625 | I115: Avg | J115: =IF(J113="","",J114/J113) -> 0.4905660377 | K115: 0.4411764706 | L115: 0.487804878 | T115: =IF(T113="","",T114/T113) -> 

Sheet BCBC
C1: Team Name | D1: BCBC | I1: Score | J1: 19 | K1: 11 | L1: 8 | M1: 9
I2: Opponents Score | J2: 20 | K2: 9 | L2: 21 | M2: 28
D3: Wins | F3: =SUM(J6:AA6) -> 1 | I3: W or L | J3: =IF(SUM(J1,J2)=0,"",IF(J1<J2,"L","W")) -> L | K3: W | L3: L | M3: L
D4: Losses | F4: =SUM(J7:AA7) -> 3 | H4: Forfeit | I4: FW or FL
E5: games played excluding Forfeit Wins | J5: =IF(J3="","",IF(J4="FW","",1)) -> 1 | K5: 1 | L5: 1 | M5: 1
H6: =IF(H4="w",1,"") ->  | I6: win | J6: =IF(J3="w",1,"") ->  | K6: 1
H7: =IF(H4="l",1,"") ->  | I7: loss | J7: =IF(J3="l",1,"") -> 1 | L7: 1 | M7: 1
D8: Games Played Excluding Forfeit Wins | F8: =SUM(J5:AA5) -> 4 | H8: Opponents Team Name | J8: Ghetto Bombers | K8: Bad Pitches | L8: Thunder Ducks | M8: Ghetto Bombers
D9: League Run Diff | F9: =SUM(J9:AA9) -> -31 | I9: Game Run Diff | J9: =IF(J1="","",J1-J2) -> -1 | K9: 2 | L9: -13 | M9: -19
D10: Team Batting Avg | F10: =$H$115 -> 0.4802631579 | I10: Game Date | J10: 2023-08-10 | K10: 2023-08-17 | L10: 2023-08-24 | M10: 2023-08-31 | N10: 2023-09-07
H12: STATS | J12: 1 | K12: 2 | L12: 3 | M12: 4 | N12: 5 | O12: 6 | P12: 7 | Q12: 8 | R12: 9 | S12: 10 | T12: 11 | U12: 12 | V12: 13 | W12: 14 | X12: 15 | Y12: 16 | Z12: 17 | AA12: 18
A13: 1 | B13: =$D$1 -> BCBC | C13: L-Name | D13: Jordan | F13: # of AB's | H13: =SUM(J13:AA13) -> 10 | I13: AB's | J13: 5 | K13: 2 | L13: 3
C14: F-Name | D14: Rogers | F14: # of Hits | H14: =SUM(J14:AA14) -> 7 | I14: Hits | J14: 4 | K14: 0 | L14: 3
F15: # of PA | H15: =SUM(J15:AA15) -> 11 | I15: PA | J15: 5 | K15: 3 | L15: 3
D16: m | F16: Avg | H16: =IF(H13=0,"",(H14/H13)) -> 0.7 | I16: Avg | J16: =IF(J13="","",J14/J13) -> 0.8 | K16: 0 | L16: 1
A17: 2 | B17: =$D$1 -> BCBC | C17: L-Name | D17: Alex | F17: # of AB's | H17: =SUM(J17:AA17) -> 11 | I17: AB's | J17: 5 | K17: 3 | L17: 3
C18: F-Name | D18: Ferrel | F18: # of Hits | H18: =SUM(J18:AA18) -> 5 | I18: Hits | J18: 2 | K18: 2 | L18: 1
F19: # of PA | H19: =SUM(J19:AA19) -> 11 | I19: PA | J19: 5 | K19: 3 | L19: 3
D20: f | F20: Avg | H20: =IF(H17=0,"",H18/H17) -> 0.4545454545 | I20: Avg | J20: =IF(J17="","",J18/J17) -> 0.4 | K20: 0.6666666667 | L20: 0.3333333333
A21: 3 | B21: =$D$1 -> BCBC | C21: L-Name | D21: Vinny | F21: # of AB's | H21: =SUM(J21:AA21) -> 12 | I21: AB's | J21: 5 | K21: 3 | M21: 4
C22: F-Name | D22: Dilworth | F22: # of Hits | H22: =SUM(J22:AA22) -> 6 | I22: Hits | J22: 3 | K22: 1 | M22: 2
F23: # of PA | H23: =SUM(J23:AA23) -> 12 | I23: PA | J23: 5 | K23: 3 | M23: 4
D24: m | F24: Avg | H24: =IF(H21=0,"",H22/H21) -> 0.5 | I24: Avg | J24: =IF(J21="","",J22/J21) -> 0.6 | K24: 0.3333333333 | M24: 0.5
A25: 4 | B25: =$D$1 -> BCBC | C25: L-Name | D25: Casey | F25: # of AB's | H25: =SUM(J25:AA25) -> 11 | I25: AB's | J25: 4 | L25: 3 | M25: 4
C26: F-Name | D26: Velarde | F26: # of Hits | H26: =SUM(J26:AA26) -> 4 | I26: Hits | J26: 1 | L26: 1 | M26: 2
F27: # of PA | H27: =SUM(J27:AA27) -> 12 | I27: PA | J27: 5 | L27: 3 | M27: 4
D28: f | F28: Avg | H28: =IF(H25=0,"",H26/H25) -> 0.3636363636 | I28: Avg | J28: =IF(J25="","",J26/J25) -> 0.25 | L28: 0.3333333333 | M28: 0.5
A29: 5 | B29: =$D$1 -> BCBC | C29: L-Name | D29: Ben | F29: # of AB's | H29: =SUM(J29:AA29) -> 11 | I29: AB's | J29: 5 | K29: 3 | M29: 3
C30: F-Name | D30: Mangum | F30: # of Hits | H30: =SUM(J30:AA30) -> 10 | I30: Hits | J30: 4 | K30: 3 | M30: 3
F31: # of PA | H31: =SUM(J31:AA31) -> 11 | I31: PA | J31: 5 | K31: 3 | M31: 3
D32: m | F32: Avg | H32: =IF(H29=0,"",H30/H29) -> 0.9090909091 | I32: Avg | J32: =IF(J29="","",J30/J29) -> 0.8 | K32: 1 | M32: 1
A33: 6 | B33: =$D$1 -> BCBC | C33: L-Name | D33: Tiff | F33: # of AB's | H33: =SUM(J33:AA33) -> 10 | I33: AB's | J33: 4 | K33: 3 | L33: 3
C34: F-Name | D34: Morton | F34: # of Hits | H34: =SUM(J34:AA34) -> 4 | I34: Hits | J34: 2 | K34: 1 | L34: 1
F35: # of PA | H35: =SUM(J35:AA35) -> 11 | I35: PA | J35: 5 | K35: 3 | L35: 3
D36: f | F36: Avg | H36: =IF(H33=0,"",H34/H33) -> 0.4 | I36: Avg | J36: =IF(J33="","",J34/J33) -> 0.5 | K36: 0.3333333333 | L36: 0.3333333333
A37: 7 | B37: =$D$1 -> BCBC | C37: L-Name | D37: Jeff | F37: # of AB's | H37: =SUM(J37:AA37) -> 14 | I37: AB's | J37: 5 | K37: 2 | L37: 3 | M37: 4
C38: F-Name | D38: Nielsen | F38: # of Hits | H38: =SUM(J38:AA38) -> 7 | I38: Hits | J38: 2 | K38: 1 | L38: 2 | M38: 2
F39: # of PA | H39: =SUM(J39:AA39) -> 14 | I39: PA | J39: 5 | K39: 2 | L39: 3 | M39: 4
D40: m | F40: Avg | H40: =IF(H37=0,"",H38/H37) -> 0.5 | I40: Avg | J40: =IF(J37="","",J38/J37) -> 0.4 | K40: 0.5 | L40: 0.6666666667 | M40: 0.5
A41: 8 | B41: =$D$1 -> BCBC | C41: L-Name | D41: Maree | F41: # of AB's | H41: =SUM(J41:AA41) -> 13 | I41: AB's | J41: 4 | K41: 3 | L41: 3 | M41: 3
C42: F-Name | D42: Achermann | F42: # of Hits | H42: =SUM(J42:AA42) -> 2 | I42: Hits | J42: 0 | K42: 0 | L42: 1 | M42: 1
F43: # of PA | H43: =SUM(J43:AA43) -> 13 | I43: PA | J43: 4 | K43: 3 | L43: 3 | M43: 3
D44: f | F44: Avg | H44: =IF(H41=0,"",H42/H41) -> 0.1538461538 | I44: Avg | J44: =IF(J41="","",J42/J41) -> 0 | K44: 0 | L44: 0.3333333333 | M44: 0.3333333333
A45: 9 | B45: =$D$1 -> BCBC | C45: L-Name | D45: Dustin | F45: # of AB's | H45: =SUM(J45:AA45) -> 12 | I45: AB's | J45: 4 | K45: 2 | L45: 3 | M45: 3
C46: F-Name | D46: Hunter | F46: # of Hits | H46: =SUM(J46:AA46) -> 9 | I46: Hits | J46: 3 | K46: 2 | L46: 2 | M46: 2
F47: # of PA | H47: =SUM(J47:AA47) -> 12 | I47: PA | J47: 4 | K47: 2 | L47: 3 | M47: 3
D48: m | F48: Avg | H48: =IF(H45=0,"",H46/H45) -> 0.75 | I48: Avg | J48: =IF(J45="","",J46/J45) -> 0.75 | K48: 1 | L48: 0.6666666667 | M48: 0.6666666667
A49: 10 | B49: =$D$1 -> BCBC | D49: Sunni | F49: # of AB's | H49: =SUM(J49:AA49) -> 7 | I49: AB's | J49: 4 | K49: 3
D50: Jackson | F50: # of Hits | H50: =SUM(J50:AA50) -> 3 | I50: Hits | J50: 2 | K50: 1
F51: # of PA | H51: =SUM(J51:AA51) -> 7 | I51: PA | J51: 4 | K51: 3
D52: f | F52: Avg | H52: =IF(H49=0,"",H50/H49) -> 0.4285714286 | I52: Avg | J52: =IF(J49="","",J50/J49) -> 0.5 | K52: 0.3333333333
A53: 11 | B53: =$D$1 -> BCBC | C53: L-Name | D53: Shane | F53: # of AB's | H53: =SUM(J53:AA53) -> 9 | I53: AB's | J53: 3 | K53: 3 | L53: 3
C54: F-Name | D54: Singer | F54: # of Hits | H54: =SUM(J54:AA54) -> 8 | I54: Hits | J54: 3 | K54: 3 | L54: 2
F55: # of PA | H55: =SUM(J55:AA55) -> 10 | I55: PA | J55: 4 | K55: 3 | L55: 3
D56: m | F56: Avg | H56: =IF(H53=0,"",H54/H53) -> 0.8888888889 | I56: Avg | J56: =IF(J53="","",J54/J53) -> 1 | K56: 1 | L56: 0.6666666667
A57: 12 | B57: =$D$1 -> BCBC | C57: Ha | D57: Mel | F57: # of AB's | H57: =SUM(J57:AA57) -> 11 | I57: AB's | J57: 3 | K57: 2 | L57: 3 | M57: 3
C58: F-Name | D58: Maile | F58: # of Hits | H58: =SUM(J58:AA58) -> 1 | I58: Hits | J58: 0 | K58: 0 | L58: 0 | M58: 1
F59: # of PA | H59: =SUM(J59:AA59) -> 12 | I59: PA | J59: 4 | K59: 2 | L59: 3 | M59: 3
D60: f | F60: Avg | H60: =IF(H57=0,"",H58/H57) -> 0.09090909091 | I60: Avg | J60: =IF(J57="","",J58/J57) -> 0 | K60: 0 | L60: 0 | M60: 0.3333333333
B61: =$D$1 -> BCBC | C61: L-Name | D61: Robyne | F61: # of AB's | H61: =SUM(J61:AA61) -> 5 | I61: AB's | K61: 2 | L61: 3
C62: F-Name | D62: Oostveen | F62: # of Hits | H62: =SUM(J62:AA62) -> 0 | I62: Hits | K62: 0 | L62: 0
F63: # of PA | H63: =SUM(J63:AA63) -> 5 | I63: PA | K63: 2 | L63: 3
D64: f | F64: Avg | H64: =IF(H61=0,"",H62/H61) -> 0 | I64: Avg | J64: =IF(J61="","",J62/J61) ->  | K64: 0 | L64: 0
A65: 14 | B65: =$D$1 -> BCBC | C65: L-Name | D65: AJ | F65: # of AB's | H65: =SUM(J65:AA65) -> 3 | I65: AB's | L65: 3
C66: F-Name | D66: Avellar | F66: # of Hits | H66: =SUM(J66:AA66) -> 2 | I66: Hits | L66: 2
F67: # of PA | H67: =SUM(J67:AA67) -> 3 | I67: PA | L67: 3
D68: m | F68: Avg | H68: =IF(H65=0,"",H66/H65) -> 0.6666666667 | I68: Avg | J68: =IF(J65="","",J66/J65) ->  | L68: 0.6666666667
A69: 15 | B69: =$D$1 -> BCBC | C69: L-Name | D69: Scotty | F69: # of AB's | H69: =SUM(J69:AA69) -> 3 | I69: AB's | L69: 3
C70: F-Name | D70: Garfield | F70: # of Hits | H70: =SUM(J70:AA70) -> 2 | I70: Hits | L70: 2
F71: # of PA | H71: =SUM(J71:AA71) -> 3 | I71: PA | L71: 3
D72: m | F72: Avg | H72: =IF(H69=0,"",H70/H69) -> 0.6666666667 | I72: Avg | J72: =IF(J69="","",J70/J69) ->  | L72: 0.6666666667
A73: 16 | B73: =$D$1 -> BCBC | C73: L-Name | D73: Karen | F73: # of AB's | H73: =SUM(J73:AA73) -> 4 | I73: AB's | M73: 4
C74: F-Name | D74: Springer | F74: # of Hits | H74: =SUM(J74:AA74) -> 2 | I74: Hits | M74: 2
F75: # of PA | H75: =SUM(J75:AA75) -> 4 | I75: PA | M75: 4
D76: f | F76: Avg | H76: =IF(H73=0,"",H74/H73) -> 0.5 | I76: Avg | J76: =IF(J73="","",J74/J73) ->  | M76: 0.5
A77: 17 | B77: =$D$1 -> BCBC | C77: L-Name | D77: Craig | F77: # of AB's | H77: =SUM(J77:AA77) -> 3 | I77: AB's | M77: 3
C78: F-Name | D78: Patten | F78: # of Hits | H78: =SUM(J78:AA78) -> 1 | I78: Hits | M78: 1
F79: # of PA | H79: =SUM(J79:AA79) -> 3 | I79: PA | M79: 3
D80: m | F80: Avg | H80: =IF(H77=0,"",H78/H77) -> 0.3333333333 | I80: Avg | J80: =IF(J77="","",J78/J77) ->  | M80: 0.3333333333
A81: 18 | B81: =$D$1 -> BCBC | C81: L-Name | D81: Melinda | F81: # of AB's | H81: =SUM(J81:AA81) -> 3 | I81: AB's | M81: 3
C82: F-Name | F82: # of Hits | H82: =SUM(J82:AA82) -> 0 | I82: Hits | M82: 0
F83: # of PA | H83: =SUM(J83:AA83) -> 3 | I83: PA | M83: 3
D84: f | F84: Avg | H84: =IF(H81=0,"",H82/H81) -> 0 | I84: Avg | J84: =IF(J81="","",J82/J81) ->  | M84: 0
A85: 19 | B85: =$D$1 -> BCBC | C85: L-Name | F85: # of AB's | H85: =SUM(J85:AA85) -> 0 | I85: AB's
C86: F-Name | F86: # of Hits | H86: =SUM(J86:AA86) -> 0 | I86: Hits
F87: # of PA | H87: =SUM(J87:AA87) -> 0 | I87: PA
D88: f | F88: Avg | H88: =IF(H85=0,"",H86/H85) ->  | I88: Avg | J88: =IF(J85="","",J86/J85) -> 
A89: 20 | B89: =$D$1 -> BCBC | C89: L-Name | F89: # of AB's | H89: =SUM(J89:AA89) -> 0 | I89: AB's
C90: F-Name | F90: # of Hits | H90: =SUM(J90:AA90) -> 0 | I90: Hits
F91: # of PA | H91: =SUM(J91:AA91) -> 0 | I91: PA
D92: f | F92: Avg | H92: =IF(H89=0,"",H90/H89) ->  | I92: Avg | J92: =IF(J89="","",J90/J89) -> 
A93: 21 | B93: =$D$1 -> BCBC | C93: L-Name | F93: # of AB's | H93: =SUM(J93:AA93) -> 0 | I93: AB's
C94: F-Name | F94: # of Hits | H94: =SUM(J94:AA94) -> 0 | I94: Hits
F95: # of PA | H95: =SUM(J95:AA95) -> 0 | I95: PA
D96: f | F96: Avg | H96: =IF(H93=0,"",H94/H93) ->  | I96: Avg | J96: =IF(J93="","",J94/J93) -> 
A97: 22 | B97: =$D$1 -> BCBC | C97: L-Name | F97: # of AB's | H97: =SUM(J97:AA97) -> 0 | I97: AB's
C98: F-Name | F98: # of Hits | H98: =SUM(J98:AA98) -> 0 | I98: Hits
F99: # of PA | H99: =SUM(J99:AA99) -> 0 | I99: PA
D100: f | F100: Avg | H100: =IF(H97=0,"",H98/H97) ->  | I100: Avg | J100: =IF(J97="","",J98/J97) -> 
A101: 23 | B101: =$D$1 -> BCBC | C101: L-Name | F101: # of AB's | H101: =SUM(J101:AA101) -> 0 | I101: AB's
C102: F-Name | F102: # of Hits | H102: =SUM(J102:AA102) -> 0 | I102: Hits
F103: # of PA | H103: =SUM(J103:AA103) -> 0 | I103: PA
D104: f | F104: Avg | H104: =IF(H101=0,"",H102/H101) ->  | I104: Avg | J104: =IF(J101="","",J102/J101) -> 
A105: 24 | B105: =$D$1 -> BCBC | C105: L-Name | F105: # of AB's | H105: =SUM(J105:AA105) -> 0 | I105: AB's
C106: F-Name | F106: # of Hits | H106: =SUM(J106:AA106) -> 0 | I106: Hits
F107: # of PA | H107: =SUM(J107:AA107) -> 0 | I107: PA
D108: f | F108: Avg | H108: =IF(H105=0,"",H106/H105) ->  | I108: Avg | J108: =IF(J105="","",J106/J105) -> 
A109: 25 | B109: =$D$1 -> BCBC | C109: L-Name | F109: # of AB's | H109: =SUM(J109:AA109) -> 0 | I109: AB's
C110: F-Name | F110: # of Hits | H110: =SUM(J110:AA110) -> 0 | I110: Hits
F111: # of PA | H111: =SUM(J111:AA111) -> 0 | I111: PA
D112: f | F112: Avg | H112: =IF(H109=0,"",H110/H109) ->  | I112: Avg | J112: =IF(J109="","",J110/J109) -> 
B113: =$D$1 -> BCBC | D113: TEAM | F113: # of AB's | H113: =SUM(J113:AA113) -> 152 | I113: AB's | J113: =IF(SUM(J109,J105,J101,J97,J93,J89,J85,J81,J77,J73,J69,J65,J61,J57,J53,J49,J45,J41,J37,J33,J29,J25,J21,J17,J13)=0,"",SUM(J13,J17,J21,J25,J29,J33,J37,J41,J45,J49,J53,J57,J61,J65,J69,J73,J77,J81,J85,J89,J93,J97,J101,J105,J109)) -> 51 | K113: 31 | L113: 36 | M113: 34
D114: Summary | F114: # of Hits | H114: =SUM(J114:AA114) -> 73 | I114: Hits | J114: =IF(SUM(J110,J106,J102,J98,J94,J90,J86,J82,J78,J74,J70,J66,J62,J58,J54,J50,J46,J42,J38,J34,J30,J26,J22,J18,J14)=0,"",SUM(J14,J18,J22,J26,J30,J34,J38,J42,J46,J50,J54,J58,J62,J66,J70,J74,J78,J82,J86,J90,J94,J98,J102,J106,J110)) -> 26 | K114: 14 | L114: 17 | M114: 16
F115: Avg | H115: =IF(H113=0,"N/A",H114/H113) -> 0.4802631579 | I115: Avg | J115: =IF(J113="","",J114/J113) -> 0.5098039216 | K115: 0.4516129032 | L115: 0.4722222222 | M115: 0.4705882353

Sheet Ghetto Bombers
C1: Team Name | D1: Ghetto Bombers | I1: Score | J1: 20 | K1: 16 | L1: 11 | M1: 28
I2: Opponents Score | J2: 19 | K2: 10 | L2: 15 | M2: 9
D3: Wins | F3: =SUM(J6:AA6) -> 3 | I3: W or L | J3: =IF(SUM(J1,J2)=0,"",IF(J1<J2,"L","W")) -> W | K3: W | L3: L | M3: W
D4: Losses | F4: =SUM(J7:AA7) -> 1 | H4: Forfeit | I4: FW or FL
E5: games played excluding Forfeit Wins | J5: =IF(J3="","",IF(J4="FW","",1)) -> 1 | K5: 1 | L5: 1 | M5: 1
H6: =IF(H4="w",1,"") ->  | I6: win | J6: =IF(J3="w",1,"") -> 1 | K6: 1 | M6: 1
H7: =IF(H4="l",1,"") ->  | I7: loss | J7: =IF(J3="l",1,"") ->  | L7: 1
D8: Games Played Excluding Forfeit Wins | F8: =SUM(J5:AA5) -> 4 | H8: Opponents Team Name | J8: BCBC | K8: Thunder Ducks | L8: Bad Pitches | M8: BCBC
D9: League Run Diff | F9: =SUM(J9:AA9) -> 22 | I9: Game Run Diff | J9: =IF(J1="","",J1-J2) -> 1 | K9: 6 | L9: -4 | M9: 19
D10: Team Batting Avg | F10: =$H$115 -> 0.5882352941 | I10: Game Date | J10: 2023-08-10 | K10: 2023-08-17 | L10: 2023-08-24 | M10: 2023-08-31 | N10: 2023-09-07
H12: STATS | J12: 1 | K12: 2 | L12: 3 | M12: 4 | N12: 5 | O12: 6 | P12: 7 | Q12: 8 | R12: 9 | S12: 10 | T12: 11 | U12: 12 | V12: 13 | W12: 14 | X12: 15 | Y12: 16 | Z12: 17 | AA12: 18
A13: 1 | B13: =$D$1 -> Ghetto Bombers | C13: L-Name | D13: Ryan | F13: # of AB's | H13: =SUM(J13:AA13) -> 13 | I13: AB's | J13: 4 | K13: 4 | M13: 5
C14: F-Name | D14: Newbold | F14: # of Hits | H14: =SUM(J14:AA14) -> 12 | I14: Hits | J14: 4 | K14: 4 | M14: 4
F15: # of PA | H15: =SUM(J15:AA15) -> 14 | I15: PA | J15: 5 | K15: 4 | M15: 5
D16: m | F16: Avg | H16: =IF(H13=0,"",(H14/H13)) -> 0.9230769231 | I16: Avg | J16: =IF(J13="","",J14/J13) -> 1 | K16: 1 | M16: 0.8
A17: 2 | B17: =$D$1 -> Ghetto Bombers | C17: L-Name | D17: Calleigh | F17: # of AB's | H17: =SUM(J17:AA17) -> 16 | I17: AB's | J17: 5 | K17: 4 | L17: 4 | M17: 3
C18: F-Name | D18: DeYoung | F18: # of Hits | H18: =SUM(J18:AA18) -> 11 | I18: Hits | J18: 3 | K18: 2 | L18: 3 | M18: 3
F19: # of PA | H19: =SUM(J19:AA19) -> 18 | I19: PA | J19: 5 | K19: 4 | L19: 4 | M19: 5
D20: f | F20: Avg | H20: =IF(H17=0,"",H18/H17) -> 0.6875 | I20: Avg | J20: =IF(J17="","",J18/J17) -> 0.6 | K20: 0.5 | L20: 0.75 | M20: 1
A21: 3 | B21: =$D$1 -> Ghetto Bombers | C21: L-Name | D21: Matt | F21: # of AB's | H21: =SUM(J21:AA21) -> 17 | I21: AB's | J21: 4 | K21: 4 | L21: 4 | M21: 5
C22: F-Name | D22: Newbold | F22: # of Hits | H22: =SUM(J22:AA22) -> 16 | I22: Hits | J22: 4 | K22: 4 | L22: 4 | M22: 4
F23: # of PA | H23: =SUM(J23:AA23) -> 18 | I23: PA | J23: 5 | K23: 4 | L23: 4 | M23: 5
D24: m | F24: Avg | H24: =IF(H21=0,"",H22/H21) -> 0.9411764706 | I24: Avg | J24: =IF(J21="","",J22/J21) -> 1 | K24: 1 | L24: 1 | M24: 0.8
A25: 4 | B25: =$D$1 -> Ghetto Bombers | C25: L-Name | D25: Brandi | F25: # of AB's | H25: =SUM(J25:AA25) -> 18 | I25: AB's | J25: 5 | K25: 4 | L25: 4 | M25: 5
C26: F-Name | D26: Hall | F26: # of Hits | H26: =SUM(J26:AA26) -> 10 | I26: Hits | J26: 3 | K26: 3 | L26: 1 | M26: 3
F27: # of PA | H27: =SUM(J27:AA27) -> 18 | I27: PA | J27: 5 | K27: 4 | L27: 4 | M27: 5
D28: f | F28: Avg | H28: =IF(H25=0,"",H26/H25) -> 0.5555555556 | I28: Avg | J28: =IF(J25="","",J26/J25) -> 0.6 | K28: 0.75 | L28: 0.25 | M28: 0.6
A29: 5 | B29: =$D$1 -> Ghetto Bombers | C29: L-Name | D29: Mac | F29: # of AB's | H29: =SUM(J29:AA29) -> 17 | I29: AB's | J29: 5 | K29: 3 | L29: 4 | M29: 5
C30: F-Name | D30: Estrada | F30: # of Hits | H30: =SUM(J30:AA30) -> 7 | I30: Hits | J30: 2 | K30: 0 | L30: 1 | M30: 4
F31: # of PA | H31: =SUM(J31:AA31) -> 18 | I31: PA | J31: 5 | K31: 4 | L31: 4 | M31: 5
D32: m | F32: Avg | H32: =IF(H29=0,"",H30/H29) -> 0.4117647059 | I32: Avg | J32: =IF(J29="","",J30/J29) -> 0.4 | K32: 0 | L32: 0.25 | M32: 0.8
A33: 6 | B33: =$D$1 -> Ghetto Bombers | C33: L-Name | D33: JoJo | F33: # of AB's | H33: =SUM(J33:AA33) -> 10 | I33: AB's | J33: 4 | K33: 3 | L33: 3
C34: F-Name | D34: Carlson | F34: # of Hits | H34: =SUM(J34:AA34) -> 5 | I34: Hits | J34: 2 | K34: 1 | L34: 2
F35: # of PA | H35: =SUM(J35:AA35) -> 10 | I35: PA | J35: 4 | K35: 3 | L35: 3
D36: f | F36: Avg | H36: =IF(H33=0,"",H34/H33) -> 0.5 | I36: Avg | J36: =IF(J33="","",J34/J33) -> 0.5 | K36: 0.3333333333 | L36: 0.6666666667
A37: 7 | B37: =$D$1 -> Ghetto Bombers | C37: L-Name | D37: Chet | F37: # of AB's | H37: =SUM(J37:AA37) -> 12 | I37: AB's | J37: 4 | K37: 4 | L37: 4
C38: F-Name | D38: Wanlass | F38: # of Hits | H38: =SUM(J38:AA38) -> 7 | I38: Hits | J38: 2 | K38: 2 | L38: 3
F39: # of PA | H39: =SUM(J39:AA39) -> 12 | I39: PA | J39: 4 | K39: 4 | L39: 4
D40: m | F40: Avg | H40: =IF(H37=0,"",H38/H37) -> 0.5833333333 | I40: Avg | J40: =IF(J37="","",J38/J37) -> 0.5 | K40: 0.5 | L40: 0.75
A41: 8 | B41: =$D$1 -> Ghetto Bombers | C41: L-Name | D41: Ali | F41: # of AB's | H41: =SUM(J41:AA41) -> 6 | I41: AB's | J41: 4 | L41: 2
C42: F-Name | D42: Smith | F42: # of Hits | H42: =SUM(J42:AA42) -> 0 | I42: Hits | J42: 0 | L42: 0
F43: # of PA | H43: =SUM(J43:AA43) -> 7 | I43: PA | J43: 4 | L43: 3
D44: f | F44: Avg | H44: =IF(H41=0,"",H42/H41) -> 0 | I44: Avg | J44: =IF(J41="","",J42/J41) -> 0 | L44: 0
A45: 9 | B45: =$D$1 -> Ghetto Bombers | C45: L-Name | D45: Derek | F45: # of AB's | H45: =SUM(J45:AA45) -> 12 | I45: AB's | J45: 4 | L45: 3 | M45: 5
C46: F-Name | D46: Smith | F46: # of Hits | H46: =SUM(J46:AA46) -> 4 | I46: Hits | J46: 2 | L46: 0 | M46: 2
F47: # of PA | H47: =SUM(J47:AA47) -> 13 | I47: PA | J47: 4 | L47: 4 | M47: 5
D48: m | F48: Avg | H48: =IF(H45=0,"",H46/H45) -> 0.3333333333 | I48: Avg | J48: =IF(J45="","",J46/J45) -> 0.5 | L48: 0 | M48: 0.4
A49: 10 | B49: =$D$1 -> Ghetto Bombers | C49: L-Name | D49: Heidi | F49: # of AB's | H49: =SUM(J49:AA49) -> 15 | I49: AB's | J49: 4 | K49: 3 | L49: 3 | M49: 5
C50: F-Name | D50: Taylor | F50: # of Hits | H50: =SUM(J50:AA50) -> 7 | I50: Hits | J50: 2 | K50: 1 | L50: 1 | M50: 3
F51: # of PA | H51: =SUM(J51:AA51) -> 16 | I51: PA | J51: 4 | K51: 3 | L51: 4 | M51: 5
D52: f | F52: Avg | H52: =IF(H49=0,"",H50/H49) -> 0.4666666667 | I52: Avg | J52: =IF(J49="","",J50/J49) -> 0.5 | K52: 0.3333333333 | L52: 0.3333333333 | M52: 0.6
A53: 11 | B53: =$D$1 -> Ghetto Bombers | C53: L-Name | D53: Dave | F53: # of AB's | H53: =SUM(J53:AA53) -> 14 | I53: AB's | J53: 4 | K53: 3 | L53: 3 | M53: 4
C54: F-Name | D54: Vu | F54: # of Hits | H54: =SUM(J54:AA54) -> 7 | I54: Hits | J54: 2 | K54: 1 | L54: 3 | M54: 1
F55: # of PA | H55: =SUM(J55:AA55) -> 14 | I55: PA | J55: 4 | K55: 3 | L55: 3 | M55: 4
D56: m | F56: Avg | H56: =IF(H53=0,"",H54/H53) -> 0.5 | I56: Avg | J56: =IF(J53="","",J54/J53) -> 0.5 | K56: 0.3333333333 | L56: 1 | M56: 0.25
A57: 12 | B57: =$D$1 -> Ghetto Bombers | C57: L-Name | D57: Ally | F57: # of AB's | H57: =SUM(J57:AA57) -> 3 | I57: AB's | J57: 3
C58: F-Name | D58: McAfee | F58: # of Hits | H58: =SUM(J58:AA58) -> 1 | I58: Hits | J58: 1
F59: # of PA | H59: =SUM(J59:AA59) -> 4 | I59: PA | J59: 4
D60: f | F60: Avg | H60: =IF(H57=0,"",H58/H57) -> 0.3333333333 | I60: Avg | J60: =IF(J57="","",J58/J57) -> 0.3333333333
A61: 13 | B61: =$D$1 -> Ghetto Bombers | C61: L-Name | D61: Jon | F61: # of AB's | H61: =SUM(J61:AA61) -> 10 | I61: AB's | K61: 4 | L61: 2 | M61: 4
C62: F-Name | D62: Staley | F62: # of Hits | H62: =SUM(J62:AA62) -> 7 | I62: Hits | K62: 1 | L62: 2 | M62: 4
F63: # of PA | H63: =SUM(J63:AA63) -> 11 | I63: PA | K63: 4 | L63: 3 | M63: 4
D64: m | F64: Avg | H64: =IF(H61=0,"",H62/H61) -> 0.7 | I64: Avg | J64: =IF(J61="","",J62/J61) ->  | K64: 0.25 | L64: 1 | M64: 1
A65: 14 | B65: =$D$1 -> Ghetto Bombers | C65: L-Name | D65: Danielle | F65: # of AB's | H65: =SUM(J65:AA65) -> 9 | I65: AB's | K65: 4 | M65: 5
C66: F-Name | D66: Henesh | F66: # of Hits | H66: =SUM(J66:AA66) -> 7 | I66: Hits | K66: 3 | M66: 4
F67: # of PA | H67: =SUM(J67:AA67) -> 9 | I67: PA | K67: 4 | M67: 5
D68: f | F68: Avg | H68: =IF(H65=0,"",H66/H65) -> 0.7777777778 | I68: Avg | J68: =IF(J65="","",J66/J65) ->  | K68: 0.75 | M68: 0.8
A69: 15 | B69: =$D$1 -> Ghetto Bombers | C69: L-Name | D69: Hope | F69: # of AB's | H69: =SUM(J69:AA69) -> 11 | I69: AB's | K69: 4 | L69: 3 | M69: 4
C70: F-Name | D70: Curtis | F70: # of Hits | H70: =SUM(J70:AA70) -> 6 | I70: Hits | K70: 3 | L70: 1 | M70: 2
F71: # of PA | H71: =SUM(J71:AA71) -> 11 | I71: PA | K71: 4 | L71: 3 | M71: 4
D72: f | F72: Avg | H72: =IF(H69=0,"",H70/H69) -> 0.5454545455 | I72: Avg | J72: =IF(J69="","",J70/J69) ->  | K72: 0.75 | L72: 0.3333333333 | M72: 0.5
A73: 16 | B73: =$D$1 -> Ghetto Bombers | C73: L-Name | D73: Britt | F73: # of AB's | H73: =SUM(J73:AA73) -> 4 | I73: AB's | M73: 4
C74: F-Name | D74: M | F74: # of Hits | H74: =SUM(J74:AA74) -> 3 | I74: Hits | M74: 3
F75: # of PA | H75: =SUM(J75:AA75) -> 4 | I75: PA | M75: 4
D76: f00 | F76: Avg | H76: =IF(H73=0,"",H74/H73) -> 0.75 | I76: Avg | J76: =IF(J73="","",J74/J73) ->  | M76: 0.75
A77: 17 | B77: =$D$1 -> Ghetto Bombers | C77: L-Name | F77: # of AB's | H77: =SUM(J77:AA77) -> 0 | I77: AB's
C78: F-Name | F78: # of Hits | H78: =SUM(J78:AA78) -> 0 | I78: Hits
F79: # of PA | H79: =SUM(J79:AA79) -> 0 | I79: PA
D80: f | F80: Avg | H80: =IF(H77=0,"",H78/H77) ->  | I80: Avg | J80: =IF(J77="","",J78/J77) -> 
A81: 18 | B81: =$D$1 -> Ghetto Bombers | C81: L-Name | F81: # of AB's | H81: =SUM(J81:AA81) -> 0 | I81: AB's
C82: F-Name | F82: # of Hits | H82: =SUM(J82:AA82) -> 0 | I82: Hits
F83: # of PA | H83: =SUM(J83:AA83) -> 0 | I83: PA
D84: m | F84: Avg | H84: =IF(H81=0,"",H82/H81) ->  | I84: Avg | J84: =IF(J81="","",J82/J81) -> 
A85: 19 | B85: =$D$1 -> Ghetto Bombers | C85: L-Name | F85: # of AB's | H85: =SUM(J85:AA85) -> 0 | I85: AB's
C86: F-Name | F86: # of Hits | H86: =SUM(J86:AA86) -> 0 | I86: Hits
F87: # of PA | H87: =SUM(J87:AA87) -> 0 | I87: PA
D88: f | F88: Avg | H88: =IF(H85=0,"",H86/H85) ->  | I88: Avg | J88: =IF(J85="","",J86/J85) -> 
A89: 20 | B89: =$D$1 -> Ghetto Bombers | C89: L-Name | F89: # of AB's | H89: =SUM(J89:AA89) -> 0 | I89: AB's
C90: F-Name | F90: # of Hits | H90: =SUM(J90:AA90) -> 0 | I90: Hits
F91: # of PA | H91: =SUM(J91:AA91) -> 0 | I91: PA
D92: f | F92: Avg | H92: =IF(H89=0,"",H90/H89) ->  | I92: Avg | J92: =IF(J89="","",J90/J89) -> 
A93: 21 | B93: =$D$1 -> Ghetto Bombers | C93: L-Name | F93: # of AB's | H93: =SUM(J93:AA93) -> 0 | I93: AB's
C94: F-Name | F94: # of Hits | H94: =SUM(J94:AA94) -> 0 | I94: Hits
F95: # of PA | H95: =SUM(J95:AA95) -> 0 | I95: PA
D96: f | F96: Avg | H96: =IF(H93=0,"",H94/H93) ->  | I96: Avg | J96: =IF(J93="","",J94/J93) -> 
A97: 22 | B97: =$D$1 -> Ghetto Bombers | C97: L-Name | F97: # of AB's | H97: =SUM(J97:AA97) -> 0 | I97: AB's
C98: F-Name | F98: # of Hits | H98: =SUM(J98:AA98) -> 0 | I98: Hits
F99: # of PA | H99: =SUM(J99:AA99) -> 0 | I99: PA
D100: f | F100: Avg | H100: =IF(H97=0,"",H98/H97) ->  | I100: Avg | J100: =IF(J97="","",J98/J97) -> 
A101: 23 | B101: =$D$1 -> Ghetto Bombers | C101: L-Name | F101: # of AB's | H101: =SUM(J101:AA101) -> 0 | I101: AB's
C102: F-Name | F102: # of Hits | H102: =SUM(J102:AA102) -> 0 | I102: Hits
F103: # of PA | H103: =SUM(J103:AA103) -> 0 | I103: PA
D104: f | F104: Avg | H104: =IF(H101=0,"",H102/H101) ->  | I104: Avg | J104: =IF(J101="","",J102/J101) -> 
A105: 24 | B105: =$D$1 -> Ghetto Bombers | C105: L-Name | F105: # of AB's | H105: =SUM(J105:AA105) -> 0 | I105: AB's
C106: F-Name | F106: # of Hits | H106: =SUM(J106:AA106) -> 0 | I106: Hits
F107: # of PA | H107: =SUM(J107:AA107) -> 0 | I107: PA
D108: f | F108: Avg | H108: =IF(H105=0,"",H106/H105) ->  | I108: Avg | J108: =IF(J105="","",J106/J105) -> 
A109: 25 | B109: =$D$1 -> Ghetto Bombers | C109: L-Name | F109: # of AB's | H109: =SUM(J109:AA109) -> 0 | I109: AB's
C110: F-Name | F110: # of Hits | H110: =SUM(J110:AA110) -> 0 | I110: Hits
F111: # of PA | H111: =SUM(J111:AA111) -> 0 | I111: PA
D112: f | F112: Avg | H112: =IF(H109=0,"",H110/H109) ->  | I112: Avg | J112: =IF(J109="","",J110/J109) -> 
B113: =$D$1 -> Ghetto Bombers | D113: TEAM | F113: # of AB's | H113: =SUM(J113:AA113) -> 187 | I113: AB's | J113: =IF(SUM(J109,J105,J101,J97,J93,J89,J85,J81,J77,J73,J69,J65,J61,J57,J53,J49,J45,J41,J37,J33,J29,J25,J21,J17,J13)=0,"",SUM(J13,J17,J21,J25,J29,J33,J37,J41,J45,J49,J53,J57,J61,J65,J69,J73,J77,J81,J85,J89,J93,J97,J101,J105,J109)) -> 50 | K113: 44 | L113: 39 | M113: 54
D114: Summary | F114: # of Hits | H114: =SUM(J114:AA114) -> 110 | I114: Hits | J114: =IF(SUM(J110,J106,J102,J98,J94,J90,J86,J82,J78,J74,J70,J66,J62,J58,J54,J50,J46,J42,J38,J34,J30,J26,J22,J18,J14)=0,"",SUM(J14,J18,J22,J26,J30,J34,J38,J42,J46,J50,J54,J58,J62,J66,J70,J74,J78,J82,J86,J90,J94,J98,J102,J106,J110)) -> 27 | K114: 25 | L114: 21 | M114: 37
F115: Avg | H115: =IF(H113=0,"N/A",H114/H113) -> 0.5882352941 | I115: Avg | J115: =IF(J113="","",J114/J113) -> 0.54 | K115: 0.5681818182 | L115: 0.5384615385 | M115: 0.6851851852

Sheet Thunder Ducks
C1: Team Name | D1: Thunder Ducks | I1: Score | J1: 22 | K1: 10 | L1: 21 | M1: 0
I2: Opponents Score | J2: 21 | K2: 16 | L2: 8 | M2: 7
D3: Wins | F3: =SUM(J6:AA6) -> 2 | I3: W or L | J3: =IF(SUM(J1,J2)=0,"",IF(J1<J2,"L","W")) -> W | K3: L | L3: W | M3: L | Q3: =IF(SUM(Q1,Q2)=0,"",IF(Q1<Q2,"L","W")) -> 
D4: Losses | F4: =SUM(J7:AA7) -> 2 | H4: Forfeit | I4: FW or FL | M4: FL
E5: games played excluding Forfeit Wins | J5: =IF(J3="","",IF(J4="FW","",1)) -> 1 | K5: 1 | L5: 1 | M5: 1 | Q5: =IF(Q3="","",IF(Q4="FW","",1)) -> 
H6: =IF(H4="w",1,"") ->  | I6: win | J6: =IF(J3="w",1,"") -> 1 | L6: 1 | Q6: =IF(Q3="w",1,"") -> 
H7: =IF(H4="l",1,"") ->  | I7: loss | J7: =IF(J3="l",1,"") ->  | K7: 1 | M7: 1 | Q7: =IF(Q3="l",1,"") -> 
D8: Games Played Excluding Forfeit Wins | F8: =SUM(J5:AA5) -> 4 | H8: Opponents Team Name | J8: Bad Pithes | K8: Ghetto Bombers | L8: BCBC | M8: Bad Pitches
D9: League Run Diff | F9: =SUM(J9:AA9) -> 0 | I9: Game Run Diff | K9: =IF(K1="","",K1-K2) -> -6 | L9: 13 | M9: -7 | R9: =IF(R1="","",R1-R2) -> 
D10: Team Batting Avg | F10: =$H$115 -> 0.5413533835 | I10: Game Date | J10: 2023-08-10 | K10: 2023-08-17 | L10: 2023-08-24 | M10: 2023-08-31 | N10: 2023-09-07
H12: STATS | J12: 1 | K12: 2 | L12: 3 | M12: 4 | N12: 5 | O12: 6 | P12: 7 | Q12: 8 | R12: 9 | S12: 10 | T12: 11 | U12: 12 | V12: 13 | W12: 14 | X12: 15 | Y12: 16 | Z12: 17 | AA12: 18
A13: 1 | B13: =$D$1 -> Thunder Ducks | C13: L-Name | D13: Steve | F13: # of AB's | H13: =SUM(J13:AA13) -> 15 | I13: AB's | J13: 6 | K13: 4 | L13: 5
C14: F-Name | D14: Hart | F14: # of Hits | H14: =SUM(J14:AA14) -> 11 | I14: Hits | J14: 3 | K14: 4 | L14: 4
F15: # of PA | H15: =SUM(J15:AA15) -> 16 | I15: PA | J15: 7 | K15: 4 | L15: 5
D16: m | F16: Avg | H16: =IF(H13=0,"",(H14/H13)) -> 0.7333333333 | I16: Avg | J16: =IF(J13="","",J14/J13) -> 0.5 | K16: 1 | L16: 0.8 | Q16: =IF(Q13="","",Q14/Q13) -> 
A17: 2 | B17: =$D$1 -> Thunder Ducks | C17: L-Name | D17: Josie | F17: # of AB's | H17: =SUM(J17:AA17) -> 12 | I17: AB's | J17: 5 | K17: 4 | L17: 3
C18: F-Name | D18: Harris | F18: # of Hits | H18: =SUM(J18:AA18) -> 4 | I18: Hits | J18: 1 | K18: 1 | L18: 2
F19: # of PA | H19: =SUM(J19:AA19) -> 14 | I19: PA | J19: 6 | K19: 4 | L19: 4
D20: f | F20: Avg | H20: =IF(H17=0,"",H18/H17) -> 0.3333333333 | I20: Avg | J20: =IF(J17="","",J18/J17) -> 0.2 | K20: 0.25 | L20: 0.6666666667 | Q20: =IF(Q17="","",Q18/Q17) -> 
A21: 3 | B21: =$D$1 -> Thunder Ducks | C21: L-Name | D21: Logan | F21: # of AB's | H21: =SUM(J21:AA21) -> 15 | I21: AB's | J21: 6 | K21: 4 | L21: 5
C22: F-Name | D22: Bateman | F22: # of Hits | H22: =SUM(J22:AA22) -> 9 | I22: Hits | J22: 3 | K22: 3 | L22: 3
F23: # of PA | H23: =SUM(J23:AA23) -> 15 | I23: PA | J23: 6 | K23: 4 | L23: 5
D24: m | F24: Avg | H24: =IF(H21=0,"",H22/H21) -> 0.6 | I24: Avg | J24: =IF(J21="","",J22/J21) -> 0.5 | K24: 0.75 | L24: 0.6 | Q24: =IF(Q21="","",Q22/Q21) -> 
A25: 4 | B25: =$D$1 -> Thunder Ducks | C25: L-Name | D25: Jennie | F25: # of AB's | H25: =SUM(J25:AA25) -> 13 | I25: AB's | J25: 5 | K25: 4 | L25: 4
C26: F-Name | D26: Anderson | F26: # of Hits | H26: =SUM(J26:AA26) -> 6 | I26: Hits | J26: 3 | K26: 1 | L26: 2
F27: # of PA | H27: =SUM(J27:AA27) -> 15 | I27: PA | J27: 6 | K27: 4 | L27: 5
D28: f | F28: Avg | H28: =IF(H25=0,"",H26/H25) -> 0.4615384615 | I28: Avg | J28: =IF(J25="","",J26/J25) -> 0.6 | K28: 0.25 | L28: 0.5 | Q28: =IF(Q25="","",Q26/Q25) -> 
A29: 5 | B29: =$D$1 -> Thunder Ducks | C29: L-Name | D29: Kyle | F29: # of AB's | H29: =SUM(J29:AA29) -> 9 | I29: AB's | J29: 5 | K29: 4
C30: F-Name | D30: O'Bryant | F30: # of Hits | H30: =SUM(J30:AA30) -> 8 | I30: Hits | J30: 5 | K30: 3
F31: # of PA | H31: =SUM(J31:AA31) -> 10 | I31: PA | J31: 6 | K31: 4
D32: m | F32: Avg | H32: =IF(H29=0,"",H30/H29) -> 0.8888888889 | I32: Avg | J32: =IF(J29="","",J30/J29) -> 1 | K32: 0.75 | Q32: =IF(Q29="","",Q30/Q29) -> 
A33: 6 | B33: =$D$1 -> Thunder Ducks | C33: L-Name | D33: Emily | F33: # of AB's | H33: =SUM(J33:AA33) -> 6 | I33: AB's | J33: 6
C34: F-Name | D34: Ross | F34: # of Hits | H34: =SUM(J34:AA34) -> 3 | I34: Hits | J34: 3
F35: # of PA | H35: =SUM(J35:AA35) -> 6 | I35: PA | J35: 6
D36: f | F36: Avg | H36: =IF(H33=0,"",H34/H33) -> 0.5 | I36: Avg | J36: =IF(J33="","",J34/J33) -> 0.5 | Q36: =IF(Q33="","",Q34/Q33) -> 
A37: 7 | B37: =$D$1 -> Thunder Ducks | C37: L-Name | D37: Russ | F37: # of AB's | H37: =SUM(J37:AA37) -> 14 | I37: AB's | J37: 5 | K37: 4 | L37: 5
C38: F-Name | D38: Collins | F38: # of Hits | H38: =SUM(J38:AA38) -> 9 | I38: Hits | J38: 4 | K38: 3 | L38: 2
F39: # of PA | H39: =SUM(J39:AA39) -> 15 | I39: PA | J39: 6 | K39: 4 | L39: 5
D40: m | F40: Avg | H40: =IF(H37=0,"",H38/H37) -> 0.6428571429 | I40: Avg | J40: =IF(J37="","",J38/J37) -> 0.8 | K40: 0.75 | L40: 0.4 | Q40: =IF(Q37="","",Q38/Q37) -> 
A41: 8 | B41: =$D$1 -> Thunder Ducks | C41: L-Name | D41: Annie | F41: # of AB's | H41: =SUM(J41:AA41) -> 11 | I41: AB's | J41: 6 | L41: 5
C42: B | D42: Brady | F42: # of Hits | H42: =SUM(J42:AA42) -> 8 | I42: Hits | J42: 4 | L42: 4
F43: # of PA | H43: =SUM(J43:AA43) -> 11 | I43: PA | J43: 6 | L43: 5
D44: f | F44: Avg | H44: =IF(H41=0,"",H42/H41) -> 0.7272727273 | I44: Avg | J44: =IF(J41="","",J42/J41) -> 0.6666666667 | L44: 0.8 | Q44: =IF(Q41="","",Q42/Q41) -> 
A45: 9 | B45: =$D$1 -> Thunder Ducks | C45: L-Name | D45: Adam | F45: # of AB's | H45: =SUM(J45:AA45) -> 3 | I45: AB's | J45: 3
C46: F-Name | D46: Thorne | F46: # of Hits | H46: =SUM(J46:AA46) -> 1 | I46: Hits | J46: 1
F47: # of PA | H47: =SUM(J47:AA47) -> 6 | I47: PA | J47: 6
D48: m | F48: Avg | H48: =IF(H45=0,"",H46/H45) -> 0.3333333333 | I48: Avg | J48: =IF(J45="","",J46/J45) -> 0.3333333333 | Q48: =IF(Q45="","",Q46/Q45) -> 
A49: 10 | B49: =$D$1 -> Thunder Ducks | C49: L-Name | D49: Ashley | F49: # of AB's | H49: =SUM(J49:AA49) -> 6 | I49: AB's | J49: 6
C50: F-Name | D50: Hall | F50: # of Hits | H50: =SUM(J50:AA50) -> 4 | I50: Hits | J50: 4
F51: # of PA | H51: =SUM(J51:AA51) -> 6 | I51: PA | J51: 6
D52: f | F52: Avg | H52: =IF(H49=0,"",H50/H49) -> 0.6666666667 | I52: Avg | J52: =IF(J49="","",J50/J49) -> 0.6666666667 | Q52: =IF(Q49="","",Q50/Q49) -> 
A53: 11 | B53: =$D$1 -> Thunder Ducks | C53: L-Name | D53: Kat | F53: # of AB's | H53: =SUM(J53:AA53) -> 8 | I53: AB's | K53: 4 | L53: 4
C54: F-Name | D54: Tiffany | F54: # of Hits | H54: =SUM(J54:AA54) -> 2 | I54: Hits | K54: 1 | L54: 1
F55: # of PA | H55: =SUM(J55:AA55) -> 8 | I55: PA | K55: 4 | L55: 4
D56: f | F56: Avg | H56: =IF(H53=0,"",H54/H53) -> 0.25 | I56: Avg | J56: =IF(J53="","",J54/J53) ->  | K56: 0.25 | L56: 0.25 | Q56: =IF(Q53="","",Q54/Q53) -> 
A57: 12 | B57: =$D$1 -> Thunder Ducks | C57: L-Name | D57: Megan | F57: # of AB's | H57: =SUM(J57:AA57) -> 4 | I57: AB's | K57: 4
C58: F-Name | D58: Goodman | F58: # of Hits | H58: =SUM(J58:AA58) -> 0 | I58: Hits | K58: 0
F59: # of PA | H59: =SUM(J59:AA59) -> 4 | I59: PA | K59: 4
D60: f | F60: Avg | H60: =IF(H57=0,"",H58/H57) -> 0 | I60: Avg | J60: =IF(J57="","",J58/J57) ->  | K60: 0 | Q60: =IF(Q57="","",Q58/Q57) -> 
A61: 13 | B61: =$D$1 -> Thunder Ducks | C61: L-Name | D61: Spencer | F61: # of AB's | H61: =SUM(J61:AA61) -> 7 | I61: AB's | K61: 3 | L61: 4
C62: F-Name | D62: Hille | F62: # of Hits | H62: =SUM(J62:AA62) -> 4 | I62: Hits | K62: 1 | L62: 3
F63: # of PA | H63: =SUM(J63:AA63) -> 7 | I63: PA | K63: 3 | L63: 4
D64: m | F64: Avg | H64: =IF(H61=0,"",H62/H61) -> 0.5714285714 | I64: Avg | J64: =IF(J61="","",J62/J61) ->  | K64: 0.3333333333 | L64: 0.75 | Q64: =IF(Q61="","",Q62/Q61) -> 
A65: 14 | B65: =$D$1 -> Thunder Ducks | C65: L-Name | D65: Lindsay | F65: # of AB's | H65: =SUM(J65:AA65) -> 2 | I65: AB's | K65: 2
C66: F-Name | D66: Pennington | F66: # of Hits | H66: =SUM(J66:AA66) -> 0 | I66: Hits | K66: 0
F67: # of PA | H67: =SUM(J67:AA67) -> 3 | I67: PA | K67: 3
D68: f | F68: Avg | H68: =IF(H65=0,"",H66/H65) -> 0 | I68: Avg | J68: =IF(J65="","",J66/J65) ->  | K68: 0 | Q68: =IF(Q65="","",Q66/Q65) -> 
A69: 15 | B69: =$D$1 -> Thunder Ducks | C69: L-Name | D69: John | F69: # of AB's | H69: =SUM(J69:AA69) -> 4 | I69: AB's | L69: 4
C70: F-Name | D70: Campbell | F70: # of Hits | H70: =SUM(J70:AA70) -> 2 | I70: Hits | L70: 2
F71: # of PA | H71: =SUM(J71:AA71) -> 4 | I71: PA | L71: 4
D72: m | F72: Avg | H72: =IF(H69=0,"",H70/H69) -> 0.5 | I72: Avg | J72: =IF(J69="","",J70/J69) ->  | L72: 0.5 | Q72: =IF(Q69="","",Q70/Q69) -> 
A73: 16 | B73: =$D$1 -> Thunder Ducks | C73: L-Name | D73: Paige | F73: # of AB's | H73: =SUM(J73:AA73) -> 4 | I73: AB's | L73: 4
C74: F-Name | D74: Jackman | F74: # of Hits | H74: =SUM(J74:AA74) -> 1 | I74: Hits | L74: 1
F75: # of PA | H75: =SUM(J75:AA75) -> 4 | I75: PA | L75: 4
D76: f | F76: Avg | H76: =IF(H73=0,"",H74/H73) -> 0.25 | I76: Avg | J76: =IF(J73="","",J74/J73) ->  | L76: 0.25 | Q76: =IF(Q73="","",Q74/Q73) ->  | X76: =IF(X73="","",X74/X73) ->  | Y76: =IF(Y73="","",Y74/Y73) ->  | Z76: =IF(Z73="","",Z74/Z73) ->  | AA76: =IF(AA73="","",AA74/AA73) -> 
A77: 17 | B77: =$D$1 -> Thunder Ducks | C77: L-Name | F77: # of AB's | H77: =SUM(J77:AA77) -> 0 | I77: AB's
C78: F-Name | F78: # of Hits | H78: =SUM(J78:AA78) -> 0 | I78: Hits
F79: # of PA | H79: =SUM(J79:AA79) -> 0 | I79: PA
D80: m | F80: Avg | H80: =IF(H77=0,"",H78/H77) ->  | I80: Avg | J80: =IF(J77="","",J78/J77) ->  | Q80: =IF(Q77="","",Q78/Q77) -> 
A81: 18 | B81: =$D$1 -> Thunder Ducks | C81: L-Name | F81: # of AB's | H81: =SUM(J81:AA81) -> 0 | I81: AB's
C82: F-Name | F82: # of Hits | H82: =SUM(J82:AA82) -> 0 | I82: Hits
F83: # of PA | H83: =SUM(J83:AA83) -> 0 | I83: PA
D84: f | F84: Avg | H84: =IF(H81=0,"",H82/H81) ->  | I84: Avg | J84: =IF(J81="","",J82/J81) ->  | Q84: =IF(Q81="","",Q82/Q81) -> 
A85: 19 | B85: =$D$1 -> Thunder Ducks | C85: L-Name | F85: # of AB's | H85: =SUM(J85:AA85) -> 0 | I85: AB's
C86: F-Name | F86: # of Hits | H86: =SUM(J86:AA86) -> 0 | I86: Hits
F87: # of PA | H87: =SUM(J87:AA87) -> 0 | I87: PA
D88: f | F88: Avg | H88: =IF(H85=0,"",H86/H85) ->  | I88: Avg | J88: =IF(J85="","",J86/J85) ->  | Q88: =IF(Q85="","",Q86/Q85) -> 
A89: 20 | B89: =$D$1 -> Thunder Ducks | C89: L-Name | F89: # of AB's | H89: =SUM(J89:AA89) -> 0 | I89: AB's
C90: F-Name | F90: # of Hits | H90: =SUM(J90:AA90) -> 0 | I90: Hits
F91: # of PA | H91: =SUM(J91:AA91) -> 0 | I91: PA
D92: f | F92: Avg | H92: =IF(H89=0,"",H90/H89) ->  | I92: Avg | J92: =IF(J89="","",J90/J89) ->  | Q92: =IF(Q89="","",Q90/Q89) -> 
A93: 21 | B93: =$D$1 -> Thunder Ducks | C93: L-Name | F93: # of AB's | H93: =SUM(J93:AA93) -> 0 | I93: AB's
C94: F-Name | F94: # of Hits | H94: =SUM(J94:AA94) -> 0 | I94: Hits
F95: # of PA | H95: =SUM(J95:AA95) -> 0 | I95: PA
D96: f | F96: Avg | H96: =IF(H93=0,"",H94/H93) ->  | I96: Avg | J96: =IF(J93="","",J94/J93) ->  | Q96: =IF(Q93="","",Q94/Q93) -> 
A97: 22 | B97: =$D$1 -> Thunder Ducks | C97: L-Name | F97: # of AB's | H97: =SUM(J97:AA97) -> 0 | I97: AB's
C98: F-Name | F98: # of Hits | H98: =SUM(J98:AA98) -> 0 | I98: Hits
F99: # of PA | H99: =SUM(J99:AA99) -> 0 | I99: PA
D100: f | F100: Avg | H100: =IF(H97=0,"",H98/H97) ->  | I100: Avg | J100: =IF(J97="","",J98/J97) ->  | Q100: =IF(Q97="","",Q98/Q97) -> 
A101: 23 | B101: =$D$1 -> Thunder Ducks | C101: L-Name | F101: # of AB's | H101: =SUM(J101:AA101) -> 0 | I101: AB's
C102: F-Name | F102: # of Hits | H102: =SUM(J102:AA102) -> 0 | I102: Hits
F103: # of PA | H103: =SUM(J103:AA103) -> 0 | I103: PA
D104: f | F104: Avg | H104: =IF(H101=0,"",H102/H101) ->  | I104: Avg | J104: =IF(J101="","",J102/J101) ->  | Q104: =IF(Q101="","",Q102/Q101) -> 
A105: 24 | B105: =$D$1 -> Thunder Ducks | C105: L-Name | F105: # of AB's | H105: =SUM(J105:AA105) -> 0 | I105: AB's
C106: F-Name | F106: # of Hits | H106: =SUM(J106:AA106) -> 0 | I106: Hits
F107: # of PA | H107: =SUM(J107:AA107) -> 0 | I107: PA
D108: f | F108: Avg | H108: =IF(H105=0,"",H106/H105) ->  | I108: Avg | J108: =IF(J105="","",J106/J105) ->  | Q108: =IF(Q105="","",Q106/Q105) -> 
A109: 25 | B109: =$D$1 -> Thunder Ducks | C109: L-Name | F109: # of AB's | H109: =SUM(J109:AA109) -> 0 | I109: AB's
C110: F-Name | F110: # of Hits | H110: =SUM(J110:AA110) -> 0 | I110: Hits
F111: # of PA | H111: =SUM(J111:AA111) -> 0 | I111: PA
D112: f | F112: Avg | H112: =IF(H109=0,"",H110/H109) ->  | I112: Avg | J112: =IF(J109="","",J110/J109) ->  | Q112: =IF(Q109="","",Q110/Q109) -> 
B113: =$D$1 -> Thunder Ducks | D113: TEAM | F113: # of AB's | H113: =SUM(J113:AA113) -> 133 | I113: AB's | J113: =IF(SUM(J109,J105,J101,J97,J93,J89,J85,J81,J77,J73,J69,J65,J61,J57,J53,J49,J45,J41,J37,J33,J29,J25,J21,J17,J13)=0,"",SUM(J13,J17,J21,J25,J29,J33,J37,J41,J45,J49,J53,J57,J61,J65,J69,J73,J77,J81,J85,J89,J93,J97,J101,J105,J109)) -> 53 | K113: 37 | L113: 43 | Q113: =IF(SUM(Q109,Q105,Q101,Q97,Q93,Q89,Q85,Q81,Q77,Q73,Q69,Q65,Q61,Q57,Q53,Q49,Q45,Q41,Q37,Q33,Q29,Q25,Q21,Q17,Q13)=0,"",SUM(Q13,Q17,Q21,Q25,Q29,Q33,Q37,Q41,Q45,Q49,Q53,Q57,Q61,Q65,Q69,Q73,Q77,Q81,Q85,Q89,Q93,Q97,Q101,Q105,Q109)) -> 
D114: Summary | F114: # of Hits | H114: =SUM(J114:AA114) -> 72 | I114: Hits | J114: =IF(SUM(J110,J106,J102,J98,J94,J90,J86,J82,J78,J74,J70,J66,J62,J58,J54,J50,J46,J42,J38,J34,J30,J26,J22,J18,J14)=0,"",SUM(J14,J18,J22,J26,J30,J34,J38,J42,J46,J50,J54,J58,J62,J66,J70,J74,J78,J82,J86,J90,J94,J98,J102,J106,J110)) -> 31 | K114: 17 | L114: 24 | Q114: =IF(SUM(Q110,Q106,Q102,Q98,Q94,Q90,Q86,Q82,Q78,Q74,Q70,Q66,Q62,Q58,Q54,Q50,Q46,Q42,Q38,Q34,Q30,Q26,Q22,Q18,Q14)=0,"",SUM(Q14,Q18,Q22,Q26,Q30,Q34,Q38,Q42,Q46,Q50,Q54,Q58,Q62,Q66,Q70,Q74,Q78,Q82,Q86,Q90,Q94,Q98,Q102,Q106,Q110)) -> 
F115: Avg | H115: =IF(H113=0,"N/A",H114/H113) -> 0.5413533835 | I115: Avg | J115: =IF(J113="","",J114/J113) -> 0.5849056604 | K115: 0.4594594595 | L115: 0.5581395349 | Q115: =IF(Q113="","",Q114/Q113) -> 

Sheet X Team
C1: Team Name | D1: X Team | I1: Score | J1: 0 | K1: 0 | L1: 0 | M1: 0 | N1: 0 | O1: 0 | P1: 0
I2: Opponents Score | J2: 8 | K2: 8 | L2: 8 | M2: 8 | N2: 8 | O2: 8 | P2: 8
D3: Wins | F3: =SUM(J6:AA6) -> 0 | I3: W or L | J3: =IF(SUM(J1,J2)=0,"",IF(J1<J2,"L","W")) -> L | K3: L | L3: L | M3: L | N3: L | O3: L | P3: L
D4: Losses | F4: =SUM(J7:AA7) -> 7 | H4: Forfeit | I4: FW or FL
E5: games played excluding Forfeit Wins | J5: =IF(J3="","",IF(J4="FW","",1)) -> 1 | K5: 1 | L5: 1 | M5: 1 | N5: 1 | O5: 1 | P5: 1
H6: =IF(H4="w",1,"") ->  | I6: win | J6: =IF(J3="w",1,"") -> 
H7: =IF(H4="l",1,"") ->  | I7: loss | J7: =IF(J3="l",1,"") -> 1 | K7: 1 | L7: 1 | M7: 1 | N7: 1 | O7: 1 | P7: 1
D8: Games Played Excluding Forfeit Wins | F8: =SUM(J5:AA5) -> 7 | H8: Opponents Team Name
D9: League Run Diff | F9: =SUM(J9:AA9) -> -56 | I9: Game Run Diff | J9: =IF(J1="","",J1-J2) -> -8 | K9: -8 | L9: -8 | M9: -8 | N9: -8 | O9: -8 | P9: -8
D10: Team Batting Avg | F10: =$H$115 -> 0 | I10: Game Date | J10: 2023-08-10
H12: STATS | J12: 1 | K12: 2 | L12: 3 | M12: 4 | N12: 5 | O12: 6 | P12: 7 | Q12: 8 | R12: 9 | S12: 10 | T12: 11 | U12: 12 | V12: 13 | W12: 14 | X12: 15 | Y12: 16 | Z12: 17 | AA12: 18
A13: 1 | B13: =$D$1 -> X Team | C13: L-Name | D13: Jake | F13: # of AB's | H13: =SUM(J13:AA13) -> 63 | I13: AB's | J13: 9 | K13: 9 | L13: 9 | M13: 9 | N13: 9 | O13: 9 | P13: 9
C14: F-Name | D14: Reeves | F14: # of Hits | H14: =SUM(J14:AA14) -> 0 | I14: Hits | J14: 0 | K14: 0 | L14: 0 | M14: 0 | N14: 0 | O14: 0 | P14: 0
F15: # of PA | H15: =SUM(J15:AA15) -> 63 | I15: PA | J15: 9 | K15: 9 | L15: 9 | M15: 9 | N15: 9 | O15: 9 | P15: 9
D16: m | F16: Avg | H16: =IF(H13=0,"",(H14/H13)) -> 0 | I16: Avg | J16: =IF(J13="","",J14/J13) -> 0 | K16: 0 | L16: 0 | M16: 0 | N16: 0 | O16: 0 | P16: 0
A17: 2 | B17: =$D$1 -> X Team | C17: L-Name | D17: Paige | F17: # of AB's | H17: =SUM(J17:AA17) -> 63 | I17: AB's | J17: 9 | K17: 9 | L17: 9 | M17: 9 | N17: 9 | O17: 9 | P17: 9
C18: F-Name | D18: Jackman | F18: # of Hits | H18: =SUM(J18:AA18) -> 0 | I18: Hits | J18: 0 | K18: 0 | L18: 0 | M18: 0 | N18: 0 | O18: 0 | P18: 0
F19: # of PA | H19: =SUM(J19:AA19) -> 63 | I19: PA | J19: 9 | K19: 9 | L19: 9 | M19: 9 | N19: 9 | O19: 9 | P19: 9
D20: f | F20: Avg | H20: =IF(H17=0,"",H18/H17) -> 0 | I20: Avg | J20: =IF(J17="","",J18/J17) -> 0 | K20: 0 | L20: 0 | M20: 0 | N20: 0 | O20: 0 | P20: 0
A21: 3 | B21: =$D$1 -> X Team | C21: L-Name | D21: Jason | F21: # of AB's | H21: =SUM(J21:AA21) -> 63 | I21: AB's | J21: 9 | K21: 9 | L21: 9 | M21: 9 | N21: 9 | O21: 9 | P21: 9
C22: F-Name | D22: Reed | F22: # of Hits | H22: =SUM(J22:AA22) -> 0 | I22: Hits | J22: 0 | K22: 0 | L22: 0 | M22: 0 | N22: 0 | O22: 0 | P22: 0
F23: # of PA | H23: =SUM(J23:AA23) -> 63 | I23: Avg | J23: 9 | K23: 9 | L23: 9 | M23: 9 | N23: 9 | O23: 9 | P23: 9
D24: m | F24: Avg | H24: =IF(H21=0,"",H22/H21) -> 0 | I24: Avg | J24: =IF(J21="","",J22/J21) -> 0 | K24: 0 | L24: 0 | M24: 0 | N24: 0 | O24: 0 | P24: 0
A25: 4 | B25: =$D$1 -> X Team | C25: L-Name | D25: Chelsea | F25: # of AB's | H25: =SUM(J25:AA25) -> 63 | I25: AB's | J25: 9 | K25: 9 | L25: 9 | M25: 9 | N25: 9 | O25: 9 | P25: 9
C26: F-Name | D26: LdBaron | F26: # of Hits | H26: =SUM(J26:AA26) -> 0 | I26: Hits | J26: 0 | K26: 0 | L26: 0 | M26: 0 | N26: 0 | O26: 0 | P26: 0
F27: # of PA | H27: =SUM(J27:AA27) -> 63 | I27: PA | J27: 9 | K27: 9 | L27: 9 | M27: 9 | N27: 9 | O27: 9 | P27: 9
D28: f | F28: Avg | H28: =IF(H25=0,"",H26/H25) -> 0 | I28: Avg | J28: =IF(J25="","",J26/J25) -> 0 | K28: 0 | L28: 0 | M28: 0 | N28: 0 | O28: 0 | P28: 0
A29: 5 | B29: =$D$1 -> X Team | C29: L-Name | D29: Jeff | F29: # of AB's | H29: =SUM(J29:AA29) -> 63 | I29: AB's | J29: 9 | K29: 9 | L29: 9 | M29: 9 | N29: 9 | O29: 9 | P29: 9
C30: F-Name | D30: Peacock | F30: # of Hits | H30: =SUM(J30:AA30) -> 0 | I30: Hits | J30: 0 | K30: 0 | L30: 0 | M30: 0 | N30: 0 | O30: 0 | P30: 0
F31: # of PA | H31: =SUM(J31:AA31) -> 63 | I31: PA | J31: 9 | K31: 9 | L31: 9 | M31: 9 | N31: 9 | O31: 9 | P31: 9
D32: m | F32: Avg | H32: =IF(H29=0,"",H30/H29) -> 0 | I32: Avg | J32: =IF(J29="","",J30/J29) -> 0 | K32: 0 | L32: 0 | M32: 0 | N32: 0 | O32: 0 | P32: 0
A33: 6 | B33: =$D$1 -> X Team | C33: L-Name | D33: Jo | F33: # of AB's | H33: =SUM(J33:AA33) -> 63 | I33: AB's | J33: 9 | K33: 9 | L33: 9 | M33: 9 | N33: 9 | O33: 9 | P33: 9
C34: F-Name | D34: Cruz | F34: # of Hits | H34: =SUM(J34:AA34) -> 0 | I34: Hits | J34: 0 | K34: 0 | L34: 0 | M34: 0 | N34: 0 | O34: 0 | P34: 0
F35: # of PA | H35: =SUM(J35:AA35) -> 63 | I35: PA | J35: 9 | K35: 9 | L35: 9 | M35: 9 | N35: 9 | O35: 9 | P35: 9
D36: f | F36: Avg | H36: =IF(H33=0,"",H34/H33) -> 0 | I36: Avg | J36: =IF(J33="","",J34/J33) -> 0 | K36: 0 | L36: 0 | M36: 0 | N36: 0 | O36: 0 | P36: 0
A37: 7 | B37: =$D$1 -> X Team | C37: L-Name | D37: Chris | F37: # of AB's | H37: =SUM(J37:AA37) -> 63 | I37: AB's | J37: 9 | K37: 9 | L37: 9 | M37: 9 | N37: 9 | O37: 9 | P37: 9
C38: F-Name | D38: Teerlink | F38: # of Hits | H38: =SUM(J38:AA38) -> 0 | I38: Hits | J38: 0 | K38: 0 | L38: 0 | M38: 0 | N38: 0 | O38: 0 | P38: 0
F39: # of PA | H39: =SUM(J39:AA39) -> 63 | I39: PA | J39: 9 | K39: 9 | L39: 9 | M39: 9 | N39: 9 | O39: 9 | P39: 9
D40: m | F40: Avg | H40: =IF(H37=0,"",H38/H37) -> 0 | I40: Avg | J40: =IF(J37="","",J38/J37) -> 0 | K40: 0 | L40: 0 | M40: 0 | N40: 0 | O40: 0 | P40: 0
A41: 8 | B41: =$D$1 -> X Team | C41: L-Name | D41: Cassi | F41: # of AB's | H41: =SUM(J41:AA41) -> 63 | I41: AB's | J41: 9 | K41: 9 | L41: 9 | M41: 9 | N41: 9 | O41: 9 | P41: 9
C42: F-Name | D42: Kendzior | F42: # of Hits | H42: =SUM(J42:AA42) -> 0 | I42: Hits | J42: 0 | K42: 0 | L42: 0 | M42: 0 | N42: 0 | O42: 0 | P42: 0
F43: # of PA | H43: =SUM(J43:AA43) -> 63 | I43: PA | J43: 9 | K43: 9 | L43: 9 | M43: 9 | N43: 9 | O43: 9 | P43: 9
D44: f | F44: Avg | H44: =IF(H41=0,"",H42/H41) -> 0 | I44: Avg | J44: =IF(J41="","",J42/J41) -> 0 | K44: 0 | L44: 0 | M44: 0 | N44: 0 | O44: 0 | P44: 0
A45: 9 | B45: =$D$1 -> X Team | C45: L-Name | D45: Tyler (TJ) | F45: # of AB's | H45: =SUM(J45:AA45) -> 63 | I45: AB's | J45: 9 | K45: 9 | L45: 9 | M45: 9 | N45: 9 | O45: 9 | P45: 9
C46: F-Name | D46: Gossard | F46: # of Hits | H46: =SUM(J46:AA46) -> 0 | I46: Hits | J46: 0 | K46: 0 | L46: 0 | M46: 0 | N46: 0 | O46: 0 | P46: 0
F47: # of PA | H47: =SUM(J47:AA47) -> 63 | I47: PA | J47: 9 | K47: 9 | L47: 9 | M47: 9 | N47: 9 | O47: 9 | P47: 9
D48: m | F48: Avg | H48: =IF(H45=0,"",H46/H45) -> 0 | I48: Avg | J48: =IF(J45="","",J46/J45) -> 0 | K48: 0 | L48: 0 | M48: 0 | N48: 0 | O48: 0 | P48: 0
A49: 10 | B49: =$D$1 -> X Team | C49: L-Name | D49: Shae Lee | F49: # of AB's | H49: =SUM(J49:AA49) -> 63 | I49: AB's | J49: 9 | K49: 9 | L49: 9 | M49: 9 | N49: 9 | O49: 9 | P49: 9
C50: F-Name | D50: Pearson | F50: # of Hits | H50: =SUM(J50:AA50) -> 0 | I50: Hits | J50: 0 | K50: 0 | L50: 0 | M50: 0 | N50: 0 | O50: 0 | P50: 0
F51: # of PA | H51: =SUM(J51:AA51) -> 63 | I51: PA | J51: 9 | K51: 9 | L51: 9 | M51: 9 | N51: 9 | O51: 9 | P51: 9
D52: f | F52: Avg | H52: =IF(H49=0,"",H50/H49) -> 0 | I52: Avg | J52: =IF(J49="","",J50/J49) -> 0 | K52: 0 | L52: 0 | M52: 0 | N52: 0 | O52: 0 | P52: 0
A53: 11 | B53: =$D$1 -> X Team | C53: L-Name | D53: Jo | F53: # of AB's | H53: =SUM(J53:AA53) -> 63 | I53: AB's | J53: 9 | K53: 9 | L53: 9 | M53: 9 | N53: 9 | O53: 9 | P53: 9
C54: F-Name | D54: Blake | F54: # of Hits | H54: =SUM(J54:AA54) -> 0 | I54: Hits | J54: 0 | K54: 0 | L54: 0 | M54: 0 | N54: 0 | O54: 0 | P54: 0
F55: # of PA | H55: =SUM(J55:AA55) -> 63 | I55: PA | J55: 9 | K55: 9 | L55: 9 | M55: 9 | N55: 9 | O55: 9 | P55: 9
D56: f | F56: Avg | H56: =IF(H53=0,"",H54/H53) -> 0 | I56: Avg | J56: =IF(J53="","",J54/J53) -> 0 | L56: 0 | M56: 0 | N56: 0 | O56: 0 | P56: 0
A57: 12 | B57: =$D$1 -> X Team | C57: L-Name | D57: Kenyon | F57: # of AB's | H57: =SUM(J57:AA57) -> 63 | I57: AB's | J57: 9 | K57: 9 | L57: 9 | M57: 9 | N57: 9 | O57: 9 | P57: 9
C58: F-Name | D58: Kawa | F58: # of Hits | H58: =SUM(J58:AA58) -> 0 | I58: Hits | J58: 0 | K58: 0 | L58: 0 | M58: 0 | N58: 0 | O58: 0 | P58: 0
F59: # of PA | H59: =SUM(J59:AA59) -> 63 | I59: PA | J59: 9 | K59: 9 | L59: 9 | M59: 9 | N59: 9 | O59: 9 | P59: 9
D60: m | F60: Avg | H60: =IF(H57=0,"",H58/H57) -> 0 | I60: Avg | J60: =IF(J57="","",J58/J57) -> 0 | K60: 0 | L60: 0 | M60: 0 | N60: 0 | O60: 0 | P60: 0
A61: 13 | B61: =$D$1 -> X Team | C61: L-Name | D61: Amanda | F61: # of AB's | H61: =SUM(J61:AA61) -> 63 | I61: AB's | J61: 9 | K61: 9 | L61: 9 | M61: 9 | N61: 9 | O61: 9 | P61: 9
C62: F-Name | D62: Kenzior | F62: # of Hits | H62: =SUM(J62:AA62) -> 0 | I62: Hits | J62: 0 | K62: 0 | L62: 0 | M62: 0 | N62: 0 | O62: 0 | P62: 0
F63: # of PA | H63: =SUM(J63:AA63) -> 63 | I63: PA | J63: 9 | K63: 9 | L63: 9 | M63: 9 | N63: 9 | O63: 9 | P63: 9
D64: f | F64: Avg | H64: =IF(H61=0,"",H62/H61) -> 0 | I64: Avg | J64: =IF(J61="","",J62/J61) -> 0 | K64: 0 | L64: 0 | M64: 0 | N64: 0 | O64: 0 | P64: 0
A65: 14 | B65: =$D$1 -> X Team | C65: L-Name | F65: # of AB's | H65: =SUM(J65:AA65) -> 0 | I65: AB's
C66: F-Name | F66: # of Hits | H66: =SUM(J66:AA66) -> 0 | I66: Hits
F67: # of PA | H67: =SUM(J67:AA67) -> 0 | I67: PA
D68: f | F68: Avg | H68: =IF(H65=0,"",H66/H65) ->  | I68: Avg | J68: =IF(J65="","",J66/J65) -> 
A69: 15 | B69: =$D$1 -> X Team | C69: L-Name | F69: # of AB's | H69: =SUM(J69:AA69) -> 0 | I69: AB's
C70: F-Name | F70: # of Hits | H70: =SUM(J70:AA70) -> 0 | I70: Hits
F71: # of PA | H71: =SUM(J71:AA71) -> 0 | I71: PA
D72: f | F72: Avg | H72: =IF(H69=0,"",H70/H69) ->  | I72: Avg | J72: =IF(J69="","",J70/J69) -> 
A73: 16 | B73: =$D$1 -> X Team | C73: L-Name | F73: # of AB's | H73: =SUM(J73:AA73) -> 0 | I73: AB's
C74: F-Name | F74: # of Hits | H74: =SUM(J74:AA74) -> 0 | I74: Hits
F75: # of PA | H75: =SUM(J75:AA75) -> 0 | I75: PA
D76: f | F76: Avg | H76: =IF(H73=0,"",H74/H73) ->  | I76: Avg | J76: =IF(J73="","",J74/J73) -> 
A77: 17 | B77: =$D$1 -> X Team | C77: L-Name | F77: # of AB's | H77: =SUM(J77:AA77) -> 0 | I77: AB's
C78: F-Name | F78: # of Hits | H78: =SUM(J78:AA78) -> 0 | I78: Hits
F79: # of PA | H79: =SUM(J79:AA79) -> 0 | I79: PA
D80: f | F80: Avg | H80: =IF(H77=0,"",H78/H77) ->  | I80: Avg | J80: =IF(J77="","",J78/J77) -> 
A81: 18 | B81: =$D$1 -> X Team | C81: L-Name | F81: # of AB's | H81: =SUM(J81:AA81) -> 0 | I81: AB's
C82: F-Name | F82: # of Hits | H82: =SUM(J82:AA82) -> 0 | I82: Hits
F83: # of PA | H83: =SUM(J83:AA83) -> 0 | I83: PA
D84: f | F84: Avg | H84: =IF(H81=0,"",H82/H81) ->  | I84: Avg | J84: =IF(J81="","",J82/J81) -> 
A85: 19 | B85: =$D$1 -> X Team | C85: L-Name | F85: # of AB's | H85: =SUM(J85:AA85) -> 0 | I85: AB's
C86: F-Name | F86: # of Hits | H86: =SUM(J86:AA86) -> 0 | I86: Hits
F87: # of PA | H87: =SUM(J87:AA87) -> 0 | I87: PA
D88: m | F88: Avg | H88: =IF(H85=0,"",H86/H85) ->  | I88: Avg | J88: =IF(J85="","",J86/J85) -> 
A89: 20 | B89: =$D$1 -> X Team | C89: L-Name | F89: # of AB's | H89: =SUM(J89:AA89) -> 0 | I89: AB's
C90: F-Name | F90: # of Hits | H90: =SUM(J90:AA90) -> 0 | I90: Hits
F91: # of PA | H91: =SUM(J91:AA91) -> 0 | I91: PA
D92: f | F92: Avg | H92: =IF(H89=0,"",H90/H89) ->  | I92: Avg | J92: =IF(J89="","",J90/J89) -> 
A93: 21 | B93: =$D$1 -> X Team | C93: L-Name | F93: # of AB's | H93: =SUM(J93:AA93) -> 0 | I93: AB's
C94: F-Name | F94: # of Hits | H94: =SUM(J94:AA94) -> 0 | I94: Hits
F95: # of PA | H95: =SUM(J95:AA95) -> 0 | I95: PA
D96: m | F96: Avg | H96: =IF(H93=0,"",H94/H93) ->  | I96: Avg | J96: =IF(J93="","",J94/J93) -> 
A97: 22 | B97: =$D$1 -> X Team | C97: L-Name | F97: # of AB's | H97: =SUM(J97:AA97) -> 0 | I97: AB's
C98: F-Name | F98: # of Hits | H98: =SUM(J98:AA98) -> 0 | I98: Hits
F99: # of PA | H99: =SUM(J99:AA99) -> 0 | I99: PA
D100: f | F100: Avg | H100: =IF(H97=0,"",H98/H97) ->  | I100: Avg | J100: =IF(J97="","",J98/J97) -> 
A101: 23 | B101: =$D$1 -> X Team | C101: L-Name | F101: # of AB's | H101: =SUM(J101:AA101) -> 0 | I101: AB's
C102: F-Name | F102: # of Hits | H102: =SUM(J102:AA102) -> 0 | I102: Hits
F103: # of PA | H103: =SUM(J103:AA103) -> 0 | I103: PA
D104: f | F104: Avg | H104: =IF(H101=0,"",H102/H101) ->  | I104: Avg | J104: =IF(J101="","",J102/J101) -> 
A105: 24 | B105: =$D$1 -> X Team | C105: L-Name | F105: # of AB's | H105: =SUM(J105:AA105) -> 0 | I105: AB's
C106: F-Name | F106: # of Hits | H106: =SUM(J106:AA106) -> 0 | I106: Hits
F107: # of PA | H107: =SUM(J107:AA107) -> 0 | I107: PA
D108: f | F108: Avg | H108: =IF(H105=0,"",H106/H105) ->  | I108: Avg | J108: =IF(J105="","",J106/J105) -> 
A109: 25 | B109: =$D$1 -> X Team | C109: L-Name | F109: # of AB's | H109: =SUM(J109:AA109) -> 0 | I109: AB's
C110: F-Name | F110: # of Hits | H110: =SUM(J110:AA110) -> 0 | I110: Hits
F111: # of PA | H111: =SUM(J111:AA111) -> 0 | I111: PA
D112: f | F112: Avg | H112: =IF(H109=0,"",H110/H109) ->  | I112: Avg | J112: =IF(J109="","",J110/J109) -> 
B113: =$D$1 -> X Team | D113: TEAM | F113: # of AB's | H113: =SUM(J113:AA113) -> 819 | I113: AB's | J113: =IF(SUM(J109,J105,J101,J97,J93,J89,J85,J81,J77,J73,J69,J65,J61,J57,J53,J49,J45,J41,J37,J33,J29,J25,J21,J17,J13)=0,"",SUM(J13,J17,J21,J25,J29,J33,J37,J41,J45,J49,J53,J57,J61,J65,J69,J73,J77,J81,J85,J89,J93,J97,J101,J105,J109)) -> 117 | K113: 117 | L113: 117 | M113: 117 | N113: 117 | O113: 117 | P113: 117
D114: Summary | F114: # of Hits | H114: =SUM(J114:AA114) -> 0 | I114: Hits | J114: =IF(SUM(J110,J106,J102,J98,J94,J90,J86,J82,J78,J74,J70,J66,J62,J58,J54,J50,J46,J42,J38,J34,J30,J26,J22,J18,J14)=0,"",SUM(J14,J18,J22,J26,J30,J34,J38,J42,J46,J50,J54,J58,J62,J66,J70,J74,J78,J82,J86,J90,J94,J98,J102,J106,J110)) -> 
F115: Avg | H115: =IF(H113=0,"N/A",H114/H113) -> 0 | I115: Avg | J115: =IF(J113="","",J114/J113) -> 

Sheet XXX Team
C1: Team Name | D1: XXX Team | I1: Score | J1: 0 | K1: 0 | L1: 0 | M1: 0 | N1: 0 | O1: 0 | P1: 0
I2: Opponents Score | J2: 8 | K2: 8 | L2: 8 | M2: 8 | N2: 8 | O2: 8 | P2: 8
D3: Wins | F3: =SUM(J6:AA6) -> 0 | I3: W or L | J3: =IF(SUM(J1,J2)=0,"",IF(J1<J2,"L","W")) -> L | K3: L | L3: L | M3: L | N3: L | O3: L | P3: L
D4: Losses | F4: =SUM(J7:AA7) -> 7 | H4: Forfeit | I4: FW or FL
E5: games played excluding Forfeit Wins | J5: =IF(J3="","",IF(J4="FW","",1)) -> 1 | K5: 1 | L5: 1 | M5: 1 | N5: 1 | O5: 1 | P5: 1
H6: =IF(H4="w",1,"") ->  | I6: win | J6: =IF(J3="w",1,"") -> 
H7: =IF(H4="l",1,"") ->  | I7: loss | J7: =IF(J3="l",1,"") -> 1 | K7: 1 | L7: 1 | M7: 1 | N7: 1 | O7: 1 | P7: 1
D8: Games Played Excluding Forfeit Wins | F8: =SUM(J5:AA5) -> 7 | H8: Opponents Team Name
D9: League Run Diff | F9: =SUM(J9:AA9) -> -56 | I9: Game Run Diff | J9: =IF(J1="","",J1-J2) -> -8 | K9: -8 | L9: -8 | M9: -8 | N9: -8 | O9: -8 | P9: -8
D10: Team Batting Avg | F10: =$H$115 -> 0 | I10: Game Date | J10: 2023-08-10
H12: STATS | J12: 1 | K12: 2 | L12: 3 | M12: 4 | N12: 5 | O12: 6 | P12: 7 | Q12: 8 | R12: 9 | S12: 10 | T12: 11 | U12: 12 | V12: 13 | W12: 14 | X12: 15 | Y12: 16 | Z12: 17 | AA12: 18
A13: 1 | B13: =$D$1 -> XXX Team | C13: L-Name | D13: Jordan | F13: # of AB's | H13: =SUM(J13:AA13) -> 63 | I13: AB's | J13: 9 | K13: 9 | L13: 9 | M13: 9 | N13: 9 | O13: 9 | P13: 9
C14: F-Name | D14: Hall | F14: # of Hits | H14: =SUM(J14:AA14) -> 0 | I14: Hits | J14: 0 | K14: 0 | L14: 0 | M14: 0 | N14: 0 | O14: 0 | P14: 0
F15: # of PA | H15: =SUM(J15:AA15) -> 63 | I15: PA | J15: 9 | K15: 9 | L15: 9 | M15: 9 | N15: 9 | O15: 9 | P15: 9
D16: m | F16: Avg | H16: =IF(H13=0,"",(H14/H13)) -> 0 | I16: Avg | J16: =IF(J13="","",J14/J13) -> 0 | K16: 0 | L16: 0 | M16: 0 | N16: 0 | O16: 0 | P16: 0
A17: 2 | B17: =$D$1 -> XXX Team | C17: L-Name | D17: Jenn | F17: # of AB's | H17: =SUM(J17:AA17) -> 63 | I17: AB's | J17: 9 | K17: 9 | L17: 9 | M17: 9 | N17: 9 | O17: 9 | P17: 9
C18: F-Name | D18: Hall | F18: # of Hits | H18: =SUM(J18:AA18) -> 0 | I18: Hits | J18: 0 | K18: 0 | L18: 0 | M18: 0 | N18: 0 | O18: 0 | P18: 0
F19: # of PA | H19: =SUM(J19:AA19) -> 63 | I19: PA | J19: 9 | K19: 9 | L19: 9 | M19: 9 | N19: 9 | O19: 9 | P19: 9
D20: f | F20: Avg | H20: =IF(H17=0,"",H18/H17) -> 0 | I20: Avg | J20: =IF(J17="","",J18/J17) -> 0 | K20: 0 | L20: 0 | M20: 0 | N20: 0 | O20: 0 | P20: 0
A21: 3 | B21: =$D$1 -> XXX Team | C21: L-Name | D21: Corey | F21: # of AB's | H21: =SUM(J21:AA21) -> 63 | I21: AB's | J21: 9 | K21: 9 | L21: 9 | M21: 9 | N21: 9 | O21: 9 | P21: 9
C22: F-Name | D22: Murphy | F22: # of Hits | H22: =SUM(J22:AA22) -> 0 | I22: Hits | J22: 0 | K22: 0 | L22: 0 | M22: 0 | N22: 0 | O22: 0 | P22: 0
F23: # of PA | H23: =SUM(J23:AA23) -> 63 | I23: PA | J23: 9 | K23: 9 | L23: 9 | M23: 9 | N23: 9 | O23: 9 | P23: 9
D24: m | F24: Avg | H24: =IF(H21=0,"",H22/H21) -> 0 | I24: Avg | J24: =IF(J21="","",J22/J21) -> 0 | K24: 0 | L24: 0 | M24: 0 | N24: 0 | O24: 0 | P24: 0
A25: 4 | B25: =$D$1 -> XXX Team | C25: L-Name | D25: Gimmie | F25: # of AB's | H25: =SUM(J25:AA25) -> 63 | I25: AB's | J25: 9 | K25: 9 | L25: 9 | M25: 9 | N25: 9 | O25: 9 | P25: 9
C26: F-Name | D26: Murphy | F26: # of Hits | H26: =SUM(J26:AA26) -> 0 | I26: Hits | J26: 0 | K26: 0 | L26: 0 | M26: 0 | N26: 0 | O26: 0 | P26: 0
F27: # of PA | H27: =SUM(J27:AA27) -> 63 | I27: PA | J27: 9 | K27: 9 | L27: 9 | M27: 9 | N27: 9 | O27: 9 | P27: 9
D28: f | F28: Avg | H28: =IF(H25=0,"",H26/H25) -> 0 | I28: Avg | J28: =IF(J25="","",J26/J25) -> 0 | K28: =IF(K25="","",K26/K25) -> 0 | L28: 0 | M28: 0 | N28: 0 | O28: 0 | P28: 0
A29: 5 | B29: =$D$1 -> XXX Team | C29: L-Name | D29: Sam | F29: # of AB's | H29: =SUM(J29:AA29) -> 63 | I29: AB's | J29: 9 | K29: 9 | L29: 9 | M29: 9 | N29: 9 | O29: 9 | P29: 9
C30: F-Name | D30: Cook | F30: # of Hits | H30: =SUM(J30:AA30) -> 0 | I30: Hits | J30: 0 | K30: 0 | L30: 0 | M30: 0 | N30: 0 | O30: 0 | P30: 0
F31: # of PA | H31: =SUM(J31:AA31) -> 63 | I31: PA | J31: 9 | K31: 9 | L31: 9 | M31: 9 | N31: 9 | O31: 9 | P31: 9
D32: m | F32: Avg | H32: =IF(H29=0,"",H30/H29) -> 0 | I32: Avg | J32: =IF(J29="","",J30/J29) -> 0 | K32: =IF(K29="","",K30/K29) -> 0 | L32: 0 | M32: 0 | N32: 0 | O32: 0 | P32: 0
A33: 6 | B33: =$D$1 -> XXX Team | C33: L-Name | D33: Deanndra | F33: # of AB's | H33: =SUM(J33:AA33) -> 63 | I33: AB's | J33: 9 | K33: 9 | L33: 9 | M33: 9 | N33: 9 | O33: 9 | P33: 9
C34: F-Name | D34: Billie | F34: # of Hits | H34: =SUM(J34:AA34) -> 0 | I34: Hits | J34: 0 | K34: 0 | L34: 0 | M34: 0 | N34: 0 | O34: 0 | P34: 0
F35: # of PA | H35: =SUM(J35:AA35) -> 63 | I35: PA | J35: 9 | K35: 9 | L35: 9 | M35: 9 | N35: 9 | O35: 9 | P35: 9
D36: f | F36: Avg | H36: =IF(H33=0,"",H34/H33) -> 0 | I36: Avg | J36: =IF(J33="","",J34/J33) -> 0 | K36: =IF(K33="","",K34/K33) -> 0 | L36: 0 | M36: 0 | N36: 0 | O36: 0 | P36: 0
A37: 7 | B37: =$D$1 -> XXX Team | C37: L-Name | D37: Ike | F37: # of AB's | H37: =SUM(J37:AA37) -> 63 | I37: AB's | J37: 9 | K37: 9 | L37: 9 | M37: 9 | N37: 9 | O37: 9 | P37: 9
C38: F-Name | D38: Whiting | F38: # of Hits | H38: =SUM(J38:AA38) -> 0 | I38: Hits | J38: 0 | K38: 0 | L38: 0 | M38: 0 | N38: 0 | O38: 0 | P38: 0
F39: # of PA | H39: =SUM(J39:AA39) -> 63 | I39: PA | J39: 9 | K39: 9 | L39: 9 | M39: 9 | N39: 9 | O39: 9 | P39: 9
D40: m | F40: Avg | H40: =IF(H37=0,"",H38/H37) -> 0 | I40: Avg | J40: =IF(J37="","",J38/J37) -> 0 | K40: =IF(K37="","",K38/K37) -> 0 | L40: 0 | M40: 0 | N40: 0 | O40: 0 | P40: 0
A41: 8 | B41: =$D$1 -> XXX Team | C41: L-Name | D41: Emma | F41: # of AB's | H41: =SUM(J41:AA41) -> 63 | I41: AB's | J41: 9 | K41: 9 | L41: 9 | M41: 9 | N41: 9 | O41: 9 | P41: 9
C42: F-Name | D42: Hall | F42: # of Hits | H42: =SUM(J42:AA42) -> 0 | I42: Hits | J42: 0 | K42: 0 | L42: 0 | M42: 0 | N42: 0 | O42: 0 | P42: 0
F43: # of PA | H43: =SUM(J43:AA43) -> 63 | I43: PA | J43: 9 | K43: 9 | L43: 9 | M43: 9 | N43: 9 | O43: 9 | P43: 9
D44: f | F44: Avg | H44: =IF(H41=0,"",H42/H41) -> 0 | I44: Avg | J44: =IF(J41="","",J42/J41) -> 0 | K44: =IF(K41="","",K42/K41) -> 0 | L44: 0 | M44: 0 | N44: 0 | O44: 0 | P44: 0
A45: 9 | B45: =$D$1 -> XXX Team | C45: L-Name | D45: Josh | F45: # of AB's | H45: =SUM(J45:AA45) -> 63 | I45: AB's | J45: 9 | K45: 9 | L45: 9 | M45: 9 | N45: 9 | O45: 9 | P45: 9
C46: F-Name | D46: Schmidt | F46: # of Hits | H46: =SUM(J46:AA46) -> 0 | I46: Hits | J46: 0 | K46: 0 | L46: 0 | M46: 0 | N46: 0 | O46: 0 | P46: 0
F47: # of PA | H47: =SUM(J47:AA47) -> 63 | I47: PA | J47: 9 | K47: 9 | L47: 9 | M47: 9 | N47: 9 | O47: 9 | P47: 9
D48: m | F48: Avg | H48: =IF(H45=0,"",H46/H45) -> 0 | I48: Avg | J48: =IF(J45="","",J46/J45) -> 0 | K48: =IF(K45="","",K46/K45) -> 0 | L48: 0 | M48: 0 | N48: 0 | O48: 0 | P48: 0
A49: 10 | B49: =$D$1 -> XXX Team | C49: L-Name | D49: Chandra | F49: # of AB's | H49: =SUM(J49:AA49) -> 63 | I49: AB's | J49: 9 | K49: 9 | L49: 9 | M49: 9 | N49: 9 | O49: 9 | P49: 9
C50: F-Name | D50: Cruz | F50: # of Hits | H50: =SUM(J50:AA50) -> 0 | I50: Hits | J50: 0 | K50: 0 | L50: 0 | M50: 0 | N50: 0 | O50: 0 | P50: 0
F51: # of PA | H51: =SUM(J51:AA51) -> 63 | I51: PA | J51: 9 | K51: 9 | L51: 9 | M51: 9 | N51: 9 | O51: 9 | P51: 9
D52: f | F52: Avg | H52: =IF(H49=0,"",H50/H49) -> 0 | I52: Avg | J52: =IF(J49="","",J50/J49) -> 0 | K52: 0 | L52: 0 | M52: 0 | N52: 0 | O52: 0 | P52: 0
A53: 11 | B53: =$D$1 -> XXX Team | C53: L-Name | D53: Josh | F53: # of AB's | H53: =SUM(J53:AA53) -> 63 | I53: AB's | J53: 9 | K53: 9 | L53: 9 | M53: 9 | N53: 9 | O53: 9 | P53: 9
C54: F-Name | D54: Anderson | F54: # of Hits | H54: =SUM(J54:AA54) -> 0 | I54: Hits | J54: 0 | K54: 0 | L54: 0 | M54: 0 | N54: 0 | O54: 0 | P54: 0
F55: # of PA | H55: =SUM(J55:AA55) -> 63 | I55: PA | J55: 9 | K55: 9 | L55: 9 | M55: 9 | N55: 9 | O55: 9 | P55: 9
D56: m | F56: Avg | H56: =IF(H53=0,"",H54/H53) -> 0 | I56: Avg | J56: =IF(J53="","",J54/J53) -> 0 | K56: 0 | L56: 0 | M56: 0 | N56: 0 | O56: 0 | P56: 0
A57: 12 | B57: =$D$1 -> XXX Team | C57: L-Name | D57: Anna | F57: # of AB's | H57: =SUM(J57:AA57) -> 63 | I57: AB's | J57: 9 | K57: 9 | L57: 9 | M57: 9 | N57: 9 | O57: 9 | P57: 9
C58: F-Name | D58: Hall | F58: # of Hits | H58: =SUM(J58:AA58) -> 0 | I58: Hits | J58: 0 | K58: 0 | L58: 0 | M58: 0 | N58: 0 | O58: 0 | P58: 0
F59: # of PA | H59: =SUM(J59:AA59) -> 63 | I59: PA | J59: 9 | K59: 9 | L59: 9 | M59: 9 | N59: 9 | O59: 9 | P59: 9
D60: f | F60: Avg | H60: =IF(H57=0,"",H58/H57) -> 0 | I60: Avg | J60: =IF(J57="","",J58/J57) -> 0 | L60: 0 | M60: 0 | N60: 0 | O60: 0 | P60: 0
A61: 13 | B61: =$D$1 -> XXX Team | C61: L-Name | D61: Dan | F61: # of AB's | H61: =SUM(J61:AA61) -> 63 | I61: AB's | J61: 9 | K61: 9 | L61: 9 | M61: 9 | N61: 9 | O61: 9 | P61: 9
C62: F-Name | D62: Flynn | F62: # of Hits | H62: =SUM(J62:AA62) -> 0 | I62: Hits | J62: 0 | K62: 0 | L62: 0 | M62: 0 | N62: 0 | O62: 0 | P62: 0
F63: # of PA | H63: =SUM(J63:AA63) -> 63 | I63: PA | J63: 9 | K63: 9 | L63: 9 | M63: 9 | N63: 9 | O63: 9 | P63: 9
D64: m | F64: Avg | H64: =IF(H61=0,"",H62/H61) -> 0 | I64: Avg | J64: =IF(J61="","",J62/J61) -> 0 | K64: 0 | L64: 0 | M64: 0 | N64: 0 | O64: 0 | P64: 0
A65: 14 | B65: =$D$1 -> XXX Team | C65: L-Name | D65: J C | F65: # of AB's | H65: =SUM(J65:AA65) -> 63 | I65: AB's | J65: 9 | K65: 9 | L65: 9 | M65: 9 | N65: 9 | O65: 9 | P65: 9
C66: F-Name | D66: Garcia | F66: # of Hits | H66: =SUM(J66:AA66) -> 0 | I66: Hits | J66: 0 | K66: 0 | L66: 0 | M66: 0 | N66: 0 | O66: 0 | P66: 0
F67: # of PA | H67: =SUM(J67:AA67) -> 63 | I67: PA | J67: 9 | K67: 9 | L67: 9 | M67: 9 | N67: 9 | O67: 9 | P67: 9
D68: m | F68: Avg | H68: =IF(H65=0,"",H66/H65) -> 0 | I68: Avg | J68: =IF(J65="","",J66/J65) -> 0 | K68: 0 | L68: 0 | M68: 0 | N68: 0 | O68: 0 | P68: 0
A69: 15 | B69: =$D$1 -> XXX Team | C69: L-Name | F69: # of AB's | H69: =SUM(J69:AA69) -> 0 | I69: AB's
C70: F-Name | F70: # of Hits | H70: =SUM(J70:AA70) -> 0 | I70: Hits
F71: # of PA | H71: =SUM(J71:AA71) -> 0 | I71: PA
D72: m | F72: Avg | H72: =IF(H69=0,"",H70/H69) ->  | I72: Avg | J72: =IF(J69="","",J70/J69) -> 
A73: 16 | B73: =$D$1 -> XXX Team | C73: L-Name | F73: # of AB's | H73: =SUM(J73:AA73) -> 0 | I73: AB's
C74: F-Name | F74: # of Hits | H74: =SUM(J74:AA74) -> 0 | I74: Hits
F75: # of PA | H75: =SUM(J75:AA75) -> 0 | I75: PA
D76: f | F76: Avg | H76: =IF(H73=0,"",H74/H73) ->  | I76: Avg | J76: =IF(J73="","",J74/J73) -> 
A77: 17 | B77: =$D$1 -> XXX Team | C77: L-Name | F77: # of AB's | H77: =SUM(J77:AA77) -> 0 | I77: AB's
C78: F-Name | F78: # of Hits | H78: =SUM(J78:AA78) -> 0 | I78: Hits
F79: # of PA | H79: =SUM(J79:AA79) -> 0 | I79: PA
D80: f | F80: Avg | H80: =IF(H77=0,"",H78/H77) ->  | I80: Avg | J80: =IF(J77="","",J78/J77) -> 
A81: 18 | B81: =$D$1 -> XXX Team | C81: L-Name | F81: # of AB's | H81: =SUM(J81:AA81) -> 0 | I81: AB's
C82: F-Name | F82: # of Hits | H82: =SUM(J82:AA82) -> 0 | I82: Hits
F83: # of PA | H83: =SUM(J83:AA83) -> 0 | I83: PA
D84: f | F84: Avg | H84: =IF(H81=0,"",H82/H81) ->  | I84: Avg | J84: =IF(J81="","",J82/J81) -> 
A85: 19 | B85: =$D$1 -> XXX Team | C85: L-Name | F85: # of AB's | H85: =SUM(J85:AA85) -> 0 | I85: AB's
C86: F-Name | F86: # of Hits | H86: =SUM(J86:AA86) -> 0 | I86: Hits
F87: # of PA | H87: =SUM(J87:AA87) -> 0 | I87: PA
D88: f | F88: Avg | H88: =IF(H85=0,"",H86/H85) ->  | I88: Avg | J88: =IF(J85="","",J86/J85) -> 
A89: 20 | B89: =$D$1 -> XXX Team | C89: L-Name | F89: # of AB's | H89: =SUM(J89:AA89) -> 0 | I89: AB's
C90: F-Name | F90: # of Hits | H90: =SUM(J90:AA90) -> 0 | I90: Hits
F91: # of PA | H91: =SUM(J91:AA91) -> 0 | I91: PA
D92: f | F92: Avg | H92: =IF(H89=0,"",H90/H89) ->  | I92: Avg | J92: =IF(J89="","",J90/J89) -> 
A93: 21 | B93: =$D$1 -> XXX Team | C93: L-Name | F93: # of AB's | H93: =SUM(J93:AA93) -> 0 | I93: AB's
C94: F-Name | F94: # of Hits | H94: =SUM(J94:AA94) -> 0 | I94: Hits
F95: # of PA | H95: =SUM(J95:AA95) -> 0 | I95: PA
D96: f | F96: Avg | H96: =IF(H93=0,"",H94/H93) ->  | I96: Avg | J96: =IF(J93="","",J94/J93) -> 
A97: 22 | B97: =$D$1 -> XXX Team | C97: L-Name | F97: # of AB's | H97: =SUM(J97:AA97) -> 0 | I97: AB's
C98: F-Name | F98: # of Hits | H98: =SUM(J98:AA98) -> 0 | I98: Hits
F99: # of PA | H99: =SUM(J99:AA99) -> 0 | I99: PA
D100: f | F100: Avg | H100: =IF(H97=0,"",H98/H97) ->  | I100: Avg | J100: =IF(J97="","",J98/J97) -> 
A101: 23 | B101: =$D$1 -> XXX Team | C101: L-Name | F101: # of AB's | H101: =SUM(J101:AA101) -> 0 | I101: AB's
C102: F-Name | F102: # of Hits | H102: =SUM(J102:AA102) -> 0 | I102: Hits
F103: # of PA | H103: =SUM(J103:AA103) -> 0 | I103: PA
D104: f | F104: Avg | H104: =IF(H101=0,"",H102/H101) ->  | I104: Avg | J104: =IF(J101="","",J102/J101) -> 
A105: 24 | B105: =$D$1 -> XXX Team | C105: L-Name | F105: # of AB's | H105: =SUM(J105:AA105) -> 0 | I105: AB's
C106: F-Name | F106: # of Hits | H106: =SUM(J106:AA106) -> 0 | I106: Hits
F107: # of PA | H107: =SUM(J107:AA107) -> 0 | I107: PA
D108: f | F108: Avg | H108: =IF(H105=0,"",H106/H105) ->  | I108: Avg | J108: =IF(J105="","",J106/J105) -> 
A109: 25 | B109: =$D$1 -> XXX Team | C109: L-Name | F109: # of AB's | H109: =SUM(J109:AA109) -> 0 | I109: AB's
C110: F-Name | F110: # of Hits | H110: =SUM(J110:AA110) -> 0 | I110: Hits
F111: # of PA | H111: =SUM(J111:AA111) -> 0 | I111: PA
D112: f | F112: Avg | H112: =IF(H109=0,"",H110/H109) ->  | I112: Avg | J112: =IF(J109="","",J110/J109) -> 
B113: =$D$1 -> XXX Team | D113: TEAM | F113: # of AB's | H113: =SUM(J113:AA113) -> 882 | I113: AB's | J113: =IF(SUM(J109,J105,J101,J97,J93,J89,J85,J81,J77,J73,J69,J65,J61,J57,J53,J49,J45,J41,J37,J33,J29,J25,J21,J17,J13)=0,"",SUM(J13,J17,J21,J25,J29,J33,J37,J41,J45,J49,J53,J57,J61,J65,J69,J73,J77,J81,J85,J89,J93,J97,J101,J105,J109)) -> 126 | K113: 126 | L113: 126 | M113: 126 | N113: 126 | O113: 126 | P113: 126
D114: Summary | F114: # of Hits | H114: =SUM(J114:AA114) -> 0 | I114: Hits | J114: =IF(SUM(J110,J106,J102,J98,J94,J90,J86,J82,J78,J74,J70,J66,J62,J58,J54,J50,J46,J42,J38,J34,J30,J26,J22,J18,J14)=0,"",SUM(J14,J18,J22,J26,J30,J34,J38,J42,J46,J50,J54,J58,J62,J66,J70,J74,J78,J82,J86,J90,J94,J98,J102,J106,J110)) -> 
F115: Avg | H115: =IF(H113=0,"N/A",H114/H113) -> 0 | I115: Avg | J115: =IF(J113="","",J114/J113) -> 

Sheet YY Team
C1: Team Name | D1: YY Team | I1: Score | J1: 0 | K1: 0 | L1: 0 | M1: 0 | N1: 0 | O1: 0 | P1: 0
I2: Opponents Score | J2: 8 | K2: 8 | L2: 8 | M2: 8 | N2: 8 | O2: 8 | P2: 8
D3: Wins | F3: =SUM(J6:AA6) -> 0 | I3: W or L | J3: =IF(SUM(J1,J2)=0,"",IF(J1<J2,"L","W")) -> L | K3: L | L3: L | M3: L | N3: L | O3: L | P3: L
D4: Losses | F4: =SUM(J7:AA7) -> 7 | H4: Forfeit | I4: FW or FL
E5: games played excluding Forfeit Wins | J5: =IF(J3="","",IF(J4="FW","",1)) -> 1 | K5: 1 | L5: 1 | M5: 1 | N5: 1 | O5: 1 | P5: 1
H6: =IF(H4="w",1,"") ->  | I6: win | J6: =IF(J3="w",1,"") -> 
H7: =IF(H4="l",1,"") ->  | I7: loss | J7: =IF(J3="l",1,"") -> 1 | K7: 1 | L7: 1 | M7: 1 | N7: 1 | O7: 1 | P7: 1
D8: Games Played Excluding Forfeit Wins | F8: =SUM(J5:AA5) -> 7 | H8: Opponents Team Name
D9: League Run Diff | F9: =SUM(J9:AA9) -> -56 | I9: Game Run Diff | J9: =IF(J1="","",J1-J2) -> -8 | K9: -8 | L9: -8 | M9: -8 | N9: -8 | O9: -8 | P9: -8
D10: Team Batting Avg | F10: =$H$115 -> 0 | I10: Game Date | J10: 2023-08-10
H12: STATS | J12: 1 | K12: 2 | L12: 3 | M12: 4 | N12: 5 | O12: 6 | P12: 7 | Q12: 8 | R12: 9 | S12: 10 | T12: 11 | U12: 12 | V12: 13 | W12: 14 | X12: 15 | Y12: 16 | Z12: 17 | AA12: 18
A13: 1 | B13: =$D$1 -> YY Team | C13: L-Name | D13: Kyle | F13: # of AB's | H13: =SUM(J13:AA13) -> 63 | I13: AB's | J13: 9 | K13: 9 | L13: 9 | M13: 9 | N13: 9 | O13: 9 | P13: 9
C14: F-Name | D14: O'Bryant | F14: # of Hits | H14: =SUM(J14:AA14) -> 0 | I14: Hits | J14: 0 | K14: 0 | L14: 0 | M14: 0 | N14: 0 | O14: 0 | P14: 0
F15: # of PA | H15: =SUM(J15:AA15) -> 63 | I15: PA | J15: 9 | K15: 9 | L15: 9 | M15: 9 | N15: 9 | O15: 9 | P15: 9
D16: m | F16: Avg | H16: =IF(H13=0,"",(H14/H13)) -> 0 | I16: Avg | J16: =IF(J13="","",J14/J13) -> 0 | K16: 0 | L16: 0 | M16: 0 | N16: 0 | O16: 0 | P16: 0
A17: 2 | B17: =$D$1 -> YY Team | C17: L-Name | D17: Tasha | F17: # of AB's | H17: =SUM(J17:AA17) -> 63 | I17: AB's | J17: 9 | K17: 9 | L17: 9 | M17: 9 | N17: 9 | O17: 9 | P17: 9
C18: F-Name | D18: Arnold | F18: # of Hits | H18: =SUM(J18:AA18) -> 0 | I18: Hits | J18: 0 | K18: 0 | L18: 0 | M18: 0 | N18: 0 | O18: 0 | P18: 0
F19: # of PA | H19: =SUM(J19:AA19) -> 63 | I19: PA | J19: 9 | K19: 9 | L19: 9 | M19: 9 | N19: 9 | O19: 9 | P19: 9
D20: f | F20: Avg | H20: =IF(H17=0,"",H18/H17) -> 0 | I20: Avg | J20: =IF(J17="","",J18/J17) -> 0 | K20: 0 | L20: 0 | M20: 0 | N20: 0 | O20: 0 | P20: 0
A21: 3 | B21: =$D$1 -> YY Team | C21: L-Name | D21: Stephen | F21: # of AB's | H21: =SUM(J21:AA21) -> 63 | I21: AB's | J21: 9 | K21: 9 | L21: 9 | M21: 9 | N21: 9 | O21: 9 | P21: 9
C22: F-Name | D22: Hart | F22: # of Hits | H22: =SUM(J22:AA22) -> 0 | I22: Hits | J22: 0 | K22: 0 | L22: 0 | M22: 0 | N22: 0 | O22: 0 | P22: 0
F23: # of PA | H23: =SUM(J23:AA23) -> 63 | I23: PA | J23: 9 | K23: 9 | L23: 9 | M23: 9 | N23: 9 | O23: 9 | P23: 9
D24: m | F24: Avg | H24: =IF(H21=0,"",H22/H21) -> 0 | I24: Avg | J24: =IF(J21="","",J22/J21) -> 0 | K24: 0 | L24: 0 | M24: 0 | N24: 0 | O24: 0 | P24: 0
A25: 4 | B25: =$D$1 -> YY Team | C25: L-Name | D25: Josie | F25: # of AB's | H25: =SUM(J25:AA25) -> 63 | I25: AB's | J25: 9 | K25: 9 | L25: 9 | M25: 9 | N25: 9 | O25: 9 | P25: 9
C26: F-Name | D26: Harris | F26: # of Hits | H26: =SUM(J26:AA26) -> 0 | I26: Hits | J26: 0 | K26: 0 | L26: 0 | M26: 0 | N26: 0 | O26: 0 | P26: 0
F27: # of PA | H27: =SUM(J27:AA27) -> 63 | I27: PA | J27: 9 | K27: 9 | L27: 9 | M27: 9 | N27: 9 | O27: 9 | P27: 9
D28: f | F28: Avg | H28: =IF(H25=0,"",H26/H25) -> 0 | I28: Avg | J28: =IF(J25="","",J26/J25) -> 0 | K28: 0 | L28: 0 | M28: 0 | N28: 0 | O28: 0 | P28: 0
A29: 5 | B29: =$D$1 -> YY Team | C29: L-Name | D29: Logan | F29: # of AB's | H29: =SUM(J29:AA29) -> 63 | I29: AB's | J29: 9 | K29: 9 | L29: 9 | M29: 9 | N29: 9 | O29: 9 | P29: 9
C30: F-Name | D30: Bateman | F30: # of Hits | H30: =SUM(J30:AA30) -> 0 | I30: Hits | J30: 0 | K30: 0 | L30: 0 | M30: 0 | N30: 0 | O30: 0 | P30: 0
F31: # of PA | H31: =SUM(J31:AA31) -> 63 | I31: PA | J31: 9 | K31: 9 | L31: 9 | M31: 9 | N31: 9 | O31: 9 | P31: 9
D32: m | F32: Avg | H32: =IF(H29=0,"",H30/H29) -> 0 | I32: Avg | J32: =IF(J29="","",J30/J29) -> 0 | K32: 0 | L32: 0 | M32: 0 | N32: 0 | O32: 0 | P32: 0
A33: 6 | B33: =$D$1 -> YY Team | C33: L-Name | D33: Britt | F33: # of AB's | H33: =SUM(J33:AA33) -> 63 | I33: AB's | J33: 9 | K33: 9 | L33: 9 | M33: 9 | N33: 9 | O33: 9 | P33: 9
C34: F-Name | D34: Call | F34: # of Hits | H34: =SUM(J34:AA34) -> 0 | I34: Hits | J34: 0 | K34: 0 | L34: 0 | M34: 0 | N34: 0 | O34: 0 | P34: 0
F35: # of PA | H35: =SUM(J35:AA35) -> 63 | I35: PA | J35: 9 | K35: 9 | L35: 9 | M35: 9 | N35: 9 | O35: 9 | P35: 9
D36: f | F36: Avg | H36: =IF(H33=0,"",H34/H33) -> 0 | I36: Avg | J36: =IF(J33="","",J34/J33) -> 0 | K36: 0 | L36: 0 | M36: 0 | N36: 0 | O36: 0 | P36: 0
A37: 7 | B37: =$D$1 -> YY Team | C37: L-Name | D37: Russ | F37: # of AB's | H37: =SUM(J37:AA37) -> 63 | I37: AB's | J37: 9 | K37: 9 | L37: 9 | M37: 9 | N37: 9 | O37: 9 | P37: 9
C38: F-Name | D38: Collins | F38: # of Hits | H38: =SUM(J38:AA38) -> 0 | I38: Hits | J38: 0 | K38: 0 | L38: 0 | M38: 0 | N38: 0 | O38: 0 | P38: 0
F39: # of PA | H39: =SUM(J39:AA39) -> 63 | I39: PA | J39: 9 | K39: 9 | L39: 9 | M39: 9 | N39: 9 | O39: 9 | P39: 9
D40: m | F40: Avg | H40: =IF(H37=0,"",H38/H37) -> 0 | I40: Avg | J40: =IF(J37="","",J38/J37) -> 0 | K40: 0 | L40: 0 | M40: 0 | N40: 0 | O40: 0 | P40: 0
A41: 8 | B41: =$D$1 -> YY Team | C41: L-Name | D41: Lindsay | F41: # of AB's | H41: =SUM(J41:AA41) -> 63 | I41: AB's | J41: 9 | K41: 9 | L41: 9 | M41: 9 | N41: 9 | O41: 9 | P41: 9
C42: F-Name | D42: Pennington | F42: # of Hits | H42: =SUM(J42:AA42) -> 0 | I42: Hits | J42: 0 | K42: 0 | L42: 0 | M42: 0 | N42: 0 | O42: 0 | P42: 0
F43: # of PA | H43: =SUM(J43:AA43) -> 63 | I43: PA | J43: 9 | K43: 9 | L43: 9 | M43: 9 | N43: 9 | O43: 9 | P43: 9
D44: f | F44: Avg | H44: =IF(H41=0,"",H42/H41) -> 0 | I44: Avg | J44: =IF(J41="","",J42/J41) -> 0 | K44: 0 | L44: 0 | M44: 0 | N44: 0 | O44: 0 | P44: 0
A45: 9 | B45: =$D$1 -> YY Team | C45: L-Name | D45: John | F45: # of AB's | H45: =SUM(J45:AA45) -> 63 | I45: AB's | J45: 9 | K45: 9 | L45: 9 | M45: 9 | N45: 9 | O45: 9 | P45: 9
C46: F-Name | D46: Campbell | F46: # of Hits | H46: =SUM(J46:AA46) -> 0 | I46: Hits | J46: 0 | K46: 0 | L46: 0 | M46: 0 | N46: 0 | O46: 0 | P46: 0
F47: # of PA | H47: =SUM(J47:AA47) -> 63 | I47: PA | J47: 9 | K47: 9 | L47: 9 | M47: 9 | N47: 9 | O47: 9 | P47: 9
D48: m | F48: Avg | H48: =IF(H45=0,"",H46/H45) -> 0 | I48: Avg | J48: =IF(J45="","",J46/J45) -> 0 | K48: 0 | L48: 0 | M48: 0 | N48: 0 | O48: 0 | P48: 0
A49: 10 | B49: =$D$1 -> YY Team | C49: L-Name | D49: Taylor | F49: # of AB's | H49: =SUM(J49:AA49) -> 63 | I49: AB's | J49: 9 | K49: 9 | L49: 9 | M49: 9 | N49: 9 | O49: 9 | P49: 9
C50: F-Name | D50: McCallum | F50: # of Hits | H50: =SUM(J50:AA50) -> 0 | I50: Hits | J50: 0 | K50: 0 | L50: 0 | M50: 0 | N50: 0 | O50: 0 | P50: 0
F51: # of PA | H51: =SUM(J51:AA51) -> 63 | I51: PA | J51: 9 | K51: 9 | L51: 9 | M51: 9 | N51: 9 | O51: 9 | P51: 9
D52: f | F52: Avg | H52: =IF(H49=0,"",H50/H49) -> 0 | I52: Avg | J52: =IF(J49="","",J50/J49) -> 0 | K52: 0 | L52: 0 | M52: 0 | N52: 0 | O52: 0 | P52: 0
A53: 11 | B53: =$D$1 -> YY Team | C53: L-Name | D53: Jennie | F53: # of AB's | H53: =SUM(J53:AA53) -> 63 | I53: AB's | J53: 9 | K53: 9 | L53: 9 | M53: 9 | N53: 9 | O53: 9 | P53: 9
C54: F-Name | D54: Anderson | F54: # of Hits | H54: =SUM(J54:AA54) -> 0 | I54: Hits | J54: 0 | K54: 0 | L54: 0 | M54: 0 | N54: 0 | O54: 0 | P54: 0
F55: # of PA | H55: =SUM(J55:AA55) -> 63 | I55: PA | J55: 9 | K55: 9 | L55: 9 | M55: 9 | N55: 9 | O55: 9 | P55: 9
D56: f | F56: Avg | H56: =IF(H53=0,"",H54/H53) -> 0 | I56: Avg | J56: =IF(J53="","",J54/J53) -> 0 | L56: 0 | M56: 0 | N56: 0 | O56: 0 | P56: 0
A57: 12 | B57: =$D$1 -> YY Team | C57: L-Name | F57: # of AB's | H57: =SUM(J57:AA57) -> 0 | I57: AB's
C58: F-Name | F58: # of Hits | H58: =SUM(J58:AA58) -> 0 | I58: Hits
F59: # of PA | H59: =SUM(J59:AA59) -> 0 | I59: PA
D60: f | F60: Avg | H60: =IF(H57=0,"",H58/H57) ->  | I60: Avg | J60: =IF(J57="","",J58/J57) ->  | Q60: =IF(Q57="","",Q58/Q57) -> 
A61: 13 | B61: =$D$1 -> YY Team | C61: B | F61: # of AB's | H61: =SUM(J61:AA61) -> 0 | I61: AB's
C62: F-Name | F62: # of Hits | H62: =SUM(J62:AA62) -> 0 | I62: Hits
F63: # of PA | H63: =SUM(J63:AA63) -> 0 | I63: PA
D64: f | F64: Avg | H64: =IF(H61=0,"",H62/H61) ->  | I64: Avg | J64: =IF(J61="","",J62/J61) -> 
A65: 14 | B65: =$D$1 -> YY Team | C65: L-Name | F65: # of AB's | H65: =SUM(J65:AA65) -> 0 | I65: AB's
C66: F-Name | F66: # of Hits | H66: =SUM(J66:AA66) -> 0 | I66: Hits
F67: # of PA | H67: =SUM(J67:AA67) -> 0 | I67: PA
D68: f | F68: Avg | H68: =IF(H65=0,"",H66/H65) ->  | I68: Avg | J68: =IF(J65="","",J66/J65) -> 
A69: 15 | B69: =$D$1 -> YY Team | C69: L-Name | F69: # of AB's | H69: =SUM(J69:AA69) -> 0 | I69: AB's
C70: F-Name | F70: # of Hits | H70: =SUM(J70:AA70) -> 0 | I70: Hits
F71: # of PA | H71: =SUM(J71:AA71) -> 0 | I71: PA
D72: f | F72: Avg | H72: =IF(H69=0,"",H70/H69) ->  | I72: Avg | J72: =IF(J69="","",J70/J69) ->  | T72: =IF(T69="","",T70/T69) -> 
A73: 16 | B73: =$D$1 -> YY Team | C73: R | F73: # of AB's | H73: =SUM(J73:AA73) -> 0 | I73: AB's
C74: F-Name | F74: # of Hits | H74: =SUM(J74:AA74) -> 0 | I74: Hits
F75: # of PA | H75: =SUM(J75:AA75) -> 0 | I75: PA
D76: f | F76: Avg | H76: =IF(H73=0,"",H74/H73) ->  | I76: Avg | J76: =IF(J73="","",J74/J73) -> 
A77: 17 | B77: =$D$1 -> YY Team | C77: L-Name | F77: # of AB's | H77: =SUM(J77:AA77) -> 0 | I77: AB's
C78: F-Name | F78: # of Hits | H78: =SUM(J78:AA78) -> 0 | I78: Hits
F79: # of PA | H79: =SUM(J79:AA79) -> 0 | I79: PA
D80: f | F80: Avg | H80: =IF(H77=0,"",H78/H77) ->  | I80: Avg | J80: =IF(J77="","",J78/J77) -> 
A81: 18 | B81: =$D$1 -> YY Team | C81: L-Name | F81: # of AB's | H81: =SUM(J81:AA81) -> 0 | I81: AB's
C82: F-Name | F82: # of Hits | H82: =SUM(J82:AA82) -> 0 | I82: Hits
F83: # of PA | H83: =SUM(J83:AA83) -> 0 | I83: PA
D84: f | F84: Avg | H84: =IF(H81=0,"",H82/H81) ->  | I84: Avg | J84: =IF(J81="","",J82/J81) -> 
A85: 19 | B85: =$D$1 -> YY Team | C85: L-Name | F85: # of AB's | H85: =SUM(J85:AA85) -> 0 | I85: AB's
C86: F-Name | F86: # of Hits | H86: =SUM(J86:AA86) -> 0 | I86: Hits
F87: # of PA | H87: =SUM(J87:AA87) -> 0 | I87: PA
D88: f | F88: Avg | H88: =IF(H85=0,"",H86/H85) ->  | I88: Avg | J88: =IF(J85="","",J86/J85) -> 
A89: 20 | B89: =$D$1 -> YY Team | C89: L-Name | F89: # of AB's | H89: =SUM(J89:AA89) -> 0 | I89: AB's
C90: F-Name | F90: # of Hits | H90: =SUM(J90:AA90) -> 0 | I90: Hits
F91: # of PA | H91: =SUM(J91:AA91) -> 0 | I91: PA
D92: f | F92: Avg | H92: =IF(H89=0,"",H90/H89) ->  | I92: Avg | J92: =IF(J89="","",J90/J89) -> 
A93: 21 | B93: =$D$1 -> YY Team | C93: L-Name | F93: # of AB's | H93: =SUM(J93:AA93) -> 0 | I93: AB's
C94: F-Name | F94: # of Hits | H94: =SUM(J94:AA94) -> 0 | I94: Hits
F95: # of PA | H95: =SUM(J95:AA95) -> 0 | I95: PA
D96: f | F96: Avg | H96: =IF(H93=0,"",H94/H93) ->  | I96: Avg | J96: =IF(J93="","",J94/J93) -> 
A97: 22 | B97: =$D$1 -> YY Team | C97: L-Name | F97: # of AB's | H97: =SUM(J97:AA97) -> 0 | I97: AB's
C98: F-Name | F98: # of Hits | H98: =SUM(J98:AA98) -> 0 | I98: Hits
F99: # of PA | H99: =SUM(J99:AA99) -> 0 | I99: PA
D100: f | F100: Avg | H100: =IF(H97=0,"",H98/H97) ->  | I100: Avg | J100: =IF(J97="","",J98/J97) -> 
A101: 23 | B101: =$D$1 -> YY Team | C101: L-Name | F101: # of AB's | H101: =SUM(J101:AA101) -> 0 | I101: AB's
C102: F-Name | F102: # of Hits | H102: =SUM(J102:AA102) -> 0 | I102: Hits
F103: # of PA | H103: =SUM(J103:AA103) -> 0 | I103: PA
D104: f | F104: Avg | H104: =IF(H101=0,"",H102/H101) ->  | I104: Avg | J104: =IF(J101="","",J102/J101) -> 
A105: 24 | B105: =$D$1 -> YY Team | C105: L-Name | F105: # of AB's | H105: =SUM(J105:AA105) -> 0 | I105: AB's
C106: F-Name | F106: # of Hits | H106: =SUM(J106:AA106) -> 0 | I106: Hits
F107: # of PA | H107: =SUM(J107:AA107) -> 0 | I107: PA
D108: f | F108: Avg | H108: =IF(H105=0,"",H106/H105) ->  | I108: Avg | J108: =IF(J105="","",J106/J105) -> 
A109: 25 | B109: =$D$1 -> YY Team | C109: L-Name | F109: # of AB's | H109: =SUM(J109:AA109) -> 0 | I109: AB's
C110: F-Name | F110: # of Hits | H110: =SUM(J110:AA110) -> 0 | I110: Hits
F111: # of PA | H111: =SUM(J111:AA111) -> 0 | I111: PA
D112: f | F112: Avg | H112: =IF(H109=0,"",H110/H109) ->  | I112: Avg | J112: =IF(J109="","",J110/J109) -> 
B113: =$D$1 -> YY Team | D113: TEAM | F113: # of AB's | H113: =SUM(J113:AA113) -> 693 | I113: AB's | J113: =IF(SUM(J109,J105,J101,J97,J93,J89,J85,J81,J77,J73,J69,J65,J61,J57,J53,J49,J45,J41,J37,J33,J29,J25,J21,J17,J13)=0,"",SUM(J13,J17,J21,J25,J29,J33,J37,J41,J45,J49,J53,J57,J61,J65,J69,J73,J77,J81,J85,J89,J93,J97,J101,J105,J109)) -> 99 | K113: 99 | L113: 99 | M113: 99 | N113: 99 | O113: 99 | P113: 99
D114: Summary | F114: # of Hits | H114: =SUM(J114:AA114) -> 0 | I114: Hits | J114: =IF(SUM(J110,J106,J102,J98,J94,J90,J86,J82,J78,J74,J70,J66,J62,J58,J54,J50,J46,J42,J38,J34,J30,J26,J22,J18,J14)=0,"",SUM(J14,J18,J22,J26,J30,J34,J38,J42,J46,J50,J54,J58,J62,J66,J70,J74,J78,J82,J86,J90,J94,J98,J102,J106,J110)) -> 
F115: Avg | H115: =IF(H113=0,"N/A",H114/H113) -> 0 | I115: Avg | J115: =IF(J113="","",J114/J113) -> 

Sheet XX Team
C1: Team Name | D1: XX Team | I1: Score | J1: 0 | K1: 0 | L1: 0 | M1: 0 | N1: 0 | O1: 0
I2: Opponents Score | J2: 14 | K2: 14 | L2: 14 | M2: 14 | N2: 14 | O2: 14
D3: Wins | F3: =SUM(J6:AA6) -> 0 | I3: W or L | J3: =IF(SUM(J1,J2)=0,"",IF(J1<J2,"L","W")) -> L | K3: L | L3: L | M3: L | N3: L | O3: L
D4: Losses | F4: =SUM(J7:AA7) -> 6 | H4: Forfeit | I4: FW or FL
E5: games played excluding Forfeit Wins | J5: =IF(J3="","",IF(J4="FW","",1)) -> 1 | K5: 1 | L5: 1 | M5: 1 | N5: 1 | O5: 1
H6: =IF(H4="w",1,"") ->  | I6: win | J6: =IF(J3="w",1,"") -> 
H7: =IF(H4="l",1,"") ->  | I7: loss | J7: =IF(J3="l",1,"") -> 1 | K7: 1 | L7: 1 | M7: 1 | N7: 1 | O7: 1
D8: Games Played Excluding Forfeit Wins | F8: =SUM(J5:AA5) -> 6 | H8: Opponents Team Name
D9: League Run Diff | F9: =SUM(J9:AA9) -> -84 | I9: Game Run Diff | J9: =IF(J1="","",J1-J2) -> -14 | K9: -14 | L9: -14 | M9: -14 | N9: -14 | O9: -14
D10: Team Batting Avg | F10: =$H$115 -> 0 | I10: Game Date
H12: STATS | J12: 1 | K12: 2 | L12: 3 | M12: 4 | N12: 5 | O12: 6 | P12: 7 | Q12: 8 | R12: 9 | S12: 10 | T12: 11 | U12: 12 | V12: 13 | W12: 14 | X12: 15 | Y12: 16 | Z12: 17 | AA12: 18
A13: 1 | B13: =$D$1 -> XX Team | C13: L-Name | D13: Francis | F13: # of AB's | H13: =SUM(J13:AA13) -> 63 | I13: AB's | J13: 9 | K13: 9 | L13: 9 | M13: 9 | N13: 9 | O13: 9 | P13: 9
C14: F-Name | D14: Brown | F14: # of Hits | H14: =SUM(J14:AA14) -> 0 | I14: Hits | J14: 0 | K14: 0 | L14: 0 | M14: 0 | N14: 0 | O14: 0 | P14: 0
F15: # of PA | H15: =SUM(J15:AA15) -> 63 | I15: PA | J15: 9 | K15: 9 | L15: 9 | M15: 9 | N15: 9 | O15: 9 | P15: 9
D16: f | F16: Avg | H16: =IF(H13=0,"",(H14/H13)) -> 0 | I16: Avg | J16: =IF(J13="","",J14/J13) -> 0 | K16: 0 | L16: 0 | M16: 0 | N16: 0 | O16: 0 | P16: 0
A17: 2 | B17: =$D$1 -> XX Team | C17: L-Name | D17: Josh | F17: # of AB's | H17: =SUM(J17:AA17) -> 63 | I17: AB's | J17: 9 | K17: 9 | L17: 9 | M17: 9 | N17: 9 | O17: 9 | P17: 9
C18: F-Name | D18: Wright | F18: # of Hits | H18: =SUM(J18:AA18) -> 0 | I18: Hits | J18: 0 | K18: 0 | L18: 0 | M18: 0 | N18: 0 | O18: 0 | P18: 0
F19: # of PA | H19: =SUM(J19:AA19) -> 63 | I19: PA | J19: 9 | K19: 9 | L19: 9 | M19: 9 | N19: 9 | O19: 9 | P19: 9
D20: m | F20: Avg | H20: =IF(H17=0,"",H18/H17) -> 0 | I20: Avg | J20: =IF(J17="","",J18/J17) -> 0 | K20: 0 | L20: 0 | M20: 0 | N20: 0 | O20: 0 | P20: 0
A21: 3 | B21: =$D$1 -> XX Team | C21: L-Name | D21: Mary | F21: # of AB's | H21: =SUM(J21:AA21) -> 63 | I21: AB's | J21: 9 | K21: 9 | L21: 9 | M21: 9 | N21: 9 | O21: 9 | P21: 9
C22: F-Name | D22: Childs | F22: # of Hits | H22: =SUM(J22:AA22) -> 0 | I22: Hits | J22: 0 | K22: 0 | L22: 0 | M22: 0 | N22: 0 | O22: 0 | P22: 0
F23: # of PA | H23: =SUM(J23:AA23) -> 63 | I23: PA | J23: 9 | K23: 9 | L23: 9 | M23: 9 | N23: 9 | O23: 9 | P23: 9
D24: f | F24: Avg | H24: =IF(H21=0,"",H22/H21) -> 0 | I24: Avg | J24: =IF(J21="","",J22/J21) -> 0 | K24: 0 | L24: 0 | M24: 0 | N24: 0 | O24: 0 | P24: 0
A25: 4 | B25: =$D$1 -> XX Team | C25: L-Name | D25: Thomas | F25: # of AB's | H25: =SUM(J25:AA25) -> 63 | I25: AB's | J25: 9 | K25: 9 | L25: 9 | M25: 9 | N25: 9 | O25: 9 | P25: 9
C26: F-Name | D26: Rich | F26: # of Hits | H26: =SUM(J26:AA26) -> 0 | I26: Hits | J26: 0 | K26: 0 | L26: 0 | M26: 0 | N26: 0 | O26: 0 | P26: 0
F27: # of PA | H27: =SUM(J27:AA27) -> 63 | I27: PA | J27: 9 | K27: 9 | L27: 9 | M27: 9 | N27: 9 | O27: 9 | P27: 9
D28: m | F28: Avg | H28: =IF(H25=0,"",H26/H25) -> 0 | I28: Avg | J28: =IF(J25="","",J26/J25) -> 0 | K28: 0 | L28: 0 | M28: 0 | N28: 0 | O28: 0 | P28: 0
A29: 5 | B29: =$D$1 -> XX Team | C29: L-Name | D29: Toni | F29: # of AB's | H29: =SUM(J29:AA29) -> 63 | I29: AB's | J29: 9 | K29: 9 | L29: 9 | M29: 9 | N29: 9 | O29: 9 | P29: 9
C30: F-Name | D30: Wall | F30: # of Hits | H30: =SUM(J30:AA30) -> 0 | I30: Hits | J30: 0 | K30: 0 | L30: 0 | M30: 0 | N30: 0 | O30: 0 | P30: 0
F31: # of PA | H31: =SUM(J31:AA31) -> 63 | I31: PA | J31: 9 | K31: 9 | L31: 9 | M31: 9 | N31: 9 | O31: 9 | P31: 9
D32: f | F32: Avg | H32: =IF(H29=0,"",H30/H29) -> 0 | I32: Avg | J32: =IF(J29="","",J30/J29) -> 0 | K32: 0 | L32: 0 | M32: 0 | N32: 0 | O32: 0 | P32: 0
A33: 6 | B33: =$D$1 -> XX Team | C33: L-Name | D33: Ken | F33: # of AB's | H33: =SUM(J33:AA33) -> 63 | I33: AB's | J33: 9 | K33: 9 | L33: 9 | M33: 9 | N33: 9 | O33: 9 | P33: 9
C34: F-Name | D34: Hansen | F34: # of Hits | H34: =SUM(J34:AA34) -> 0 | I34: Hits | J34: 0 | K34: 0 | L34: 0 | M34: 0 | N34: 0 | O34: 0 | P34: 0
F35: # of PA | H35: =SUM(J35:AA35) -> 63 | I35: PA | J35: 9 | K35: 9 | L35: 9 | M35: 9 | N35: 9 | O35: 9 | P35: 9
D36: m | F36: Avg | H36: =IF(H33=0,"",H34/H33) -> 0 | I36: Avg | J36: =IF(J33="","",J34/J33) -> 0 | K36: 0 | L36: 0 | M36: 0 | N36: 0 | O36: 0 | P36: 0
A37: 7 | B37: =$D$1 -> XX Team | C37: L-Name | D37: Shela | F37: # of AB's | H37: =SUM(J37:AA37) -> 63 | I37: AB's | J37: 9 | K37: 9 | L37: 9 | M37: 9 | N37: 9 | O37: 9 | P37: 9
C38: F-Name | D38: Anderson | F38: # of Hits | H38: =SUM(J38:AA38) -> 0 | I38: Hits | J38: 0 | K38: 0 | L38: 0 | M38: 0 | N38: 0 | O38: 0 | P38: 0
F39: # of PA | H39: =SUM(J39:AA39) -> 63 | I39: PA | J39: 9 | K39: 9 | L39: 9 | M39: 9 | N39: 9 | O39: 9 | P39: 9
D40: f | F40: Avg | H40: =IF(H37=0,"",H38/H37) -> 0 | I40: Avg | J40: =IF(J37="","",J38/J37) -> 0 | K40: 0 | L40: 0 | M40: 0 | N40: 0 | O40: 0 | P40: 0
A41: 8 | B41: =$D$1 -> XX Team | C41: L-Name | D41: Brandon | F41: # of AB's | H41: =SUM(J41:AA41) -> 63 | I41: AB's | J41: 9 | K41: 9 | L41: 9 | M41: 9 | N41: 9 | O41: 9 | P41: 9
C42: F-Name | D42: Blake | F42: # of Hits | H42: =SUM(J42:AA42) -> 0 | I42: Hits | J42: 0 | K42: 0 | L42: 0 | M42: 0 | N42: 0 | O42: 0 | P42: 0
F43: # of PA | H43: =SUM(J43:AA43) -> 63 | I43: PA | J43: 9 | K43: 9 | L43: 9 | M43: 9 | N43: 9 | O43: 9 | P43: 9
D44: m | F44: Avg | H44: =IF(H41=0,"",H42/H41) -> 0 | I44: Avg | J44: =IF(J41="","",J42/J41) -> 0 | K44: 0 | L44: 0 | M44: 0 | N44: 0 | O44: 0 | P44: 0
A45: 9 | B45: =$D$1 -> XX Team | C45: L-Name | D45: Nancy | F45: # of AB's | H45: =SUM(J45:AA45) -> 63 | I45: AB's | J45: 9 | K45: 9 | L45: 9 | M45: 9 | N45: 9 | O45: 9 | P45: 9
C46: F-Name | D46: Lowe | F46: # of Hits | H46: =SUM(J46:AA46) -> 0 | I46: Hits | J46: 0 | K46: 0 | L46: 0 | M46: 0 | N46: 0 | O46: 0 | P46: 0
F47: # of PA | H47: =SUM(J47:AA47) -> 63 | I47: PA | J47: 9 | K47: 9 | L47: 9 | M47: 9 | N47: 9 | O47: 9 | P47: 9
D48: f | F48: Avg | H48: =IF(H45=0,"",H46/H45) -> 0 | I48: Avg | J48: =IF(J45="","",J46/J45) -> 0 | K48: 0 | L48: 0 | M48: 0 | N48: 0 | O48: 0 | P48: 0
A49: 10 | B49: =$D$1 -> XX Team | C49: L-Name | D49: Alex | F49: # of AB's | H49: =SUM(J49:AA49) -> 63 | I49: AB's | J49: 9 | K49: 9 | L49: 9 | M49: 9 | N49: 9 | O49: 9 | P49: 9
C50: F-Name | D50: Johnson | F50: # of Hits | H50: =SUM(J50:AA50) -> 0 | I50: Hits | J50: 0 | K50: 0 | L50: 0 | M50: 0 | N50: 0 | O50: 0 | P50: 0
F51: # of PA | H51: =SUM(J51:AA51) -> 63 | I51: PA | J51: 9 | K51: 9 | L51: 9 | M51: 9 | N51: 9 | O51: 9 | P51: 9
D52: m | F52: Avg | H52: =IF(H49=0,"",H50/H49) -> 0 | I52: Avg | J52: =IF(J49="","",J50/J49) -> 0 | K52: 0 | L52: 0 | M52: 0 | N52: 0 | O52: 0 | P52: 0
A53: 11 | B53: =$D$1 -> XX Team | C53: L-Name | F53: # of AB's | H53: =SUM(J53:AA53) -> 0 | I53: AB's
C54: F-Name | F54: # of Hits | H54: =SUM(J54:AA54) -> 0 | I54: Hits
F55: # of PA | H55: =SUM(J55:AA55) -> 0 | I55: PA
D56: f | F56: Avg | H56: =IF(H53=0,"",H54/H53) ->  | I56: Avg | J56: =IF(J53="","",J54/J53) -> 
A57: 12 | B57: =$D$1 -> XX Team | C57: L-Name | F57: # of AB's | H57: =SUM(J57:AA57) -> 0 | I57: AB's
C58: F-Name | F58: # of Hits | H58: =SUM(J58:AA58) -> 0 | I58: Hits
F59: # of PA | H59: =SUM(J59:AA59) -> 0 | I59: PA
D60: f | F60: Avg | H60: =IF(H57=0,"",H58/H57) ->  | I60: Avg | J60: =IF(J57="","",J58/J57) -> 
A61: 13 | B61: =$D$1 -> XX Team | C61: L-Name | F61: # of AB's | H61: =SUM(J61:AA61) -> 0 | I61: AB's
C62: F-Name | F62: # of Hits | H62: =SUM(J62:AA62) -> 0 | I62: Hits
F63: # of PA | H63: =SUM(J63:AA63) -> 0 | I63: PA
D64: f | F64: Avg | H64: =IF(H61=0,"",H62/H61) ->  | I64: Avg | J64: =IF(J61="","",J62/J61) -> 
A65: 14 | B65: =$D$1 -> XX Team | C65: L-Name | F65: # of AB's | H65: =SUM(J65:AA65) -> 0 | I65: AB's
C66: F-Name | F66: # of Hits | H66: =SUM(J66:AA66) -> 0 | I66: Hits
F67: # of PA | H67: =SUM(J67:AA67) -> 0 | I67: PA
D68: f | F68: Avg | H68: =IF(H65=0,"",H66/H65) ->  | I68: Avg | J68: =IF(J65="","",J66/J65) -> 
A69: 15 | B69: =$D$1 -> XX Team | C69: L-Name | F69: # of AB's | H69: =SUM(J69:AA69) -> 0 | I69: AB's
C70: F-Name | F70: # of Hits | H70: =SUM(J70:AA70) -> 0 | I70: Hits
F71: # of PA | H71: =SUM(J71:AA71) -> 0 | I71: PA
D72: f | F72: Avg | H72: =IF(H69=0,"",H70/H69) ->  | I72: Avg | J72: =IF(J69="","",J70/J69) -> 
A73: 16 | B73: =$D$1 -> XX Team | C73: L-Name | F73: # of AB's | H73: =SUM(J73:AA73) -> 0 | I73: AB's
C74: F-Name | F74: # of Hits | H74: =SUM(J74:AA74) -> 0 | I74: Hits
F75: # of PA | H75: =SUM(J75:AA75) -> 0 | I75: PA
D76: f | F76: Avg | H76: =IF(H73=0,"",H74/H73) ->  | I76: Avg | J76: =IF(J73="","",J74/J73) -> 
A77: 17 | B77: =$D$1 -> XX Team | C77: L-Name | F77: # of AB's | H77: =SUM(J77:AA77) -> 0 | I77: AB's
C78: F-Name | F78: # of Hits | H78: =SUM(J78:AA78) -> 0 | I78: Hits
F79: # of PA | H79: =SUM(J79:AA79) -> 0 | I79: PA
D80: f | F80: Avg | H80: =IF(H77=0,"",H78/H77) ->  | I80: Avg | J80: =IF(J77="","",J78/J77) -> 
A81: 18 | B81: =$D$1 -> XX Team | C81: L-Name | F81: # of AB's | H81: =SUM(J81:AA81) -> 0 | I81: AB's
C82: F-Name | F82: # of Hits | H82: =SUM(J82:AA82) -> 0 | I82: Hits
F83: # of PA | H83: =SUM(J83:AA83) -> 0 | I83: PA
D84: f | F84: Avg | H84: =IF(H81=0,"",H82/H81) ->  | I84: Avg | J84: =IF(J81="","",J82/J81) -> 
A85: 19 | B85: =$D$1 -> XX Team | C85: L-Name | F85: # of AB's | H85: =SUM(J85:AA85) -> 0 | I85: AB's
C86: F-Name | F86: # of Hits | H86: =SUM(J86:AA86) -> 0 | I86: Hits
F87: # of PA | H87: =SUM(J87:AA87) -> 0 | I87: PA
D88: f | F88: Avg | H88: =IF(H85=0,"",H86/H85) ->  | I88: Avg | J88: =IF(J85="","",J86/J85) -> 
A89: 20 | B89: =$D$1 -> XX Team | C89: L-Name | F89: # of AB's | H89: =SUM(J89:AA89) -> 0 | I89: AB's
C90: F-Name | F90: # of Hits | H90: =SUM(J90:AA90) -> 0 | I90: Hits
F91: # of PA | H91: =SUM(J91:AA91) -> 0 | I91: PA
D92: f | F92: Avg | H92: =IF(H89=0,"",H90/H89) ->  | I92: Avg | J92: =IF(J89="","",J90/J89) -> 
A93: 21 | B93: =$D$1 -> XX Team | C93: L-Name | F93: # of AB's | H93: =SUM(J93:AA93) -> 0 | I93: AB's
C94: F-Name | F94: # of Hits | H94: =SUM(J94:AA94) -> 0 | I94: Hits
F95: # of PA | H95: =SUM(J95:AA95) -> 0 | I95: PA
D96: f | F96: Avg | H96: =IF(H93=0,"",H94/H93) ->  | I96: Avg | J96: =IF(J93="","",J94/J93) -> 
A97: 22 | B97: =$D$1 -> XX Team | C97: L-Name | F97: # of AB's | H97: =SUM(J97:AA97) -> 0 | I97: AB's
C98: F-Name | F98: # of Hits | H98: =SUM(J98:AA98) -> 0 | I98: Hits
F99: # of PA | H99: =SUM(J99:AA99) -> 0 | I99: PA
D100: f | F100: Avg | H100: =IF(H97=0,"",H98/H97) ->  | I100: Avg | J100: =IF(J97="","",J98/J97) -> 
A101: 23 | B101: =$D$1 -> XX Team | C101: L-Name | F101: # of AB's | H101: =SUM(J101:AA101) -> 0 | I101: AB's
C102: F-Name | F102: # of Hits | H102: =SUM(J102:AA102) -> 0 | I102: Hits
F103: # of PA | H103: =SUM(J103:AA103) -> 0 | I103: PA
D104: f | F104: Avg | H104: =IF(H101=0,"",H102/H101) ->  | I104: Avg | J104: =IF(J101="","",J102/J101) -> 
A105: 24 | B105: =$D$1 -> XX Team | C105: L-Name | F105: # of AB's | H105: =SUM(J105:AA105) -> 0 | I105: AB's
C106: F-Name | F106: # of Hits | H106: =SUM(J106:AA106) -> 0 | I106: Hits
F107: # of PA | H107: =SUM(J107:AA107) -> 0 | I107: PA
D108: f | F108: Avg | H108: =IF(H105=0,"",H106/H105) ->  | I108: Avg | J108: =IF(J105="","",J106/J105) -> 
A109: 25 | B109: =$D$1 -> XX Team | C109: L-Name | F109: # of AB's | H109: =SUM(J109:AA109) -> 0 | I109: AB's
C110: F-Name | F110: # of Hits | H110: =SUM(J110:AA110) -> 0 | I110: Hits
F111: # of PA | H111: =SUM(J111:AA111) -> 0 | I111: PA
D112: f | F112: Avg | H112: =IF(H109=0,"",H110/H109) ->  | I112: Avg | J112: =IF(J109="","",J110/J109) -> 
B113: =$D$1 -> XX Team | D113: TEAM | F113: # of AB's | H113: =SUM(J113:AA113) -> 630 | I113: AB's | J113: =IF(SUM(J109,J105,J101,J97,J93,J89,J85,J81,J77,J73,J69,J65,J61,J57,J53,J49,J45,J41,J37,J33,J29,J25,J21,J17,J13)=0,"",SUM(J13,J17,J21,J25,J29,J33,J37,J41,J45,J49,J53,J57,J61,J65,J69,J73,J77,J81,J85,J89,J93,J97,J101,J105,J109)) -> 90 | K113: 90 | L113: 90 | M113: 90 | N113: 90 | O113: 90 | P113: 90
D114: Summary | F114: # of Hits | H114: =SUM(J114:AA114) -> 0 | I114: Hits | J114: =IF(SUM(J110,J106,J102,J98,J94,J90,J86,J82,J78,J74,J70,J66,J62,J58,J54,J50,J46,J42,J38,J34,J30,J26,J22,J18,J14)=0,"",SUM(J14,J18,J22,J26,J30,J34,J38,J42,J46,J50,J54,J58,J62,J66,J70,J74,J78,J82,J86,J90,J94,J98,J102,J106,J110)) -> 
F115: Avg | H115: =IF(H113=0,"N/A",H114/H113) -> 0 | I115: Avg | J115: =IF(J113="","",J114/J113) -> 

Sheet Female
A1: counter | B1: roster # | C1: Team Name | D1: L-Name | E1: F-Name | F1: Batting Avg | G1: # of AB's | H1: # of Games | I1: Enough pa's | J1: HITS | K1: # of PA | L1: Male/Female
A2: 83 | B2: ='Thunder Ducks'!$A$41 -> 8 | C2: ='Thunder Ducks'!$D$1 -> Thunder Ducks | D2: ='Thunder Ducks'!$D$41 -> Annie | E2: ='Thunder Ducks'!$D$42 -> Brady | F2: ='Thunder Ducks'!$H$44 -> 0.7272727273 | G2: ='Thunder Ducks'!$H$41 -> 11 | H2: ='Thunder Ducks'!$F$8 -> 4 | I2: =IF(K2<(H2*2.5),"N","Y") -> Y | J2: ='Thunder Ducks'!$H$42 -> 8 | K2: ='Thunder Ducks'!$H$43 -> 11 | L2: ='Thunder Ducks'!$D$44 -> f
A3: 52 | B3: ='Ghetto Bombers'!$A$17 -> 2 | C3: ='Ghetto Bombers'!$D$1 -> Ghetto Bombers | D3: ='Ghetto Bombers'!$D$17 -> Calleigh | E3: ='Ghetto Bombers'!$D$18 -> DeYoung | F3: ='Ghetto Bombers'!$H$20 -> 0.6875 | G3: ='Ghetto Bombers'!$H$17 -> 16 | H3: ='Ghetto Bombers'!$F$8 -> 4 | I3: Y | J3: ='Ghetto Bombers'!$H$18 -> 11 | K3: ='Ghetto Bombers'!$H$19 -> 18 | L3: ='Ghetto Bombers'!$D$20 -> f
A4: 54 | B4: ='Ghetto Bombers'!$A$25 -> 4 | C4: ='Ghetto Bombers'!$D$1 -> Ghetto Bombers | D4: ='Ghetto Bombers'!$D$25 -> Brandi | E4: ='Ghetto Bombers'!$D$26 -> Hall | F4: ='Ghetto Bombers'!$H$28 -> 0.5555555556 | G4: ='Ghetto Bombers'!$H$25 -> 18 | H4: ='Ghetto Bombers'!$F$8 -> 4 | I4: Y | J4: ='Ghetto Bombers'!$H$26 -> 10 | K4: ='Ghetto Bombers'!$H$27 -> 18 | L4: ='Ghetto Bombers'!$D$28 -> f
A5: 65 | B5: ='Ghetto Bombers'!$A$69 -> 15 | C5: ='Ghetto Bombers'!$D$1 -> Ghetto Bombers | D5: ='Ghetto Bombers'!$D$69 -> Hope | E5: ='Ghetto Bombers'!$D$70 -> Curtis | F5: ='Ghetto Bombers'!$H$72 -> 0.5454545455 | G5: ='Ghetto Bombers'!$H$69 -> 11 | H5: ='Ghetto Bombers'!$F$8 -> 4 | I5: Y | J5: ='Ghetto Bombers'!$H$70 -> 6 | K5: ='Ghetto Bombers'!$H$71 -> 11 | L5: ='Ghetto Bombers'!$D$72 -> f
A6: 4 | B6: ='Bad Pitches'!$A$25 -> 4 | C6: ='Bad Pitches'!$D$1 -> Bad Pitches | D6: ='Bad Pitches'!$D$25 -> Tanzie | E6: ='Bad Pitches'!$D$26 -> Gasu | F6: ='Bad Pitches'!$H$28 -> 0.5 | G6: ='Bad Pitches'!$H$25 -> 14 | H6: ='Bad Pitches'!$F$8 -> 3 | I6: Y | J6: ='Bad Pitches'!$H$26 -> 7 | K6: ='Bad Pitches'!$H$27 -> 14 | L6: ='Bad Pitches'!$D$28 -> f
A7: 56 | B7: ='Ghetto Bombers'!$A$33 -> 6 | C7: ='Ghetto Bombers'!$D$1 -> Ghetto Bombers | D7: ='Ghetto Bombers'!$D$33 -> JoJo | E7: ='Ghetto Bombers'!$D$34 -> Carlson | F7: ='Ghetto Bombers'!$H$36 -> 0.5 | G7: ='Ghetto Bombers'!$H$33 -> 10 | H7: ='Ghetto Bombers'!$F$8 -> 4 | I7: Y | J7: ='Ghetto Bombers'!$H$34 -> 5 | K7: ='Ghetto Bombers'!$H$35 -> 10 | L7: ='Ghetto Bombers'!$D$36 -> f
A8: 60 | B8: ='Ghetto Bombers'!$A$49 -> 10 | C8: ='Ghetto Bombers'!$D$1 -> Ghetto Bombers | D8: ='Ghetto Bombers'!$D$49 -> Heidi | E8: ='Ghetto Bombers'!$D$50 -> Taylor | F8: ='Ghetto Bombers'!$H$52 -> 0.4666666667 | G8: ='Ghetto Bombers'!$H$49 -> 15 | H8: ='Ghetto Bombers'!$F$8 -> 4 | I8: Y | J8: ='Ghetto Bombers'!$H$50 -> 7 | K8: ='Ghetto Bombers'!$H$51 -> 16 | L8: ='Ghetto Bombers'!$D$52 -> f
A9: 79 | B9: ='Thunder Ducks'!$A$25 -> 4 | C9: ='Thunder Ducks'!$D$1 -> Thunder Ducks | D9: ='Thunder Ducks'!$D$25 -> Jennie | E9: ='Thunder Ducks'!$D$26 -> Anderson | F9: ='Thunder Ducks'!$H$28 -> 0.4615384615 | G9: ='Thunder Ducks'!$H$25 -> 13 | H9: ='Thunder Ducks'!$F$8 -> 4 | I9: Y | J9: ='Thunder Ducks'!$H$26 -> 6 | K9: ='Thunder Ducks'!$H$27 -> 15 | L9: ='Thunder Ducks'!$D$28 -> f
A10: 27 | B10: =BCBC!$A$17 -> 2 | C10: =BCBC!$D$1 -> BCBC | D10: =BCBC!$D$17 -> Alex | E10: =BCBC!$D$18 -> Ferrel | F10: =BCBC!$H$20 -> 0.4545454545 | G10: =BCBC!$H$17 -> 11 | H10: =BCBC!$F$8 -> 4 | I10: Y | J10: =BCBC!$H$18 -> 5 | K10: =BCBC!$H$19 -> 11 | L10: =BCBC!$D$20 -> f
A11: 31 | B11: =BCBC!$A$33 -> 6 | C11: =BCBC!$D$1 -> BCBC | D11: =BCBC!$D$33 -> Tiff | E11: =BCBC!$D$34 -> Morton | F11: =BCBC!$H$36 -> 0.4 | G11: =BCBC!$H$33 -> 10 | H11: =BCBC!$F$8 -> 4 | I11: Y | J11: =BCBC!$H$34 -> 4 | K11: =BCBC!$H$35 -> 11 | L11: =BCBC!$D$36 -> f
A12: 29 | B12: =BCBC!$A$25 -> 4 | C12: =BCBC!$D$1 -> BCBC | D12: =BCBC!$D$25 -> Casey | E12: =BCBC!$D$26 -> Velarde | F12: =BCBC!$H$28 -> 0.3636363636 | G12: =BCBC!$H$25 -> 11 | H12: =BCBC!$F$8 -> 4 | I12: Y | J12: =BCBC!$H$26 -> 4 | K12: =BCBC!$H$27 -> 12 | L12: =BCBC!$D$28 -> f
A13: 77 | B13: ='Thunder Ducks'!$A$17 -> 2 | C13: ='Thunder Ducks'!$D$1 -> Thunder Ducks | D13: ='Thunder Ducks'!$D$17 -> Josie | E13: ='Thunder Ducks'!$D$18 -> Harris | F13: ='Thunder Ducks'!$H$20 -> 0.3333333333 | G13: ='Thunder Ducks'!$H$17 -> 12 | H13: ='Thunder Ducks'!$F$8 -> 4 | I13: Y | J13: ='Thunder Ducks'!$H$18 -> 4 | K13: ='Thunder Ducks'!$H$19 -> 14 | L13: ='Thunder Ducks'!$D$20 -> f
A14: 2 | B14: ='Bad Pitches'!$A$17 -> 2 | C14: ='Bad Pitches'!$D$1 -> Bad Pitches | D14: ='Bad Pitches'!$D$17 -> Paige | E14: ='Bad Pitches'!$D$18 -> Reynolds | F14: ='Bad Pitches'!$H$20 -> 0.3 | G14: ='Bad Pitches'!$H$17 -> 10 | H14: ='Bad Pitches'!$F$8 -> 3 | I14: Y | J14: ='Bad Pitches'!$H$18 -> 3 | K14: ='Bad Pitches'!$H$19 -> 10 | L14: ='Bad Pitches'!$D$20 -> f
A15: 33 | B15: =BCBC!$A$41 -> 8 | C15: =BCBC!$D$1 -> BCBC | D15: =BCBC!$D$41 -> Maree | E15: =BCBC!$D$42 -> Achermann | F15: =BCBC!$H$44 -> 0.1538461538 | G15: =BCBC!$H$41 -> 13 | H15: =BCBC!$F$8 -> 4 | I15: Y | J15: =BCBC!$H$42 -> 2 | K15: =BCBC!$H$43 -> 13 | L15: =BCBC!$D$44 -> f
A16: 37 | B16: =BCBC!$A$57 -> 12 | C16: =BCBC!$D$1 -> BCBC | D16: =BCBC!$D$57 -> Mel | E16: =BCBC!$D$58 -> Maile | F16: =BCBC!$H$60 -> 0.09090909091 | G16: =BCBC!$H$57 -> 11 | H16: =BCBC!$F$8 -> 4 | I16: Y | J16: =BCBC!$H$58 -> 1 | K16: =BCBC!$H$59 -> 12 | L16: =BCBC!$D$60 -> f
A17: 206 | B17: ='YY Team'!$A$33 -> 6 | C17: ='YY Team'!$D$1 -> YY Team | D17: ='YY Team'!$D$33 -> Britt | E17: ='YY Team'!$D$34 -> Call | F17: ='YY Team'!$H$36 -> 0 | G17: ='YY Team'!$H$33 -> 63 | H17: ='YY Team'!$F$8 -> 7 | I17: Y | J17: ='YY Team'!$H$34 -> 0 | K17: ='YY Team'!$H$35 -> 63 | L17: ='YY Team'!$D$36 -> f
A18: 137 | B18: ='XXX Team'!$A$57 -> 12 | C18: ='XXX Team'!$D$1 -> XXX Team | D18: ='XXX Team'!$D$57 -> Anna | E18: ='XXX Team'!$D$58 -> Hall | F18: ='XXX Team'!$H$60 -> 0 | G18: ='XXX Team'!$H$57 -> 63 | H18: ='XXX Team'!$F$8 -> 7 | I18: Y | J18: ='XXX Team'!$H$58 -> 0 | K18: ='XXX Team'!$H$59 -> 63 | L18: ='XXX Team'!$D$60 -> f
A19: 135 | B19: ='XXX Team'!$A$49 -> 10 | C19: ='XXX Team'!$D$1 -> XXX Team | D19: ='XXX Team'!$D$49 -> Chandra | E19: ='XXX Team'!$D$50 -> Cruz | F19: ='XXX Team'!$H$52 -> 0 | G19: ='XXX Team'!$H$49 -> 63 | H19: ='XXX Team'!$F$8 -> 7 | I19: Y | J19: ='XXX Team'!$H$50 -> 0 | K19: ='XXX Team'!$H$51 -> 63 | L19: ='XXX Team'!$D$52 -> f
A20: 104 | B20: ='X Team'!$A$25 -> 4 | C20: ='X Team'!$D$1 -> X Team | D20: ='X Team'!$D$25 -> Chelsea | E20: ='X Team'!$D$26 -> LdBaron | F20: ='X Team'!$H$28 -> 0 | G20: ='X Team'!$H$25 -> 63 | H20: ='X Team'!$F$8 -> 7 | I20: Y | J20: ='X Team'!$H$26 -> 0 | K20: ='X Team'!$H$27 -> 63 | L20: ='X Team'!$D$28 -> f
A21: 102 | B21: ='X Team'!$A$17 -> 2 | C21: ='X Team'!$D$1 -> X Team | D21: ='X Team'!$D$17 -> Paige | E21: ='X Team'!$D$18 -> Jackman | F21: ='X Team'!$H$20 -> 0 | G21: ='X Team'!$H$17 -> 63 | H21: ='X Team'!$F$8 -> 7 | I21: Y | J21: ='X Team'!$H$18 -> 0 | K21: ='X Team'!$H$19 -> 63 | L21: ='X Team'!$D$20 -> f
A22: 202 | B22: ='YY Team'!$A$17 -> 2 | C22: ='YY Team'!$D$1 -> YY Team | D22: ='YY Team'!$D$17 -> Tasha | E22: ='YY Team'!$D$18 -> Arnold | F22: ='YY Team'!$H$20 -> 0 | G22: ='YY Team'!$H$17 -> 63 | H22: ='YY Team'!$F$8 -> 7 | I22: Y | J22: ='YY Team'!$H$18 -> 0 | K22: ='YY Team'!$H$19 -> 63 | L22: ='YY Team'!$D$20 -> f
A23: 129 | B23: ='XXX Team'!$A$25 -> 4 | C23: ='XXX Team'!$D$1 -> XXX Team | D23: ='XXX Team'!$D$25 -> Gimmie | E23: ='XXX Team'!$D$26 -> Murphy | F23: ='XXX Team'!$H$28 -> 0 | G23: ='XXX Team'!$H$25 -> 63 | H23: ='XXX Team'!$F$8 -> 7 | I23: Y | J23: ='XXX Team'!$H$26 -> 0 | K23: ='XXX Team'!$H$27 -> 63 | L23: ='XXX Team'!$D$28 -> f
A24: 127 | B24: ='XXX Team'!$A$17 -> 2 | C24: ='XXX Team'!$D$1 -> XXX Team | D24: ='XXX Team'!$D$17 -> Jenn | E24: ='XXX Team'!$D$18 -> Hall | F24: ='XXX Team'!$H$20 -> 0 | G24: ='XXX Team'!$H$17 -> 63 | H24: ='XXX Team'!$F$8 -> 7 | I24: Y | J24: ='XXX Team'!$H$18 -> 0 | K24: ='XXX Team'!$H$19 -> 63 | L24: ='XXX Team'!$D$20 -> f
A25: 204 | B25: ='YY Team'!$A$25 -> 4 | C25: ='YY Team'!$D$1 -> YY Team | D25: ='YY Team'!$D$25 -> Josie | E25: ='YY Team'!$D$26 -> Harris | F25: ='YY Team'!$H$28 -> 0 | G25: ='YY Team'!$H$25 -> 63 | H25: ='YY Team'!$F$8 -> 7 | I25: Y | J25: ='YY Team'!$H$26 -> 0 | K25: ='YY Team'!$H$27 -> 63 | L25: ='YY Team'!$D$28 -> f
A26: 108 | B26: ='X Team'!$A$41 -> 8 | C26: ='X Team'!$D$1 -> X Team | D26: ='X Team'!$D$41 -> Cassi | E26: ='X Team'!$D$42 -> Kendzior | F26: ='X Team'!$H$44 -> 0 | G26: ='X Team'!$H$41 -> 63 | H26: ='X Team'!$F$8 -> 7 | I26: Y | J26: ='X Team'!$H$42 -> 0 | K26: ='X Team'!$H$43 -> 63 | L26: ='X Team'!$D$44 -> f
A27: 131 | B27: ='XXX Team'!$A$33 -> 6 | C27: ='XXX Team'!$D$1 -> XXX Team | D27: ='XXX Team'!$D$33 -> Deanndra | E27: ='XXX Team'!$D$34 -> Billie | F27: ='XXX Team'!$H$36 -> 0 | G27: ='XXX Team'!$H$33 -> 63 | H27: ='XXX Team'!$F$8 -> 7 | I27: Y | J27: ='XXX Team'!$H$34 -> 0 | K27: ='XXX Team'!$H$35 -> 63 | L27: ='XXX Team'!$D$36 -> f
A28: 208 | B28: ='YY Team'!$A$41 -> 8 | C28: ='YY Team'!$D$1 -> YY Team | D28: ='YY Team'!$D$41 -> Lindsay | E28: ='YY Team'!$D$42 -> Pennington | F28: ='YY Team'!$H$44 -> 0 | G28: ='YY Team'!$H$41 -> 63 | H28: ='YY Team'!$F$8 -> 7 | I28: Y | J28: ='YY Team'!$H$42 -> 0 | K28: ='YY Team'!$H$43 -> 63 | L28: ='YY Team'!$D$44 -> f
A29: 133 | B29: ='XXX Team'!$A$41 -> 8 | C29: ='XXX Team'!$D$1 -> XXX Team | D29: ='XXX Team'!$D$41 -> Emma | E29: ='XXX Team'!$D$42 -> Hall | F29: ='XXX Team'!$H$44 -> 0 | G29: ='XXX Team'!$H$41 -> 63 | H29: ='XXX Team'!$F$8 -> 7 | I29: Y | J29: ='XXX Team'!$H$42 -> 0 | K29: ='XXX Team'!$H$43 -> 63 | L29: ='XXX Team'!$D$44 -> f
A30: 106 | B30: ='X Team'!$A$33 -> 6 | C30: ='X Team'!$D$1 -> X Team | D30: ='X Team'!$D$33 -> Jo | E30: ='X Team'!$D$34 -> Cruz | F30: ='X Team'!$H$36 -> 0 | G30: ='X Team'!$H$33 -> 63 | H30: ='X Team'!$F$8 -> 7 | I30: Y | J30: ='X Team'!$H$34 -> 0 | K30: ='X Team'!$H$35 -> 63 | L30: ='X Team'!$D$36 -> f
A31: 184 | B31: ='XX Team'!$A$45 -> 9 | C31: ='XX Team'!$D$1 -> XX Team | D31: ='XX Team'!$D$45 -> Nancy | E31: ='XX Team'!$D$46 -> Lowe | F31: ='XX Team'!$H$48 -> 0 | G31: ='XX Team'!$H$45 -> 63 | H31: ='XX Team'!$F$8 -> 6 | I31: Y | J31: ='XX Team'!$H$46 -> 0 | K31: ='XX Team'!$H$47 -> 63 | L31: ='XX Team'!$D$48 -> f
A32: 180 | B32: ='XX Team'!$A$29 -> 5 | C32: ='XX Team'!$D$1 -> XX Team | D32: ='XX Team'!$D$29 -> Toni | E32: ='XX Team'!$D$30 -> Wall | F32: ='XX Team'!$H$32 -> 0 | G32: ='XX Team'!$H$29 -> 63 | H32: ='XX Team'!$F$8 -> 6 | I32: Y | J32: ='XX Team'!$H$30 -> 0 | K32: ='XX Team'!$H$31 -> 63 | L32: ='XX Team'!$D$32 -> f
A33: 178 | B33: ='XX Team'!$A$21 -> 3 | C33: ='XX Team'!$D$1 -> XX Team | D33: ='XX Team'!$D$21 -> Mary | E33: ='XX Team'!$D$22 -> Childs | F33: ='XX Team'!$H$24 -> 0 | G33: ='XX Team'!$H$21 -> 63 | H33: ='XX Team'!$F$8 -> 6 | I33: Y | J33: ='XX Team'!$H$22 -> 0 | K33: ='XX Team'!$H$23 -> 63 | L33: ='XX Team'!$D$24 -> f
A34: 176 | B34: ='XX Team'!$A$13 -> 1 | C34: ='XX Team'!$D$1 -> XX Team | D34: ='XX Team'!$D$13 -> Francis | E34: ='XX Team'!$D$14 -> Brown | F34: ='XX Team'!$H$16 -> 0 | G34: ='XX Team'!$H$13 -> 63 | H34: ='XX Team'!$F$8 -> 6 | I34: =IF(K34<(H34*2.5),"N","Y") -> Y | J34: ='XX Team'!$H$14 -> 0 | K34: ='XX Team'!$H$15 -> 63 | L34: ='XX Team'!$D$16 -> f
A35: 182 | B35: ='XX Team'!$A$37 -> 7 | C35: ='XX Team'!$D$1 -> XX Team | D35: ='XX Team'!$D$37 -> Shela | E35: ='XX Team'!$D$38 -> Anderson | F35: ='XX Team'!$H$40 -> 0 | G35: ='XX Team'!$H$37 -> 63 | H35: ='XX Team'!$F$8 -> 6 | I35: Y | J35: ='XX Team'!$H$38 -> 0 | K35: ='XX Team'!$H$39 -> 63 | L35: ='XX Team'!$D$40 -> f
A36: 110 | B36: ='X Team'!$A$49 -> 10 | C36: ='X Team'!$D$1 -> X Team | D36: ='X Team'!$D$49 -> Shae Lee | E36: ='X Team'!$D$50 -> Pearson | F36: ='X Team'!$H$52 -> 0 | G36: ='X Team'!$H$49 -> 63 | H36: ='X Team'!$F$8 -> 7 | I36: Y | J36: ='X Team'!$H$50 -> 0 | K36: ='X Team'!$H$51 -> 63 | L36: ='X Team'!$D$52 -> f
A37: 211 | B37: ='YY Team'!$A$53 -> 11 | C37: ='YY Team'!$D$1 -> YY Team | D37: ='YY Team'!$D$53 -> Jennie | E37: ='YY Team'!$D$54 -> Anderson | F37: ='YY Team'!$H$56 -> 0 | G37: ='YY Team'!$H$53 -> 63 | H37: ='YY Team'!$F$8 -> 7 | I37: Y | J37: ='YY Team'!$H$54 -> 0 | K37: ='YY Team'!$H$55 -> 63 | L37: ='YY Team'!$D$56 -> f
A38: 210 | B38: ='YY Team'!$A$49 -> 10 | C38: ='YY Team'!$D$1 -> YY Team | D38: ='YY Team'!$D$49 -> Taylor | E38: ='YY Team'!$D$50 -> McCallum | F38: ='YY Team'!$H$52 -> 0 | G38: ='YY Team'!$H$49 -> 63 | H38: ='YY Team'!$F$8 -> 7 | I38: Y | J38: ='YY Team'!$H$50 -> 0 | K38: ='YY Team'!$H$51 -> 63 | L38: ='YY Team'!$D$52 -> f
A39: 111 | B39: ='X Team'!$A$53 -> 11 | C39: ='X Team'!$D$1 -> X Team | D39: ='X Team'!$D$53 -> Jo | E39: ='X Team'!$D$54 -> Blake | F39: ='X Team'!$H$56 -> 0 | G39: ='X Team'!$H$53 -> 63 | H39: ='X Team'!$F$8 -> 7 | I39: Y | J39: ='X Team'!$H$54 -> 0 | K39: ='X Team'!$H$55 -> 63 | L39: ='X Team'!$D$56 -> f
A40: 113 | B40: ='X Team'!$A$61 -> 13 | C40: ='X Team'!$D$1 -> X Team | D40: ='X Team'!$D$61 -> Amanda | E40: ='X Team'!$D$62 -> Kenzior | F40: ='X Team'!$H$64 -> 0 | G40: ='X Team'!$H$61 -> 63 | H40: ='X Team'!$F$8 -> 7 | I40: Y | J40: ='X Team'!$H$62 -> 0 | K40: ='X Team'!$H$63 -> 63 | L40: ='X Team'!$D$64 -> f
A41: 93 | B41: ='Thunder Ducks'!$A$81 -> 18 | C41: ='Thunder Ducks'!$D$1 -> Thunder Ducks | D41: ='Thunder Ducks'!$D$81 -> 0 | E41: ='Thunder Ducks'!$D$82 -> 0 | F41: ='Thunder Ducks'!$H$84 ->  | G41: ='Thunder Ducks'!$H$81 -> 0 | H41: ='Thunder Ducks'!$F$8 -> 4 | I41: N | J41: ='Thunder Ducks'!$H$82 -> 0 | K41: ='Thunder Ducks'!$H$83 -> 0 | L41: ='Thunder Ducks'!$D$84 -> f
A42: 212 | B42: ='YY Team'!$A$57 -> 12 | C42: ='YY Team'!$D$1 -> YY Team | D42: ='YY Team'!$D$57 -> 0 | E42: ='YY Team'!$D$58 -> 0 | F42: ='YY Team'!$H$60 ->  | G42: ='YY Team'!$H$57 -> 0 | H42: ='YY Team'!$F$8 -> 7 | I42: N | J42: ='YY Team'!$H$58 -> 0 | K42: ='YY Team'!$H$59 -> 0 | L42: ='YY Team'!$D$60 -> f
A43: 21 | B43: ='Bad Pitches'!$A$93 -> 21 | C43: ='Bad Pitches'!$D$1 -> Bad Pitches | D43: ='Bad Pitches'!$D$93 -> 0 | E43: ='Bad Pitches'!$D$94 -> 0 | F43: ='Bad Pitches'!$H$96 ->  | G43: ='Bad Pitches'!$H$93 -> 0 | H43: ='Bad Pitches'!$F$8 -> 3 | I43: N | J43: ='Bad Pitches'!$H$94 -> 0 | K43: ='Bad Pitches'!$H$95 -> 0 | L43: ='Bad Pitches'!$D$96 -> f
A44: 22 | B44: ='Bad Pitches'!$A$97 -> 22 | C44: ='Bad Pitches'!$D$1 -> Bad Pitches | D44: ='Bad Pitches'!$D$97 -> 0 | E44: ='Bad Pitches'!$D$98 -> 0 | F44: ='Bad Pitches'!$H$100 ->  | G44: ='Bad Pitches'!$H$97 -> 0 | H44: ='Bad Pitches'!$F$8 -> 3 | I44: N | J44: ='Bad Pitches'!$H$98 -> 0 | K44: ='Bad Pitches'!$H$99 -> 0 | L44: ='Bad Pitches'!$D$100 -> f
A45: 23 | B45: ='Bad Pitches'!$A$101 -> 23 | C45: ='Bad Pitches'!$D$1 -> Bad Pitches | D45: ='Bad Pitches'!$D$101 -> 0 | E45: ='Bad Pitches'!$D$102 -> 0 | F45: ='Bad Pitches'!$H$104 ->  | G45: ='Bad Pitches'!$H$101 -> 0 | H45: ='Bad Pitches'!$F$8 -> 3 | I45: N | J45: ='Bad Pitches'!$H$102 -> 0 | K45: ='Bad Pitches'!$H$103 -> 0 | L45: ='Bad Pitches'!$D$104 -> f
A46: 24 | B46: ='Bad Pitches'!$A$105 -> 24 | C46: ='Bad Pitches'!$D$1 -> Bad Pitches | D46: ='Bad Pitches'!$D$105 -> 0 | E46: ='Bad Pitches'!$D$106 -> 0 | F46: ='Bad Pitches'!$H$108 ->  | G46: ='Bad Pitches'!$H$105 -> 0 | H46: ='Bad Pitches'!$F$8 -> 3 | I46: N | J46: ='Bad Pitches'!$H$106 -> 0 | K46: ='Bad Pitches'!$H$107 -> 0 | L46: ='Bad Pitches'!$D$108 -> f
A47: 25 | B47: ='Bad Pitches'!$A$109 -> 25 | C47: ='Bad Pitches'!$D$1 -> Bad Pitches | D47: ='Bad Pitches'!$D$109 -> 0 | E47: ='Bad Pitches'!$D$110 -> 0 | F47: ='Bad Pitches'!$H$112 ->  | G47: ='Bad Pitches'!$H$109 -> 0 | H47: ='Bad Pitches'!$F$8 -> 3 | I47: N | J47: ='Bad Pitches'!$H$110 -> 0 | K47: ='Bad Pitches'!$H$111 -> 0 | L47: ='Bad Pitches'!$D$112 -> f
A48: 45 | B48: =BCBC!$A$89 -> 20 | C48: =BCBC!$D$1 -> BCBC | D48: =BCBC!$D$89 -> 0 | E48: =BCBC!$D$90 -> 0 | F48: =BCBC!$H$92 ->  | G48: =BCBC!$H$89 -> 0 | H48: =BCBC!$F$8 -> 4 | I48: N | J48: =BCBC!$H$90 -> 0 | K48: =BCBC!$H$91 -> 0 | L48: =BCBC!$D$92 -> f
A49: 46 | B49: =BCBC!$A$93 -> 21 | C49: =BCBC!$D$1 -> BCBC | D49: =BCBC!$D$93 -> 0 | E49: =BCBC!$D$94 -> 0 | F49: =BCBC!$H$96 ->  | G49: =BCBC!$H$93 -> 0 | H49: =BCBC!$F$8 -> 4 | I49: N | J49: =BCBC!$H$94 -> 0 | K49: =BCBC!$H$95 -> 0 | L49: =BCBC!$D$96 -> f
A50: 47 | B50: =BCBC!$A$97 -> 22 | C50: =BCBC!$D$1 -> BCBC | D50: =BCBC!$D$97 -> 0 | E50: =BCBC!$D$98 -> 0 | F50: =BCBC!$H$100 ->  | G50: =BCBC!$H$97 -> 0 | H50: =BCBC!$F$8 -> 4 | I50: N | J50: =BCBC!$H$98 -> 0 | K50: =BCBC!$H$99 -> 0 | L50: =BCBC!$D$100 -> f
A51: 48 | B51: =BCBC!$A$101 -> 23 | C51: =BCBC!$D$1 -> BCBC | D51: =BCBC!$D$101 -> 0 | E51: =BCBC!$D$102 -> 0 | F51: =BCBC!$H$104 ->  | G51: =BCBC!$H$101 -> 0 | H51: =BCBC!$F$8 -> 4 | I51: N | J51: =BCBC!$H$102 -> 0 | K51: =BCBC!$H$103 -> 0 | L51: =BCBC!$D$104 -> f
A52: 49 | B52: =BCBC!$A$105 -> 24 | C52: =BCBC!$D$1 -> BCBC | D52: =BCBC!$D$105 -> 0 | E52: =BCBC!$D$106 -> 0 | F52: =BCBC!$H$108 ->  | G52: =BCBC!$H$105 -> 0 | H52: =BCBC!$F$8 -> 4 | I52: N | J52: =BCBC!$H$106 -> 0 | K52: =BCBC!$H$107 -> 0 | L52: =BCBC!$D$108 -> f
A53: 50 | B53: =BCBC!$A$109 -> 25 | C53: =BCBC!$D$1 -> BCBC | D53: =BCBC!$D$109 -> 0 | E53: =BCBC!$D$110 -> 0 | F53: =BCBC!$H$112 ->  | G53: =BCBC!$H$109 -> 0 | H53: =BCBC!$F$8 -> 4 | I53: N | J53: =BCBC!$H$110 -> 0 | K53: =BCBC!$H$111 -> 0 | L53: =BCBC!$D$112 -> f
A54: 69 | B54: ='Ghetto Bombers'!$A$85 -> 19 | C54: ='Ghetto Bombers'!$D$1 -> Ghetto Bombers | D54: ='Ghetto Bombers'!$D$85 -> 0 | E54: ='Ghetto Bombers'!$D$86 -> 0 | F54: ='Ghetto Bombers'!$H$88 ->  | G54: ='Ghetto Bombers'!$H$85 -> 0 | H54: ='Ghetto Bombers'!$F$8 -> 4 | I54: N | J54: ='Ghetto Bombers'!$H$86 -> 0 | K54: ='Ghetto Bombers'!$H$87 -> 0 | L54: ='Ghetto Bombers'!$D$88 -> f
A55: 70 | B55: ='Ghetto Bombers'!$A$89 -> 20 | C55: ='Ghetto Bombers'!$D$1 -> Ghetto Bombers | D55: ='Ghetto Bombers'!$D$89 -> 0 | E55: ='Ghetto Bombers'!$D$90 -> 0 | F55: ='Ghetto Bombers'!$H$92 ->  | G55: ='Ghetto Bombers'!$H$89 -> 0 | H55: ='Ghetto Bombers'!$F$8 -> 4 | I55: N | J55: ='Ghetto Bombers'!$H$90 -> 0 | K55: ='Ghetto Bombers'!$H$91 -> 0 | L55: ='Ghetto Bombers'!$D$92 -> f
A56: 71 | B56: ='Ghetto Bombers'!$A$93 -> 21 | C56: ='Ghetto Bombers'!$D$1 -> Ghetto Bombers | D56: ='Ghetto Bombers'!$D$93 -> 0 | E56: ='Ghetto Bombers'!$D$94 -> 0 | F56: ='Ghetto Bombers'!$H$96 ->  | G56: ='Ghetto Bombers'!$H$93 -> 0 | H56: ='Ghetto Bombers'!$F$8 -> 4 | I56: N | J56: ='Ghetto Bombers'!$H$94 -> 0 | K56: ='Ghetto Bombers'!$H$95 -> 0 | L56: ='Ghetto Bombers'!$D$96 -> f
A57: 72 | B57: ='Ghetto Bombers'!$A$97 -> 22 | C57: ='Ghetto Bombers'!$D$1 -> Ghetto Bombers | D57: ='Ghetto Bombers'!$D$97 -> 0 | E57: ='Ghetto Bombers'!$D$98 -> 0 | F57: ='Ghetto Bombers'!$H$100 ->  | G57: ='Ghetto Bombers'!$H$97 -> 0 | H57: ='Ghetto Bombers'!$F$8 -> 4 | I57: N | J57: ='Ghetto Bombers'!$H$98 -> 0 | K57: ='Ghetto Bombers'!$H$99 -> 0 | L57: ='Ghetto Bombers'!$D$100 -> f
A58: 73 | B58: ='Ghetto Bombers'!$A$101 -> 23 | C58: ='Ghetto Bombers'!$D$1 -> Ghetto Bombers | D58: ='Ghetto Bombers'!$D$101 -> 0 | E58: ='Ghetto Bombers'!$D$102 -> 0 | F58: ='Ghetto Bombers'!$H$104 ->  | G58: ='Ghetto Bombers'!$H$101 -> 0 | H58: ='Ghetto Bombers'!$F$8 -> 4 | I58: N | J58: ='Ghetto Bombers'!$H$102 -> 0 | K58: ='Ghetto Bombers'!$H$103 -> 0 | L58: ='Ghetto Bombers'!$D$104 -> f
A59: 74 | B59: ='Ghetto Bombers'!$A$105 -> 24 | C59: ='Ghetto Bombers'!$D$1 -> Ghetto Bombers | D59: ='Ghetto Bombers'!$D$105 -> 0 | E59: ='Ghetto Bombers'!$D$106 -> 0 | F59: ='Ghetto Bombers'!$H$108 ->  | G59: ='Ghetto Bombers'!$H$105 -> 0 | H59: ='Ghetto Bombers'!$F$8 -> 4 | I59: N | J59: ='Ghetto Bombers'!$H$106 -> 0 | K59: ='Ghetto Bombers'!$H$107 -> 0 | L59: ='Ghetto Bombers'!$D$108 -> f
A60: 75 | B60: ='Ghetto Bombers'!$A$109 -> 25 | C60: ='Ghetto Bombers'!$D$1 -> Ghetto Bombers | D60: ='Ghetto Bombers'!$D$109 -> 0 | E60: ='Ghetto Bombers'!$D$110 -> 0 | F60: ='Ghetto Bombers'!$H$112 ->  | G60: ='Ghetto Bombers'!$H$109 -> 0 | H60: ='Ghetto Bombers'!$F$8 -> 4 | I60: N | J60: ='Ghetto Bombers'!$H$110 -> 0 | K60: ='Ghetto Bombers'!$H$111 -> 0 | L60: ='Ghetto Bombers'!$D$112 -> f
A61: 94 | B61: ='Thunder Ducks'!$A$85 -> 19 | C61: ='Thunder Ducks'!$D$1 -> Thunder Ducks | D61: ='Thunder Ducks'!$D$85 -> 0 | E61: ='Thunder Ducks'!$D$86 -> 0 | F61: ='Thunder Ducks'!$H$88 ->  | G61: ='Thunder Ducks'!$H$85 -> 0 | H61: ='Thunder Ducks'!$F$8 -> 4 | I61: N | J61: ='Thunder Ducks'!$H$86 -> 0 | K61: ='Thunder Ducks'!$H$87 -> 0 | L61: ='Thunder Ducks'!$D$88 -> f
A62: 95 | B62: ='Thunder Ducks'!$A$89 -> 20 | C62: ='Thunder Ducks'!$D$1 -> Thunder Ducks | D62: ='Thunder Ducks'!$D$89 -> 0 | E62: ='Thunder Ducks'!$D$90 -> 0 | F62: ='Thunder Ducks'!$H$92 ->  | G62: ='Thunder Ducks'!$H$89 -> 0 | H62: ='Thunder Ducks'!$F$8 -> 4 | I62: N | J62: ='Thunder Ducks'!$H$90 -> 0 | K62: ='Thunder Ducks'!$H$91 -> 0 | L62: ='Thunder Ducks'!$D$92 -> f
A63: 96 | B63: ='Thunder Ducks'!$A$93 -> 21 | C63: ='Thunder Ducks'!$D$1 -> Thunder Ducks | D63: ='Thunder Ducks'!$D$93 -> 0 | E63: ='Thunder Ducks'!$D$94 -> 0 | F63: ='Thunder Ducks'!$H$96 ->  | G63: ='Thunder Ducks'!$H$93 -> 0 | H63: ='Thunder Ducks'!$F$8 -> 4 | I63: N | J63: ='Thunder Ducks'!$H$94 -> 0 | K63: ='Thunder Ducks'!$H$95 -> 0 | L63: ='Thunder Ducks'!$D$96 -> f
A64: 97 | B64: ='Thunder Ducks'!$A$97 -> 22 | C64: ='Thunder Ducks'!$D$1 -> Thunder Ducks | D64: ='Thunder Ducks'!$D$97 -> 0 | E64: ='Thunder Ducks'!$D$98 -> 0 | F64: ='Thunder Ducks'!$H$100 ->  | G64: ='Thunder Ducks'!$H$97 -> 0 | H64: ='Thunder Ducks'!$F$8 -> 4 | I64: N | J64: ='Thunder Ducks'!$H$98 -> 0 | K64: ='Thunder Ducks'!$H$99 -> 0 | L64: ='Thunder Ducks'!$D$100 -> f
A65: 98 | B65: ='Thunder Ducks'!$A$101 -> 23 | C65: ='Thunder Ducks'!$D$1 -> Thunder Ducks | D65: ='Thunder Ducks'!$D$101 -> 0 | E65: ='Thunder Ducks'!$D$102 -> 0 | F65: ='Thunder Ducks'!$H$104 ->  | G65: ='Thunder Ducks'!$H$101 -> 0 | H65: ='Thunder Ducks'!$F$8 -> 4 | I65: N | J65: ='Thunder Ducks'!$H$102 -> 0 | K65: ='Thunder Ducks'!$H$103 -> 0 | L65: ='Thunder Ducks'!$D$104 -> f
A66: 99 | B66: ='Thunder Ducks'!$A$105 -> 24 | C66: ='Thunder Ducks'!$D$1 -> Thunder Ducks | D66: ='Thunder Ducks'!$D$105 -> 0 | E66: ='Thunder Ducks'!$D$106 -> 0 | F66: ='Thunder Ducks'!$H$108 ->  | G66: ='Thunder Ducks'!$H$105 -> 0 | H66: ='Thunder Ducks'!$F$8 -> 4 | I66: =IF(K66<(H66*2.5),"N","Y") -> N | J66: ='Thunder Ducks'!$H$106 -> 0 | K66: ='Thunder Ducks'!$H$107 -> 0 | L66: ='Thunder Ducks'!$D$108 -> f
A67: 100 | B67: ='Thunder Ducks'!$A$109 -> 25 | C67: ='Thunder Ducks'!$D$1 -> Thunder Ducks | D67: ='Thunder Ducks'!$D$109 -> 0 | E67: ='Thunder Ducks'!$D$110 -> 0 | F67: ='Thunder Ducks'!$H$112 ->  | G67: ='Thunder Ducks'!$H$109 -> 0 | H67: ='Thunder Ducks'!$F$8 -> 4 | I67: N | J67: ='Thunder Ducks'!$H$110 -> 0 | K67: ='Thunder Ducks'!$H$111 -> 0 | L67: ='Thunder Ducks'!$D$112 -> f
A68: 122 | B68: ='X Team'!$A$97 -> 22 | C68: ='X Team'!$D$1 -> X Team | D68: ='X Team'!$D$97 -> 0 | E68: ='X Team'!$D$98 -> 0 | F68: ='X Team'!$H$100 ->  | G68: ='X Team'!$H$97 -> 0 | H68: ='X Team'!$F$8 -> 7 | I68: N | J68: ='X Team'!$H$98 -> 0 | K68: ='X Team'!$H$99 -> 0 | L68: ='X Team'!$D$100 -> f
A69: 123 | B69: ='X Team'!$A$101 -> 23 | C69: ='X Team'!$D$1 -> X Team | D69: ='X Team'!$D$101 -> 0 | E69: ='X Team'!$D$102 -> 0 | F69: ='X Team'!$H$104 ->  | G69: ='X Team'!$H$101 -> 0 | H69: ='X Team'!$F$8 -> 7 | I69: N | J69: ='X Team'!$H$102 -> 0 | K69: ='X Team'!$H$103 -> 0 | L69: ='X Team'!$D$104 -> f
A70: 124 | B70: ='X Team'!$A$105 -> 24 | C70: ='X Team'!$D$1 -> X Team | D70: ='X Team'!$D$105 -> 0 | E70: ='X Team'!$D$106 -> 0 | F70: ='X Team'!$H$108 ->  | G70: ='X Team'!$H$105 -> 0 | H70: ='X Team'!$F$8 -> 7 | I70: N | J70: ='X Team'!$H$106 -> 0 | K70: ='X Team'!$H$107 -> 0 | L70: ='X Team'!$D$108 -> f
A71: 125 | B71: ='X Team'!$A$109 -> 25 | C71: ='X Team'!$D$1 -> X Team | D71: ='X Team'!$D$109 -> 0 | E71: ='X Team'!$D$110 -> 0 | F71: ='X Team'!$H$112 ->  | G71: ='X Team'!$H$109 -> 0 | H71: ='X Team'!$F$8 -> 7 | I71: N | J71: ='X Team'!$H$110 -> 0 | K71: ='X Team'!$H$111 -> 0 | L71: ='X Team'!$D$112 -> f
A72: 144 | B72: ='XXX Team'!$A$85 -> 19 | C72: ='XXX Team'!$D$1 -> XXX Team | D72: ='XXX Team'!$D$85 -> 0 | E72: ='XXX Team'!$D$86 -> 0 | F72: ='XXX Team'!$H$88 ->  | G72: ='XXX Team'!$H$85 -> 0 | H72: ='XXX Team'!$F$8 -> 7 | I72: N | J72: ='XXX Team'!$H$86 -> 0 | K72: ='XXX Team'!$H$87 -> 0 | L72: ='XXX Team'!$D$88 -> f
A73: 145 | B73: ='XXX Team'!$A$89 -> 20 | C73: ='XXX Team'!$D$1 -> XXX Team | D73: ='XXX Team'!$D$89 -> 0 | E73: ='XXX Team'!$D$90 -> 0 | F73: ='XXX Team'!$H$92 ->  | G73: ='XXX Team'!$H$89 -> 0 | H73: ='XXX Team'!$F$8 -> 7 | I73: N | J73: ='XXX Team'!$H$90 -> 0 | K73: ='XXX Team'!$H$91 -> 0 | L73: ='XXX Team'!$D$92 -> f
A74: 146 | B74: ='XXX Team'!$A$93 -> 21 | C74: ='XXX Team'!$D$1 -> XXX Team | D74: ='XXX Team'!$D$93 -> 0 | E74: ='XXX Team'!$D$94 -> 0 | F74: ='XXX Team'!$H$96 ->  | G74: ='XXX Team'!$H$93 -> 0 | H74: ='XXX Team'!$F$8 -> 7 | I74: N | J74: ='XXX Team'!$H$94 -> 0 | K74: ='XXX Team'!$H$95 -> 0 | L74: ='XXX Team'!$D$96 -> f
A75: 147 | B75: ='XXX Team'!$A$97 -> 22 | C75: ='XXX Team'!$D$1 -> XXX Team | D75: ='XXX Team'!$D$97 -> 0 | E75: ='XXX Team'!$D$98 -> 0 | F75: ='XXX Team'!$H$100 ->  | G75: ='XXX Team'!$H$97 -> 0 | H75: ='XXX Team'!$F$8 -> 7 | I75: N | J75: ='XXX Team'!$H$98 -> 0 | K75: ='XXX Team'!$H$99 -> 0 | L75: ='XXX Team'!$D$100 -> f
A76: 148 | B76: ='XXX Team'!$A$101 -> 23 | C76: ='XXX Team'!$D$1 -> XXX Team | D76: ='XXX Team'!$D$101 -> 0 | E76: ='XXX Team'!$D$102 -> 0 | F76: ='XXX Team'!$H$104 ->  | G76: ='XXX Team'!$H$101 -> 0 | H76: ='XXX Team'!$F$8 -> 7 | I76: N | J76: ='XXX Team'!$H$102 -> 0 | K76: ='XXX Team'!$H$103 -> 0 | L76: ='XXX Team'!$D$104 -> f
A77: 149 | B77: ='XXX Team'!$A$105 -> 24 | C77: ='XXX Team'!$D$1 -> XXX Team | D77: ='XXX Team'!$D$105 -> 0 | E77: ='XXX Team'!$D$106 -> 0 | F77: ='XXX Team'!$H$108 ->  | G77: ='XXX Team'!$H$105 -> 0 | H77: ='XXX Team'!$F$8 -> 7 | I77: N | J77: ='XXX Team'!$H$106 -> 0 | K77: ='XXX Team'!$H$107 -> 0 | L77: ='XXX Team'!$D$108 -> f
A78: 150 | B78: ='XXX Team'!$A$109 -> 25 | C78: ='XXX Team'!$D$1 -> XXX Team | D78: ='XXX Team'!$D$109 -> 0 | E78: ='XXX Team'!$D$110 -> 0 | F78: ='XXX Team'!$H$112 ->  | G78: ='XXX Team'!$H$109 -> 0 | H78: ='XXX Team'!$F$8 -> 7 | I78: N | J78: ='XXX Team'!$H$110 -> 0 | K78: ='XXX Team'!$H$111 -> 0 | L78: ='XXX Team'!$D$112 -> f
A79: 189 | B79: ='XX Team'!$A$65 -> 14 | C79: ='XX Team'!$D$1 -> XX Team | D79: ='XX Team'!$D$65 -> 0 | E79: ='XX Team'!$D$66 -> 0 | F79: ='XX Team'!$H$68 ->  | G79: ='XX Team'!$H$65 -> 0 | H79: ='XX Team'!$F$8 -> 6 | I79: N | J79: ='XX Team'!$H$66 -> 0 | K79: ='XX Team'!$H$67 -> 0 | L79: ='XX Team'!$D$68 -> f
A80: 190 | B80: ='XX Team'!$A$69 -> 15 | C80: ='XX Team'!$D$1 -> XX Team | D80: ='XX Team'!$D$69 -> 0 | E80: ='XX Team'!$D$70 -> 0 | F80: ='XX Team'!$H$72 ->  | G80: ='XX Team'!$H$69 -> 0 | H80: ='XX Team'!$F$8 -> 6 | I80: N | J80: ='XX Team'!$H$70 -> 0 | K80: ='XX Team'!$H$71 -> 0 | L80: ='XX Team'!$D$72 -> f
A81: 191 | B81: ='XX Team'!$A$73 -> 16 | C81: ='XX Team'!$D$1 -> XX Team | D81: ='XX Team'!$D$73 -> 0 | E81: ='XX Team'!$D$74 -> 0 | F81: ='XX Team'!$H$76 ->  | G81: ='XX Team'!$H$73 -> 0 | H81: ='XX Team'!$F$8 -> 6 | I81: N | J81: ='XX Team'!$H$74 -> 0 | K81: ='XX Team'!$H$75 -> 0 | L81: ='XX Team'!$D$76 -> f
A82: 192 | B82: ='XX Team'!$A$77 -> 17 | C82: ='XX Team'!$D$1 -> XX Team | D82: ='XX Team'!$D$77 -> 0 | E82: ='XX Team'!$D$78 -> 0 | F82: ='XX Team'!$H$80 ->  | G82: ='XX Team'!$H$77 -> 0 | H82: ='XX Team'!$F$8 -> 6 | I82: N | J82: ='XX Team'!$H$78 -> 0 | K82: ='XX Team'!$H$79 -> 0 | L82: ='XX Team'!$D$80 -> f
A83: 193 | B83: ='XX Team'!$A$81 -> 18 | C83: ='XX Team'!$D$1 -> XX Team | D83: ='XX Team'!$D$81 -> 0 | E83: ='XX Team'!$D$82 -> 0 | F83: ='XX Team'!$H$84 ->  | G83: ='XX Team'!$H$81 -> 0 | H83: ='XX Team'!$F$8 -> 6 | I83: N | J83: ='XX Team'!$H$82 -> 0 | K83: ='XX Team'!$H$83 -> 0 | L83: ='XX Team'!$D$84 -> f
A84: 194 | B84: ='XX Team'!$A$85 -> 19 | C84: ='XX Team'!$D$1 -> XX Team | D84: ='XX Team'!$D$85 -> 0 | E84: ='XX Team'!$D$86 -> 0 | F84: ='XX Team'!$H$88 ->  | G84: ='XX Team'!$H$85 -> 0 | H84: ='XX Team'!$F$8 -> 6 | I84: N | J84: ='XX Team'!$H$86 -> 0 | K84: ='XX Team'!$H$87 -> 0 | L84: ='XX Team'!$D$88 -> f
A85: 195 | B85: ='XX Team'!$A$89 -> 20 | C85: ='XX Team'!$D$1 -> XX Team | D85: ='XX Team'!$D$89 -> 0 | E85: ='XX Team'!$D$90 -> 0 | F85: ='XX Team'!$H$92 ->  | G85: ='XX Team'!$H$89 -> 0 | H85: ='XX Team'!$F$8 -> 6 | I85: N | J85: ='XX Team'!$H$90 -> 0 | K85: ='XX Team'!$H$91 -> 0 | L85: ='XX Team'!$D$92 -> f
A86: 196 | B86: ='XX Team'!$A$93 -> 21 | C86: ='XX Team'!$D$1 -> XX Team | D86: ='XX Team'!$D$93 -> 0 | E86: ='XX Team'!$D$94 -> 0 | F86: ='XX Team'!$H$96 ->  | G86: ='XX Team'!$H$93 -> 0 | H86: ='XX Team'!$F$8 -> 6 | I86: N | J86: ='XX Team'!$H$94 -> 0 | K86: ='XX Team'!$H$95 -> 0 | L86: ='XX Team'!$D$96 -> f
A87: 197 | B87: ='XX Team'!$A$97 -> 22 | C87: ='XX Team'!$D$1 -> XX Team | D87: ='XX Team'!$D$97 -> 0 | E87: ='XX Team'!$D$98 -> 0 | F87: ='XX Team'!$H$100 ->  | G87: ='XX Team'!$H$97 -> 0 | H87: ='XX Team'!$F$8 -> 6 | I87: N | J87: ='XX Team'!$H$98 -> 0 | K87: ='XX Team'!$H$99 -> 0 | L87: ='XX Team'!$D$100 -> f
A88: 198 | B88: ='XX Team'!$A$101 -> 23 | C88: ='XX Team'!$D$1 -> XX Team | D88: ='XX Team'!$D$101 -> 0 | E88: ='XX Team'!$D$102 -> 0 | F88: ='XX Team'!$H$104 ->  | G88: ='XX Team'!$H$101 -> 0 | H88: ='XX Team'!$F$8 -> 6 | I88: N | J88: ='XX Team'!$H$102 -> 0 | K88: ='XX Team'!$H$103 -> 0 | L88: ='XX Team'!$D$104 -> f
A89: 199 | B89: ='XX Team'!$A$105 -> 24 | C89: ='XX Team'!$D$1 -> XX Team | D89: ='XX Team'!$D$105 -> 0 | E89: ='XX Team'!$D$106 -> 0 | F89: ='XX Team'!$H$108 ->  | G89: ='XX Team'!$H$105 -> 0 | H89: ='XX Team'!$F$8 -> 6 | I89: N | J89: ='XX Team'!$H$106 -> 0 | K89: ='XX Team'!$H$107 -> 0 | L89: ='XX Team'!$D$108 -> f
A90: 200 | B90: ='XX Team'!$A$109 -> 25 | C90: ='XX Team'!$D$1 -> XX Team | D90: ='XX Team'!$D$109 -> 0 | E90: ='XX Team'!$D$110 -> 0 | F90: ='XX Team'!$H$112 ->  | G90: ='XX Team'!$H$109 -> 0 | H90: ='XX Team'!$F$8 -> 6 | I90: N | J90: ='XX Team'!$H$110 -> 0 | K90: ='XX Team'!$H$111 -> 0 | L90: ='XX Team'!$D$112 -> f
A91: 218 | B91: ='YY Team'!$A$81 -> 18 | C91: ='YY Team'!$D$1 -> YY Team | D91: ='YY Team'!$D$81 -> 0 | E91: ='YY Team'!$D$82 -> 0 | F91: ='YY Team'!$H$84 ->  | G91: ='YY Team'!$H$81 -> 0 | H91: ='YY Team'!$F$8 -> 7 | I91: N | J91: ='YY Team'!$H$82 -> 0 | K91: ='YY Team'!$H$83 -> 0 | L91: ='YY Team'!$D$84 -> f
A92: 219 | B92: ='YY Team'!$A$85 -> 19 | C92: ='YY Team'!$D$1 -> YY Team | D92: ='YY Team'!$D$85 -> 0 | E92: ='YY Team'!$D$86 -> 0 | F92: ='YY Team'!$H$88 ->  | G92: ='YY Team'!$H$85 -> 0 | H92: ='YY Team'!$F$8 -> 7 | I92: N | J92: ='YY Team'!$H$86 -> 0 | K92: ='YY Team'!$H$87 -> 0 | L92: ='YY Team'!$D$88 -> f
A93: 220 | B93: ='YY Team'!$A$89 -> 20 | C93: ='YY Team'!$D$1 -> YY Team | D93: ='YY Team'!$D$89 -> 0 | E93: ='YY Team'!$D$90 -> 0 | F93: ='YY Team'!$H$92 ->  | G93: ='YY Team'!$H$89 -> 0 | H93: ='YY Team'!$F$8 -> 7 | I93: N | J93: ='YY Team'!$H$90 -> 0 | K93: ='YY Team'!$H$91 -> 0 | L93: ='YY Team'!$D$92 -> f
A94: 221 | B94: ='YY Team'!$A$93 -> 21 | C94: ='YY Team'!$D$1 -> YY Team | D94: ='YY Team'!$D$93 -> 0 | E94: ='YY Team'!$D$94 -> 0 | F94: ='YY Team'!$H$96 ->  | G94: ='YY Team'!$H$93 -> 0 | H94: ='YY Team'!$F$8 -> 7 | I94: N | J94: ='YY Team'!$H$94 -> 0 | K94: ='YY Team'!$H$95 -> 0 | L94: ='YY Team'!$D$96 -> f
A95: 222 | B95: ='YY Team'!$A$97 -> 22 | C95: ='YY Team'!$D$1 -> YY Team | D95: ='YY Team'!$D$97 -> 0 | E95: ='YY Team'!$D$98 -> 0 | F95: ='YY Team'!$H$100 ->  | G95: ='YY Team'!$H$97 -> 0 | H95: ='YY Team'!$F$8 -> 7 | I95: N | J95: ='YY Team'!$H$98 -> 0 | K95: ='YY Team'!$H$99 -> 0 | L95: ='YY Team'!$D$100 -> f
A96: 223 | B96: ='YY Team'!$A$101 -> 23 | C96: ='YY Team'!$D$1 -> YY Team | D96: ='YY Team'!$D$101 -> 0 | E96: ='YY Team'!$D$102 -> 0 | F96: ='YY Team'!$H$104 ->  | G96: ='YY Team'!$H$101 -> 0 | H96: ='YY Team'!$F$8 -> 7 | I96: N | J96: ='YY Team'!$H$102 -> 0 | K96: ='YY Team'!$H$103 -> 0 | L96: ='YY Team'!$D$104 -> f
A97: 224 | B97: ='YY Team'!$A$105 -> 24 | C97: ='YY Team'!$D$1 -> YY Team | D97: ='YY Team'!$D$105 -> 0 | E97: ='YY Team'!$D$106 -> 0 | F97: ='YY Team'!$H$108 ->  | G97: ='YY Team'!$H$105 -> 0 | H97: ='YY Team'!$F$8 -> 7 | I97: N | J97: ='YY Team'!$H$106 -> 0 | K97: ='YY Team'!$H$107 -> 0 | L97: ='YY Team'!$D$108 -> f
A98: 225 | B98: ='YY Team'!$A$109 -> 25 | C98: ='YY Team'!$D$1 -> YY Team | D98: ='YY Team'!$D$109 -> 0 | E98: ='YY Team'!$D$110 -> 0 | F98: ='YY Team'!$H$112 ->  | G98: ='YY Team'!$H$109 -> 0 | H98: ='YY Team'!$F$8 -> 7 | I98: =IF(K98<(H98*2.5),"N","Y") -> N | J98: ='YY Team'!$H$110 -> 0 | K98: ='YY Team'!$H$111 -> 0 | L98: ='YY Team'!$D$112 -> f
A99: 187 | B99: ='XX Team'!$A$57 -> 12 | C99: ='XX Team'!$D$1 -> XX Team | D99: ='XX Team'!$D$57 -> 0 | E99: ='XX Team'!$D$58 -> 0 | F99: ='XX Team'!$H$60 ->  | G99: ='XX Team'!$H$57 -> 0 | H99: ='XX Team'!$F$8 -> 6 | I99: N | J99: ='XX Team'!$H$58 -> 0 | K99: ='XX Team'!$H$59 -> 0 | L99: ='XX Team'!$D$60 -> f
A100: 188 | B100: ='XX Team'!$A$61 -> 13 | C100: ='XX Team'!$D$1 -> XX Team | D100: ='XX Team'!$D$61 -> 0 | E100: ='XX Team'!$D$62 -> 0 | F100: ='XX Team'!$H$64 ->  | G100: ='XX Team'!$H$61 -> 0 | H100: ='XX Team'!$F$8 -> 6 | I100: N | J100: ='XX Team'!$H$62 -> 0 | K100: ='XX Team'!$H$63 -> 0 | L100: ='XX Team'!$D$64 -> f
A101: 213 | B101: ='YY Team'!$A$61 -> 13 | C101: ='YY Team'!$D$1 -> YY Team | D101: ='YY Team'!$D$61 -> 0 | E101: ='YY Team'!$D$62 -> 0 | F101: ='YY Team'!$H$64 ->  | G101: ='YY Team'!$H$61 -> 0 | H101: ='YY Team'!$F$8 -> 7 | I101: N | J101: ='YY Team'!$H$62 -> 0 | K101: ='YY Team'!$H$63 -> 0 | L101: ='YY Team'!$D$64 -> f
A102: 215 | B102: ='YY Team'!$A$69 -> 15 | C102: ='YY Team'!$D$1 -> YY Team | D102: ='YY Team'!$D$69 -> 0 | E102: ='YY Team'!$D$70 -> 0 | F102: ='YY Team'!$H$72 ->  | G102: ='YY Team'!$H$69 -> 0 | H102: ='YY Team'!$F$8 -> 7 | I102: N | J102: ='YY Team'!$H$70 -> 0 | K102: ='YY Team'!$H$71 -> 0 | L102: ='YY Team'!$D$72 -> f
A103: 44 | B103: =BCBC!$A$85 -> 19 | C103: =BCBC!$D$1 -> BCBC | D103: =BCBC!$D$85 -> 0 | E103: =BCBC!$D$86 -> 0 | F103: =BCBC!$H$88 ->  | G103: =BCBC!$H$85 -> 0 | H103: =BCBC!$F$8 -> 4 | I103: N | J103: =BCBC!$H$86 -> 0 | K103: =BCBC!$H$87 -> 0 | L103: =BCBC!$D$88 -> f
A104: 217 | B104: ='YY Team'!$A$77 -> 17 | C104: ='YY Team'!$D$1 -> YY Team | D104: ='YY Team'!$D$77 -> 0 | E104: ='YY Team'!$D$78 -> 0 | F104: ='YY Team'!$H$80 ->  | G104: ='YY Team'!$H$77 -> 0 | H104: ='YY Team'!$F$8 -> 7 | I104: N | J104: ='YY Team'!$H$78 -> 0 | K104: ='YY Team'!$H$79 -> 0 | L104: ='YY Team'!$D$80 -> f
A105: 216 | B105: ='YY Team'!$A$73 -> 16 | C105: ='YY Team'!$D$1 -> YY Team | D105: ='YY Team'!$D$73 -> 0 | E105: ='YY Team'!$D$74 -> 0 | F105: ='YY Team'!$H$76 ->  | G105: ='YY Team'!$H$73 -> 0 | H105: ='YY Team'!$F$8 -> 7 | I105: N | J105: ='YY Team'!$H$74 -> 0 | K105: ='YY Team'!$H$75 -> 0 | L105: ='YY Team'!$D$76 -> f
A106: 214 | B106: ='YY Team'!$A$65 -> 14 | C106: ='YY Team'!$D$1 -> YY Team | D106: ='YY Team'!$D$65 -> 0 | E106: ='YY Team'!$D$66 -> 0 | F106: ='YY Team'!$H$68 ->  | G106: ='YY Team'!$H$65 -> 0 | H106: ='YY Team'!$F$8 -> 7 | I106: N | J106: ='YY Team'!$H$66 -> 0 | K106: ='YY Team'!$H$67 -> 0 | L106: ='YY Team'!$D$68 -> f
A107: 186 | B107: ='XX Team'!$A$53 -> 11 | C107: ='XX Team'!$D$1 -> XX Team | D107: ='XX Team'!$D$53 -> 0 | E107: ='XX Team'!$D$54 -> 0 | F107: ='XX Team'!$H$56 ->  | G107: ='XX Team'!$H$53 -> 0 | H107: ='XX Team'!$F$8 -> 6 | I107: N | J107: ='XX Team'!$H$54 -> 0 | K107: ='XX Team'!$H$55 -> 0 | L107: ='XX Team'!$D$56 -> f
A108: 118 | B108: ='X Team'!$A$81 -> 18 | C108: ='X Team'!$D$1 -> X Team | D108: ='X Team'!$D$81 -> 0 | E108: ='X Team'!$D$82 -> 0 | F108: ='X Team'!$H$84 ->  | G108: ='X Team'!$H$81 -> 0 | H108: ='X Team'!$F$8 -> 7 | I108: N | J108: ='X Team'!$H$82 -> 0 | K108: ='X Team'!$H$83 -> 0 | L108: ='X Team'!$D$84 -> f
A109: 114 | B109: ='X Team'!$A$65 -> 14 | C109: ='X Team'!$D$1 -> X Team | D109: ='X Team'!$D$65 -> 0 | E109: ='X Team'!$D$66 -> 0 | F109: ='X Team'!$H$68 ->  | G109: ='X Team'!$H$65 -> 0 | H109: ='X Team'!$F$8 -> 7 | I109: N | J109: ='X Team'!$H$66 -> 0 | K109: ='X Team'!$H$67 -> 0 | L109: ='X Team'!$D$68 -> f
A110: 67 | B110: ='Ghetto Bombers'!$A$77 -> 17 | C110: ='Ghetto Bombers'!$D$1 -> Ghetto Bombers | D110: ='Ghetto Bombers'!$D$77 -> 0 | E110: ='Ghetto Bombers'!$D$78 -> 0 | F110: ='Ghetto Bombers'!$H$80 ->  | G110: ='Ghetto Bombers'!$H$77 -> 0 | H110: ='Ghetto Bombers'!$F$8 -> 4 | I110: N | J110: ='Ghetto Bombers'!$H$78 -> 0 | K110: ='Ghetto Bombers'!$H$79 -> 0 | L110: ='Ghetto Bombers'!$D$80 -> f
A111: 142 | B111: ='XXX Team'!$A$77 -> 17 | C111: ='XXX Team'!$D$1 -> XXX Team | D111: ='XXX Team'!$D$77 -> 0 | E111: ='XXX Team'!$D$78 -> 0 | F111: ='XXX Team'!$H$80 ->  | G111: ='XXX Team'!$H$77 -> 0 | H111: ='XXX Team'!$F$8 -> 7 | I111: N | J111: ='XXX Team'!$H$78 -> 0 | K111: ='XXX Team'!$H$79 -> 0 | L111: ='XXX Team'!$D$80 -> f
A112: 115 | B112: ='X Team'!$A$69 -> 15 | C112: ='X Team'!$D$1 -> X Team | D112: ='X Team'!$D$69 -> 0 | E112: ='X Team'!$D$70 -> 0 | F112: ='X Team'!$H$72 ->  | G112: ='X Team'!$H$69 -> 0 | H112: ='X Team'!$F$8 -> 7 | I112: N | J112: ='X Team'!$H$70 -> 0 | K112: ='X Team'!$H$71 -> 0 | L112: ='X Team'!$D$72 -> f
A113: 17 | B113: ='Bad Pitches'!$A$77 -> 17 | C113: ='Bad Pitches'!$D$1 -> Bad Pitches | D113: ='Bad Pitches'!$D$77 -> 0 | E113: ='Bad Pitches'!$D$78 -> 0 | F113: ='Bad Pitches'!$H$80 ->  | G113: ='Bad Pitches'!$H$77 -> 0 | H113: ='Bad Pitches'!$F$8 -> 3 | I113: N | J113: ='Bad Pitches'!$H$78 -> 0 | K113: ='Bad Pitches'!$H$79 -> 0 | L113: ='Bad Pitches'!$D$80 -> f
A114: 143 | B114: ='XXX Team'!$A$81 -> 18 | C114: ='XXX Team'!$D$1 -> XXX Team | D114: ='XXX Team'!$D$81 -> 0 | E114: ='XXX Team'!$D$82 -> 0 | F114: ='XXX Team'!$H$84 ->  | G114: ='XXX Team'!$H$81 -> 0 | H114: ='XXX Team'!$F$8 -> 7 | I114: N | J114: ='XXX Team'!$H$82 -> 0 | K114: ='XXX Team'!$H$83 -> 0 | L114: ='XXX Team'!$D$84 -> f
A115: 120 | B115: ='X Team'!$A$89 -> 20 | C115: ='X Team'!$D$1 -> X Team | D115: ='X Team'!$D$89 -> 0 | E115: ='X Team'!$D$90 -> 0 | F115: ='X Team'!$H$92 ->  | G115: ='X Team'!$H$89 -> 0 | H115: ='X Team'!$F$8 -> 7 | I115: N | J115: ='X Team'!$H$90 -> 0 | K115: ='X Team'!$H$91 -> 0 | L115: ='X Team'!$D$92 -> f
A116: 116 | B116: ='X Team'!$A$73 -> 16 | C116: ='X Team'!$D$1 -> X Team | D116: ='X Team'!$D$73 -> 0 | E116: ='X Team'!$D$74 -> 0 | F116: ='X Team'!$H$76 ->  | G116: ='X Team'!$H$73 -> 0 | H116: ='X Team'!$F$8 -> 7 | I116: N | J116: ='X Team'!$H$74 -> 0 | K116: ='X Team'!$H$75 -> 0 | L116: ='X Team'!$D$76 -> f
A117: 117 | B117: ='X Team'!$A$77 -> 17 | C117: ='X Team'!$D$1 -> X Team | D117: ='X Team'!$D$77 -> 0 | E117: ='X Team'!$D$78 -> 0 | F117: ='X Team'!$H$80 ->  | G117: ='X Team'!$H$77 -> 0 | H117: ='X Team'!$F$8 -> 7 | I117: N | J117: ='X Team'!$H$78 -> 0 | K117: ='X Team'!$H$79 -> 0 | L117: ='X Team'!$D$80 -> f
A118: 15 | B118: ='Bad Pitches'!$A$69 -> 15 | C118: ='Bad Pitches'!$D$1 -> Bad Pitches | D118: ='Bad Pitches'!$D$69 -> 0 | E118: ='Bad Pitches'!$D$70 -> 0 | F118: ='Bad Pitches'!$H$72 ->  | G118: ='Bad Pitches'!$H$69 -> 0 | H118: ='Bad Pitches'!$F$8 -> 3 | I118: N | J118: ='Bad Pitches'!$H$70 -> 0 | K118: ='Bad Pitches'!$H$71 -> 0 | L118: ='Bad Pitches'!$D$72 -> f
A119: 141 | B119: ='XXX Team'!$A$73 -> 16 | C119: ='XXX Team'!$D$1 -> XXX Team | D119: ='XXX Team'!$D$73 -> 0 | E119: ='XXX Team'!$D$74 -> 0 | F119: ='XXX Team'!$H$76 ->  | G119: ='XXX Team'!$H$73 -> 0 | H119: ='XXX Team'!$F$8 -> 7 | I119: N | J119: ='XXX Team'!$H$74 -> 0 | K119: ='XXX Team'!$H$75 -> 0 | L119: ='XXX Team'!$D$76 -> f
A120: 20 | B120: ='Bad Pitches'!$A$89 -> 20 | C120: ='Bad Pitches'!$D$1 -> Bad Pitches | D120: ='Bad Pitches'!$D$89 -> 0 | E120: ='Bad Pitches'!$D$90 -> 0 | F120: ='Bad Pitches'!$H$92 ->  | G120: ='Bad Pitches'!$H$89 -> 0 | H120: ='Bad Pitches'!$F$8 -> 3 | I120: N | J120: ='Bad Pitches'!$H$90 -> 0 | K120: ='Bad Pitches'!$H$91 -> 0 | L120: ='Bad Pitches'!$D$92 -> f
A121: 16 | B121: ='Bad Pitches'!$A$73 -> 16 | C121: ='Bad Pitches'!$D$1 -> Bad Pitches | D121: ='Bad Pitches'!$D$73 -> 0 | E121: ='Bad Pitches'!$D$74 -> 0 | F121: ='Bad Pitches'!$H$76 ->  | G121: ='Bad Pitches'!$H$73 -> 0 | H121: ='Bad Pitches'!$F$8 -> 3 | I121: N | J121: ='Bad Pitches'!$H$74 -> 0 | K121: ='Bad Pitches'!$H$75 -> 0 | L121: ='Bad Pitches'!$D$76 -> f
A122: 64 | B122: ='Ghetto Bombers'!$A$65 -> 14 | C122: ='Ghetto Bombers'!$D$1 -> Ghetto Bombers | D122: ='Ghetto Bombers'!$D$65 -> Danielle | E122: ='Ghetto Bombers'!$D$66 -> Henesh | F122: ='Ghetto Bombers'!$H$68 -> 0.7777777778 | G122: ='Ghetto Bombers'!$H$65 -> 9 | H122: ='Ghetto Bombers'!$F$8 -> 4 | I122: N | J122: ='Ghetto Bombers'!$H$66 -> 7 | K122: ='Ghetto Bombers'!$H$67 -> 9 | L122: ='Ghetto Bombers'!$D$68 -> f
A123: 13 | B123: ='Bad Pitches'!$A$61 -> 13 | C123: ='Bad Pitches'!$D$1 -> Bad Pitches | D123: ='Bad Pitches'!$D$61 -> Karson | E123: ='Bad Pitches'!$D$62 -> Vanderver | F123: ='Bad Pitches'!$H$64 -> 0.7142857143 | G123: ='Bad Pitches'!$H$61 -> 7 | H123: ='Bad Pitches'!$F$8 -> 3 | I123: N | J123: ='Bad Pitches'!$H$62 -> 5 | K123: ='Bad Pitches'!$H$63 -> 7 | L123: ='Bad Pitches'!$D$64 -> f
A124: 85 | B124: ='Thunder Ducks'!$A$49 -> 10 | C124: ='Thunder Ducks'!$D$1 -> Thunder Ducks | D124: ='Thunder Ducks'!$D$49 -> Ashley | E124: ='Thunder Ducks'!$D$50 -> Hall | F124: ='Thunder Ducks'!$H$52 -> 0.6666666667 | G124: ='Thunder Ducks'!$H$49 -> 6 | H124: ='Thunder Ducks'!$F$8 -> 4 | I124: N | J124: ='Thunder Ducks'!$H$50 -> 4 | K124: ='Thunder Ducks'!$H$51 -> 6 | L124: ='Thunder Ducks'!$D$52 -> f
A125: 81 | B125: ='Thunder Ducks'!$A$33 -> 6 | C125: ='Thunder Ducks'!$D$1 -> Thunder Ducks | D125: ='Thunder Ducks'!$D$33 -> Emily | E125: ='Thunder Ducks'!$D$34 -> Ross | F125: ='Thunder Ducks'!$H$36 -> 0.5 | G125: ='Thunder Ducks'!$H$33 -> 6 | H125: ='Thunder Ducks'!$F$8 -> 4 | I125: N | J125: ='Thunder Ducks'!$H$34 -> 3 | K125: ='Thunder Ducks'!$H$35 -> 6 | L125: ='Thunder Ducks'!$D$36 -> f
A126: 41 | B126: =BCBC!$A$73 -> 16 | C126: =BCBC!$D$1 -> BCBC | D126: =BCBC!$D$73 -> Karen | E126: =BCBC!$D$74 -> Springer | F126: =BCBC!$H$76 -> 0.5 | G126: =BCBC!$H$73 -> 4 | H126: =BCBC!$F$8 -> 4 | I126: N | J126: =BCBC!$H$74 -> 2 | K126: =BCBC!$H$75 -> 4 | L126: =BCBC!$D$76 -> f
A127: 10 | B127: ='Bad Pitches'!$A$49 -> 10 | C127: ='Bad Pitches'!$D$1 -> Bad Pitches | D127: ='Bad Pitches'!$D$49 -> Megan | E127: ='Bad Pitches'!$D$50 -> Timpson | F127: ='Bad Pitches'!$H$52 -> 0.4444444444 | G127: ='Bad Pitches'!$H$49 -> 9 | H127: ='Bad Pitches'!$F$8 -> 3 | I127: Y | J127: ='Bad Pitches'!$H$50 -> 4 | K127: ='Bad Pitches'!$H$51 -> 9 | L127: ='Bad Pitches'!$D$52 -> f
A128: 35 | B128: =BCBC!$A$49 -> 10 | C128: =BCBC!$D$1 -> BCBC | D128: =BCBC!$D$49 -> Sunni | E128: =BCBC!$D$50 -> Jackson | F128: =BCBC!$H$52 -> 0.4285714286 | G128: =BCBC!$H$49 -> 7 | H128: =BCBC!$F$8 -> 4 | I128: N | J128: =BCBC!$H$50 -> 3 | K128: =BCBC!$H$51 -> 7 | L128: =BCBC!$D$52 -> f
A129: 6 | B129: ='Bad Pitches'!$A$33 -> 6 | C129: ='Bad Pitches'!$D$1 -> Bad Pitches | D129: ='Bad Pitches'!$D$33 -> Callianne | E129: ='Bad Pitches'!$D$34 -> Hodson | F129: ='Bad Pitches'!$H$36 -> 0.3333333333 | G129: ='Bad Pitches'!$H$33 -> 9 | H129: ='Bad Pitches'!$F$8 -> 3 | I129: Y | J129: ='Bad Pitches'!$H$34 -> 3 | K129: ='Bad Pitches'!$H$35 -> 9 | L129: ='Bad Pitches'!$D$36 -> f
A130: 62 | B130: ='Ghetto Bombers'!$A$57 -> 12 | C130: ='Ghetto Bombers'!$D$1 -> Ghetto Bombers | D130: ='Ghetto Bombers'!$D$57 -> Ally | E130: ='Ghetto Bombers'!$D$58 -> McAfee | F130: ='Ghetto Bombers'!$H$60 -> 0.3333333333 | G130: ='Ghetto Bombers'!$H$57 -> 3 | H130: ='Ghetto Bombers'!$F$8 -> 4 | I130: =IF(K130<(H130*2.5),"N","Y") -> N | J130: ='Ghetto Bombers'!$H$58 -> 1 | K130: ='Ghetto Bombers'!$H$59 -> 4 | L130: ='Ghetto Bombers'!$D$60 -> f
A131: 12 | B131: ='Bad Pitches'!$A$57 -> 12 | C131: ='Bad Pitches'!$D$1 -> Bad Pitches | D131: ='Bad Pitches'!$D$57 -> Teya | E131: ='Bad Pitches'!$D$58 -> Gasu | F131: ='Bad Pitches'!$H$60 -> 0.2857142857 | G131: ='Bad Pitches'!$H$57 -> 7 | H131: ='Bad Pitches'!$F$8 -> 3 | I131: Y | J131: ='Bad Pitches'!$H$58 -> 2 | K131: ='Bad Pitches'!$H$59 -> 8 | L131: ='Bad Pitches'!$D$60 -> f
A132: 86 | B132: ='Thunder Ducks'!$A$53 -> 11 | C132: ='Thunder Ducks'!$D$1 -> Thunder Ducks | D132: ='Thunder Ducks'!$D$53 -> Kat | E132: ='Thunder Ducks'!$D$54 -> Tiffany | F132: ='Thunder Ducks'!$H$56 -> 0.25 | G132: ='Thunder Ducks'!$H$53 -> 8 | H132: ='Thunder Ducks'!$F$8 -> 4 | I132: N | J132: ='Thunder Ducks'!$H$54 -> 2 | K132: ='Thunder Ducks'!$H$55 -> 8 | L132: ='Thunder Ducks'!$D$56 -> f
A133: 91 | B133: ='Thunder Ducks'!$A$73 -> 16 | C133: ='Thunder Ducks'!$D$1 -> Thunder Ducks | D133: ='Thunder Ducks'!$D$73 -> Paige | E133: ='Thunder Ducks'!$D$74 -> Jackman | F133: ='Thunder Ducks'!$H$76 -> 0.25 | G133: ='Thunder Ducks'!$H$73 -> 4 | H133: ='Thunder Ducks'!$F$8 -> 4 | I133: N | J133: ='Thunder Ducks'!$H$74 -> 1 | K133: ='Thunder Ducks'!$H$75 -> 4 | L133: ='Thunder Ducks'!$D$76 -> f
A134: 8 | B134: ='Bad Pitches'!$A$41 -> 8 | C134: ='Bad Pitches'!$D$1 -> Bad Pitches | D134: ='Bad Pitches'!$D$41 -> Janae | E134: ='Bad Pitches'!$D$42 -> Cook | F134: ='Bad Pitches'!$H$44 -> 0.1428571429 | G134: ='Bad Pitches'!$H$41 -> 7 | H134: ='Bad Pitches'!$F$8 -> 3 | I134: Y | J134: ='Bad Pitches'!$H$42 -> 1 | K134: ='Bad Pitches'!$H$43 -> 8 | L134: ='Bad Pitches'!$D$44 -> f
A135: 43 | B135: =BCBC!$A$81 -> 18 | C135: =BCBC!$D$1 -> BCBC | D135: =BCBC!$D$81 -> Melinda | E135: =BCBC!$D$82 -> 0 | F135: =BCBC!$H$84 -> 0 | G135: =BCBC!$H$81 -> 3 | H135: =BCBC!$F$8 -> 4 | I135: N | J135: =BCBC!$H$82 -> 0 | K135: =BCBC!$H$83 -> 3 | L135: =BCBC!$D$84 -> f
A136: 58 | B136: ='Ghetto Bombers'!$A$41 -> 8 | C136: ='Ghetto Bombers'!$D$1 -> Ghetto Bombers | D136: ='Ghetto Bombers'!$D$41 -> Ali | E136: ='Ghetto Bombers'!$D$42 -> Smith | F136: ='Ghetto Bombers'!$H$44 -> 0 | G136: ='Ghetto Bombers'!$H$41 -> 6 | H136: ='Ghetto Bombers'!$F$8 -> 4 | I136: N | J136: ='Ghetto Bombers'!$H$42 -> 0 | K136: ='Ghetto Bombers'!$H$43 -> 7 | L136: ='Ghetto Bombers'!$D$44 -> f
A137: 87 | B137: ='Thunder Ducks'!$A$57 -> 12 | C137: ='Thunder Ducks'!$D$1 -> Thunder Ducks | D137: ='Thunder Ducks'!$D$57 -> Megan | E137: ='Thunder Ducks'!$D$58 -> Goodman | F137: ='Thunder Ducks'!$H$60 -> 0 | G137: ='Thunder Ducks'!$H$57 -> 4 | H137: ='Thunder Ducks'!$F$8 -> 4 | I137: N | J137: ='Thunder Ducks'!$H$58 -> 0 | K137: ='Thunder Ducks'!$H$59 -> 4 | L137: ='Thunder Ducks'!$D$60 -> f
A138: 89 | B138: ='Thunder Ducks'!$A$65 -> 14 | C138: ='Thunder Ducks'!$D$1 -> Thunder Ducks | D138: ='Thunder Ducks'!$D$65 -> Lindsay | E138: ='Thunder Ducks'!$D$66 -> Pennington | F138: ='Thunder Ducks'!$H$68 -> 0 | G138: ='Thunder Ducks'!$H$65 -> 2 | H138: ='Thunder Ducks'!$F$8 -> 4 | I138: N | J138: ='Thunder Ducks'!$H$66 -> 0 | K138: ='Thunder Ducks'!$H$67 -> 3 | L138: ='Thunder Ducks'!$D$68 -> f
A139: 38 | B139: =BCBC!$A$61 -> 0 | C139: =BCBC!$D$1 -> BCBC | D139: =BCBC!$D$61 -> Robyne | E139: =BCBC!$D$62 -> Oostveen | F139: =BCBC!$H$64 -> 0 | G139: =BCBC!$H$61 -> 5 | H139: =BCBC!$F$8 -> 4 | I139: N | J139: =BCBC!$H$62 -> 0 | K139: =BCBC!$H$63 -> 5 | L139: =BCBC!$D$64 -> f
A140: 66 | B140: ='Ghetto Bombers'!$A$73 -> 16 | C140: ='Ghetto Bombers'!$D$1 -> Ghetto Bombers | D140: ='Ghetto Bombers'!$D$73 -> Britt | E140: ='Ghetto Bombers'!$D$74 -> M | F140: ='Ghetto Bombers'!$H$76 -> 0.75 | G140: ='Ghetto Bombers'!$H$73 -> 4 | H140: ='Ghetto Bombers'!$F$8 -> 4 | I140: N | J140: ='Ghetto Bombers'!$H$74 -> 3 | K140: ='Ghetto Bombers'!$H$75 -> 4 | L140: ='Ghetto Bombers'!$D$76 -> f00
A141: 53 | B141: ='Ghetto Bombers'!$A$21 -> 3 | C141: ='Ghetto Bombers'!$D$1 -> Ghetto Bombers | D141: ='Ghetto Bombers'!$D$21 -> Matt | E141: ='Ghetto Bombers'!$D$22 -> Newbold | F141: ='Ghetto Bombers'!$H$24 -> 0.9411764706 | G141: ='Ghetto Bombers'!$H$21 -> 17 | H141: ='Ghetto Bombers'!$F$8 -> 4 | I141: Y | J141: ='Ghetto Bombers'!$H$22 -> 16 | K141: ='Ghetto Bombers'!$H$23 -> 18 | L141: ='Ghetto Bombers'!$D$24 -> m
A142: 51 | B142: ='Ghetto Bombers'!$A$13 -> 1 | C142: ='Ghetto Bombers'!$D$1 -> Ghetto Bombers | D142: ='Ghetto Bombers'!$D$13 -> Ryan | E142: ='Ghetto Bombers'!$D$14 -> Newbold | F142: ='Ghetto Bombers'!$H$16 -> 0.9230769231 | G142: ='Ghetto Bombers'!$H$13 -> 13 | H142: ='Ghetto Bombers'!$F$8 -> 4 | I142: Y | J142: ='Ghetto Bombers'!$H$14 -> 12 | K142: ='Ghetto Bombers'!$H$15 -> 14 | L142: ='Ghetto Bombers'!$D$16 -> m
A143: 30 | B143: =BCBC!$A$29 -> 5 | C143: =BCBC!$D$1 -> BCBC | D143: =BCBC!$D$29 -> Ben | E143: =BCBC!$D$30 -> Mangum | F143: =BCBC!$H$32 -> 0.9090909091 | G143: =BCBC!$H$29 -> 11 | H143: =BCBC!$F$8 -> 4 | I143: Y | J143: =BCBC!$H$30 -> 10 | K143: =BCBC!$H$31 -> 11 | L143: =BCBC!$D$32 -> m
A144: 36 | B144: =BCBC!$A$53 -> 11 | C144: =BCBC!$D$1 -> BCBC | D144: =BCBC!$D$53 -> Shane | E144: =BCBC!$D$54 -> Singer | F144: =BCBC!$H$56 -> 0.8888888889 | G144: =BCBC!$H$53 -> 9 | H144: =BCBC!$F$8 -> 4 | I144: Y | J144: =BCBC!$H$54 -> 8 | K144: =BCBC!$H$55 -> 10 | L144: =BCBC!$D$56 -> m
A145: 80 | B145: ='Thunder Ducks'!$A$29 -> 5 | C145: ='Thunder Ducks'!$D$1 -> Thunder Ducks | D145: ='Thunder Ducks'!$D$29 -> Kyle | E145: ='Thunder Ducks'!$D$30 -> O'Bryant | F145: ='Thunder Ducks'!$H$32 -> 0.8888888889 | G145: ='Thunder Ducks'!$H$29 -> 9 | H145: ='Thunder Ducks'!$F$8 -> 4 | I145: Y | J145: ='Thunder Ducks'!$H$30 -> 8 | K145: ='Thunder Ducks'!$H$31 -> 10 | L145: ='Thunder Ducks'!$D$32 -> m
A146: 34 | B146: =BCBC!$A$45 -> 9 | C146: =BCBC!$D$1 -> BCBC | D146: =BCBC!$D$45 -> Dustin | E146: =BCBC!$D$46 -> Hunter | F146: =BCBC!$H$48 -> 0.75 | G146: =BCBC!$H$45 -> 12 | H146: =BCBC!$F$8 -> 4 | I146: Y | J146: =BCBC!$H$46 -> 9 | K146: =BCBC!$H$47 -> 12 | L146: =BCBC!$D$48 -> m
A147: 76 | B147: ='Thunder Ducks'!$A$13 -> 1 | C147: ='Thunder Ducks'!$D$1 -> Thunder Ducks | D147: ='Thunder Ducks'!$D$13 -> Steve | E147: ='Thunder Ducks'!$D$14 -> Hart | F147: ='Thunder Ducks'!$H$16 -> 0.7333333333 | G147: ='Thunder Ducks'!$H$13 -> 15 | H147: ='Thunder Ducks'!$F$8 -> 4 | I147: Y | J147: ='Thunder Ducks'!$H$14 -> 11 | K147: ='Thunder Ducks'!$H$15 -> 16 | L147: ='Thunder Ducks'!$D$16 -> m
A148: 1 | B148: ='Bad Pitches'!$A$13 -> 1 | C148: ='Bad Pitches'!$D$1 -> Bad Pitches | D148: ='Bad Pitches'!$D$13 -> Harrison | E148: ='Bad Pitches'!$D$14 -> Van Dyke | F148: ='Bad Pitches'!$H$16 -> 0.7142857143 | G148: ='Bad Pitches'!$H$13 -> 14 | H148: ='Bad Pitches'!$F$8 -> 3 | I148: Y | J148: ='Bad Pitches'!$H$14 -> 10 | K148: ='Bad Pitches'!$H$15 -> 15 | L148: ='Bad Pitches'!$D$16 -> m
A149: 3 | B149: ='Bad Pitches'!$A$21 -> 3 | C149: ='Bad Pitches'!$D$1 -> Bad Pitches | D149: ='Bad Pitches'!$D$21 -> Ryan | E149: ='Bad Pitches'!$D$22 -> Watt | F149: ='Bad Pitches'!$H$24 -> 0.7142857143 | G149: ='Bad Pitches'!$H$21 -> 14 | H149: ='Bad Pitches'!$F$8 -> 3 | I149: Y | J149: ='Bad Pitches'!$H$22 -> 10 | K149: ='Bad Pitches'!$H$23 -> 14 | L149: ='Bad Pitches'!$D$24 -> m
A150: 26 | B150: =BCBC!$A$13 -> 1 | C150: =BCBC!$D$1 -> BCBC | D150: =BCBC!$D$13 -> Jordan | E150: =BCBC!$D$14 -> Rogers | F150: =BCBC!$H$16 -> 0.7 | G150: =BCBC!$H$13 -> 10 | H150: =BCBC!$F$8 -> 4 | I150: Y | J150: =BCBC!$H$14 -> 7 | K150: =BCBC!$H$15 -> 11 | L150: =BCBC!$D$16 -> m
A151: 63 | B151: ='Ghetto Bombers'!$A$61 -> 13 | C151: ='Ghetto Bombers'!$D$1 -> Ghetto Bombers | D151: ='Ghetto Bombers'!$D$61 -> Jon | E151: ='Ghetto Bombers'!$D$62 -> Staley | F151: ='Ghetto Bombers'!$H$64 -> 0.7 | G151: ='Ghetto Bombers'!$H$61 -> 10 | H151: ='Ghetto Bombers'!$F$8 -> 4 | I151: Y | J151: ='Ghetto Bombers'!$H$62 -> 7 | K151: ='Ghetto Bombers'!$H$63 -> 11 | L151: ='Ghetto Bombers'!$D$64 -> m
A152: 82 | B152: ='Thunder Ducks'!$A$37 -> 7 | C152: ='Thunder Ducks'!$D$1 -> Thunder Ducks | D152: ='Thunder Ducks'!$D$37 -> Russ | E152: ='Thunder Ducks'!$D$38 -> Collins | F152: ='Thunder Ducks'!$H$40 -> 0.6428571429 | G152: ='Thunder Ducks'!$H$37 -> 14 | H152: ='Thunder Ducks'!$F$8 -> 4 | I152: Y | J152: ='Thunder Ducks'!$H$38 -> 9 | K152: ='Thunder Ducks'!$H$39 -> 15 | L152: ='Thunder Ducks'!$D$40 -> m
A153: 78 | B153: ='Thunder Ducks'!$A$21 -> 3 | C153: ='Thunder Ducks'!$D$1 -> Thunder Ducks | D153: ='Thunder Ducks'!$D$21 -> Logan | E153: ='Thunder Ducks'!$D$22 -> Bateman | F153: ='Thunder Ducks'!$H$24 -> 0.6 | G153: ='Thunder Ducks'!$H$21 -> 15 | H153: ='Thunder Ducks'!$F$8 -> 4 | I153: Y | J153: ='Thunder Ducks'!$H$22 -> 9 | K153: ='Thunder Ducks'!$H$23 -> 15 | L153: ='Thunder Ducks'!$D$24 -> m
A154: 57 | B154: ='Ghetto Bombers'!$A$37 -> 7 | C154: ='Ghetto Bombers'!$D$1 -> Ghetto Bombers | D154: ='Ghetto Bombers'!$D$37 -> Chet | E154: ='Ghetto Bombers'!$D$38 -> Wanlass | F154: ='Ghetto Bombers'!$H$40 -> 0.5833333333 | G154: ='Ghetto Bombers'!$H$37 -> 12 | H154: ='Ghetto Bombers'!$F$8 -> 4 | I154: Y | J154: ='Ghetto Bombers'!$H$38 -> 7 | K154: ='Ghetto Bombers'!$H$39 -> 12 | L154: ='Ghetto Bombers'!$D$40 -> m
A155: 61 | B155: ='Ghetto Bombers'!$A$53 -> 11 | C155: ='Ghetto Bombers'!$D$1 -> Ghetto Bombers | D155: ='Ghetto Bombers'!$D$53 -> Dave | E155: ='Ghetto Bombers'!$D$54 -> Vu | F155: ='Ghetto Bombers'!$H$56 -> 0.5 | G155: ='Ghetto Bombers'!$H$53 -> 14 | H155: ='Ghetto Bombers'!$F$8 -> 4 | I155: Y | J155: ='Ghetto Bombers'!$H$54 -> 7 | K155: ='Ghetto Bombers'!$H$55 -> 14 | L155: ='Ghetto Bombers'!$D$56 -> m
A156: 28 | B156: =BCBC!$A$21 -> 3 | C156: =BCBC!$D$1 -> BCBC | D156: =BCBC!$D$21 -> Vinny | E156: =BCBC!$D$22 -> Dilworth | F156: =BCBC!$H$24 -> 0.5 | G156: =BCBC!$H$21 -> 12 | H156: =BCBC!$F$8 -> 4 | I156: Y | J156: =BCBC!$H$22 -> 6 | K156: =BCBC!$H$23 -> 12 | L156: =BCBC!$D$24 -> m
A157: 32 | B157: =BCBC!$A$37 -> 7 | C157: =BCBC!$D$1 -> BCBC | D157: =BCBC!$D$37 -> Jeff | E157: =BCBC!$D$38 -> Nielsen | F157: =BCBC!$H$40 -> 0.5 | G157: =BCBC!$H$37 -> 14 | H157: =BCBC!$F$8 -> 4 | I157: Y | J157: =BCBC!$H$38 -> 7 | K157: =BCBC!$H$39 -> 14 | L157: =BCBC!$D$40 -> m
A158: 9 | B158: ='Bad Pitches'!$A$45 -> 9 | C158: ='Bad Pitches'!$D$1 -> Bad Pitches | D158: ='Bad Pitches'!$D$45 -> Aaron | E158: ='Bad Pitches'!$D$46 -> Montgomery | F158: ='Bad Pitches'!$H$48 -> 0.4166666667 | G158: ='Bad Pitches'!$H$45 -> 12 | H158: ='Bad Pitches'!$F$8 -> 3 | I158: Y | J158: ='Bad Pitches'!$H$46 -> 5 | K158: ='Bad Pitches'!$H$47 -> 12 | L158: ='Bad Pitches'!$D$48 -> m
A159: 55 | B159: ='Ghetto Bombers'!$A$29 -> 5 | C159: ='Ghetto Bombers'!$D$1 -> Ghetto Bombers | D159: ='Ghetto Bombers'!$D$29 -> Mac | E159: ='Ghetto Bombers'!$D$30 -> Estrada | F159: ='Ghetto Bombers'!$H$32 -> 0.4117647059 | G159: ='Ghetto Bombers'!$H$29 -> 17 | H159: ='Ghetto Bombers'!$F$8 -> 4 | I159: Y | J159: ='Ghetto Bombers'!$H$30 -> 7 | K159: ='Ghetto Bombers'!$H$31 -> 18 | L159: ='Ghetto Bombers'!$D$32 -> m
A160: 59 | B160: ='Ghetto Bombers'!$A$45 -> 9 | C160: ='Ghetto Bombers'!$D$1 -> Ghetto Bombers | D160: ='Ghetto Bombers'!$D$45 -> Derek | E160: ='Ghetto Bombers'!$D$46 -> Smith | F160: ='Ghetto Bombers'!$H$48 -> 0.3333333333 | G160: ='Ghetto Bombers'!$H$45 -> 12 | H160: ='Ghetto Bombers'!$F$8 -> 4 | I160: Y | J160: ='Ghetto Bombers'!$H$46 -> 4 | K160: ='Ghetto Bombers'!$H$47 -> 13 | L160: ='Ghetto Bombers'!$D$48 -> m
A161: 109 | B161: ='X Team'!$A$45 -> 9 | C161: ='X Team'!$D$1 -> X Team | D161: ='X Team'!$D$45 -> Tyler (TJ) | E161: ='X Team'!$D$46 -> Gossard | F161: ='X Team'!$H$48 -> 0 | G161: ='X Team'!$H$45 -> 63 | H161: ='X Team'!$F$8 -> 7 | I161: Y | J161: ='X Team'!$H$46 -> 0 | K161: ='X Team'!$H$47 -> 63 | L161: ='X Team'!$D$48 -> m
A162: 201 | B162: ='YY Team'!$A$13 -> 1 | C162: ='YY Team'!$D$1 -> YY Team | D162: ='YY Team'!$D$13 -> Kyle | E162: ='YY Team'!$D$14 -> O'Bryant | F162: ='YY Team'!$H$16 -> 0 | G162: ='YY Team'!$H$13 -> 63 | H162: ='YY Team'!$F$8 -> 7 | I162: =IF(K162<(H162*2.5),"N","Y") -> Y | J162: ='YY Team'!$H$14 -> 0 | K162: ='YY Team'!$H$15 -> 63 | L162: ='YY Team'!$D$16 -> m
A163: 101 | B163: ='X Team'!$A$13 -> 1 | C163: ='X Team'!$D$1 -> X Team | D163: ='X Team'!$D$13 -> Jake | E163: ='X Team'!$D$14 -> Reeves | F163: ='X Team'!$H$16 -> 0 | G163: ='X Team'!$H$13 -> 63 | H163: ='X Team'!$F$8 -> 7 | I163: Y | J163: ='X Team'!$H$14 -> 0 | K163: ='X Team'!$H$15 -> 63 | L163: ='X Team'!$D$16 -> m
A164: 105 | B164: ='X Team'!$A$29 -> 5 | C164: ='X Team'!$D$1 -> X Team | D164: ='X Team'!$D$29 -> Jeff | E164: ='X Team'!$D$30 -> Peacock | F164: ='X Team'!$H$32 -> 0 | G164: ='X Team'!$H$29 -> 63 | H164: ='X Team'!$F$8 -> 7 | I164: Y | J164: ='X Team'!$H$30 -> 0 | K164: ='X Team'!$H$31 -> 63 | L164: ='X Team'!$D$32 -> m
A165: 205 | B165: ='YY Team'!$A$29 -> 5 | C165: ='YY Team'!$D$1 -> YY Team | D165: ='YY Team'!$D$29 -> Logan | E165: ='YY Team'!$D$30 -> Bateman | F165: ='YY Team'!$H$32 -> 0 | G165: ='YY Team'!$H$29 -> 63 | H165: ='YY Team'!$F$8 -> 7 | I165: Y | J165: ='YY Team'!$H$30 -> 0 | K165: ='YY Team'!$H$31 -> 63 | L165: ='YY Team'!$D$32 -> m
A166: 126 | B166: ='XXX Team'!$A$13 -> 1 | C166: ='XXX Team'!$D$1 -> XXX Team | D166: ='XXX Team'!$D$13 -> Jordan | E166: ='XXX Team'!$D$14 -> Hall | F166: ='XXX Team'!$H$16 -> 0 | G166: ='XXX Team'!$H$13 -> 63 | H166: ='XXX Team'!$F$8 -> 7 | I166: Y | J166: ='XXX Team'!$H$14 -> 0 | K166: ='XXX Team'!$H$15 -> 63 | L166: ='XXX Team'!$D$16 -> m
A167: 130 | B167: ='XXX Team'!$A$29 -> 5 | C167: ='XXX Team'!$D$1 -> XXX Team | D167: ='XXX Team'!$D$29 -> Sam | E167: ='XXX Team'!$D$30 -> Cook | F167: ='XXX Team'!$H$32 -> 0 | G167: ='XXX Team'!$H$29 -> 63 | H167: ='XXX Team'!$F$8 -> 7 | I167: Y | J167: ='XXX Team'!$H$30 -> 0 | K167: ='XXX Team'!$H$31 -> 63 | L167: ='XXX Team'!$D$32 -> m
A168: 132 | B168: ='XXX Team'!$A$37 -> 7 | C168: ='XXX Team'!$D$1 -> XXX Team | D168: ='XXX Team'!$D$37 -> Ike | E168: ='XXX Team'!$D$38 -> Whiting | F168: ='XXX Team'!$H$40 -> 0 | G168: ='XXX Team'!$H$37 -> 63 | H168: ='XXX Team'!$F$8 -> 7 | I168: Y | J168: ='XXX Team'!$H$38 -> 0 | K168: ='XXX Team'!$H$39 -> 63 | L168: ='XXX Team'!$D$40 -> m
A169: 103 | B169: ='X Team'!$A$21 -> 3 | C169: ='X Team'!$D$1 -> X Team | D169: ='X Team'!$D$21 -> Jason | E169: ='X Team'!$D$22 -> Reed | F169: ='X Team'!$H$24 -> 0 | G169: ='X Team'!$H$21 -> 63 | H169: ='X Team'!$F$8 -> 7 | I169: Y | J169: ='X Team'!$H$22 -> 0 | K169: ='X Team'!$H$23 -> 63 | L169: ='X Team'!$D$24 -> m
A170: 207 | B170: ='YY Team'!$A$37 -> 7 | C170: ='YY Team'!$D$1 -> YY Team | D170: ='YY Team'!$D$37 -> Russ | E170: ='YY Team'!$D$38 -> Collins | F170: ='YY Team'!$H$40 -> 0 | G170: ='YY Team'!$H$37 -> 63 | H170: ='YY Team'!$F$8 -> 7 | I170: Y | J170: ='YY Team'!$H$38 -> 0 | K170: ='YY Team'!$H$39 -> 63 | L170: ='YY Team'!$D$40 -> m
A171: 134 | B171: ='XXX Team'!$A$45 -> 9 | C171: ='XXX Team'!$D$1 -> XXX Team | D171: ='XXX Team'!$D$45 -> Josh | E171: ='XXX Team'!$D$46 -> Schmidt | F171: ='XXX Team'!$H$48 -> 0 | G171: ='XXX Team'!$H$45 -> 63 | H171: ='XXX Team'!$F$8 -> 7 | I171: Y | J171: ='XXX Team'!$H$46 -> 0 | K171: ='XXX Team'!$H$47 -> 63 | L171: ='XXX Team'!$D$48 -> m
A172: 107 | B172: ='X Team'!$A$37 -> 7 | C172: ='X Team'!$D$1 -> X Team | D172: ='X Team'!$D$37 -> Chris | E172: ='X Team'!$D$38 -> Teerlink | F172: ='X Team'!$H$40 -> 0 | G172: ='X Team'!$H$37 -> 63 | H172: ='X Team'!$F$8 -> 7 | I172: Y | J172: ='X Team'!$H$38 -> 0 | K172: ='X Team'!$H$39 -> 63 | L172: ='X Team'!$D$40 -> m
A173: 203 | B173: ='YY Team'!$A$21 -> 3 | C173: ='YY Team'!$D$1 -> YY Team | D173: ='YY Team'!$D$21 -> Stephen | E173: ='YY Team'!$D$22 -> Hart | F173: ='YY Team'!$H$24 -> 0 | G173: ='YY Team'!$H$21 -> 63 | H173: ='YY Team'!$F$8 -> 7 | I173: Y | J173: ='YY Team'!$H$22 -> 0 | K173: ='YY Team'!$H$23 -> 63 | L173: ='YY Team'!$D$24 -> m
A174: 209 | B174: ='YY Team'!$A$45 -> 9 | C174: ='YY Team'!$D$1 -> YY Team | D174: ='YY Team'!$D$45 -> John | E174: ='YY Team'!$D$46 -> Campbell | F174: ='YY Team'!$H$48 -> 0 | G174: ='YY Team'!$H$45 -> 63 | H174: ='YY Team'!$F$8 -> 7 | I174: Y | J174: ='YY Team'!$H$46 -> 0 | K174: ='YY Team'!$H$47 -> 63 | L174: ='YY Team'!$D$48 -> m
A175: 185 | B175: ='XX Team'!$A$49 -> 10 | C175: ='XX Team'!$D$1 -> XX Team | D175: ='XX Team'!$D$49 -> Alex | E175: ='XX Team'!$D$50 -> Johnson | F175: ='XX Team'!$H$52 -> 0 | G175: ='XX Team'!$H$49 -> 63 | H175: ='XX Team'!$F$8 -> 6 | I175: Y | J175: ='XX Team'!$H$50 -> 0 | K175: ='XX Team'!$H$51 -> 63 | L175: ='XX Team'!$D$52 -> m
A176: 179 | B176: ='XX Team'!$A$25 -> 4 | C176: ='XX Team'!$D$1 -> XX Team | D176: ='XX Team'!$D$25 -> Thomas | E176: ='XX Team'!$D$26 -> Rich | F176: ='XX Team'!$H$28 -> 0 | G176: ='XX Team'!$H$25 -> 63 | H176: ='XX Team'!$F$8 -> 6 | I176: Y | J176: ='XX Team'!$H$26 -> 0 | K176: ='XX Team'!$H$27 -> 63 | L176: ='XX Team'!$D$28 -> m
A177: 183 | B177: ='XX Team'!$A$41 -> 8 | C177: ='XX Team'!$D$1 -> XX Team | D177: ='XX Team'!$D$41 -> Brandon | E177: ='XX Team'!$D$42 -> Blake | F177: ='XX Team'!$H$44 -> 0 | G177: ='XX Team'!$H$41 -> 63 | H177: ='XX Team'!$F$8 -> 6 | I177: Y | J177: ='XX Team'!$H$42 -> 0 | K177: ='XX Team'!$H$43 -> 63 | L177: ='XX Team'!$D$44 -> m
A178: 181 | B178: ='XX Team'!$A$33 -> 6 | C178: ='XX Team'!$D$1 -> XX Team | D178: ='XX Team'!$D$33 -> Ken | E178: ='XX Team'!$D$34 -> Hansen | F178: ='XX Team'!$H$36 -> 0 | G178: ='XX Team'!$H$33 -> 63 | H178: ='XX Team'!$F$8 -> 6 | I178: Y | J178: ='XX Team'!$H$34 -> 0 | K178: ='XX Team'!$H$35 -> 63 | L178: ='XX Team'!$D$36 -> m
A179: 177 | B179: ='XX Team'!$A$17 -> 2 | C179: ='XX Team'!$D$1 -> XX Team | D179: ='XX Team'!$D$17 -> Josh | E179: ='XX Team'!$D$18 -> Wright | F179: ='XX Team'!$H$20 -> 0 | G179: ='XX Team'!$H$17 -> 63 | H179: ='XX Team'!$F$8 -> 6 | I179: Y | J179: ='XX Team'!$H$18 -> 0 | K179: ='XX Team'!$H$19 -> 63 | L179: ='XX Team'!$D$20 -> m
A180: 138 | B180: ='XXX Team'!$A$61 -> 13 | C180: ='XXX Team'!$D$1 -> XXX Team | D180: ='XXX Team'!$D$61 -> Dan | E180: ='XXX Team'!$D$62 -> Flynn | F180: ='XXX Team'!$H$64 -> 0 | G180: ='XXX Team'!$H$61 -> 63 | H180: ='XXX Team'!$F$8 -> 7 | I180: Y | J180: ='XXX Team'!$H$62 -> 0 | K180: ='XXX Team'!$H$63 -> 63 | L180: ='XXX Team'!$D$64 -> m
A181: 128 | B181: ='XXX Team'!$A$21 -> 3 | C181: ='XXX Team'!$D$1 -> XXX Team | D181: ='XXX Team'!$D$21 -> Corey | E181: ='XXX Team'!$D$22 -> Murphy | F181: ='XXX Team'!$H$24 -> 0 | G181: ='XXX Team'!$H$21 -> 63 | H181: ='XXX Team'!$F$8 -> 7 | I181: Y | J181: ='XXX Team'!$H$22 -> 0 | K181: ='XXX Team'!$H$23 -> 63 | L181: ='XXX Team'!$D$24 -> m
A182: 112 | B182: ='X Team'!$A$57 -> 12 | C182: ='X Team'!$D$1 -> X Team | D182: ='X Team'!$D$57 -> Kenyon | E182: ='X Team'!$D$58 -> Kawa | F182: ='X Team'!$H$60 -> 0 | G182: ='X Team'!$H$57 -> 63 | H182: ='X Team'!$F$8 -> 7 | I182: Y | J182: ='X Team'!$H$58 -> 0 | K182: ='X Team'!$H$59 -> 63 | L182: ='X Team'!$D$60 -> m
A183: 136 | B183: ='XXX Team'!$A$53 -> 11 | C183: ='XXX Team'!$D$1 -> XXX Team | D183: ='XXX Team'!$D$53 -> Josh | E183: ='XXX Team'!$D$54 -> Anderson | F183: ='XXX Team'!$H$56 -> 0 | G183: ='XXX Team'!$H$53 -> 63 | H183: ='XXX Team'!$F$8 -> 7 | I183: Y | J183: ='XXX Team'!$H$54 -> 0 | K183: ='XXX Team'!$H$55 -> 63 | L183: ='XXX Team'!$D$56 -> m
A184: 139 | B184: ='XXX Team'!$A$65 -> 14 | C184: ='XXX Team'!$D$1 -> XXX Team | D184: ='XXX Team'!$D$65 -> J C | E184: ='XXX Team'!$D$66 -> Garcia | F184: ='XXX Team'!$H$68 -> 0 | G184: ='XXX Team'!$H$65 -> 63 | H184: ='XXX Team'!$F$8 -> 7 | I184: Y | J184: ='XXX Team'!$H$66 -> 0 | K184: ='XXX Team'!$H$67 -> 63 | L184: ='XXX Team'!$D$68 -> m
A185: 92 | B185: ='Thunder Ducks'!$A$77 -> 17 | C185: ='Thunder Ducks'!$D$1 -> Thunder Ducks | D185: ='Thunder Ducks'!$D$77 -> 0 | E185: ='Thunder Ducks'!$D$78 -> 0 | F185: ='Thunder Ducks'!$H$80 ->  | G185: ='Thunder Ducks'!$H$77 -> 0 | H185: ='Thunder Ducks'!$F$8 -> 4 | I185: N | J185: ='Thunder Ducks'!$H$78 -> 0 | K185: ='Thunder Ducks'!$H$79 -> 0 | L185: ='Thunder Ducks'!$D$80 -> m
A186: 19 | B186: ='Bad Pitches'!$A$85 -> 19 | C186: ='Bad Pitches'!$D$1 -> Bad Pitches | D186: ='Bad Pitches'!$D$85 -> 0 | E186: ='Bad Pitches'!$D$86 -> 0 | F186: ='Bad Pitches'!$H$88 ->  | G186: ='Bad Pitches'!$H$85 -> 0 | H186: ='Bad Pitches'!$F$8 -> 3 | I186: N | J186: ='Bad Pitches'!$H$86 -> 0 | K186: ='Bad Pitches'!$H$87 -> 0 | L186: ='Bad Pitches'!$D$88 -> m
A187: 119 | B187: ='X Team'!$A$85 -> 19 | C187: ='X Team'!$D$1 -> X Team | D187: ='X Team'!$D$85 -> 0 | E187: ='X Team'!$D$86 -> 0 | F187: ='X Team'!$H$88 ->  | G187: ='X Team'!$H$85 -> 0 | H187: ='X Team'!$F$8 -> 7 | I187: N | J187: ='X Team'!$H$86 -> 0 | K187: ='X Team'!$H$87 -> 0 | L187: ='X Team'!$D$88 -> m
A188: 18 | B188: ='Bad Pitches'!$A$81 -> 18 | C188: ='Bad Pitches'!$D$1 -> Bad Pitches | D188: ='Bad Pitches'!$D$81 -> 0 | E188: ='Bad Pitches'!$D$82 -> 0 | F188: ='Bad Pitches'!$H$84 ->  | G188: ='Bad Pitches'!$H$81 -> 0 | H188: ='Bad Pitches'!$F$8 -> 3 | I188: N | J188: ='Bad Pitches'!$H$82 -> 0 | K188: ='Bad Pitches'!$H$83 -> 0 | L188: ='Bad Pitches'!$D$84 -> m
A189: 140 | B189: ='XXX Team'!$A$69 -> 15 | C189: ='XXX Team'!$D$1 -> XXX Team | D189: ='XXX Team'!$D$69 -> 0 | E189: ='XXX Team'!$D$70 -> 0 | F189: ='XXX Team'!$H$72 ->  | G189: ='XXX Team'!$H$69 -> 0 | H189: ='XXX Team'!$F$8 -> 7 | I189: N | J189: ='XXX Team'!$H$70 -> 0 | K189: ='XXX Team'!$H$71 -> 0 | L189: ='XXX Team'!$D$72 -> m
A190: 68 | B190: ='Ghetto Bombers'!$A$81 -> 18 | C190: ='Ghetto Bombers'!$D$1 -> Ghetto Bombers | D190: ='Ghetto Bombers'!$D$81 -> 0 | E190: ='Ghetto Bombers'!$D$82 -> 0 | F190: ='Ghetto Bombers'!$H$84 ->  | G190: ='Ghetto Bombers'!$H$81 -> 0 | H190: ='Ghetto Bombers'!$F$8 -> 4 | I190: N | J190: ='Ghetto Bombers'!$H$82 -> 0 | K190: ='Ghetto Bombers'!$H$83 -> 0 | L190: ='Ghetto Bombers'!$D$84 -> m
A191: 121 | B191: ='X Team'!$A$93 -> 21 | C191: ='X Team'!$D$1 -> X Team | D191: ='X Team'!$D$93 -> 0 | E191: ='X Team'!$D$94 -> 0 | F191: ='X Team'!$H$96 ->  | G191: ='X Team'!$H$93 -> 0 | H191: ='X Team'!$F$8 -> 7 | I191: N | J191: ='X Team'!$H$94 -> 0 | K191: ='X Team'!$H$95 -> 0 | L191: ='X Team'!$D$96 -> m
A192: 7 | B192: ='Bad Pitches'!$A$37 -> 7 | C192: ='Bad Pitches'!$D$1 -> Bad Pitches | D192: ='Bad Pitches'!$D$37 -> Jeff | E192: ='Bad Pitches'!$D$38 -> Cagle | F192: ='Bad Pitches'!$H$40 -> 0.7142857143 | G192: ='Bad Pitches'!$H$37 -> 7 | H192: ='Bad Pitches'!$F$8 -> 3 | I192: Y | J192: ='Bad Pitches'!$H$38 -> 5 | K192: ='Bad Pitches'!$H$39 -> 8 | L192: ='Bad Pitches'!$D$40 -> m
A193: 40 | B193: =BCBC!$A$69 -> 15 | C193: =BCBC!$D$1 -> BCBC | D193: =BCBC!$D$69 -> Scotty | E193: =BCBC!$D$70 -> Garfield | F193: =BCBC!$H$72 -> 0.6666666667 | G193: =BCBC!$H$69 -> 3 | H193: =BCBC!$F$8 -> 4 | I193: N | J193: =BCBC!$H$70 -> 2 | K193: =BCBC!$H$71 -> 3 | L193: =BCBC!$D$72 -> m
A194: 39 | B194: =BCBC!$A$65 -> 14 | C194: =BCBC!$D$1 -> BCBC | D194: =BCBC!$D$65 -> AJ | E194: =BCBC!$D$66 -> Avellar | F194: =BCBC!$H$68 -> 0.6666666667 | G194: =BCBC!$H$65 -> 3 | H194: =BCBC!$F$8 -> 4 | I194: =IF(K194<(H194*2.5),"N","Y") -> N | J194: =BCBC!$H$66 -> 2 | K194: =BCBC!$H$67 -> 3 | L194: =BCBC!$D$68 -> m
A195: 88 | B195: ='Thunder Ducks'!$A$61 -> 13 | C195: ='Thunder Ducks'!$D$1 -> Thunder Ducks | D195: ='Thunder Ducks'!$D$61 -> Spencer | E195: ='Thunder Ducks'!$D$62 -> Hille | F195: ='Thunder Ducks'!$H$64 -> 0.5714285714 | G195: ='Thunder Ducks'!$H$61 -> 7 | H195: ='Thunder Ducks'!$F$8 -> 4 | I195: N | J195: ='Thunder Ducks'!$H$62 -> 4 | K195: ='Thunder Ducks'!$H$63 -> 7 | L195: ='Thunder Ducks'!$D$64 -> m
A196: 14 | B196: ='Bad Pitches'!$A$65 -> 14 | C196: ='Bad Pitches'!$D$1 -> Bad Pitches | D196: ='Bad Pitches'!$D$65 -> Britton | E196: ='Bad Pitches'!$D$66 -> Lund | F196: ='Bad Pitches'!$H$68 -> 0.5 | G196: ='Bad Pitches'!$H$65 -> 4 | H196: ='Bad Pitches'!$F$8 -> 3 | I196: N | J196: ='Bad Pitches'!$H$66 -> 2 | K196: ='Bad Pitches'!$H$67 -> 4 | L196: ='Bad Pitches'!$D$68 -> m
A197: 90 | B197: ='Thunder Ducks'!$A$69 -> 15 | C197: ='Thunder Ducks'!$D$1 -> Thunder Ducks | D197: ='Thunder Ducks'!$D$69 -> John | E197: ='Thunder Ducks'!$D$70 -> Campbell | F197: ='Thunder Ducks'!$H$72 -> 0.5 | G197: ='Thunder Ducks'!$H$69 -> 4 | H197: ='Thunder Ducks'!$F$8 -> 4 | I197: N | J197: ='Thunder Ducks'!$H$70 -> 2 | K197: ='Thunder Ducks'!$H$71 -> 4 | L197: ='Thunder Ducks'!$D$72 -> m
A198: 42 | B198: =BCBC!$A$77 -> 17 | C198: =BCBC!$D$1 -> BCBC | D198: =BCBC!$D$77 -> Craig | E198: =BCBC!$D$78 -> Patten | F198: =BCBC!$H$80 -> 0.3333333333 | G198: =BCBC!$H$77 -> 3 | H198: =BCBC!$F$8 -> 4 | I198: N | J198: =BCBC!$H$78 -> 1 | K198: =BCBC!$H$79 -> 3 | L198: =BCBC!$D$80 -> m
A199: 5 | B199: ='Bad Pitches'!$A$29 -> 5 | C199: ='Bad Pitches'!$D$1 -> Bad Pitches | D199: ='Bad Pitches'!$D$29 -> Parker | E199: ='Bad Pitches'!$D$30 -> Van Dyke | F199: ='Bad Pitches'!$H$32 -> 0.3333333333 | G199: ='Bad Pitches'!$H$29 -> 6 | H199: ='Bad Pitches'!$F$8 -> 3 | I199: N | J199: ='Bad Pitches'!$H$30 -> 2 | K199: ='Bad Pitches'!$H$31 -> 6 | L199: ='Bad Pitches'!$D$32 -> m
A200: 84 | B200: ='Thunder Ducks'!$A$45 -> 9 | C200: ='Thunder Ducks'!$D$1 -> Thunder Ducks | D200: ='Thunder Ducks'!$D$45 -> Adam | E200: ='Thunder Ducks'!$D$46 -> Thorne | F200: ='Thunder Ducks'!$H$48 -> 0.3333333333 | G200: ='Thunder Ducks'!$H$45 -> 3 | H200: ='Thunder Ducks'!$F$8 -> 4 | I200: N | J200: ='Thunder Ducks'!$H$46 -> 1 | K200: ='Thunder Ducks'!$H$47 -> 6 | L200: ='Thunder Ducks'!$D$48 -> m
... 1 more rows

Sheet Male
A1: counter | B1: roster # | C1: Team Name | D1: L-Name | E1: F-Name | F1: Batting Avg | G1: # of AB's | H1: # of Games | I1: Enough pa's | J1: HITS | K1: # of PA | L1: Male/Female
A2: 53 | B2: ='Ghetto Bombers'!$A$21 -> 3 | C2: ='Ghetto Bombers'!$D$1 -> Ghetto Bombers | D2: ='Ghetto Bombers'!$D$21 -> Matt | E2: ='Ghetto Bombers'!$D$22 -> Newbold | F2: ='Ghetto Bombers'!$H$24 -> 0.9411764706 | G2: ='Ghetto Bombers'!$H$21 -> 17 | H2: ='Ghetto Bombers'!$F$8 -> 4 | I2: =IF(K2<(H2*2.5),"N","Y") -> Y | J2: ='Ghetto Bombers'!$H$22 -> 16 | K2: ='Ghetto Bombers'!$H$23 -> 18 | L2: ='Ghetto Bombers'!$D$24 -> m
A3: 51 | B3: ='Ghetto Bombers'!$A$13 -> 1 | C3: ='Ghetto Bombers'!$D$1 -> Ghetto Bombers | D3: ='Ghetto Bombers'!$D$13 -> Ryan | E3: ='Ghetto Bombers'!$D$14 -> Newbold | F3: ='Ghetto Bombers'!$H$16 -> 0.9230769231 | G3: ='Ghetto Bombers'!$H$13 -> 13 | H3: ='Ghetto Bombers'!$F$8 -> 4 | I3: Y | J3: ='Ghetto Bombers'!$H$14 -> 12 | K3: ='Ghetto Bombers'!$H$15 -> 14 | L3: ='Ghetto Bombers'!$D$16 -> m
A4: 30 | B4: =BCBC!$A$29 -> 5 | C4: =BCBC!$D$1 -> BCBC | D4: =BCBC!$D$29 -> Ben | E4: =BCBC!$D$30 -> Mangum | F4: =BCBC!$H$32 -> 0.9090909091 | G4: =BCBC!$H$29 -> 11 | H4: =BCBC!$F$8 -> 4 | I4: Y | J4: =BCBC!$H$30 -> 10 | K4: =BCBC!$H$31 -> 11 | L4: =BCBC!$D$32 -> m
A5: 36 | B5: =BCBC!$A$53 -> 11 | C5: =BCBC!$D$1 -> BCBC | D5: =BCBC!$D$53 -> Shane | E5: =BCBC!$D$54 -> Singer | F5: =BCBC!$H$56 -> 0.8888888889 | G5: =BCBC!$H$53 -> 9 | H5: =BCBC!$F$8 -> 4 | I5: Y | J5: =BCBC!$H$54 -> 8 | K5: =BCBC!$H$55 -> 10 | L5: =BCBC!$D$56 -> m
A6: 80 | B6: ='Thunder Ducks'!$A$29 -> 5 | C6: ='Thunder Ducks'!$D$1 -> Thunder Ducks | D6: ='Thunder Ducks'!$D$29 -> Kyle | E6: ='Thunder Ducks'!$D$30 -> O'Bryant | F6: ='Thunder Ducks'!$H$32 -> 0.8888888889 | G6: ='Thunder Ducks'!$H$29 -> 9 | H6: ='Thunder Ducks'!$F$8 -> 4 | I6: Y | J6: ='Thunder Ducks'!$H$30 -> 8 | K6: ='Thunder Ducks'!$H$31 -> 10 | L6: ='Thunder Ducks'!$D$32 -> m
A7: 34 | B7: =BCBC!$A$45 -> 9 | C7: =BCBC!$D$1 -> BCBC | D7: =BCBC!$D$45 -> Dustin | E7: =BCBC!$D$46 -> Hunter | F7: =BCBC!$H$48 -> 0.75 | G7: =BCBC!$H$45 -> 12 | H7: =BCBC!$F$8 -> 4 | I7: Y | J7: =BCBC!$H$46 -> 9 | K7: =BCBC!$H$47 -> 12 | L7: =BCBC!$D$48 -> m
A8: 76 | B8: ='Thunder Ducks'!$A$13 -> 1 | C8: ='Thunder Ducks'!$D$1 -> Thunder Ducks | D8: ='Thunder Ducks'!$D$13 -> Steve | E8: ='Thunder Ducks'!$D$14 -> Hart | F8: ='Thunder Ducks'!$H$16 -> 0.7333333333 | G8: ='Thunder Ducks'!$H$13 -> 15 | H8: ='Thunder Ducks'!$F$8 -> 4 | I8: Y | J8: ='Thunder Ducks'!$H$14 -> 11 | K8: ='Thunder Ducks'!$H$15 -> 16 | L8: ='Thunder Ducks'!$D$16 -> m
A9: 1 | B9: ='Bad Pitches'!$A$13 -> 1 | C9: ='Bad Pitches'!$D$1 -> Bad Pitches | D9: ='Bad Pitches'!$D$13 -> Harrison | E9: ='Bad Pitches'!$D$14 -> Van Dyke | F9: ='Bad Pitches'!$H$16 -> 0.7142857143 | G9: ='Bad Pitches'!$H$13 -> 14 | H9: ='Bad Pitches'!$F$8 -> 3 | I9: Y | J9: ='Bad Pitches'!$H$14 -> 10 | K9: ='Bad Pitches'!$H$15 -> 15 | L9: ='Bad Pitches'!$D$16 -> m
A10: 3 | B10: ='Bad Pitches'!$A$21 -> 3 | C10: ='Bad Pitches'!$D$1 -> Bad Pitches | D10: ='Bad Pitches'!$D$21 -> Ryan | E10: ='Bad Pitches'!$D$22 -> Watt | F10: ='Bad Pitches'!$H$24 -> 0.7142857143 | G10: ='Bad Pitches'!$H$21 -> 14 | H10: ='Bad Pitches'!$F$8 -> 3 | I10: Y | J10: ='Bad Pitches'!$H$22 -> 10 | K10: ='Bad Pitches'!$H$23 -> 14 | L10: ='Bad Pitches'!$D$24 -> m
A11: 26 | B11: =BCBC!$A$13 -> 1 | C11: =BCBC!$D$1 -> BCBC | D11: =BCBC!$D$13 -> Jordan | E11: =BCBC!$D$14 -> Rogers | F11: =BCBC!$H$16 -> 0.7 | G11: =BCBC!$H$13 -> 10 | H11: =BCBC!$F$8 -> 4 | I11: Y | J11: =BCBC!$H$14 -> 7 | K11: =BCBC!$H$15 -> 11 | L11: =BCBC!$D$16 -> m
A12: 63 | B12: ='Ghetto Bombers'!$A$61 -> 13 | C12: ='Ghetto Bombers'!$D$1 -> Ghetto Bombers | D12: ='Ghetto Bombers'!$D$61 -> Jon | E12: ='Ghetto Bombers'!$D$62 -> Staley | F12: ='Ghetto Bombers'!$H$64 -> 0.7 | G12: ='Ghetto Bombers'!$H$61 -> 10 | H12: ='Ghetto Bombers'!$F$8 -> 4 | I12: Y | J12: ='Ghetto Bombers'!$H$62 -> 7 | K12: ='Ghetto Bombers'!$H$63 -> 11 | L12: ='Ghetto Bombers'!$D$64 -> m
A13: 82 | B13: ='Thunder Ducks'!$A$37 -> 7 | C13: ='Thunder Ducks'!$D$1 -> Thunder Ducks | D13: ='Thunder Ducks'!$D$37 -> Russ | E13: ='Thunder Ducks'!$D$38 -> Collins | F13: ='Thunder Ducks'!$H$40 -> 0.6428571429 | G13: ='Thunder Ducks'!$H$37 -> 14 | H13: ='Thunder Ducks'!$F$8 -> 4 | I13: Y | J13: ='Thunder Ducks'!$H$38 -> 9 | K13: ='Thunder Ducks'!$H$39 -> 15 | L13: ='Thunder Ducks'!$D$40 -> m
A14: 78 | B14: ='Thunder Ducks'!$A$21 -> 3 | C14: ='Thunder Ducks'!$D$1 -> Thunder Ducks | D14: ='Thunder Ducks'!$D$21 -> Logan | E14: ='Thunder Ducks'!$D$22 -> Bateman | F14: ='Thunder Ducks'!$H$24 -> 0.6 | G14: ='Thunder Ducks'!$H$21 -> 15 | H14: ='Thunder Ducks'!$F$8 -> 4 | I14: Y | J14: ='Thunder Ducks'!$H$22 -> 9 | K14: ='Thunder Ducks'!$H$23 -> 15 | L14: ='Thunder Ducks'!$D$24 -> m
A15: 57 | B15: ='Ghetto Bombers'!$A$37 -> 7 | C15: ='Ghetto Bombers'!$D$1 -> Ghetto Bombers | D15: ='Ghetto Bombers'!$D$37 -> Chet | E15: ='Ghetto Bombers'!$D$38 -> Wanlass | F15: ='Ghetto Bombers'!$H$40 -> 0.5833333333 | G15: ='Ghetto Bombers'!$H$37 -> 12 | H15: ='Ghetto Bombers'!$F$8 -> 4 | I15: Y | J15: ='Ghetto Bombers'!$H$38 -> 7 | K15: ='Ghetto Bombers'!$H$39 -> 12 | L15: ='Ghetto Bombers'!$D$40 -> m
A16: 61 | B16: ='Ghetto Bombers'!$A$53 -> 11 | C16: ='Ghetto Bombers'!$D$1 -> Ghetto Bombers | D16: ='Ghetto Bombers'!$D$53 -> Dave | E16: ='Ghetto Bombers'!$D$54 -> Vu | F16: ='Ghetto Bombers'!$H$56 -> 0.5 | G16: ='Ghetto Bombers'!$H$53 -> 14 | H16: ='Ghetto Bombers'!$F$8 -> 4 | I16: Y | J16: ='Ghetto Bombers'!$H$54 -> 7 | K16: ='Ghetto Bombers'!$H$55 -> 14 | L16: ='Ghetto Bombers'!$D$56 -> m
A17: 28 | B17: =BCBC!$A$21 -> 3 | C17: =BCBC!$D$1 -> BCBC | D17: =BCBC!$D$21 -> Vinny | E17: =BCBC!$D$22 -> Dilworth | F17: =BCBC!$H$24 -> 0.5 | G17: =BCBC!$H$21 -> 12 | H17: =BCBC!$F$8 -> 4 | I17: Y | J17: =BCBC!$H$22 -> 6 | K17: =BCBC!$H$23 -> 12 | L17: =BCBC!$D$24 -> m
A18: 32 | B18: =BCBC!$A$37 -> 7 | C18: =BCBC!$D$1 -> BCBC | D18: =BCBC!$D$37 -> Jeff | E18: =BCBC!$D$38 -> Nielsen | F18: =BCBC!$H$40 -> 0.5 | G18: =BCBC!$H$37 -> 14 | H18: =BCBC!$F$8 -> 4 | I18: Y | J18: =BCBC!$H$38 -> 7 | K18: =BCBC!$H$39 -> 14 | L18: =BCBC!$D$40 -> m
A19: 9 | B19: ='Bad Pitches'!$A$45 -> 9 | C19: ='Bad Pitches'!$D$1 -> Bad Pitches | D19: ='Bad Pitches'!$D$45 -> Aaron | E19: ='Bad Pitches'!$D$46 -> Montgomery | F19: ='Bad Pitches'!$H$48 -> 0.4166666667 | G19: ='Bad Pitches'!$H$45 -> 12 | H19: ='Bad Pitches'!$F$8 -> 3 | I19: Y | J19: ='Bad Pitches'!$H$46 -> 5 | K19: ='Bad Pitches'!$H$47 -> 12 | L19: ='Bad Pitches'!$D$48 -> m
A20: 55 | B20: ='Ghetto Bombers'!$A$29 -> 5 | C20: ='Ghetto Bombers'!$D$1 -> Ghetto Bombers | D20: ='Ghetto Bombers'!$D$29 -> Mac | E20: ='Ghetto Bombers'!$D$30 -> Estrada | F20: ='Ghetto Bombers'!$H$32 -> 0.4117647059 | G20: ='Ghetto Bombers'!$H$29 -> 17 | H20: ='Ghetto Bombers'!$F$8 -> 4 | I20: Y | J20: ='Ghetto Bombers'!$H$30 -> 7 | K20: ='Ghetto Bombers'!$H$31 -> 18 | L20: ='Ghetto Bombers'!$D$32 -> m
A21: 59 | B21: ='Ghetto Bombers'!$A$45 -> 9 | C21: ='Ghetto Bombers'!$D$1 -> Ghetto Bombers | D21: ='Ghetto Bombers'!$D$45 -> Derek | E21: ='Ghetto Bombers'!$D$46 -> Smith | F21: ='Ghetto Bombers'!$H$48 -> 0.3333333333 | G21: ='Ghetto Bombers'!$H$45 -> 12 | H21: ='Ghetto Bombers'!$F$8 -> 4 | I21: Y | J21: ='Ghetto Bombers'!$H$46 -> 4 | K21: ='Ghetto Bombers'!$H$47 -> 13 | L21: ='Ghetto Bombers'!$D$48 -> m
A22: 109 | B22: ='X Team'!$A$45 -> 9 | C22: ='X Team'!$D$1 -> X Team | D22: ='X Team'!$D$45 -> Tyler (TJ) | E22: ='X Team'!$D$46 -> Gossard | F22: ='X Team'!$H$48 -> 0 | G22: ='X Team'!$H$45 -> 63 | H22: ='X Team'!$F$8 -> 7 | I22: Y | J22: ='X Team'!$H$46 -> 0 | K22: ='X Team'!$H$47 -> 63 | L22: ='X Team'!$D$48 -> m
A23: 201 | B23: ='YY Team'!$A$13 -> 1 | C23: ='YY Team'!$D$1 -> YY Team | D23: ='YY Team'!$D$13 -> Kyle | E23: ='YY Team'!$D$14 -> O'Bryant | F23: ='YY Team'!$H$16 -> 0 | G23: ='YY Team'!$H$13 -> 63 | H23: ='YY Team'!$F$8 -> 7 | I23: Y | J23: ='YY Team'!$H$14 -> 0 | K23: ='YY Team'!$H$15 -> 63 | L23: ='YY Team'!$D$16 -> m
A24: 101 | B24: ='X Team'!$A$13 -> 1 | C24: ='X Team'!$D$1 -> X Team | D24: ='X Team'!$D$13 -> Jake | E24: ='X Team'!$D$14 -> Reeves | F24: ='X Team'!$H$16 -> 0 | G24: ='X Team'!$H$13 -> 63 | H24: ='X Team'!$F$8 -> 7 | I24: Y | J24: ='X Team'!$H$14 -> 0 | K24: ='X Team'!$H$15 -> 63 | L24: ='X Team'!$D$16 -> m
A25: 105 | B25: ='X Team'!$A$29 -> 5 | C25: ='X Team'!$D$1 -> X Team | D25: ='X Team'!$D$29 -> Jeff | E25: ='X Team'!$D$30 -> Peacock | F25: ='X Team'!$H$32 -> 0 | G25: ='X Team'!$H$29 -> 63 | H25: ='X Team'!$F$8 -> 7 | I25: Y | J25: ='X Team'!$H$30 -> 0 | K25: ='X Team'!$H$31 -> 63 | L25: ='X Team'!$D$32 -> m
A26: 205 | B26: ='YY Team'!$A$29 -> 5 | C26: ='YY Team'!$D$1 -> YY Team | D26: ='YY Team'!$D$29 -> Logan | E26: ='YY Team'!$D$30 -> Bateman | F26: ='YY Team'!$H$32 -> 0 | G26: ='YY Team'!$H$29 -> 63 | H26: ='YY Team'!$F$8 -> 7 | I26: Y | J26: ='YY Team'!$H$30 -> 0 | K26: ='YY Team'!$H$31 -> 63 | L26: ='YY Team'!$D$32 -> m
A27: 126 | B27: ='XXX Team'!$A$13 -> 1 | C27: ='XXX Team'!$D$1 -> XXX Team | D27: ='XXX Team'!$D$13 -> Jordan | E27: ='XXX Team'!$D$14 -> Hall | F27: ='XXX Team'!$H$16 -> 0 | G27: ='XXX Team'!$H$13 -> 63 | H27: ='XXX Team'!$F$8 -> 7 | I27: Y | J27: ='XXX Team'!$H$14 -> 0 | K27: ='XXX Team'!$H$15 -> 63 | L27: ='XXX Team'!$D$16 -> m
A28: 130 | B28: ='XXX Team'!$A$29 -> 5 | C28: ='XXX Team'!$D$1 -> XXX Team | D28: ='XXX Team'!$D$29 -> Sam | E28: ='XXX Team'!$D$30 -> Cook | F28: ='XXX Team'!$H$32 -> 0 | G28: ='XXX Team'!$H$29 -> 63 | H28: ='XXX Team'!$F$8 -> 7 | I28: Y | J28: ='XXX Team'!$H$30 -> 0 | K28: ='XXX Team'!$H$31 -> 63 | L28: ='XXX Team'!$D$32 -> m
A29: 132 | B29: ='XXX Team'!$A$37 -> 7 | C29: ='XXX Team'!$D$1 -> XXX Team | D29: ='XXX Team'!$D$37 -> Ike | E29: ='XXX Team'!$D$38 -> Whiting | F29: ='XXX Team'!$H$40 -> 0 | G29: ='XXX Team'!$H$37 -> 63 | H29: ='XXX Team'!$F$8 -> 7 | I29: Y | J29: ='XXX Team'!$H$38 -> 0 | K29: ='XXX Team'!$H$39 -> 63 | L29: ='XXX Team'!$D$40 -> m
A30: 103 | B30: ='X Team'!$A$21 -> 3 | C30: ='X Team'!$D$1 -> X Team | D30: ='X Team'!$D$21 -> Jason | E30: ='X Team'!$D$22 -> Reed | F30: ='X Team'!$H$24 -> 0 | G30: ='X Team'!$H$21 -> 63 | H30: ='X Team'!$F$8 -> 7 | I30: Y | J30: ='X Team'!$H$22 -> 0 | K30: ='X Team'!$H$23 -> 63 | L30: ='X Team'!$D$24 -> m
A31: 207 | B31: ='YY Team'!$A$37 -> 7 | C31: ='YY Team'!$D$1 -> YY Team | D31: ='YY Team'!$D$37 -> Russ | E31: ='YY Team'!$D$38 -> Collins | F31: ='YY Team'!$H$40 -> 0 | G31: ='YY Team'!$H$37 -> 63 | H31: ='YY Team'!$F$8 -> 7 | I31: Y | J31: ='YY Team'!$H$38 -> 0 | K31: ='YY Team'!$H$39 -> 63 | L31: ='YY Team'!$D$40 -> m
A32: 134 | B32: ='XXX Team'!$A$45 -> 9 | C32: ='XXX Team'!$D$1 -> XXX Team | D32: ='XXX Team'!$D$45 -> Josh | E32: ='XXX Team'!$D$46 -> Schmidt | F32: ='XXX Team'!$H$48 -> 0 | G32: ='XXX Team'!$H$45 -> 63 | H32: ='XXX Team'!$F$8 -> 7 | I32: Y | J32: ='XXX Team'!$H$46 -> 0 | K32: ='XXX Team'!$H$47 -> 63 | L32: ='XXX Team'!$D$48 -> m
A33: 107 | B33: ='X Team'!$A$37 -> 7 | C33: ='X Team'!$D$1 -> X Team | D33: ='X Team'!$D$37 -> Chris | E33: ='X Team'!$D$38 -> Teerlink | F33: ='X Team'!$H$40 -> 0 | G33: ='X Team'!$H$37 -> 63 | H33: ='X Team'!$F$8 -> 7 | I33: Y | J33: ='X Team'!$H$38 -> 0 | K33: ='X Team'!$H$39 -> 63 | L33: ='X Team'!$D$40 -> m
A34: 203 | B34: ='YY Team'!$A$21 -> 3 | C34: ='YY Team'!$D$1 -> YY Team | D34: ='YY Team'!$D$21 -> Stephen | E34: ='YY Team'!$D$22 -> Hart | F34: ='YY Team'!$H$24 -> 0 | G34: ='YY Team'!$H$21 -> 63 | H34: ='YY Team'!$F$8 -> 7 | I34: =IF(K34<(H34*2.5),"N","Y") -> Y | J34: ='YY Team'!$H$22 -> 0 | K34: ='YY Team'!$H$23 -> 63 | L34: ='YY Team'!$D$24 -> m
A35: 209 | B35: ='YY Team'!$A$45 -> 9 | C35: ='YY Team'!$D$1 -> YY Team | D35: ='YY Team'!$D$45 -> John | E35: ='YY Team'!$D$46 -> Campbell | F35: ='YY Team'!$H$48 -> 0 | G35: ='YY Team'!$H$45 -> 63 | H35: ='YY Team'!$F$8 -> 7 | I35: Y | J35: ='YY Team'!$H$46 -> 0 | K35: ='YY Team'!$H$47 -> 63 | L35: ='YY Team'!$D$48 -> m
A36: 185 | B36: ='XX Team'!$A$49 -> 10 | C36: ='XX Team'!$D$1 -> XX Team | D36: ='XX Team'!$D$49 -> Alex | E36: ='XX Team'!$D$50 -> Johnson | F36: ='XX Team'!$H$52 -> 0 | G36: ='XX Team'!$H$49 -> 63 | H36: ='XX Team'!$F$8 -> 6 | I36: Y | J36: ='XX Team'!$H$50 -> 0 | K36: ='XX Team'!$H$51 -> 63 | L36: ='XX Team'!$D$52 -> m
A37: 179 | B37: ='XX Team'!$A$25 -> 4 | C37: ='XX Team'!$D$1 -> XX Team | D37: ='XX Team'!$D$25 -> Thomas | E37: ='XX Team'!$D$26 -> Rich | F37: ='XX Team'!$H$28 -> 0 | G37: ='XX Team'!$H$25 -> 63 | H37: ='XX Team'!$F$8 -> 6 | I37: Y | J37: ='XX Team'!$H$26 -> 0 | K37: ='XX Team'!$H$27 -> 63 | L37: ='XX Team'!$D$28 -> m
A38: 183 | B38: ='XX Team'!$A$41 -> 8 | C38: ='XX Team'!$D$1 -> XX Team | D38: ='XX Team'!$D$41 -> Brandon | E38: ='XX Team'!$D$42 -> Blake | F38: ='XX Team'!$H$44 -> 0 | G38: ='XX Team'!$H$41 -> 63 | H38: ='XX Team'!$F$8 -> 6 | I38: Y | J38: ='XX Team'!$H$42 -> 0 | K38: ='XX Team'!$H$43 -> 63 | L38: ='XX Team'!$D$44 -> m
A39: 181 | B39: ='XX Team'!$A$33 -> 6 | C39: ='XX Team'!$D$1 -> XX Team | D39: ='XX Team'!$D$33 -> Ken | E39: ='XX Team'!$D$34 -> Hansen | F39: ='XX Team'!$H$36 -> 0 | G39: ='XX Team'!$H$33 -> 63 | H39: ='XX Team'!$F$8 -> 6 | I39: Y | J39: ='XX Team'!$H$34 -> 0 | K39: ='XX Team'!$H$35 -> 63 | L39: ='XX Team'!$D$36 -> m
A40: 177 | B40: ='XX Team'!$A$17 -> 2 | C40: ='XX Team'!$D$1 -> XX Team | D40: ='XX Team'!$D$17 -> Josh | E40: ='XX Team'!$D$18 -> Wright | F40: ='XX Team'!$H$20 -> 0 | G40: ='XX Team'!$H$17 -> 63 | H40: ='XX Team'!$F$8 -> 6 | I40: Y | J40: ='XX Team'!$H$18 -> 0 | K40: ='XX Team'!$H$19 -> 63 | L40: ='XX Team'!$D$20 -> m
A41: 128 | B41: ='XXX Team'!$A$21 -> 3 | C41: ='XXX Team'!$D$1 -> XXX Team | D41: ='XXX Team'!$D$21 -> Corey | E41: ='XXX Team'!$D$22 -> Murphy | F41: ='XXX Team'!$H$24 -> 0 | G41: ='XXX Team'!$H$21 -> 63 | H41: ='XXX Team'!$F$8 -> 7 | I41: Y | J41: ='XXX Team'!$H$22 -> 0 | K41: ='XXX Team'!$H$23 -> 63 | L41: ='XXX Team'!$D$24 -> m
A42: 138 | B42: ='XXX Team'!$A$61 -> 13 | C42: ='XXX Team'!$D$1 -> XXX Team | D42: ='XXX Team'!$D$61 -> Dan | E42: ='XXX Team'!$D$62 -> Flynn | F42: ='XXX Team'!$H$64 -> 0 | G42: ='XXX Team'!$H$61 -> 63 | H42: ='XXX Team'!$F$8 -> 7 | I42: Y | J42: ='XXX Team'!$H$62 -> 0 | K42: ='XXX Team'!$H$63 -> 63 | L42: ='XXX Team'!$D$64 -> m
A43: 112 | B43: ='X Team'!$A$57 -> 12 | C43: ='X Team'!$D$1 -> X Team | D43: ='X Team'!$D$57 -> Kenyon | E43: ='X Team'!$D$58 -> Kawa | F43: ='X Team'!$H$60 -> 0 | G43: ='X Team'!$H$57 -> 63 | H43: ='X Team'!$F$8 -> 7 | I43: Y | J43: ='X Team'!$H$58 -> 0 | K43: ='X Team'!$H$59 -> 63 | L43: ='X Team'!$D$60 -> m
A44: 136 | B44: ='XXX Team'!$A$53 -> 11 | C44: ='XXX Team'!$D$1 -> XXX Team | D44: ='XXX Team'!$D$53 -> Josh | E44: ='XXX Team'!$D$54 -> Anderson | F44: ='XXX Team'!$H$56 -> 0 | G44: ='XXX Team'!$H$53 -> 63 | H44: ='XXX Team'!$F$8 -> 7 | I44: Y | J44: ='XXX Team'!$H$54 -> 0 | K44: ='XXX Team'!$H$55 -> 63 | L44: ='XXX Team'!$D$56 -> m
A45: 139 | B45: ='XXX Team'!$A$65 -> 14 | C45: ='XXX Team'!$D$1 -> XXX Team | D45: ='XXX Team'!$D$65 -> J C | E45: ='XXX Team'!$D$66 -> Garcia | F45: ='XXX Team'!$H$68 -> 0 | G45: ='XXX Team'!$H$65 -> 63 | H45: ='XXX Team'!$F$8 -> 7 | I45: Y | J45: ='XXX Team'!$H$66 -> 0 | K45: ='XXX Team'!$H$67 -> 63 | L45: ='XXX Team'!$D$68 -> m
A46: 19 | B46: ='Bad Pitches'!$A$85 -> 19 | C46: ='Bad Pitches'!$D$1 -> Bad Pitches | D46: ='Bad Pitches'!$D$85 -> 0 | E46: ='Bad Pitches'!$D$86 -> 0 | F46: ='Bad Pitches'!$H$88 ->  | G46: ='Bad Pitches'!$H$85 -> 0 | H46: ='Bad Pitches'!$F$8 -> 3 | I46: N | J46: ='Bad Pitches'!$H$86 -> 0 | K46: ='Bad Pitches'!$H$87 -> 0 | L46: ='Bad Pitches'!$D$88 -> m
A47: 18 | B47: ='Bad Pitches'!$A$81 -> 18 | C47: ='Bad Pitches'!$D$1 -> Bad Pitches | D47: ='Bad Pitches'!$D$81 -> 0 | E47: ='Bad Pitches'!$D$82 -> 0 | F47: ='Bad Pitches'!$H$84 ->  | G47: ='Bad Pitches'!$H$81 -> 0 | H47: ='Bad Pitches'!$F$8 -> 3 | I47: N | J47: ='Bad Pitches'!$H$82 -> 0 | K47: ='Bad Pitches'!$H$83 -> 0 | L47: ='Bad Pitches'!$D$84 -> m
A48: 140 | B48: ='XXX Team'!$A$69 -> 15 | C48: ='XXX Team'!$D$1 -> XXX Team | D48: ='XXX Team'!$D$69 -> 0 | E48: ='XXX Team'!$D$70 -> 0 | F48: ='XXX Team'!$H$72 ->  | G48: ='XXX Team'!$H$69 -> 0 | H48: ='XXX Team'!$F$8 -> 7 | I48: N | J48: ='XXX Team'!$H$70 -> 0 | K48: ='XXX Team'!$H$71 -> 0 | L48: ='XXX Team'!$D$72 -> m
A49: 119 | B49: ='X Team'!$A$85 -> 19 | C49: ='X Team'!$D$1 -> X Team | D49: ='X Team'!$D$85 -> 0 | E49: ='X Team'!$D$86 -> 0 | F49: ='X Team'!$H$88 ->  | G49: ='X Team'!$H$85 -> 0 | H49: ='X Team'!$F$8 -> 7 | I49: N | J49: ='X Team'!$H$86 -> 0 | K49: ='X Team'!$H$87 -> 0 | L49: ='X Team'!$D$88 -> m
A50: 68 | B50: ='Ghetto Bombers'!$A$81 -> 18 | C50: ='Ghetto Bombers'!$D$1 -> Ghetto Bombers | D50: ='Ghetto Bombers'!$D$81 -> 0 | E50: ='Ghetto Bombers'!$D$82 -> 0 | F50: ='Ghetto Bombers'!$H$84 ->  | G50: ='Ghetto Bombers'!$H$81 -> 0 | H50: ='Ghetto Bombers'!$F$8 -> 4 | I50: N | J50: ='Ghetto Bombers'!$H$82 -> 0 | K50: ='Ghetto Bombers'!$H$83 -> 0 | L50: ='Ghetto Bombers'!$D$84 -> m
A51: 121 | B51: ='X Team'!$A$93 -> 21 | C51: ='X Team'!$D$1 -> X Team | D51: ='X Team'!$D$93 -> 0 | E51: ='X Team'!$D$94 -> 0 | F51: ='X Team'!$H$96 ->  | G51: ='X Team'!$H$93 -> 0 | H51: ='X Team'!$F$8 -> 7 | I51: N | J51: ='X Team'!$H$94 -> 0 | K51: ='X Team'!$H$95 -> 0 | L51: ='X Team'!$D$96 -> m
A52: 92 | B52: ='Thunder Ducks'!$A$77 -> 17 | C52: ='Thunder Ducks'!$D$1 -> Thunder Ducks | D52: ='Thunder Ducks'!$D$77 -> 0 | E52: ='Thunder Ducks'!$D$78 -> 0 | F52: ='Thunder Ducks'!$H$80 ->  | G52: ='Thunder Ducks'!$H$77 -> 0 | H52: ='Thunder Ducks'!$F$8 -> 4 | I52: N | J52: ='Thunder Ducks'!$H$78 -> 0 | K52: ='Thunder Ducks'!$H$79 -> 0 | L52: ='Thunder Ducks'!$D$80 -> m
A53: 7 | B53: ='Bad Pitches'!$A$37 -> 7 | C53: ='Bad Pitches'!$D$1 -> Bad Pitches | D53: ='Bad Pitches'!$D$37 -> Jeff | E53: ='Bad Pitches'!$D$38 -> Cagle | F53: ='Bad Pitches'!$H$40 -> 0.7142857143 | G53: ='Bad Pitches'!$H$37 -> 7 | H53: ='Bad Pitches'!$F$8 -> 3 | I53: Y | J53: ='Bad Pitches'!$H$38 -> 5 | K53: ='Bad Pitches'!$H$39 -> 8 | L53: ='Bad Pitches'!$D$40 -> m
A54: 40 | B54: =BCBC!$A$69 -> 15 | C54: =BCBC!$D$1 -> BCBC | D54: =BCBC!$D$69 -> Scotty | E54: =BCBC!$D$70 -> Garfield | F54: =BCBC!$H$72 -> 0.6666666667 | G54: =BCBC!$H$69 -> 3 | H54: =BCBC!$F$8 -> 4 | I54: N | J54: =BCBC!$H$70 -> 2 | K54: =BCBC!$H$71 -> 3 | L54: =BCBC!$D$72 -> m
A55: 39 | B55: =BCBC!$A$65 -> 14 | C55: =BCBC!$D$1 -> BCBC | D55: =BCBC!$D$65 -> AJ | E55: =BCBC!$D$66 -> Avellar | F55: =BCBC!$H$68 -> 0.6666666667 | G55: =BCBC!$H$65 -> 3 | H55: =BCBC!$F$8 -> 4 | I55: N | J55: =BCBC!$H$66 -> 2 | K55: =BCBC!$H$67 -> 3 | L55: =BCBC!$D$68 -> m
A56: 88 | B56: ='Thunder Ducks'!$A$61 -> 13 | C56: ='Thunder Ducks'!$D$1 -> Thunder Ducks | D56: ='Thunder Ducks'!$D$61 -> Spencer | E56: ='Thunder Ducks'!$D$62 -> Hille | F56: ='Thunder Ducks'!$H$64 -> 0.5714285714 | G56: ='Thunder Ducks'!$H$61 -> 7 | H56: ='Thunder Ducks'!$F$8 -> 4 | I56: N | J56: ='Thunder Ducks'!$H$62 -> 4 | K56: ='Thunder Ducks'!$H$63 -> 7 | L56: ='Thunder Ducks'!$D$64 -> m
A57: 90 | B57: ='Thunder Ducks'!$A$69 -> 15 | C57: ='Thunder Ducks'!$D$1 -> Thunder Ducks | D57: ='Thunder Ducks'!$D$69 -> John | E57: ='Thunder Ducks'!$D$70 -> Campbell | F57: ='Thunder Ducks'!$H$72 -> 0.5 | G57: ='Thunder Ducks'!$H$69 -> 4 | H57: ='Thunder Ducks'!$F$8 -> 4 | I57: N | J57: ='Thunder Ducks'!$H$70 -> 2 | K57: ='Thunder Ducks'!$H$71 -> 4 | L57: ='Thunder Ducks'!$D$72 -> m
A58: 14 | B58: ='Bad Pitches'!$A$65 -> 14 | C58: ='Bad Pitches'!$D$1 -> Bad Pitches | D58: ='Bad Pitches'!$D$65 -> Britton | E58: ='Bad Pitches'!$D$66 -> Lund | F58: ='Bad Pitches'!$H$68 -> 0.5 | G58: ='Bad Pitches'!$H$65 -> 4 | H58: ='Bad Pitches'!$F$8 -> 3 | I58: N | J58: ='Bad Pitches'!$H$66 -> 2 | K58: ='Bad Pitches'!$H$67 -> 4 | L58: ='Bad Pitches'!$D$68 -> m
A59: 5 | B59: ='Bad Pitches'!$A$29 -> 5 | C59: ='Bad Pitches'!$D$1 -> Bad Pitches | D59: ='Bad Pitches'!$D$29 -> Parker | E59: ='Bad Pitches'!$D$30 -> Van Dyke | F59: ='Bad Pitches'!$H$32 -> 0.3333333333 | G59: ='Bad Pitches'!$H$29 -> 6 | H59: ='Bad Pitches'!$F$8 -> 3 | I59: N | J59: ='Bad Pitches'!$H$30 -> 2 | K59: ='Bad Pitches'!$H$31 -> 6 | L59: ='Bad Pitches'!$D$32 -> m
A60: 84 | B60: ='Thunder Ducks'!$A$45 -> 9 | C60: ='Thunder Ducks'!$D$1 -> Thunder Ducks | D60: ='Thunder Ducks'!$D$45 -> Adam | E60: ='Thunder Ducks'!$D$46 -> Thorne | F60: ='Thunder Ducks'!$H$48 -> 0.3333333333 | G60: ='Thunder Ducks'!$H$45 -> 3 | H60: ='Thunder Ducks'!$F$8 -> 4 | I60: N | J60: ='Thunder Ducks'!$H$46 -> 1 | K60: ='Thunder Ducks'!$H$47 -> 6 | L60: ='Thunder Ducks'!$D$48 -> m
A61: 42 | B61: =BCBC!$A$77 -> 17 | C61: =BCBC!$D$1 -> BCBC | D61: =BCBC!$D$77 -> Craig | E61: =BCBC!$D$78 -> Patten | F61: =BCBC!$H$80 -> 0.3333333333 | G61: =BCBC!$H$77 -> 3 | H61: =BCBC!$F$8 -> 4 | I61: N | J61: =BCBC!$H$78 -> 1 | K61: =BCBC!$H$79 -> 3 | L61: =BCBC!$D$80 -> m
A62: 11 | B62: ='Bad Pitches'!$A$53 -> 11 | C62: ='Bad Pitches'!$D$1 -> Bad Pitches | D62: ='Bad Pitches'!$D$53 -> Vincente | E62: ='Bad Pitches'!$D$54 -> Herrera | F62: ='Bad Pitches'!$H$56 -> 0.25 | G62: ='Bad Pitches'!$H$53 -> 8 | H62: ='Bad Pitches'!$F$8 -> 3 | I62: Y | J62: ='Bad Pitches'!$H$54 -> 2 | K62: ='Bad Pitches'!$H$55 -> 8 | L62: ='Bad Pitches'!$D$56 -> m
A63: 66 | B63: ='Ghetto Bombers'!$A$73 -> 16 | C63: ='Ghetto Bombers'!$D$1 -> Ghetto Bombers | D63: ='Ghetto Bombers'!$D$73 -> Britt | E63: ='Ghetto Bombers'!$D$74 -> M | F63: ='Ghetto Bombers'!$H$76 -> 0.75 | G63: ='Ghetto Bombers'!$H$73 -> 4 | H63: ='Ghetto Bombers'!$F$8 -> 4 | I63: N | J63: ='Ghetto Bombers'!$H$74 -> 3 | K63: ='Ghetto Bombers'!$H$75 -> 4 | L63: ='Ghetto Bombers'!$D$76 -> f00
A64: 83 | B64: ='Thunder Ducks'!$A$41 -> 8 | C64: ='Thunder Ducks'!$D$1 -> Thunder Ducks | D64: ='Thunder Ducks'!$D$41 -> Annie | E64: ='Thunder Ducks'!$D$42 -> Brady | F64: ='Thunder Ducks'!$H$44 -> 0.7272727273 | G64: ='Thunder Ducks'!$H$41 -> 11 | H64: ='Thunder Ducks'!$F$8 -> 4 | I64: Y | J64: ='Thunder Ducks'!$H$42 -> 8 | K64: ='Thunder Ducks'!$H$43 -> 11 | L64: ='Thunder Ducks'!$D$44 -> f
A65: 52 | B65: ='Ghetto Bombers'!$A$17 -> 2 | C65: ='Ghetto Bombers'!$D$1 -> Ghetto Bombers | D65: ='Ghetto Bombers'!$D$17 -> Calleigh | E65: ='Ghetto Bombers'!$D$18 -> DeYoung | F65: ='Ghetto Bombers'!$H$20 -> 0.6875 | G65: ='Ghetto Bombers'!$H$17 -> 16 | H65: ='Ghetto Bombers'!$F$8 -> 4 | I65: Y | J65: ='Ghetto Bombers'!$H$18 -> 11 | K65: ='Ghetto Bombers'!$H$19 -> 18 | L65: ='Ghetto Bombers'!$D$20 -> f
A66: 54 | B66: ='Ghetto Bombers'!$A$25 -> 4 | C66: ='Ghetto Bombers'!$D$1 -> Ghetto Bombers | D66: ='Ghetto Bombers'!$D$25 -> Brandi | E66: ='Ghetto Bombers'!$D$26 -> Hall | F66: ='Ghetto Bombers'!$H$28 -> 0.5555555556 | G66: ='Ghetto Bombers'!$H$25 -> 18 | H66: ='Ghetto Bombers'!$F$8 -> 4 | I66: =IF(K66<(H66*2.5),"N","Y") -> Y | J66: ='Ghetto Bombers'!$H$26 -> 10 | K66: ='Ghetto Bombers'!$H$27 -> 18 | L66: ='Ghetto Bombers'!$D$28 -> f
A67: 65 | B67: ='Ghetto Bombers'!$A$69 -> 15 | C67: ='Ghetto Bombers'!$D$1 -> Ghetto Bombers | D67: ='Ghetto Bombers'!$D$69 -> Hope | E67: ='Ghetto Bombers'!$D$70 -> Curtis | F67: ='Ghetto Bombers'!$H$72 -> 0.5454545455 | G67: ='Ghetto Bombers'!$H$69 -> 11 | H67: ='Ghetto Bombers'!$F$8 -> 4 | I67: Y | J67: ='Ghetto Bombers'!$H$70 -> 6 | K67: ='Ghetto Bombers'!$H$71 -> 11 | L67: ='Ghetto Bombers'!$D$72 -> f
A68: 4 | B68: ='Bad Pitches'!$A$25 -> 4 | C68: ='Bad Pitches'!$D$1 -> Bad Pitches | D68: ='Bad Pitches'!$D$25 -> Tanzie | E68: ='Bad Pitches'!$D$26 -> Gasu | F68: ='Bad Pitches'!$H$28 -> 0.5 | G68: ='Bad Pitches'!$H$25 -> 14 | H68: ='Bad Pitches'!$F$8 -> 3 | I68: Y | J68: ='Bad Pitches'!$H$26 -> 7 | K68: ='Bad Pitches'!$H$27 -> 14 | L68: ='Bad Pitches'!$D$28 -> f
A69: 56 | B69: ='Ghetto Bombers'!$A$33 -> 6 | C69: ='Ghetto Bombers'!$D$1 -> Ghetto Bombers | D69: ='Ghetto Bombers'!$D$33 -> JoJo | E69: ='Ghetto Bombers'!$D$34 -> Carlson | F69: ='Ghetto Bombers'!$H$36 -> 0.5 | G69: ='Ghetto Bombers'!$H$33 -> 10 | H69: ='Ghetto Bombers'!$F$8 -> 4 | I69: Y | J69: ='Ghetto Bombers'!$H$34 -> 5 | K69: ='Ghetto Bombers'!$H$35 -> 10 | L69: ='Ghetto Bombers'!$D$36 -> f
A70: 60 | B70: ='Ghetto Bombers'!$A$49 -> 10 | C70: ='Ghetto Bombers'!$D$1 -> Ghetto Bombers | D70: ='Ghetto Bombers'!$D$49 -> Heidi | E70: ='Ghetto Bombers'!$D$50 -> Taylor | F70: ='Ghetto Bombers'!$H$52 -> 0.4666666667 | G70: ='Ghetto Bombers'!$H$49 -> 15 | H70: ='Ghetto Bombers'!$F$8 -> 4 | I70: Y | J70: ='Ghetto Bombers'!$H$50 -> 7 | K70: ='Ghetto Bombers'!$H$51 -> 16 | L70: ='Ghetto Bombers'!$D$52 -> f
A71: 79 | B71: ='Thunder Ducks'!$A$25 -> 4 | C71: ='Thunder Ducks'!$D$1 -> Thunder Ducks | D71: ='Thunder Ducks'!$D$25 -> Jennie | E71: ='Thunder Ducks'!$D$26 -> Anderson | F71: ='Thunder Ducks'!$H$28 -> 0.4615384615 | G71: ='Thunder Ducks'!$H$25 -> 13 | H71: ='Thunder Ducks'!$F$8 -> 4 | I71: Y | J71: ='Thunder Ducks'!$H$26 -> 6 | K71: ='Thunder Ducks'!$H$27 -> 15 | L71: ='Thunder Ducks'!$D$28 -> f
A72: 27 | B72: =BCBC!$A$17 -> 2 | C72: =BCBC!$D$1 -> BCBC | D72: =BCBC!$D$17 -> Alex | E72: =BCBC!$D$18 -> Ferrel | F72: =BCBC!$H$20 -> 0.4545454545 | G72: =BCBC!$H$17 -> 11 | H72: =BCBC!$F$8 -> 4 | I72: Y | J72: =BCBC!$H$18 -> 5 | K72: =BCBC!$H$19 -> 11 | L72: =BCBC!$D$20 -> f
A73: 31 | B73: =BCBC!$A$33 -> 6 | C73: =BCBC!$D$1 -> BCBC | D73: =BCBC!$D$33 -> Tiff | E73: =BCBC!$D$34 -> Morton | F73: =BCBC!$H$36 -> 0.4 | G73: =BCBC!$H$33 -> 10 | H73: =BCBC!$F$8 -> 4 | I73: Y | J73: =BCBC!$H$34 -> 4 | K73: =BCBC!$H$35 -> 11 | L73: =BCBC!$D$36 -> f
A74: 29 | B74: =BCBC!$A$25 -> 4 | C74: =BCBC!$D$1 -> BCBC | D74: =BCBC!$D$25 -> Casey | E74: =BCBC!$D$26 -> Velarde | F74: =BCBC!$H$28 -> 0.3636363636 | G74: =BCBC!$H$25 -> 11 | H74: =BCBC!$F$8 -> 4 | I74: Y | J74: =BCBC!$H$26 -> 4 | K74: =BCBC!$H$27 -> 12 | L74: =BCBC!$D$28 -> f
A75: 77 | B75: ='Thunder Ducks'!$A$17 -> 2 | C75: ='Thunder Ducks'!$D$1 -> Thunder Ducks | D75: ='Thunder Ducks'!$D$17 -> Josie | E75: ='Thunder Ducks'!$D$18 -> Harris | F75: ='Thunder Ducks'!$H$20 -> 0.3333333333 | G75: ='Thunder Ducks'!$H$17 -> 12 | H75: ='Thunder Ducks'!$F$8 -> 4 | I75: Y | J75: ='Thunder Ducks'!$H$18 -> 4 | K75: ='Thunder Ducks'!$H$19 -> 14 | L75: ='Thunder Ducks'!$D$20 -> f
A76: 2 | B76: ='Bad Pitches'!$A$17 -> 2 | C76: ='Bad Pitches'!$D$1 -> Bad Pitches | D76: ='Bad Pitches'!$D$17 -> Paige | E76: ='Bad Pitches'!$D$18 -> Reynolds | F76: ='Bad Pitches'!$H$20 -> 0.3 | G76: ='Bad Pitches'!$H$17 -> 10 | H76: ='Bad Pitches'!$F$8 -> 3 | I76: Y | J76: ='Bad Pitches'!$H$18 -> 3 | K76: ='Bad Pitches'!$H$19 -> 10 | L76: ='Bad Pitches'!$D$20 -> f
A77: 33 | B77: =BCBC!$A$41 -> 8 | C77: =BCBC!$D$1 -> BCBC | D77: =BCBC!$D$41 -> Maree | E77: =BCBC!$D$42 -> Achermann | F77: =BCBC!$H$44 -> 0.1538461538 | G77: =BCBC!$H$41 -> 13 | H77: =BCBC!$F$8 -> 4 | I77: Y | J77: =BCBC!$H$42 -> 2 | K77: =BCBC!$H$43 -> 13 | L77: =BCBC!$D$44 -> f
A78: 37 | B78: =BCBC!$A$57 -> 12 | C78: =BCBC!$D$1 -> BCBC | D78: =BCBC!$D$57 -> Mel | E78: =BCBC!$D$58 -> Maile | F78: =BCBC!$H$60 -> 0.09090909091 | G78: =BCBC!$H$57 -> 11 | H78: =BCBC!$F$8 -> 4 | I78: Y | J78: =BCBC!$H$58 -> 1 | K78: =BCBC!$H$59 -> 12 | L78: =BCBC!$D$60 -> f
A79: 206 | B79: ='YY Team'!$A$33 -> 6 | C79: ='YY Team'!$D$1 -> YY Team | D79: ='YY Team'!$D$33 -> Britt | E79: ='YY Team'!$D$34 -> Call | F79: ='YY Team'!$H$36 -> 0 | G79: ='YY Team'!$H$33 -> 63 | H79: ='YY Team'!$F$8 -> 7 | I79: Y | J79: ='YY Team'!$H$34 -> 0 | K79: ='YY Team'!$H$35 -> 63 | L79: ='YY Team'!$D$36 -> f
A80: 137 | B80: ='XXX Team'!$A$57 -> 12 | C80: ='XXX Team'!$D$1 -> XXX Team | D80: ='XXX Team'!$D$57 -> Anna | E80: ='XXX Team'!$D$58 -> Hall | F80: ='XXX Team'!$H$60 -> 0 | G80: ='XXX Team'!$H$57 -> 63 | H80: ='XXX Team'!$F$8 -> 7 | I80: Y | J80: ='XXX Team'!$H$58 -> 0 | K80: ='XXX Team'!$H$59 -> 63 | L80: ='XXX Team'!$D$60 -> f
A81: 135 | B81: ='XXX Team'!$A$49 -> 10 | C81: ='XXX Team'!$D$1 -> XXX Team | D81: ='XXX Team'!$D$49 -> Chandra | E81: ='XXX Team'!$D$50 -> Cruz | F81: ='XXX Team'!$H$52 -> 0 | G81: ='XXX Team'!$H$49 -> 63 | H81: ='XXX Team'!$F$8 -> 7 | I81: Y | J81: ='XXX Team'!$H$50 -> 0 | K81: ='XXX Team'!$H$51 -> 63 | L81: ='XXX Team'!$D$52 -> f
A82: 104 | B82: ='X Team'!$A$25 -> 4 | C82: ='X Team'!$D$1 -> X Team | D82: ='X Team'!$D$25 -> Chelsea | E82: ='X Team'!$D$26 -> LdBaron | F82: ='X Team'!$H$28 -> 0 | G82: ='X Team'!$H$25 -> 63 | H82: ='X Team'!$F$8 -> 7 | I82: Y | J82: ='X Team'!$H$26 -> 0 | K82: ='X Team'!$H$27 -> 63 | L82: ='X Team'!$D$28 -> f
A83: 102 | B83: ='X Team'!$A$17 -> 2 | C83: ='X Team'!$D$1 -> X Team | D83: ='X Team'!$D$17 -> Paige | E83: ='X Team'!$D$18 -> Jackman | F83: ='X Team'!$H$20 -> 0 | G83: ='X Team'!$H$17 -> 63 | H83: ='X Team'!$F$8 -> 7 | I83: Y | J83: ='X Team'!$H$18 -> 0 | K83: ='X Team'!$H$19 -> 63 | L83: ='X Team'!$D$20 -> f
A84: 202 | B84: ='YY Team'!$A$17 -> 2 | C84: ='YY Team'!$D$1 -> YY Team | D84: ='YY Team'!$D$17 -> Tasha | E84: ='YY Team'!$D$18 -> Arnold | F84: ='YY Team'!$H$20 -> 0 | G84: ='YY Team'!$H$17 -> 63 | H84: ='YY Team'!$F$8 -> 7 | I84: Y | J84: ='YY Team'!$H$18 -> 0 | K84: ='YY Team'!$H$19 -> 63 | L84: ='YY Team'!$D$20 -> f
A85: 129 | B85: ='XXX Team'!$A$25 -> 4 | C85: ='XXX Team'!$D$1 -> XXX Team | D85: ='XXX Team'!$D$25 -> Gimmie | E85: ='XXX Team'!$D$26 -> Murphy | F85: ='XXX Team'!$H$28 -> 0 | G85: ='XXX Team'!$H$25 -> 63 | H85: ='XXX Team'!$F$8 -> 7 | I85: Y | J85: ='XXX Team'!$H$26 -> 0 | K85: ='XXX Team'!$H$27 -> 63 | L85: ='XXX Team'!$D$28 -> f
A86: 127 | B86: ='XXX Team'!$A$17 -> 2 | C86: ='XXX Team'!$D$1 -> XXX Team | D86: ='XXX Team'!$D$17 -> Jenn | E86: ='XXX Team'!$D$18 -> Hall | F86: ='XXX Team'!$H$20 -> 0 | G86: ='XXX Team'!$H$17 -> 63 | H86: ='XXX Team'!$F$8 -> 7 | I86: Y | J86: ='XXX Team'!$H$18 -> 0 | K86: ='XXX Team'!$H$19 -> 63 | L86: ='XXX Team'!$D$20 -> f
A87: 204 | B87: ='YY Team'!$A$25 -> 4 | C87: ='YY Team'!$D$1 -> YY Team | D87: ='YY Team'!$D$25 -> Josie | E87: ='YY Team'!$D$26 -> Harris | F87: ='YY Team'!$H$28 -> 0 | G87: ='YY Team'!$H$25 -> 63 | H87: ='YY Team'!$F$8 -> 7 | I87: Y | J87: ='YY Team'!$H$26 -> 0 | K87: ='YY Team'!$H$27 -> 63 | L87: ='YY Team'!$D$28 -> f
A88: 108 | B88: ='X Team'!$A$41 -> 8 | C88: ='X Team'!$D$1 -> X Team | D88: ='X Team'!$D$41 -> Cassi | E88: ='X Team'!$D$42 -> Kendzior | F88: ='X Team'!$H$44 -> 0 | G88: ='X Team'!$H$41 -> 63 | H88: ='X Team'!$F$8 -> 7 | I88: Y | J88: ='X Team'!$H$42 -> 0 | K88: ='X Team'!$H$43 -> 63 | L88: ='X Team'!$D$44 -> f
A89: 131 | B89: ='XXX Team'!$A$33 -> 6 | C89: ='XXX Team'!$D$1 -> XXX Team | D89: ='XXX Team'!$D$33 -> Deanndra | E89: ='XXX Team'!$D$34 -> Billie | F89: ='XXX Team'!$H$36 -> 0 | G89: ='XXX Team'!$H$33 -> 63 | H89: ='XXX Team'!$F$8 -> 7 | I89: Y | J89: ='XXX Team'!$H$34 -> 0 | K89: ='XXX Team'!$H$35 -> 63 | L89: ='XXX Team'!$D$36 -> f
A90: 208 | B90: ='YY Team'!$A$41 -> 8 | C90: ='YY Team'!$D$1 -> YY Team | D90: ='YY Team'!$D$41 -> Lindsay | E90: ='YY Team'!$D$42 -> Pennington | F90: ='YY Team'!$H$44 -> 0 | G90: ='YY Team'!$H$41 -> 63 | H90: ='YY Team'!$F$8 -> 7 | I90: Y | J90: ='YY Team'!$H$42 -> 0 | K90: ='YY Team'!$H$43 -> 63 | L90: ='YY Team'!$D$44 -> f
A91: 133 | B91: ='XXX Team'!$A$41 -> 8 | C91: ='XXX Team'!$D$1 -> XXX Team | D91: ='XXX Team'!$D$41 -> Emma | E91: ='XXX Team'!$D$42 -> Hall | F91: ='XXX Team'!$H$44 -> 0 | G91: ='XXX Team'!$H$41 -> 63 | H91: ='XXX Team'!$F$8 -> 7 | I91: Y | J91: ='XXX Team'!$H$42 -> 0 | K91: ='XXX Team'!$H$43 -> 63 | L91: ='XXX Team'!$D$44 -> f
A92: 106 | B92: ='X Team'!$A$33 -> 6 | C92: ='X Team'!$D$1 -> X Team | D92: ='X Team'!$D$33 -> Jo | E92: ='X Team'!$D$34 -> Cruz | F92: ='X Team'!$H$36 -> 0 | G92: ='X Team'!$H$33 -> 63 | H92: ='X Team'!$F$8 -> 7 | I92: Y | J92: ='X Team'!$H$34 -> 0 | K92: ='X Team'!$H$35 -> 63 | L92: ='X Team'!$D$36 -> f
A93: 184 | B93: ='XX Team'!$A$45 -> 9 | C93: ='XX Team'!$D$1 -> XX Team | D93: ='XX Team'!$D$45 -> Nancy | E93: ='XX Team'!$D$46 -> Lowe | F93: ='XX Team'!$H$48 -> 0 | G93: ='XX Team'!$H$45 -> 63 | H93: ='XX Team'!$F$8 -> 6 | I93: Y | J93: ='XX Team'!$H$46 -> 0 | K93: ='XX Team'!$H$47 -> 63 | L93: ='XX Team'!$D$48 -> f
A94: 180 | B94: ='XX Team'!$A$29 -> 5 | C94: ='XX Team'!$D$1 -> XX Team | D94: ='XX Team'!$D$29 -> Toni | E94: ='XX Team'!$D$30 -> Wall | F94: ='XX Team'!$H$32 -> 0 | G94: ='XX Team'!$H$29 -> 63 | H94: ='XX Team'!$F$8 -> 6 | I94: Y | J94: ='XX Team'!$H$30 -> 0 | K94: ='XX Team'!$H$31 -> 63 | L94: ='XX Team'!$D$32 -> f
A95: 178 | B95: ='XX Team'!$A$21 -> 3 | C95: ='XX Team'!$D$1 -> XX Team | D95: ='XX Team'!$D$21 -> Mary | E95: ='XX Team'!$D$22 -> Childs | F95: ='XX Team'!$H$24 -> 0 | G95: ='XX Team'!$H$21 -> 63 | H95: ='XX Team'!$F$8 -> 6 | I95: Y | J95: ='XX Team'!$H$22 -> 0 | K95: ='XX Team'!$H$23 -> 63 | L95: ='XX Team'!$D$24 -> f
A96: 176 | B96: ='XX Team'!$A$13 -> 1 | C96: ='XX Team'!$D$1 -> XX Team | D96: ='XX Team'!$D$13 -> Francis | E96: ='XX Team'!$D$14 -> Brown | F96: ='XX Team'!$H$16 -> 0 | G96: ='XX Team'!$H$13 -> 63 | H96: ='XX Team'!$F$8 -> 6 | I96: Y | J96: ='XX Team'!$H$14 -> 0 | K96: ='XX Team'!$H$15 -> 63 | L96: ='XX Team'!$D$16 -> f
A97: 182 | B97: ='XX Team'!$A$37 -> 7 | C97: ='XX Team'!$D$1 -> XX Team | D97: ='XX Team'!$D$37 -> Shela | E97: ='XX Team'!$D$38 -> Anderson | F97: ='XX Team'!$H$40 -> 0 | G97: ='XX Team'!$H$37 -> 63 | H97: ='XX Team'!$F$8 -> 6 | I97: Y | J97: ='XX Team'!$H$38 -> 0 | K97: ='XX Team'!$H$39 -> 63 | L97: ='XX Team'!$D$40 -> f
A98: 110 | B98: ='X Team'!$A$49 -> 10 | C98: ='X Team'!$D$1 -> X Team | D98: ='X Team'!$D$49 -> Shae Lee | E98: ='X Team'!$D$50 -> Pearson | F98: ='X Team'!$H$52 -> 0 | G98: ='X Team'!$H$49 -> 63 | H98: ='X Team'!$F$8 -> 7 | I98: =IF(K98<(H98*2.5),"N","Y") -> Y | J98: ='X Team'!$H$50 -> 0 | K98: ='X Team'!$H$51 -> 63 | L98: ='X Team'!$D$52 -> f
A99: 211 | B99: ='YY Team'!$A$53 -> 11 | C99: ='YY Team'!$D$1 -> YY Team | D99: ='YY Team'!$D$53 -> Jennie | E99: ='YY Team'!$D$54 -> Anderson | F99: ='YY Team'!$H$56 -> 0 | G99: ='YY Team'!$H$53 -> 63 | H99: ='YY Team'!$F$8 -> 7 | I99: Y | J99: ='YY Team'!$H$54 -> 0 | K99: ='YY Team'!$H$55 -> 63 | L99: ='YY Team'!$D$56 -> f
A100: 210 | B100: ='YY Team'!$A$49 -> 10 | C100: ='YY Team'!$D$1 -> YY Team | D100: ='YY Team'!$D$49 -> Taylor | E100: ='YY Team'!$D$50 -> McCallum | F100: ='YY Team'!$H$52 -> 0 | G100: ='YY Team'!$H$49 -> 63 | H100: ='YY Team'!$F$8 -> 7 | I100: Y | J100: ='YY Team'!$H$50 -> 0 | K100: ='YY Team'!$H$51 -> 63 | L100: ='YY Team'!$D$52 -> f
A101: 111 | B101: ='X Team'!$A$53 -> 11 | C101: ='X Team'!$D$1 -> X Team | D101: ='X Team'!$D$53 -> Jo | E101: ='X Team'!$D$54 -> Blake | F101: ='X Team'!$H$56 -> 0 | G101: ='X Team'!$H$53 -> 63 | H101: ='X Team'!$F$8 -> 7 | I101: Y | J101: ='X Team'!$H$54 -> 0 | K101: ='X Team'!$H$55 -> 63 | L101: ='X Team'!$D$56 -> f
A102: 113 | B102: ='X Team'!$A$61 -> 13 | C102: ='X Team'!$D$1 -> X Team | D102: ='X Team'!$D$61 -> Amanda | E102: ='X Team'!$D$62 -> Kenzior | F102: ='X Team'!$H$64 -> 0 | G102: ='X Team'!$H$61 -> 63 | H102: ='X Team'!$F$8 -> 7 | I102: Y | J102: ='X Team'!$H$62 -> 0 | K102: ='X Team'!$H$63 -> 63 | L102: ='X Team'!$D$64 -> f
A103: 216 | B103: ='YY Team'!$A$73 -> 16 | C103: ='YY Team'!$D$1 -> YY Team | D103: ='YY Team'!$D$73 -> 0 | E103: ='YY Team'!$D$74 -> 0 | F103: ='YY Team'!$H$76 ->  | G103: ='YY Team'!$H$73 -> 0 | H103: ='YY Team'!$F$8 -> 7 | I103: N | J103: ='YY Team'!$H$74 -> 0 | K103: ='YY Team'!$H$75 -> 0 | L103: ='YY Team'!$D$76 -> f
A104: 214 | B104: ='YY Team'!$A$65 -> 14 | C104: ='YY Team'!$D$1 -> YY Team | D104: ='YY Team'!$D$65 -> 0 | E104: ='YY Team'!$D$66 -> 0 | F104: ='YY Team'!$H$68 ->  | G104: ='YY Team'!$H$65 -> 0 | H104: ='YY Team'!$F$8 -> 7 | I104: N | J104: ='YY Team'!$H$66 -> 0 | K104: ='YY Team'!$H$67 -> 0 | L104: ='YY Team'!$D$68 -> f
A105: 186 | B105: ='XX Team'!$A$53 -> 11 | C105: ='XX Team'!$D$1 -> XX Team | D105: ='XX Team'!$D$53 -> 0 | E105: ='XX Team'!$D$54 -> 0 | F105: ='XX Team'!$H$56 ->  | G105: ='XX Team'!$H$53 -> 0 | H105: ='XX Team'!$F$8 -> 6 | I105: N | J105: ='XX Team'!$H$54 -> 0 | K105: ='XX Team'!$H$55 -> 0 | L105: ='XX Team'!$D$56 -> f
A106: 212 | B106: ='YY Team'!$A$57 -> 12 | C106: ='YY Team'!$D$1 -> YY Team | D106: ='YY Team'!$D$57 -> 0 | E106: ='YY Team'!$D$58 -> 0 | F106: ='YY Team'!$H$60 ->  | G106: ='YY Team'!$H$57 -> 0 | H106: ='YY Team'!$F$8 -> 7 | I106: N | J106: ='YY Team'!$H$58 -> 0 | K106: ='YY Team'!$H$59 -> 0 | L106: ='YY Team'!$D$60 -> f
A107: 21 | B107: ='Bad Pitches'!$A$93 -> 21 | C107: ='Bad Pitches'!$D$1 -> Bad Pitches | D107: ='Bad Pitches'!$D$93 -> 0 | E107: ='Bad Pitches'!$D$94 -> 0 | F107: ='Bad Pitches'!$H$96 ->  | G107: ='Bad Pitches'!$H$93 -> 0 | H107: ='Bad Pitches'!$F$8 -> 3 | I107: N | J107: ='Bad Pitches'!$H$94 -> 0 | K107: ='Bad Pitches'!$H$95 -> 0 | L107: ='Bad Pitches'!$D$96 -> f
A108: 22 | B108: ='Bad Pitches'!$A$97 -> 22 | C108: ='Bad Pitches'!$D$1 -> Bad Pitches | D108: ='Bad Pitches'!$D$97 -> 0 | E108: ='Bad Pitches'!$D$98 -> 0 | F108: ='Bad Pitches'!$H$100 ->  | G108: ='Bad Pitches'!$H$97 -> 0 | H108: ='Bad Pitches'!$F$8 -> 3 | I108: N | J108: ='Bad Pitches'!$H$98 -> 0 | K108: ='Bad Pitches'!$H$99 -> 0 | L108: ='Bad Pitches'!$D$100 -> f
A109: 23 | B109: ='Bad Pitches'!$A$101 -> 23 | C109: ='Bad Pitches'!$D$1 -> Bad Pitches | D109: ='Bad Pitches'!$D$101 -> 0 | E109: ='Bad Pitches'!$D$102 -> 0 | F109: ='Bad Pitches'!$H$104 ->  | G109: ='Bad Pitches'!$H$101 -> 0 | H109: ='Bad Pitches'!$F$8 -> 3 | I109: N | J109: ='Bad Pitches'!$H$102 -> 0 | K109: ='Bad Pitches'!$H$103 -> 0 | L109: ='Bad Pitches'!$D$104 -> f
A110: 24 | B110: ='Bad Pitches'!$A$105 -> 24 | C110: ='Bad Pitches'!$D$1 -> Bad Pitches | D110: ='Bad Pitches'!$D$105 -> 0 | E110: ='Bad Pitches'!$D$106 -> 0 | F110: ='Bad Pitches'!$H$108 ->  | G110: ='Bad Pitches'!$H$105 -> 0 | H110: ='Bad Pitches'!$F$8 -> 3 | I110: N | J110: ='Bad Pitches'!$H$106 -> 0 | K110: ='Bad Pitches'!$H$107 -> 0 | L110: ='Bad Pitches'!$D$108 -> f
A111: 25 | B111: ='Bad Pitches'!$A$109 -> 25 | C111: ='Bad Pitches'!$D$1 -> Bad Pitches | D111: ='Bad Pitches'!$D$109 -> 0 | E111: ='Bad Pitches'!$D$110 -> 0 | F111: ='Bad Pitches'!$H$112 ->  | G111: ='Bad Pitches'!$H$109 -> 0 | H111: ='Bad Pitches'!$F$8 -> 3 | I111: N | J111: ='Bad Pitches'!$H$110 -> 0 | K111: ='Bad Pitches'!$H$111 -> 0 | L111: ='Bad Pitches'!$D$112 -> f
A112: 45 | B112: =BCBC!$A$89 -> 20 | C112: =BCBC!$D$1 -> BCBC | D112: =BCBC!$D$89 -> 0 | E112: =BCBC!$D$90 -> 0 | F112: =BCBC!$H$92 ->  | G112: =BCBC!$H$89 -> 0 | H112: =BCBC!$F$8 -> 4 | I112: N | J112: =BCBC!$H$90 -> 0 | K112: =BCBC!$H$91 -> 0 | L112: =BCBC!$D$92 -> f
A113: 46 | B113: =BCBC!$A$93 -> 21 | C113: =BCBC!$D$1 -> BCBC | D113: =BCBC!$D$93 -> 0 | E113: =BCBC!$D$94 -> 0 | F113: =BCBC!$H$96 ->  | G113: =BCBC!$H$93 -> 0 | H113: =BCBC!$F$8 -> 4 | I113: N | J113: =BCBC!$H$94 -> 0 | K113: =BCBC!$H$95 -> 0 | L113: =BCBC!$D$96 -> f
A114: 47 | B114: =BCBC!$A$97 -> 22 | C114: =BCBC!$D$1 -> BCBC | D114: =BCBC!$D$97 -> 0 | E114: =BCBC!$D$98 -> 0 | F114: =BCBC!$H$100 ->  | G114: =BCBC!$H$97 -> 0 | H114: =BCBC!$F$8 -> 4 | I114: N | J114: =BCBC!$H$98 -> 0 | K114: =BCBC!$H$99 -> 0 | L114: =BCBC!$D$100 -> f
A115: 48 | B115: =BCBC!$A$101 -> 23 | C115: =BCBC!$D$1 -> BCBC | D115: =BCBC!$D$101 -> 0 | E115: =BCBC!$D$102 -> 0 | F115: =BCBC!$H$104 ->  | G115: =BCBC!$H$101 -> 0 | H115: =BCBC!$F$8 -> 4 | I115: N | J115: =BCBC!$H$102 -> 0 | K115: =BCBC!$H$103 -> 0 | L115: =BCBC!$D$104 -> f
A116: 49 | B116: =BCBC!$A$105 -> 24 | C116: =BCBC!$D$1 -> BCBC | D116: =BCBC!$D$105 -> 0 | E116: =BCBC!$D$106 -> 0 | F116: =BCBC!$H$108 ->  | G116: =BCBC!$H$105 -> 0 | H116: =BCBC!$F$8 -> 4 | I116: N | J116: =BCBC!$H$106 -> 0 | K116: =BCBC!$H$107 -> 0 | L116: =BCBC!$D$108 -> f
A117: 50 | B117: =BCBC!$A$109 -> 25 | C117: =BCBC!$D$1 -> BCBC | D117: =BCBC!$D$109 -> 0 | E117: =BCBC!$D$110 -> 0 | F117: =BCBC!$H$112 ->  | G117: =BCBC!$H$109 -> 0 | H117: =BCBC!$F$8 -> 4 | I117: N | J117: =BCBC!$H$110 -> 0 | K117: =BCBC!$H$111 -> 0 | L117: =BCBC!$D$112 -> f
A118: 69 | B118: ='Ghetto Bombers'!$A$85 -> 19 | C118: ='Ghetto Bombers'!$D$1 -> Ghetto Bombers | D118: ='Ghetto Bombers'!$D$85 -> 0 | E118: ='Ghetto Bombers'!$D$86 -> 0 | F118: ='Ghetto Bombers'!$H$88 ->  | G118: ='Ghetto Bombers'!$H$85 -> 0 | H118: ='Ghetto Bombers'!$F$8 -> 4 | I118: N | J118: ='Ghetto Bombers'!$H$86 -> 0 | K118: ='Ghetto Bombers'!$H$87 -> 0 | L118: ='Ghetto Bombers'!$D$88 -> f
A119: 70 | B119: ='Ghetto Bombers'!$A$89 -> 20 | C119: ='Ghetto Bombers'!$D$1 -> Ghetto Bombers | D119: ='Ghetto Bombers'!$D$89 -> 0 | E119: ='Ghetto Bombers'!$D$90 -> 0 | F119: ='Ghetto Bombers'!$H$92 ->  | G119: ='Ghetto Bombers'!$H$89 -> 0 | H119: ='Ghetto Bombers'!$F$8 -> 4 | I119: N | J119: ='Ghetto Bombers'!$H$90 -> 0 | K119: ='Ghetto Bombers'!$H$91 -> 0 | L119: ='Ghetto Bombers'!$D$92 -> f
A120: 71 | B120: ='Ghetto Bombers'!$A$93 -> 21 | C120: ='Ghetto Bombers'!$D$1 -> Ghetto Bombers | D120: ='Ghetto Bombers'!$D$93 -> 0 | E120: ='Ghetto Bombers'!$D$94 -> 0 | F120: ='Ghetto Bombers'!$H$96 ->  | G120: ='Ghetto Bombers'!$H$93 -> 0 | H120: ='Ghetto Bombers'!$F$8 -> 4 | I120: N | J120: ='Ghetto Bombers'!$H$94 -> 0 | K120: ='Ghetto Bombers'!$H$95 -> 0 | L120: ='Ghetto Bombers'!$D$96 -> f
A121: 72 | B121: ='Ghetto Bombers'!$A$97 -> 22 | C121: ='Ghetto Bombers'!$D$1 -> Ghetto Bombers | D121: ='Ghetto Bombers'!$D$97 -> 0 | E121: ='Ghetto Bombers'!$D$98 -> 0 | F121: ='Ghetto Bombers'!$H$100 ->  | G121: ='Ghetto Bombers'!$H$97 -> 0 | H121: ='Ghetto Bombers'!$F$8 -> 4 | I121: N | J121: ='Ghetto Bombers'!$H$98 -> 0 | K121: ='Ghetto Bombers'!$H$99 -> 0 | L121: ='Ghetto Bombers'!$D$100 -> f
A122: 73 | B122: ='Ghetto Bombers'!$A$101 -> 23 | C122: ='Ghetto Bombers'!$D$1 -> Ghetto Bombers | D122: ='Ghetto Bombers'!$D$101 -> 0 | E122: ='Ghetto Bombers'!$D$102 -> 0 | F122: ='Ghetto Bombers'!$H$104 ->  | G122: ='Ghetto Bombers'!$H$101 -> 0 | H122: ='Ghetto Bombers'!$F$8 -> 4 | I122: N | J122: ='Ghetto Bombers'!$H$102 -> 0 | K122: ='Ghetto Bombers'!$H$103 -> 0 | L122: ='Ghetto Bombers'!$D$104 -> f
A123: 74 | B123: ='Ghetto Bombers'!$A$105 -> 24 | C123: ='Ghetto Bombers'!$D$1 -> Ghetto Bombers | D123: ='Ghetto Bombers'!$D$105 -> 0 | E123: ='Ghetto Bombers'!$D$106 -> 0 | F123: ='Ghetto Bombers'!$H$108 ->  | G123: ='Ghetto Bombers'!$H$105 -> 0 | H123: ='Ghetto Bombers'!$F$8 -> 4 | I123: N | J123: ='Ghetto Bombers'!$H$106 -> 0 | K123: ='Ghetto Bombers'!$H$107 -> 0 | L123: ='Ghetto Bombers'!$D$108 -> f
A124: 75 | B124: ='Ghetto Bombers'!$A$109 -> 25 | C124: ='Ghetto Bombers'!$D$1 -> Ghetto Bombers | D124: ='Ghetto Bombers'!$D$109 -> 0 | E124: ='Ghetto Bombers'!$D$110 -> 0 | F124: ='Ghetto Bombers'!$H$112 ->  | G124: ='Ghetto Bombers'!$H$109 -> 0 | H124: ='Ghetto Bombers'!$F$8 -> 4 | I124: N | J124: ='Ghetto Bombers'!$H$110 -> 0 | K124: ='Ghetto Bombers'!$H$111 -> 0 | L124: ='Ghetto Bombers'!$D$112 -> f
A125: 94 | B125: ='Thunder Ducks'!$A$85 -> 19 | C125: ='Thunder Ducks'!$D$1 -> Thunder Ducks | D125: ='Thunder Ducks'!$D$85 -> 0 | E125: ='Thunder Ducks'!$D$86 -> 0 | F125: ='Thunder Ducks'!$H$88 ->  | G125: ='Thunder Ducks'!$H$85 -> 0 | H125: ='Thunder Ducks'!$F$8 -> 4 | I125: N | J125: ='Thunder Ducks'!$H$86 -> 0 | K125: ='Thunder Ducks'!$H$87 -> 0 | L125: ='Thunder Ducks'!$D$88 -> f
A126: 95 | B126: ='Thunder Ducks'!$A$89 -> 20 | C126: ='Thunder Ducks'!$D$1 -> Thunder Ducks | D126: ='Thunder Ducks'!$D$89 -> 0 | E126: ='Thunder Ducks'!$D$90 -> 0 | F126: ='Thunder Ducks'!$H$92 ->  | G126: ='Thunder Ducks'!$H$89 -> 0 | H126: ='Thunder Ducks'!$F$8 -> 4 | I126: N | J126: ='Thunder Ducks'!$H$90 -> 0 | K126: ='Thunder Ducks'!$H$91 -> 0 | L126: ='Thunder Ducks'!$D$92 -> f
A127: 96 | B127: ='Thunder Ducks'!$A$93 -> 21 | C127: ='Thunder Ducks'!$D$1 -> Thunder Ducks | D127: ='Thunder Ducks'!$D$93 -> 0 | E127: ='Thunder Ducks'!$D$94 -> 0 | F127: ='Thunder Ducks'!$H$96 ->  | G127: ='Thunder Ducks'!$H$93 -> 0 | H127: ='Thunder Ducks'!$F$8 -> 4 | I127: N | J127: ='Thunder Ducks'!$H$94 -> 0 | K127: ='Thunder Ducks'!$H$95 -> 0 | L127: ='Thunder Ducks'!$D$96 -> f
A128: 97 | B128: ='Thunder Ducks'!$A$97 -> 22 | C128: ='Thunder Ducks'!$D$1 -> Thunder Ducks | D128: ='Thunder Ducks'!$D$97 -> 0 | E128: ='Thunder Ducks'!$D$98 -> 0 | F128: ='Thunder Ducks'!$H$100 ->  | G128: ='Thunder Ducks'!$H$97 -> 0 | H128: ='Thunder Ducks'!$F$8 -> 4 | I128: N | J128: ='Thunder Ducks'!$H$98 -> 0 | K128: ='Thunder Ducks'!$H$99 -> 0 | L128: ='Thunder Ducks'!$D$100 -> f
A129: 98 | B129: ='Thunder Ducks'!$A$101 -> 23 | C129: ='Thunder Ducks'!$D$1 -> Thunder Ducks | D129: ='Thunder Ducks'!$D$101 -> 0 | E129: ='Thunder Ducks'!$D$102 -> 0 | F129: ='Thunder Ducks'!$H$104 ->  | G129: ='Thunder Ducks'!$H$101 -> 0 | H129: ='Thunder Ducks'!$F$8 -> 4 | I129: N | J129: ='Thunder Ducks'!$H$102 -> 0 | K129: ='Thunder Ducks'!$H$103 -> 0 | L129: ='Thunder Ducks'!$D$104 -> f
A130: 99 | B130: ='Thunder Ducks'!$A$105 -> 24 | C130: ='Thunder Ducks'!$D$1 -> Thunder Ducks | D130: ='Thunder Ducks'!$D$105 -> 0 | E130: ='Thunder Ducks'!$D$106 -> 0 | F130: ='Thunder Ducks'!$H$108 ->  | G130: ='Thunder Ducks'!$H$105 -> 0 | H130: ='Thunder Ducks'!$F$8 -> 4 | I130: =IF(K130<(H130*2.5),"N","Y") -> N | J130: ='Thunder Ducks'!$H$106 -> 0 | K130: ='Thunder Ducks'!$H$107 -> 0 | L130: ='Thunder Ducks'!$D$108 -> f
A131: 100 | B131: ='Thunder Ducks'!$A$109 -> 25 | C131: ='Thunder Ducks'!$D$1 -> Thunder Ducks | D131: ='Thunder Ducks'!$D$109 -> 0 | E131: ='Thunder Ducks'!$D$110 -> 0 | F131: ='Thunder Ducks'!$H$112 ->  | G131: ='Thunder Ducks'!$H$109 -> 0 | H131: ='Thunder Ducks'!$F$8 -> 4 | I131: N | J131: ='Thunder Ducks'!$H$110 -> 0 | K131: ='Thunder Ducks'!$H$111 -> 0 | L131: ='Thunder Ducks'!$D$112 -> f
A132: 122 | B132: ='X Team'!$A$97 -> 22 | C132: ='X Team'!$D$1 -> X Team | D132: ='X Team'!$D$97 -> 0 | E132: ='X Team'!$D$98 -> 0 | F132: ='X Team'!$H$100 ->  | G132: ='X Team'!$H$97 -> 0 | H132: ='X Team'!$F$8 -> 7 | I132: N | J132: ='X Team'!$H$98 -> 0 | K132: ='X Team'!$H$99 -> 0 | L132: ='X Team'!$D$100 -> f
A133: 123 | B133: ='X Team'!$A$101 -> 23 | C133: ='X Team'!$D$1 -> X Team | D133: ='X Team'!$D$101 -> 0 | E133: ='X Team'!$D$102 -> 0 | F133: ='X Team'!$H$104 ->  | G133: ='X Team'!$H$101 -> 0 | H133: ='X Team'!$F$8 -> 7 | I133: N | J133: ='X Team'!$H$102 -> 0 | K133: ='X Team'!$H$103 -> 0 | L133: ='X Team'!$D$104 -> f
A134: 124 | B134: ='X Team'!$A$105 -> 24 | C134: ='X Team'!$D$1 -> X Team | D134: ='X Team'!$D$105 -> 0 | E134: ='X Team'!$D$106 -> 0 | F134: ='X Team'!$H$108 ->  | G134: ='X Team'!$H$105 -> 0 | H134: ='X Team'!$F$8 -> 7 | I134: N | J134: ='X Team'!$H$106 -> 0 | K134: ='X Team'!$H$107 -> 0 | L134: ='X Team'!$D$108 -> f
A135: 125 | B135: ='X Team'!$A$109 -> 25 | C135: ='X Team'!$D$1 -> X Team | D135: ='X Team'!$D$109 -> 0 | E135: ='X Team'!$D$110 -> 0 | F135: ='X Team'!$H$112 ->  | G135: ='X Team'!$H$109 -> 0 | H135: ='X Team'!$F$8 -> 7 | I135: N | J135: ='X Team'!$H$110 -> 0 | K135: ='X Team'!$H$111 -> 0 | L135: ='X Team'!$D$112 -> f
A136: 144 | B136: ='XXX Team'!$A$85 -> 19 | C136: ='XXX Team'!$D$1 -> XXX Team | D136: ='XXX Team'!$D$85 -> 0 | E136: ='XXX Team'!$D$86 -> 0 | F136: ='XXX Team'!$H$88 ->  | G136: ='XXX Team'!$H$85 -> 0 | H136: ='XXX Team'!$F$8 -> 7 | I136: N | J136: ='XXX Team'!$H$86 -> 0 | K136: ='XXX Team'!$H$87 -> 0 | L136: ='XXX Team'!$D$88 -> f
A137: 145 | B137: ='XXX Team'!$A$89 -> 20 | C137: ='XXX Team'!$D$1 -> XXX Team | D137: ='XXX Team'!$D$89 -> 0 | E137: ='XXX Team'!$D$90 -> 0 | F137: ='XXX Team'!$H$92 ->  | G137: ='XXX Team'!$H$89 -> 0 | H137: ='XXX Team'!$F$8 -> 7 | I137: N | J137: ='XXX Team'!$H$90 -> 0 | K137: ='XXX Team'!$H$91 -> 0 | L137: ='XXX Team'!$D$92 -> f
A138: 146 | B138: ='XXX Team'!$A$93 -> 21 | C138: ='XXX Team'!$D$1 -> XXX Team | D138: ='XXX Team'!$D$93 -> 0 | E138: ='XXX Team'!$D$94 -> 0 | F138: ='XXX Team'!$H$96 ->  | G138: ='XXX Team'!$H$93 -> 0 | H138: ='XXX Team'!$F$8 -> 7 | I138: N | J138: ='XXX Team'!$H$94 -> 0 | K138: ='XXX Team'!$H$95 -> 0 | L138: ='XXX Team'!$D$96 -> f
A139: 147 | B139: ='XXX Team'!$A$97 -> 22 | C139: ='XXX Team'!$D$1 -> XXX Team | D139: ='XXX Team'!$D$97 -> 0 | E139: ='XXX Team'!$D$98 -> 0 | F139: ='XXX Team'!$H$100 ->  | G139: ='XXX Team'!$H$97 -> 0 | H139: ='XXX Team'!$F$8 -> 7 | I139: N | J139: ='XXX Team'!$H$98 -> 0 | K139: ='XXX Team'!$H$99 -> 0 | L139: ='XXX Team'!$D$100 -> f
A140: 148 | B140: ='XXX Team'!$A$101 -> 23 | C140: ='XXX Team'!$D$1 -> XXX Team | D140: ='XXX Team'!$D$101 -> 0 | E140: ='XXX Team'!$D$102 -> 0 | F140: ='XXX Team'!$H$104 ->  | G140: ='XXX Team'!$H$101 -> 0 | H140: ='XXX Team'!$F$8 -> 7 | I140: N | J140: ='XXX Team'!$H$102 -> 0 | K140: ='XXX Team'!$H$103 -> 0 | L140: ='XXX Team'!$D$104 -> f
A141: 149 | B141: ='XXX Team'!$A$105 -> 24 | C141: ='XXX Team'!$D$1 -> XXX Team | D141: ='XXX Team'!$D$105 -> 0 | E141: ='XXX Team'!$D$106 -> 0 | F141: ='XXX Team'!$H$108 ->  | G141: ='XXX Team'!$H$105 -> 0 | H141: ='XXX Team'!$F$8 -> 7 | I141: N | J141: ='XXX Team'!$H$106 -> 0 | K141: ='XXX Team'!$H$107 -> 0 | L141: ='XXX Team'!$D$108 -> f
A142: 150 | B142: ='XXX Team'!$A$109 -> 25 | C142: ='XXX Team'!$D$1 -> XXX Team | D142: ='XXX Team'!$D$109 -> 0 | E142: ='XXX Team'!$D$110 -> 0 | F142: ='XXX Team'!$H$112 ->  | G142: ='XXX Team'!$H$109 -> 0 | H142: ='XXX Team'!$F$8 -> 7 | I142: N | J142: ='XXX Team'!$H$110 -> 0 | K142: ='XXX Team'!$H$111 -> 0 | L142: ='XXX Team'!$D$112 -> f
A143: 189 | B143: ='XX Team'!$A$65 -> 14 | C143: ='XX Team'!$D$1 -> XX Team | D143: ='XX Team'!$D$65 -> 0 | E143: ='XX Team'!$D$66 -> 0 | F143: ='XX Team'!$H$68 ->  | G143: ='XX Team'!$H$65 -> 0 | H143: ='XX Team'!$F$8 -> 6 | I143: N | J143: ='XX Team'!$H$66 -> 0 | K143: ='XX Team'!$H$67 -> 0 | L143: ='XX Team'!$D$68 -> f
A144: 190 | B144: ='XX Team'!$A$69 -> 15 | C144: ='XX Team'!$D$1 -> XX Team | D144: ='XX Team'!$D$69 -> 0 | E144: ='XX Team'!$D$70 -> 0 | F144: ='XX Team'!$H$72 ->  | G144: ='XX Team'!$H$69 -> 0 | H144: ='XX Team'!$F$8 -> 6 | I144: N | J144: ='XX Team'!$H$70 -> 0 | K144: ='XX Team'!$H$71 -> 0 | L144: ='XX Team'!$D$72 -> f
A145: 191 | B145: ='XX Team'!$A$73 -> 16 | C145: ='XX Team'!$D$1 -> XX Team | D145: ='XX Team'!$D$73 -> 0 | E145: ='XX Team'!$D$74 -> 0 | F145: ='XX Team'!$H$76 ->  | G145: ='XX Team'!$H$73 -> 0 | H145: ='XX Team'!$F$8 -> 6 | I145: N | J145: ='XX Team'!$H$74 -> 0 | K145: ='XX Team'!$H$75 -> 0 | L145: ='XX Team'!$D$76 -> f
A146: 192 | B146: ='XX Team'!$A$77 -> 17 | C146: ='XX Team'!$D$1 -> XX Team | D146: ='XX Team'!$D$77 -> 0 | E146: ='XX Team'!$D$78 -> 0 | F146: ='XX Team'!$H$80 ->  | G146: ='XX Team'!$H$77 -> 0 | H146: ='XX Team'!$F$8 -> 6 | I146: N | J146: ='XX Team'!$H$78 -> 0 | K146: ='XX Team'!$H$79 -> 0 | L146: ='XX Team'!$D$80 -> f
A147: 193 | B147: ='XX Team'!$A$81 -> 18 | C147: ='XX Team'!$D$1 -> XX Team | D147: ='XX Team'!$D$81 -> 0 | E147: ='XX Team'!$D$82 -> 0 | F147: ='XX Team'!$H$84 ->  | G147: ='XX Team'!$H$81 -> 0 | H147: ='XX Team'!$F$8 -> 6 | I147: N | J147: ='XX Team'!$H$82 -> 0 | K147: ='XX Team'!$H$83 -> 0 | L147: ='XX Team'!$D$84 -> f
A148: 194 | B148: ='XX Team'!$A$85 -> 19 | C148: ='XX Team'!$D$1 -> XX Team | D148: ='XX Team'!$D$85 -> 0 | E148: ='XX Team'!$D$86 -> 0 | F148: ='XX Team'!$H$88 ->  | G148: ='XX Team'!$H$85 -> 0 | H148: ='XX Team'!$F$8 -> 6 | I148: N | J148: ='XX Team'!$H$86 -> 0 | K148: ='XX Team'!$H$87 -> 0 | L148: ='XX Team'!$D$88 -> f
A149: 195 | B149: ='XX Team'!$A$89 -> 20 | C149: ='XX Team'!$D$1 -> XX Team | D149: ='XX Team'!$D$89 -> 0 | E149: ='XX Team'!$D$90 -> 0 | F149: ='XX Team'!$H$92 ->  | G149: ='XX Team'!$H$89 -> 0 | H149: ='XX Team'!$F$8 -> 6 | I149: N | J149: ='XX Team'!$H$90 -> 0 | K149: ='XX Team'!$H$91 -> 0 | L149: ='XX Team'!$D$92 -> f
A150: 196 | B150: ='XX Team'!$A$93 -> 21 | C150: ='XX Team'!$D$1 -> XX Team | D150: ='XX Team'!$D$93 -> 0 | E150: ='XX Team'!$D$94 -> 0 | F150: ='XX Team'!$H$96 ->  | G150: ='XX Team'!$H$93 -> 0 | H150: ='XX Team'!$F$8 -> 6 | I150: N | J150: ='XX Team'!$H$94 -> 0 | K150: ='XX Team'!$H$95 -> 0 | L150: ='XX Team'!$D$96 -> f
A151: 197 | B151: ='XX Team'!$A$97 -> 22 | C151: ='XX Team'!$D$1 -> XX Team | D151: ='XX Team'!$D$97 -> 0 | E151: ='XX Team'!$D$98 -> 0 | F151: ='XX Team'!$H$100 ->  | G151: ='XX Team'!$H$97 -> 0 | H151: ='XX Team'!$F$8 -> 6 | I151: N | J151: ='XX Team'!$H$98 -> 0 | K151: ='XX Team'!$H$99 -> 0 | L151: ='XX Team'!$D$100 -> f
A152: 198 | B152: ='XX Team'!$A$101 -> 23 | C152: ='XX Team'!$D$1 -> XX Team | D152: ='XX Team'!$D$101 -> 0 | E152: ='XX Team'!$D$102 -> 0 | F152: ='XX Team'!$H$104 ->  | G152: ='XX Team'!$H$101 -> 0 | H152: ='XX Team'!$F$8 -> 6 | I152: N | J152: ='XX Team'!$H$102 -> 0 | K152: ='XX Team'!$H$103 -> 0 | L152: ='XX Team'!$D$104 -> f
A153: 199 | B153: ='XX Team'!$A$105 -> 24 | C153: ='XX Team'!$D$1 -> XX Team | D153: ='XX Team'!$D$105 -> 0 | E153: ='XX Team'!$D$106 -> 0 | F153: ='XX Team'!$H$108 ->  | G153: ='XX Team'!$H$105 -> 0 | H153: ='XX Team'!$F$8 -> 6 | I153: N | J153: ='XX Team'!$H$106 -> 0 | K153: ='XX Team'!$H$107 -> 0 | L153: ='XX Team'!$D$108 -> f
A154: 200 | B154: ='XX Team'!$A$109 -> 25 | C154: ='XX Team'!$D$1 -> XX Team | D154: ='XX Team'!$D$109 -> 0 | E154: ='XX Team'!$D$110 -> 0 | F154: ='XX Team'!$H$112 ->  | G154: ='XX Team'!$H$109 -> 0 | H154: ='XX Team'!$F$8 -> 6 | I154: N | J154: ='XX Team'!$H$110 -> 0 | K154: ='XX Team'!$H$111 -> 0 | L154: ='XX Team'!$D$112 -> f
A155: 218 | B155: ='YY Team'!$A$81 -> 18 | C155: ='YY Team'!$D$1 -> YY Team | D155: ='YY Team'!$D$81 -> 0 | E155: ='YY Team'!$D$82 -> 0 | F155: ='YY Team'!$H$84 ->  | G155: ='YY Team'!$H$81 -> 0 | H155: ='YY Team'!$F$8 -> 7 | I155: N | J155: ='YY Team'!$H$82 -> 0 | K155: ='YY Team'!$H$83 -> 0 | L155: ='YY Team'!$D$84 -> f
A156: 219 | B156: ='YY Team'!$A$85 -> 19 | C156: ='YY Team'!$D$1 -> YY Team | D156: ='YY Team'!$D$85 -> 0 | E156: ='YY Team'!$D$86 -> 0 | F156: ='YY Team'!$H$88 ->  | G156: ='YY Team'!$H$85 -> 0 | H156: ='YY Team'!$F$8 -> 7 | I156: N | J156: ='YY Team'!$H$86 -> 0 | K156: ='YY Team'!$H$87 -> 0 | L156: ='YY Team'!$D$88 -> f
A157: 220 | B157: ='YY Team'!$A$89 -> 20 | C157: ='YY Team'!$D$1 -> YY Team | D157: ='YY Team'!$D$89 -> 0 | E157: ='YY Team'!$D$90 -> 0 | F157: ='YY Team'!$H$92 ->  | G157: ='YY Team'!$H$89 -> 0 | H157: ='YY Team'!$F$8 -> 7 | I157: N | J157: ='YY Team'!$H$90 -> 0 | K157: ='YY Team'!$H$91 -> 0 | L157: ='YY Team'!$D$92 -> f
A158: 221 | B158: ='YY Team'!$A$93 -> 21 | C158: ='YY Team'!$D$1 -> YY Team | D158: ='YY Team'!$D$93 -> 0 | E158: ='YY Team'!$D$94 -> 0 | F158: ='YY Team'!$H$96 ->  | G158: ='YY Team'!$H$93 -> 0 | H158: ='YY Team'!$F$8 -> 7 | I158: N | J158: ='YY Team'!$H$94 -> 0 | K158: ='YY Team'!$H$95 -> 0 | L158: ='YY Team'!$D$96 -> f
A159: 222 | B159: ='YY Team'!$A$97 -> 22 | C159: ='YY Team'!$D$1 -> YY Team | D159: ='YY Team'!$D$97 -> 0 | E159: ='YY Team'!$D$98 -> 0 | F159: ='YY Team'!$H$100 ->  | G159: ='YY Team'!$H$97 -> 0 | H159: ='YY Team'!$F$8 -> 7 | I159: N | J159: ='YY Team'!$H$98 -> 0 | K159: ='YY Team'!$H$99 -> 0 | L159: ='YY Team'!$D$100 -> f
A160: 223 | B160: ='YY Team'!$A$101 -> 23 | C160: ='YY Team'!$D$1 -> YY Team | D160: ='YY Team'!$D$101 -> 0 | E160: ='YY Team'!$D$102 -> 0 | F160: ='YY Team'!$H$104 ->  | G160: ='YY Team'!$H$101 -> 0 | H160: ='YY Team'!$F$8 -> 7 | I160: N | J160: ='YY Team'!$H$102 -> 0 | K160: ='YY Team'!$H$103 -> 0 | L160: ='YY Team'!$D$104 -> f
A161: 224 | B161: ='YY Team'!$A$105 -> 24 | C161: ='YY Team'!$D$1 -> YY Team | D161: ='YY Team'!$D$105 -> 0 | E161: ='YY Team'!$D$106 -> 0 | F161: ='YY Team'!$H$108 ->  | G161: ='YY Team'!$H$105 -> 0 | H161: ='YY Team'!$F$8 -> 7 | I161: N | J161: ='YY Team'!$H$106 -> 0 | K161: ='YY Team'!$H$107 -> 0 | L161: ='YY Team'!$D$108 -> f
A162: 225 | B162: ='YY Team'!$A$109 -> 25 | C162: ='YY Team'!$D$1 -> YY Team | D162: ='YY Team'!$D$109 -> 0 | E162: ='YY Team'!$D$110 -> 0 | F162: ='YY Team'!$H$112 ->  | G162: ='YY Team'!$H$109 -> 0 | H162: ='YY Team'!$F$8 -> 7 | I162: =IF(K162<(H162*2.5),"N","Y") -> N | J162: ='YY Team'!$H$110 -> 0 | K162: ='YY Team'!$H$111 -> 0 | L162: ='YY Team'!$D$112 -> f
A163: 187 | B163: ='XX Team'!$A$57 -> 12 | C163: ='XX Team'!$D$1 -> XX Team | D163: ='XX Team'!$D$57 -> 0 | E163: ='XX Team'!$D$58 -> 0 | F163: ='XX Team'!$H$60 ->  | G163: ='XX Team'!$H$57 -> 0 | H163: ='XX Team'!$F$8 -> 6 | I163: N | J163: ='XX Team'!$H$58 -> 0 | K163: ='XX Team'!$H$59 -> 0 | L163: ='XX Team'!$D$60 -> f
A164: 188 | B164: ='XX Team'!$A$61 -> 13 | C164: ='XX Team'!$D$1 -> XX Team | D164: ='XX Team'!$D$61 -> 0 | E164: ='XX Team'!$D$62 -> 0 | F164: ='XX Team'!$H$64 ->  | G164: ='XX Team'!$H$61 -> 0 | H164: ='XX Team'!$F$8 -> 6 | I164: N | J164: ='XX Team'!$H$62 -> 0 | K164: ='XX Team'!$H$63 -> 0 | L164: ='XX Team'!$D$64 -> f
A165: 213 | B165: ='YY Team'!$A$61 -> 13 | C165: ='YY Team'!$D$1 -> YY Team | D165: ='YY Team'!$D$61 -> 0 | E165: ='YY Team'!$D$62 -> 0 | F165: ='YY Team'!$H$64 ->  | G165: ='YY Team'!$H$61 -> 0 | H165: ='YY Team'!$F$8 -> 7 | I165: N | J165: ='YY Team'!$H$62 -> 0 | K165: ='YY Team'!$H$63 -> 0 | L165: ='YY Team'!$D$64 -> f
A166: 215 | B166: ='YY Team'!$A$69 -> 15 | C166: ='YY Team'!$D$1 -> YY Team | D166: ='YY Team'!$D$69 -> 0 | E166: ='YY Team'!$D$70 -> 0 | F166: ='YY Team'!$H$72 ->  | G166: ='YY Team'!$H$69 -> 0 | H166: ='YY Team'!$F$8 -> 7 | I166: N | J166: ='YY Team'!$H$70 -> 0 | K166: ='YY Team'!$H$71 -> 0 | L166: ='YY Team'!$D$72 -> f
A167: 44 | B167: =BCBC!$A$85 -> 19 | C167: =BCBC!$D$1 -> BCBC | D167: =BCBC!$D$85 -> 0 | E167: =BCBC!$D$86 -> 0 | F167: =BCBC!$H$88 ->  | G167: =BCBC!$H$85 -> 0 | H167: =BCBC!$F$8 -> 4 | I167: N | J167: =BCBC!$H$86 -> 0 | K167: =BCBC!$H$87 -> 0 | L167: =BCBC!$D$88 -> f
A168: 217 | B168: ='YY Team'!$A$77 -> 17 | C168: ='YY Team'!$D$1 -> YY Team | D168: ='YY Team'!$D$77 -> 0 | E168: ='YY Team'!$D$78 -> 0 | F168: ='YY Team'!$H$80 ->  | G168: ='YY Team'!$H$77 -> 0 | H168: ='YY Team'!$F$8 -> 7 | I168: N | J168: ='YY Team'!$H$78 -> 0 | K168: ='YY Team'!$H$79 -> 0 | L168: ='YY Team'!$D$80 -> f
A169: 118 | B169: ='X Team'!$A$81 -> 18 | C169: ='X Team'!$D$1 -> X Team | D169: ='X Team'!$D$81 -> 0 | E169: ='X Team'!$D$82 -> 0 | F169: ='X Team'!$H$84 ->  | G169: ='X Team'!$H$81 -> 0 | H169: ='X Team'!$F$8 -> 7 | I169: N | J169: ='X Team'!$H$82 -> 0 | K169: ='X Team'!$H$83 -> 0 | L169: ='X Team'!$D$84 -> f
A170: 114 | B170: ='X Team'!$A$65 -> 14 | C170: ='X Team'!$D$1 -> X Team | D170: ='X Team'!$D$65 -> 0 | E170: ='X Team'!$D$66 -> 0 | F170: ='X Team'!$H$68 ->  | G170: ='X Team'!$H$65 -> 0 | H170: ='X Team'!$F$8 -> 7 | I170: N | J170: ='X Team'!$H$66 -> 0 | K170: ='X Team'!$H$67 -> 0 | L170: ='X Team'!$D$68 -> f
A171: 67 | B171: ='Ghetto Bombers'!$A$77 -> 17 | C171: ='Ghetto Bombers'!$D$1 -> Ghetto Bombers | D171: ='Ghetto Bombers'!$D$77 -> 0 | E171: ='Ghetto Bombers'!$D$78 -> 0 | F171: ='Ghetto Bombers'!$H$80 ->  | G171: ='Ghetto Bombers'!$H$77 -> 0 | H171: ='Ghetto Bombers'!$F$8 -> 4 | I171: N | J171: ='Ghetto Bombers'!$H$78 -> 0 | K171: ='Ghetto Bombers'!$H$79 -> 0 | L171: ='Ghetto Bombers'!$D$80 -> f
A172: 142 | B172: ='XXX Team'!$A$77 -> 17 | C172: ='XXX Team'!$D$1 -> XXX Team | D172: ='XXX Team'!$D$77 -> 0 | E172: ='XXX Team'!$D$78 -> 0 | F172: ='XXX Team'!$H$80 ->  | G172: ='XXX Team'!$H$77 -> 0 | H172: ='XXX Team'!$F$8 -> 7 | I172: N | J172: ='XXX Team'!$H$78 -> 0 | K172: ='XXX Team'!$H$79 -> 0 | L172: ='XXX Team'!$D$80 -> f
A173: 115 | B173: ='X Team'!$A$69 -> 15 | C173: ='X Team'!$D$1 -> X Team | D173: ='X Team'!$D$69 -> 0 | E173: ='X Team'!$D$70 -> 0 | F173: ='X Team'!$H$72 ->  | G173: ='X Team'!$H$69 -> 0 | H173: ='X Team'!$F$8 -> 7 | I173: N | J173: ='X Team'!$H$70 -> 0 | K173: ='X Team'!$H$71 -> 0 | L173: ='X Team'!$D$72 -> f
A174: 17 | B174: ='Bad Pitches'!$A$77 -> 17 | C174: ='Bad Pitches'!$D$1 -> Bad Pitches | D174: ='Bad Pitches'!$D$77 -> 0 | E174: ='Bad Pitches'!$D$78 -> 0 | F174: ='Bad Pitches'!$H$80 ->  | G174: ='Bad Pitches'!$H$77 -> 0 | H174: ='Bad Pitches'!$F$8 -> 3 | I174: N | J174: ='Bad Pitches'!$H$78 -> 0 | K174: ='Bad Pitches'!$H$79 -> 0 | L174: ='Bad Pitches'!$D$80 -> f
A175: 143 | B175: ='XXX Team'!$A$81 -> 18 | C175: ='XXX Team'!$D$1 -> XXX Team | D175: ='XXX Team'!$D$81 -> 0 | E175: ='XXX Team'!$D$82 -> 0 | F175: ='XXX Team'!$H$84 ->  | G175: ='XXX Team'!$H$81 -> 0 | H175: ='XXX Team'!$F$8 -> 7 | I175: N | J175: ='XXX Team'!$H$82 -> 0 | K175: ='XXX Team'!$H$83 -> 0 | L175: ='XXX Team'!$D$84 -> f
A176: 120 | B176: ='X Team'!$A$89 -> 20 | C176: ='X Team'!$D$1 -> X Team | D176: ='X Team'!$D$89 -> 0 | E176: ='X Team'!$D$90 -> 0 | F176: ='X Team'!$H$92 ->  | G176: ='X Team'!$H$89 -> 0 | H176: ='X Team'!$F$8 -> 7 | I176: N | J176: ='X Team'!$H$90 -> 0 | K176: ='X Team'!$H$91 -> 0 | L176: ='X Team'!$D$92 -> f
A177: 116 | B177: ='X Team'!$A$73 -> 16 | C177: ='X Team'!$D$1 -> X Team | D177: ='X Team'!$D$73 -> 0 | E177: ='X Team'!$D$74 -> 0 | F177: ='X Team'!$H$76 ->  | G177: ='X Team'!$H$73 -> 0 | H177: ='X Team'!$F$8 -> 7 | I177: N | J177: ='X Team'!$H$74 -> 0 | K177: ='X Team'!$H$75 -> 0 | L177: ='X Team'!$D$76 -> f
A178: 117 | B178: ='X Team'!$A$77 -> 17 | C178: ='X Team'!$D$1 -> X Team | D178: ='X Team'!$D$77 -> 0 | E178: ='X Team'!$D$78 -> 0 | F178: ='X Team'!$H$80 ->  | G178: ='X Team'!$H$77 -> 0 | H178: ='X Team'!$F$8 -> 7 | I178: N | J178: ='X Team'!$H$78 -> 0 | K178: ='X Team'!$H$79 -> 0 | L178: ='X Team'!$D$80 -> f
A179: 15 | B179: ='Bad Pitches'!$A$69 -> 15 | C179: ='Bad Pitches'!$D$1 -> Bad Pitches | D179: ='Bad Pitches'!$D$69 -> 0 | E179: ='Bad Pitches'!$D$70 -> 0 | F179: ='Bad Pitches'!$H$72 ->  | G179: ='Bad Pitches'!$H$69 -> 0 | H179: ='Bad Pitches'!$F$8 -> 3 | I179: N | J179: ='Bad Pitches'!$H$70 -> 0 | K179: ='Bad Pitches'!$H$71 -> 0 | L179: ='Bad Pitches'!$D$72 -> f
A180: 141 | B180: ='XXX Team'!$A$73 -> 16 | C180: ='XXX Team'!$D$1 -> XXX Team | D180: ='XXX Team'!$D$73 -> 0 | E180: ='XXX Team'!$D$74 -> 0 | F180: ='XXX Team'!$H$76 ->  | G180: ='XXX Team'!$H$73 -> 0 | H180: ='XXX Team'!$F$8 -> 7 | I180: N | J180: ='XXX Team'!$H$74 -> 0 | K180: ='XXX Team'!$H$75 -> 0 | L180: ='XXX Team'!$D$76 -> f
A181: 20 | B181: ='Bad Pitches'!$A$89 -> 20 | C181: ='Bad Pitches'!$D$1 -> Bad Pitches | D181: ='Bad Pitches'!$D$89 -> 0 | E181: ='Bad Pitches'!$D$90 -> 0 | F181: ='Bad Pitches'!$H$92 ->  | G181: ='Bad Pitches'!$H$89 -> 0 | H181: ='Bad Pitches'!$F$8 -> 3 | I181: N | J181: ='Bad Pitches'!$H$90 -> 0 | K181: ='Bad Pitches'!$H$91 -> 0 | L181: ='Bad Pitches'!$D$92 -> f
A182: 16 | B182: ='Bad Pitches'!$A$73 -> 16 | C182: ='Bad Pitches'!$D$1 -> Bad Pitches | D182: ='Bad Pitches'!$D$73 -> 0 | E182: ='Bad Pitches'!$D$74 -> 0 | F182: ='Bad Pitches'!$H$76 ->  | G182: ='Bad Pitches'!$H$73 -> 0 | H182: ='Bad Pitches'!$F$8 -> 3 | I182: N | J182: ='Bad Pitches'!$H$74 -> 0 | K182: ='Bad Pitches'!$H$75 -> 0 | L182: ='Bad Pitches'!$D$76 -> f
A183: 93 | B183: ='Thunder Ducks'!$A$81 -> 18 | C183: ='Thunder Ducks'!$D$1 -> Thunder Ducks | D183: ='Thunder Ducks'!$D$81 -> 0 | E183: ='Thunder Ducks'!$D$82 -> 0 | F183: ='Thunder Ducks'!$H$84 ->  | G183: ='Thunder Ducks'!$H$81 -> 0 | H183: ='Thunder Ducks'!$F$8 -> 4 | I183: N | J183: ='Thunder Ducks'!$H$82 -> 0 | K183: ='Thunder Ducks'!$H$83 -> 0 | L183: ='Thunder Ducks'!$D$84 -> f
A184: 64 | B184: ='Ghetto Bombers'!$A$65 -> 14 | C184: ='Ghetto Bombers'!$D$1 -> Ghetto Bombers | D184: ='Ghetto Bombers'!$D$65 -> Danielle | E184: ='Ghetto Bombers'!$D$66 -> Henesh | F184: ='Ghetto Bombers'!$H$68 -> 0.7777777778 | G184: ='Ghetto Bombers'!$H$65 -> 9 | H184: ='Ghetto Bombers'!$F$8 -> 4 | I184: N | J184: ='Ghetto Bombers'!$H$66 -> 7 | K184: ='Ghetto Bombers'!$H$67 -> 9 | L184: ='Ghetto Bombers'!$D$68 -> f
A185: 13 | B185: ='Bad Pitches'!$A$61 -> 13 | C185: ='Bad Pitches'!$D$1 -> Bad Pitches | D185: ='Bad Pitches'!$D$61 -> Karson | E185: ='Bad Pitches'!$D$62 -> Vanderver | F185: ='Bad Pitches'!$H$64 -> 0.7142857143 | G185: ='Bad Pitches'!$H$61 -> 7 | H185: ='Bad Pitches'!$F$8 -> 3 | I185: N | J185: ='Bad Pitches'!$H$62 -> 5 | K185: ='Bad Pitches'!$H$63 -> 7 | L185: ='Bad Pitches'!$D$64 -> f
A186: 85 | B186: ='Thunder Ducks'!$A$49 -> 10 | C186: ='Thunder Ducks'!$D$1 -> Thunder Ducks | D186: ='Thunder Ducks'!$D$49 -> Ashley | E186: ='Thunder Ducks'!$D$50 -> Hall | F186: ='Thunder Ducks'!$H$52 -> 0.6666666667 | G186: ='Thunder Ducks'!$H$49 -> 6 | H186: ='Thunder Ducks'!$F$8 -> 4 | I186: N | J186: ='Thunder Ducks'!$H$50 -> 4 | K186: ='Thunder Ducks'!$H$51 -> 6 | L186: ='Thunder Ducks'!$D$52 -> f
A187: 41 | B187: =BCBC!$A$73 -> 16 | C187: =BCBC!$D$1 -> BCBC | D187: =BCBC!$D$73 -> Karen | E187: =BCBC!$D$74 -> Springer | F187: =BCBC!$H$76 -> 0.5 | G187: =BCBC!$H$73 -> 4 | H187: =BCBC!$F$8 -> 4 | I187: N | J187: =BCBC!$H$74 -> 2 | K187: =BCBC!$H$75 -> 4 | L187: =BCBC!$D$76 -> f
A188: 81 | B188: ='Thunder Ducks'!$A$33 -> 6 | C188: ='Thunder Ducks'!$D$1 -> Thunder Ducks | D188: ='Thunder Ducks'!$D$33 -> Emily | E188: ='Thunder Ducks'!$D$34 -> Ross | F188: ='Thunder Ducks'!$H$36 -> 0.5 | G188: ='Thunder Ducks'!$H$33 -> 6 | H188: ='Thunder Ducks'!$F$8 -> 4 | I188: N | J188: ='Thunder Ducks'!$H$34 -> 3 | K188: ='Thunder Ducks'!$H$35 -> 6 | L188: ='Thunder Ducks'!$D$36 -> f
A189: 10 | B189: ='Bad Pitches'!$A$49 -> 10 | C189: ='Bad Pitches'!$D$1 -> Bad Pitches | D189: ='Bad Pitches'!$D$49 -> Megan | E189: ='Bad Pitches'!$D$50 -> Timpson | F189: ='Bad Pitches'!$H$52 -> 0.4444444444 | G189: ='Bad Pitches'!$H$49 -> 9 | H189: ='Bad Pitches'!$F$8 -> 3 | I189: Y | J189: ='Bad Pitches'!$H$50 -> 4 | K189: ='Bad Pitches'!$H$51 -> 9 | L189: ='Bad Pitches'!$D$52 -> f
A190: 35 | B190: =BCBC!$A$49 -> 10 | C190: =BCBC!$D$1 -> BCBC | D190: =BCBC!$D$49 -> Sunni | E190: =BCBC!$D$50 -> Jackson | F190: =BCBC!$H$52 -> 0.4285714286 | G190: =BCBC!$H$49 -> 7 | H190: =BCBC!$F$8 -> 4 | I190: N | J190: =BCBC!$H$50 -> 3 | K190: =BCBC!$H$51 -> 7 | L190: =BCBC!$D$52 -> f
A191: 6 | B191: ='Bad Pitches'!$A$33 -> 6 | C191: ='Bad Pitches'!$D$1 -> Bad Pitches | D191: ='Bad Pitches'!$D$33 -> Callianne | E191: ='Bad Pitches'!$D$34 -> Hodson | F191: ='Bad Pitches'!$H$36 -> 0.3333333333 | G191: ='Bad Pitches'!$H$33 -> 9 | H191: ='Bad Pitches'!$F$8 -> 3 | I191: Y | J191: ='Bad Pitches'!$H$34 -> 3 | K191: ='Bad Pitches'!$H$35 -> 9 | L191: ='Bad Pitches'!$D$36 -> f
A192: 62 | B192: ='Ghetto Bombers'!$A$57 -> 12 | C192: ='Ghetto Bombers'!$D$1 -> Ghetto Bombers | D192: ='Ghetto Bombers'!$D$57 -> Ally | E192: ='Ghetto Bombers'!$D$58 -> McAfee | F192: ='Ghetto Bombers'!$H$60 -> 0.3333333333 | G192: ='Ghetto Bombers'!$H$57 -> 3 | H192: ='Ghetto Bombers'!$F$8 -> 4 | I192: N | J192: ='Ghetto Bombers'!$H$58 -> 1 | K192: ='Ghetto Bombers'!$H$59 -> 4 | L192: ='Ghetto Bombers'!$D$60 -> f
A193: 12 | B193: ='Bad Pitches'!$A$57 -> 12 | C193: ='Bad Pitches'!$D$1 -> Bad Pitches | D193: ='Bad Pitches'!$D$57 -> Teya | E193: ='Bad Pitches'!$D$58 -> Gasu | F193: ='Bad Pitches'!$H$60 -> 0.2857142857 | G193: ='Bad Pitches'!$H$57 -> 7 | H193: ='Bad Pitches'!$F$8 -> 3 | I193: Y | J193: ='Bad Pitches'!$H$58 -> 2 | K193: ='Bad Pitches'!$H$59 -> 8 | L193: ='Bad Pitches'!$D$60 -> f
A194: 86 | B194: ='Thunder Ducks'!$A$53 -> 11 | C194: ='Thunder Ducks'!$D$1 -> Thunder Ducks | D194: ='Thunder Ducks'!$D$53 -> Kat | E194: ='Thunder Ducks'!$D$54 -> Tiffany | F194: ='Thunder Ducks'!$H$56 -> 0.25 | G194: ='Thunder Ducks'!$H$53 -> 8 | H194: ='Thunder Ducks'!$F$8 -> 4 | I194: =IF(K194<(H194*2.5),"N","Y") -> N | J194: ='Thunder Ducks'!$H$54 -> 2 | K194: ='Thunder Ducks'!$H$55 -> 8 | L194: ='Thunder Ducks'!$D$56 -> f
A195: 91 | B195: ='Thunder Ducks'!$A$73 -> 16 | C195: ='Thunder Ducks'!$D$1 -> Thunder Ducks | D195: ='Thunder Ducks'!$D$73 -> Paige | E195: ='Thunder Ducks'!$D$74 -> Jackman | F195: ='Thunder Ducks'!$H$76 -> 0.25 | G195: ='Thunder Ducks'!$H$73 -> 4 | H195: ='Thunder Ducks'!$F$8 -> 4 | I195: N | J195: ='Thunder Ducks'!$H$74 -> 1 | K195: ='Thunder Ducks'!$H$75 -> 4 | L195: ='Thunder Ducks'!$D$76 -> f
A196: 8 | B196: ='Bad Pitches'!$A$41 -> 8 | C196: ='Bad Pitches'!$D$1 -> Bad Pitches | D196: ='Bad Pitches'!$D$41 -> Janae | E196: ='Bad Pitches'!$D$42 -> Cook | F196: ='Bad Pitches'!$H$44 -> 0.1428571429 | G196: ='Bad Pitches'!$H$41 -> 7 | H196: ='Bad Pitches'!$F$8 -> 3 | I196: Y | J196: ='Bad Pitches'!$H$42 -> 1 | K196: ='Bad Pitches'!$H$43 -> 8 | L196: ='Bad Pitches'!$D$44 -> f
A197: 43 | B197: =BCBC!$A$81 -> 18 | C197: =BCBC!$D$1 -> BCBC | D197: =BCBC!$D$81 -> Melinda | E197: =BCBC!$D$82 -> 0 | F197: =BCBC!$H$84 -> 0 | G197: =BCBC!$H$81 -> 3 | H197: =BCBC!$F$8 -> 4 | I197: N | J197: =BCBC!$H$82 -> 0 | K197: =BCBC!$H$83 -> 3 | L197: =BCBC!$D$84 -> f
A198: 58 | B198: ='Ghetto Bombers'!$A$41 -> 8 | C198: ='Ghetto Bombers'!$D$1 -> Ghetto Bombers | D198: ='Ghetto Bombers'!$D$41 -> Ali | E198: ='Ghetto Bombers'!$D$42 -> Smith | F198: ='Ghetto Bombers'!$H$44 -> 0 | G198: ='Ghetto Bombers'!$H$41 -> 6 | H198: ='Ghetto Bombers'!$F$8 -> 4 | I198: N | J198: ='Ghetto Bombers'!$H$42 -> 0 | K198: ='Ghetto Bombers'!$H$43 -> 7 | L198: ='Ghetto Bombers'!$D$44 -> f
A199: 38 | B199: =BCBC!$A$61 -> 0 | C199: =BCBC!$D$1 -> BCBC | D199: =BCBC!$D$61 -> Robyne | E199: =BCBC!$D$62 -> Oostveen | F199: =BCBC!$H$64 -> 0 | G199: =BCBC!$H$61 -> 5 | H199: =BCBC!$F$8 -> 4 | I199: N | J199: =BCBC!$H$62 -> 0 | K199: =BCBC!$H$63 -> 5 | L199: =BCBC!$D$64 -> f
A200: 87 | B200: ='Thunder Ducks'!$A$57 -> 12 | C200: ='Thunder Ducks'!$D$1 -> Thunder Ducks | D200: ='Thunder Ducks'!$D$57 -> Megan | E200: ='Thunder Ducks'!$D$58 -> Goodman | F200: ='Thunder Ducks'!$H$60 -> 0 | G200: ='Thunder Ducks'!$H$57 -> 4 | H200: ='Thunder Ducks'!$F$8 -> 4 | I200: N | J200: ='Thunder Ducks'!$H$58 -> 0 | K200: ='Thunder Ducks'!$H$59 -> 4 | L200: ='Thunder Ducks'!$D$60 -> f
... 1 more rows

Sheet Sheet1

Sheet STANDINGS
A1: COUNTER | B1: TEAM | C1: WINS | D1: LOSSES | E1: Winning Percentage | F1: TEAM B/A
A2: 3 | B2: ='Ghetto Bombers'!$D$1 -> Ghetto Bombers | C2: ='Ghetto Bombers'!$F$3 -> 3 | D2: ='Ghetto Bombers'!$F$4 -> 1 | E2: =((C2/(C2+D2))) -> 0.75 | F2: ='Ghetto Bombers'!$F$10 -> 0.5882352941
A3: 1 | B3: ='Bad Pitches'!$D$1 -> Bad Pitches | C3: ='Bad Pitches'!$F$3 -> 2 | D3: ='Bad Pitches'!$F$4 -> 2 | E3: 0.5 | F3: ='Bad Pitches'!$F$10 -> 0.4765625
A4: 4 | B4: ='Thunder Ducks'!$D$1 -> Thunder Ducks | C4: ='Thunder Ducks'!$F$3 -> 2 | D4: ='Thunder Ducks'!$F$4 -> 2 | E4: 0.5 | F4: ='Thunder Ducks'!$F$10 -> 0.5413533835
A5: 2 | B5: =BCBC!$D$1 -> BCBC | C5: =BCBC!$F$3 -> 1 | D5: =BCBC!$F$4 -> 3 | E5: 0.25 | F5: =BCBC!$F$10 -> 0.4802631579
A6: 5 | B6: ='X Team'!$D$1 -> X Team | C6: ='X Team'!$F$3 -> 0 | D6: ='X Team'!$F$4 -> 7 | E6: 0 | F6: ='X Team'!$F$10 -> 0
A7: 8 | B7: ='XX Team'!$D$1 -> XX Team | C7: ='XX Team'!$F$3 -> 0 | D7: ='XX Team'!$F$4 -> 6 | E7: 0 | F7: ='XX Team'!$F$10 -> 0
A8: 6 | B8: ='XXX Team'!$D$1 -> XXX Team | C8: ='XXX Team'!$F$3 -> 0 | D8: ='XXX Team'!$F$4 -> 7 | E8: 0 | F8: ='XXX Team'!$F$10 -> 0
A9: 7 | B9: ='YY Team'!$D$1 -> YY Team | C9: ='YY Team'!$F$3 -> 0 | D9: ='YY Team'!$F$4 -> 7 | E9: 0 | F9: ='YY Team'!$F$10 -> 0

Sheet print
A1: Statistics as of: | B1: =Start!$A$2 -> 2023-08-31
A3: LEAGUE LEADING HITTERS - Female
A5: Players Name | C5: TEAM | D5: AVG | E5: AB | F5: HITS | G5: PA
A6: =Female!D2 -> Annie | B6: =Female!E2 -> Brady | C6: =Female!C2 -> Thunder Ducks | D6: =Female!F2 -> 0.7272727273 | E6: =Female!G2 -> 11 | F6: =Female!J2 -> 8 | G6: =Female!K2 -> 11
A7: =Female!D3 -> Calleigh | B7: =Female!E3 -> DeYoung | C7: =Female!C3 -> Ghetto Bombers | D7: =Female!F3 -> 0.6875 | E7: =Female!G3 -> 16 | F7: =Female!J3 -> 11 | G7: =Female!K3 -> 18
A8: =Female!D4 -> Brandi | B8: =Female!E4 -> Hall | C8: =Female!C4 -> Ghetto Bombers | D8: =Female!F4 -> 0.5555555556 | E8: =Female!G4 -> 18 | F8: =Female!J4 -> 10 | G8: =Female!K4 -> 18
A9: =Female!D5 -> Hope | B9: =Female!E5 -> Curtis | C9: =Female!C5 -> Ghetto Bombers | D9: =Female!F5 -> 0.5454545455 | E9: =Female!G5 -> 11 | F9: =Female!J5 -> 6 | G9: =Female!K5 -> 11
A10: =Female!D6 -> Tanzie | B10: =Female!E6 -> Gasu | C10: =Female!C6 -> Bad Pitches | D10: =Female!F6 -> 0.5 | E10: =Female!G6 -> 14 | F10: =Female!J6 -> 7 | G10: =Female!K6 -> 14
A11: =Female!D7 -> JoJo | B11: =Female!E7 -> Carlson | C11: =Female!C7 -> Ghetto Bombers | D11: =Female!F7 -> 0.5 | E11: =Female!G7 -> 10 | F11: =Female!J7 -> 5 | G11: =Female!K7 -> 10
A12: =Female!D8 -> Heidi | B12: =Female!E8 -> Taylor | C12: =Female!C8 -> Ghetto Bombers | D12: =Female!F8 -> 0.4666666667 | E12: =Female!G8 -> 15 | F12: =Female!J8 -> 7 | G12: =Female!K8 -> 16
A13: =Female!D9 -> Jennie | B13: =Female!E9 -> Anderson | C13: =Female!C9 -> Thunder Ducks | D13: =Female!F9 -> 0.4615384615 | E13: =Female!G9 -> 13 | F13: =Female!J9 -> 6 | G13: =Female!K9 -> 15
A14: =Female!D10 -> Alex | B14: =Female!E10 -> Ferrel | C14: =Female!C10 -> BCBC | D14: =Female!F10 -> 0.4545454545 | E14: =Female!G10 -> 11 | F14: =Female!J10 -> 5 | G14: =Female!K10 -> 11
A15: =Female!D11 -> Tiff | B15: =Female!E11 -> Morton | C15: =Female!C11 -> BCBC | D15: =Female!F11 -> 0.4 | E15: =Female!G11 -> 10 | F15: =Female!J11 -> 4 | G15: =Female!K11 -> 11
A16: =Female!D12 -> Casey | B16: =Female!E12 -> Velarde | C16: =Female!C12 -> BCBC | D16: =Female!F12 -> 0.3636363636 | E16: =Female!G12 -> 11 | F16: =Female!J12 -> 4 | G16: =Female!K12 -> 12
A19: LEAGUE LEADING HITTERS - Male
A21: Players Name | C21: TEAM | D21: AVG | E21: AB | F21: HITS | G21: PA
A22: =Male!D2 -> Matt | B22: =Male!E2 -> Newbold | C22: =Male!C2 -> Ghetto Bombers | D22: =Male!F2 -> 0.9411764706 | E22: =Male!G2 -> 17 | F22: =Male!J2 -> 16 | G22: =Male!K2 -> 18
A23: =Male!D3 -> Ryan | B23: =Male!E3 -> Newbold | C23: =Male!C3 -> Ghetto Bombers | D23: =Male!F3 -> 0.9230769231 | E23: =Male!G3 -> 13 | F23: =Male!J3 -> 12 | G23: =Male!K3 -> 14
A24: =Male!D4 -> Ben | B24: =Male!E4 -> Mangum | C24: =Male!C4 -> BCBC | D24: =Male!F4 -> 0.9090909091 | E24: =Male!G4 -> 11 | F24: =Male!J4 -> 10 | G24: =Male!K4 -> 11
A25: =Male!D5 -> Shane | B25: =Male!E5 -> Singer | C25: =Male!C5 -> BCBC | D25: =Male!F5 -> 0.8888888889 | E25: =Male!G5 -> 9 | F25: =Male!J5 -> 8 | G25: =Male!K5 -> 10
A26: =Male!D6 -> Kyle | B26: =Male!E6 -> O'Bryant | C26: =Male!C6 -> Thunder Ducks | D26: =Male!F6 -> 0.8888888889 | E26: =Male!G6 -> 9 | F26: =Male!J6 -> 8 | G26: =Male!K6 -> 10
A27: =Male!D7 -> Dustin | B27: =Male!E7 -> Hunter | C27: =Male!C7 -> BCBC | D27: =Male!F7 -> 0.75 | E27: =Male!G7 -> 12 | F27: =Male!J7 -> 9 | G27: =Male!K7 -> 12
A28: =Male!D8 -> Steve | B28: =Male!E8 -> Hart | C28: =Male!C8 -> Thunder Ducks | D28: =Male!F8 -> 0.7333333333 | E28: =Male!G8 -> 15 | F28: =Male!J8 -> 11 | G28: =Male!K8 -> 16
A29: =Male!D9 -> Harrison | B29: =Male!E9 -> Van Dyke | C29: =Male!C9 -> Bad Pitches | D29: =Male!F9 -> 0.7142857143 | E29: =Male!G9 -> 14 | F29: =Male!J9 -> 10 | G29: =Male!K9 -> 15
A30: =Male!D10 -> Ryan | B30: =Male!E10 -> Watt | C30: =Male!C10 -> Bad Pitches | D30: =Male!F10 -> 0.7142857143 | E30: =Male!G10 -> 14 | F30: =Male!J10 -> 10 | G30: =Male!K10 -> 14
A31: =Male!D11 -> Jordan | B31: =Male!E11 -> Rogers | C31: =Male!C11 -> BCBC | D31: =Male!F11 -> 0.7 | E31: =Male!G11 -> 10 | F31: =Male!J11 -> 7 | G31: =Male!K11 -> 11
A32: =Male!D12 -> Jon | B32: =Male!E12 -> Staley | C32: =Male!C12 -> Ghetto Bombers | D32: =Male!F12 -> 0.7 | E32: =Male!G12 -> 10 | F32: =Male!J12 -> 7 | G32: =Male!K12 -> 11
A38: STANDINGS
A39: TEAMS NAME | D39: WINS | E39: LOSSES | F39: TEAM BATTING AVG
A40: =STANDINGS!$B2 -> Ghetto Bombers | D40: =STANDINGS!$C2 -> 3 | E40: =STANDINGS!$D2 -> 1 | F40: =STANDINGS!$F2 -> 0.5882352941
A41: =STANDINGS!$B3 -> Bad Pitches | D41: =STANDINGS!$C3 -> 2 | E41: =STANDINGS!$D3 -> 2 | F41: =STANDINGS!$F3 -> 0.4765625
A42: =STANDINGS!$B4 -> Thunder Ducks | D42: =STANDINGS!$C4 -> 2 | E42: =STANDINGS!$D4 -> 2 | F42: =STANDINGS!$F4 -> 0.5413533835
A43: =STANDINGS!$B5 -> BCBC | D43: =STANDINGS!$C5 -> 1 | E43: =STANDINGS!$D5 -> 3 | F43: =STANDINGS!$F5 -> 0.4802631579
A44: =STANDINGS!$B6 -> X Team | D44: =STANDINGS!$C6 -> 0 | E44: =STANDINGS!$D6 -> 7 | F44: =STANDINGS!$F6 -> 0
A45: =STANDINGS!$B7 -> XX Team | D45: =STANDINGS!$C7 -> 0 | E45: =STANDINGS!$D7 -> 6 | F45: =STANDINGS!$F7 -> 0
A46: =STANDINGS!$B8 -> XXX Team | D46: =STANDINGS!$C8 -> 0 | E46: =STANDINGS!$D8 -> 7 | F46: =STANDINGS!$F8 -> 0
A47: =STANDINGS!$B9 -> YY Team | D47: =STANDINGS!$C9 -> 0 | E47: =STANDINGS!$D9 -> 7 | F47: =STANDINGS!$F9 -> 0
A48: =STANDINGS!#REF! ->  | D48: =STANDINGS!#REF! ->  | E48: =STANDINGS!#REF! ->  | F48: =STANDINGS!#REF! -> 
A49: =STANDINGS!#REF! ->  | D49: =STANDINGS!#REF! ->  | E49: =STANDINGS!#REF! ->  | F49: =STANDINGS!#REF! -> 

Sheet Sheet2
